Workbook

Sheet Explanation (hidden)
B2: User Instructions
A4: (1) | B4: Data only needs to be entered in the "Athlete Input" worksheet
A6: (2) | B6: Times should be enterd as follows:
B8: Times < 1 hour | C8: xx.xx | D8: e.g. 18.45
B9: Times > 1 hour | C9: x.xx.xx | D9: e.g. 1.20.30
B11: The spreadsheet will automatically convert this to a suitable format to calculate averages / improvements etc..
B12: e.g. 1.20.30 for the half marathon will be converted to 80.5
A14: (3) | B14: Atheletes full name and surname need to be entered seperatly in columns B & C in "Athelete Input" woksheet.
B15: There is no requirement to enter names in alphabetical order in this input worksheet (macro will sort alphabeticaly in the "By Athelete" worksheet)
A17: (4) | B17: After data has been updated, simply run the macro by clicking on the button in the top left hand corner of "Athlete Input" worksheet
A19: (5) | B19: For each distance the macro will sort by:
B21: (1) times run in current year
B22: (2) times run in previous year
A24: (6) | B24: The "By Athlete" worksheet will sort all times for all distances in alphabetical order
A26: (7) | B26: Summary Stats are shown as follows for each distance
B29: Summary Stats - East District Relay
B30: Number of athletes running in 2009 | C30: 28
B31: Number of athletes running in 2008 | C31: 18
B32: Best 2009 time | C32: 12.14
B33: Average 2009 time | C33: 14.32
B34: Best 2008 time | C34: 13.27
B35: Average 2008 time | C35: 14.54
A37: (8) | B37: Note, currently only been set up for 100 athletes.

Sheet Fixtures
B2: Day | C2: Date | D2: Event | E2: Venue
B3: Sunday | C3: 2015-10-11 | D3: East District Relay - 4*4km | E3: Peebles
B4: Saturday | C4: 2015-10-17 | D4: East District League (1) | E4: Stirling
B5: Saturday | C5: 2015-10-24 | D5: National Relay - 4*4km | E5: Cumbernauld
B6: Saturday | C6: 2015-11-01 | D6: Lasswade XC | E6: Lasswade
B7: Saturday | C7: 2015-11-07 | D7: National 4km Championships | E7: Glasgow
B8: Saturday | C8: 2015-11-14 | D8: Braid Hills XC | E8: Braid Hills
B9: Saturday | C9: 2015-11-21 | D9: East District League (2) | E9: Alloa
B10: Saturday | C10: 2015-12-12 | D10: East District Championships | E10: Livingston
B11: Saturday | C11: 2016-01-09 | D11: Great Edinburgh Cross Country | E11: Holyrood Park
B12: Saturday | C12: 2016-01-16 | D12: East District league (3) | E12: Broxburn
B13: Saturday | C13: 2016-01-30 | D13: Scottish Masters | E13: Forres
B14: Saturday | C14: 2016-01-30 | D14: Scottish Masters - Over 65 | E14: Forres
B15: Saturday | C15: 2016-02-27 | D15: Scottish Champs | E15: Falkirk
B16: Saturday | C16: 2016-02-27 | D16: Scottish Champs - U20 | E16: Falkirk

Sheet Athlete Input
C1: Year | D1: 2015
D2: =COLUMN()-1 -> 3 | E2: Relay | I2: =COLUMN()-1 -> 8 | J2: Non Relay | N2: =COLUMN()-1 -> 13 | O2: Relay | S2: =COLUMN()-1 -> 18 | T2: Non Relay | X2: =COLUMN()-1 -> 23 | Y2: Non Relay | AC2: =COLUMN()-1 -> 28 | AD2: Non Relay | AH2: =COLUMN()-1 -> 33 | AI2: Non Relay | AM2: =COLUMN()-1 -> 38 | AN2: Non Relay | AR2: =COLUMN()-1 -> 43 | AS2: Non Relay | AX2: =COLUMN()-1 -> 49 | AY2: Non Relay | BC2: =COLUMN()-1 -> 54 | BD2: Non Relay | BH2: =COLUMN()-1 -> 59 | BI2: Non Relay | BM2: =COLUMN()-1 -> 64 | BN2: Non Relay | BR2: =COLUMN()-1 -> 69 | BS2: Non Relay | BW2: =COLUMN()-1 -> 74 | BX2: Non Relay
D3: East District Relay | I3: East District League (1) | N3: Scottish Relays | S3: Lasswade CC | X3: Braid Hills CC | AC3: East District League (2) | AH3: East District Champs | AM3: East District Champs - U20 | AR3: Great Edinburgh CC | AX3: =Fixtures!D14 -> Scottish Masters - Over 65 | BC3: East District League (3) | BH3: Scottish 4k Championship | BM3: Scottish Masters | BR3: =Fixtures!D16 -> Scottish Champs - U20 | BW3: =Fixtures!D15 -> Scottish Champs
B4: Full Name | C4: Surname | D4: 2015-10-11 | E4: Peebles | F4: 2014-10-12 | G4: Peebles | I4: 2015-11-17 | J4: Stirling | K4: 2014-11-18 | L4: Stirling | N4: 2015-10-24 | O4: Cumbernauld | P4: 2014-10-25 | Q4: Cumbernauld | S4: 2015-11-01 | T4: Lasswade | U4: 2014-11-02 | V4: Lasswade | X4: 2015-11-14 | Y4: Braid Hills | Z4: 2014-11-15 | AA4: Braid Hills | AC4: 2015-11-21 | AD4: Alloa | AE4: 2014-11-22 | AF4: Alloa | AH4: 2015-12-12 | AI4: Livingston | AJ4: 2014-12-07 | AK4: Dundee | AM4: 2015-12-12 | AN4: Livingston | AO4: 2014-12-07 | AP4: Dundee | AR4: 2015-01-09 | AS4: Holyrood Park | AT4: 2015-01-10 | AU4: Holyrood Park | AX4: 2015-01-30 | AY4: Forres | AZ4: 2015-01-31 | BA4: Kilmarnock | BC4: 2016-01-16 | BD4: Broxburn | BE4: 2015-01-17 | BF4: Broxburn | BH4: 2015-11-07 | BI4: Glasgow | BJ4: 2014-11-09 | BK4: Glasgow | BM4: 2015-01-30 | BN4: Forres | BO4: 2015-01-31 | BP4: Kilmarnock | BR4: 2016-02-27 | BS4: Falkirk | BT4: 2015-02-21 | BU4: Falkirk | BW4: 2016-02-27 | BX4: Falkirk | BY4: 2015-02-21 | BZ4: Falkirk | CA4: Age at Start
A5: 1 | B5: Mairi Blankenstein | C5: Blankenstien | P5: 17.59 | AC5: 30.18 | AE5: 26.37 | BH5: 17.32 | BY5: 34.38 | CA5: Sen | CB5: =IF(B5="",0,1) -> 1
A6: =A5+1 -> 2 | B6: Karla Borland | C6: Borland | K6: 25.14 | P6: 17.29 | AE6: 26.2 | AH6: 27.02 | AJ6: 27 | BE6: 23.05 | BY6: 32.08 | CA6: Sen | CB6: 1
A7: =A6+1 -> 3 | B7: Hannah Cameron | C7: Cameron | AO7: 21.51 | BH7: 18.13 | BJ7: 17.08 | BT7: 21.18 | CA7: U20 | CB7: 1
A8: 4 | B8: Elaine Davies | C8: Davies | K8: 28.26 | P8: 19.26 | AH8: 29.43 | BY8: 37.03 | CA8: V40 | CB8: 1
A9: 5 | B9: Karen Dobbie | C9: Dobbie | D9: 18.07 | F9: 18.24 | I9: 26.4 | K9: 26.25 | N9: 17.46 | P9: 18.22 | AC9: 29.43 | AE9: 28.15 | AH9: 28.3 | AJ9: 28.46 | BE9: 24.47 | BO9: 29.08 | BY9: 35.46 | CA9: V40 | CB9: 1
A10: 6 | B10: Janet Dunbar | C10: Dunbar | D10: 16.24 | CA10: V40 | CB10: 1
A11: 7 | B11: Laura Dunn | C11: Dunn | F11: 15.24 | P11: 16.08 | AE11: 23.44 | CB11: 1
A12: 8 | B12: Rachael Dunn | C12: Dunn | D12: 15.07 | F12: 15.41 | I12: 22.34 | N12: 14.58 | P12: 16 | AH12: 24.1 | AO12: 19.14 | AT12: 25.09 | BH12: 14.41 | BT12: 17.46 | CA12: Sen | CB12: 1
A13: 9 | B13: Emma Dunnet | C13: Dunnett | P13: 16.29 | CB13: 1
A14: 10 | B14: S Findlay | C14: Findlay | BE14: 25.38 | CB14: 1
A15: 11 | B15: Charlotte Garry | C15: Garry | AJ15: 28.37 | BY15: 34 | CB15: 1
A16: 12 | B16: Nikki Gibson | C16: Gibson | K16: 24.42 | P16: 17.3 | AE16: 26.49 | AH16: 26.17 | AJ16: 27.26 | BE16: 23.22 | BJ16: 16.27 | BY16: 33.51 | CA16: Sen | CB16: 1
A17: 13 | B17: Fiona Hegarty | C17: Hegarty | I17: 26.24 | K17: 26.47 | P17: 18.55 | AE17: 28.17 | AJ17: 28.4 | BE17: 24.27 | BY17: 35.02 | CA17: Sen | CB17: 1
A18: 14 | B18: Niamh Jarvis | C18: Jarvis | D18: 21.36 | I18: 32 | N18: 21.27 | X18: 26.01 | AC18: 35.49 | AM18: 25.51 | CA18: U20 | CB18: 1
A19: 15 | B19: Ashleigh Kennedy | C19: Kennedy | F19: 19.22 | AE19: 27.52 | CB19: 1
A20: 16 | B20: Hilary Kernaghan | C20: Kernaghan | BE20: 30.38 | CB20: 1
A21: 17 | B21: Emma Laverie | C21: Laverie | F21: 18.07 | K21: 26.29 | AE21: 27.38 | BE21: 24.51 | CB21: 1
A22: 18 | B22: Lianne Logan | C22: Logan | D22: 18.33 | CA22: Sen | CB22: 1
A23: 19 | B23: Sheenagh MacLullich | C23: MacLullich | F23: 17.21 | Z23: 20.26 | CB23: 1
A24: 20 | B24: Catherine McKelvie | C24: Mckelvie | BY24: 36.23 | CB24: 1
A25: 21 | B25: Jennifer McLean | C25: McLean | N25: 16.24 | AH25: 26.171 | AJ25: 26.27 | BE25: 22.37 | BO25: 25.56 | BY25: 31.58 | CA25: V40 | CB25: 1
A26: 22 | B26: J Morrow | C26: Morrow | I26: 25.17 | AC26: 28.18 | AH26: 27.39 | CA26: V40 | CB26: 1
A27: 23 | B27: Madeleine Murray | C27: Murray | D27: 14.09 | F27: 14.44 | N27: 14.06 | P27: 14.51 | BH27: 13.35 | BJ27: 13.48 | BY27: 28.54 | CA27: Sen | CB27: 1
A28: 24 | B28: Gillian Palmer | C28: Palmer | P28: 15.5 | AH28: 24.19 | BJ28: 14.57 | CA28: Sen | CB28: 1
A29: 25 | B29: Anne Peat | C29: Peat | F29: 18.59 | P29: 18.51 | CB29: 1
A30: 26 | B30: Jo Phillips | C30: Phillips | P30: 17.38 | AC30: 28.27 | AH30: 27.46 | CA30: V40 | CB30: 1
A31: 27 | B31: Sharyn Ramage | C31: Ramage | D31: 18.37 | F31: 18.4 | I31: 27.13 | K31: 26.39 | N31: 18.22 | P31: 18.58 | AE31: 28.31 | AH31: 30.21 | AJ31: 29.45 | BE31: 26.36 | BO31: 29.53 | BY31: 38.26 | CA31: V50 | CB31: 1
A32: 28 | B32: Susan Ridley | C32: Ridley | D32: 16.38 | F32: 16.21 | S32: 26.49 | U32: 25.51 | BJ32: 15.47 | BO32: 29.48 | BY32: 36.21 | CA32: V40 | CB32: 1
A33: 29 | B33: Lauren Stoddart | C33: Stoddart | D33: 15.49 | F33: 16.48 | K33: 24.05 | N33: 15.42 | P33: 16.19 | AH33: 25.3 | AJ33: 26.35 | BE33: 22 | CA33: Sen | CB33: 1
A34: 30 | B34: Emily Strathdee | C34: Strathdee | P34: 17.59 | AO34: 21.15 | BJ34: 16.23 | BT34: 19.5 | CB34: 1
A35: 31 | B35: Joanne Thom | C35: Thom | Z35: 18.52 | CB35: 1
A36: 32 | B36: Hannah Waugh | C36: Waugh | D36: 17.15 | I36: 25.21 | K36: 24.11 | N36: 17.02 | P36: 17.14 | AC36: 28.03 | AH36: 27 | CA36: Sen | CB36: 1
A37: 33 | B37: Rosie Wilson | C37: Wilson | BJ37: 16.39 | CB37: =IF(B37="",0,1) -> 1
A38: 34 | B38: Amanda Woodrow | C38: Woodrow | D38: 15.45 | F38: 16.12 | N38: 15.21 | P38: 16.33 | BJ38: 15.43 | BY38: 32.52 | CA38: Sen | CB38: 1
A39: 35 | B39: Freya Ross | C39: Ross | N39: 14.4 | AH39: 23.5 | BH39: 14.37 | CA39: Sen | CB39: 1
A40: 36 | B40: Lauren Wilson | C40: Wilson | N40: 16 | BH40: 15.04 | CA40: Sen | CB40: 1
A41: 37 | B41: Helga Gudny Ellsasdottir | C41: Ellsasdottir | N41: 16.24 | CA41: Sen | CB41: 1
A42: 38 | B42: K Hiersemenzel | C42: Hiersemenzel | S42: 27.36 | CA42: Sen | CB42: 1
A43: 39 | B43: Jayne Nisbit | C43: Nisbit | BH43: 15.4 | CA43: Sen | CB43: 1
A44: 40 | B44: C Jellema | C44: Jellema | AC44: 28 | CA44: Sen | CB44: 1
A45: 41 | B45: Niamh Devlin | C45: Devlin | AH45: 25.04 | CA45: Sen | CB45: 1
A46: 42 | CB46: 0
A47: 43 | CB47: 0
A48: 44 | CB48: 0
A49: 45 | CB49: 0
A50: 46 | CB50: 0
A51: 47 | CB51: 0
A52: 48 | CB52: 0
A53: 49 | CB53: 0
A54: 50 | CB54: 0
A55: 51 | CB55: 0
A56: 52 | CB56: 0
A57: 53 | CB57: 0
A58: 54 | CB58: 0
A59: 55 | CB59: 0
A60: 56 | CB60: 0
A61: 57 | CB61: 0
A62: 58 | CB62: 0
A63: 59 | CB63: 0
A64: 60 | CB64: 0
A65: 61 | CB65: 0
A66: 62 | CB66: 0
A67: 63 | CB67: 0
A68: 64 | CB68: 0
A69: 65 | CB69: =IF(B69="",0,1) -> 0
A70: 66 | CB70: 0
A71: =A70+1 -> 67 | CB71: 0
A72: 68 | CB72: 0
A73: 69 | CB73: 0
A74: 70 | CB74: 0
A75: 71 | CB75: 0
A76: 72 | CB76: 0
A77: 73 | CB77: 0
A78: 74 | CB78: 0
A79: 75 | CB79: 0
A80: =A79+1 -> 76 | CB80: 0
A81: 77 | CB81: 0
A82: 78 | CB82: 0
A83: 79 | CB83: 0
A84: 80 | CB84: 0
A85: 81 | CB85: 0
A86: 82 | CB86: 0
A87: 83 | CB87: 0
A88: 84 | CB88: 0
A89: 85 | CB89: 0
A90: 86 | CB90: 0
A91: 87 | CB91: 0
A92: 88 | CB92: 0
A93: 89 | CB93: 0
A94: 90 | CB94: 0
A95: 91 | CB95: 0
A96: 92 | CB96: 0
A97: 93 | CB97: 0
A98: 94 | CB98: 0
A99: 95 | CB99: 0
A100: 96 | CB100: 0
A101: 97 | CB101: 0
A102: =A101+1 -> 98 | CB102: 0
A103: =A102+1 -> 99 | CB103: 0
A104: =A103+1 -> 100 | CB104: 0

Sheet By Athlete (hidden)
C1: ='Athlete Input'!D2 -> 3 | D1: =C1+2 -> 5 | E1: =D1+3 -> 8 | F1: =E1+2 -> 10 | G1: =F1+3 -> 13 | H1: =G1+2 -> 15 | I1: =H1+3 -> 18 | J1: =I1+2 -> 20 | K1: =J1+3 -> 23 | L1: =K1+2 -> 25 | M1: =L1+3 -> 28 | N1: =M1+2 -> 30 | O1: =N1+3 -> 33 | P1: =O1+2 -> 35 | Q1: =P1+3 -> 38 | R1: =Q1+2 -> 40 | S1: =R1+3 -> 43 | T1: =S1+2 -> 45 | U1: =T1+3 -> 48 | V1: =U1+2 -> 50 | W1: =V1+3 -> 53 | X1: =W1+2 -> 55 | Y1: =X1+3 -> 58 | Z1: =Y1+2 -> 60 | AA1: =Z1+3 -> 63 | AB1: =AA1+2 -> 65 | AC1: =AB1+3 -> 68 | AD1: =AC1+2 -> 70 | AE1: =AD1+3 -> 73 | AF1: =AE1+2 -> 75 | AG1: =AF1+3 -> 78 | AH1: =AG1+2 -> 80 | AI1: =AH1+3 -> 83 | AJ1: =AI1+2 -> 85 | AK1: =AJ1+3 -> 88 | AL1: =AK1+2 -> 90
C2: ='Athlete Input'!D3 -> East District Relay | E2: ='Athlete Input'!I3 -> East District League (1) | G2: ='Athlete Input'!N3 -> Scottish Relays | I2: ='Athlete Input'!S3 -> Lasswade CC | K2: ='Athlete Input'!X3 -> Braid Hills CC | M2: ='Athlete Input'!#REF! ->  | O2: ='Athlete Input'!AC3 -> East District League (2) | Q2: ='Athlete Input'!#REF! ->  | S2: ='Athlete Input'!AH3 -> East District Champs | U2: ='Athlete Input'!#REF! ->  | W2: ='Athlete Input'!AR3 -> Great Edinburgh CC | Y2: ='Athlete Input'!AX3 -> Scottish Masters - Over 65 | AA2: ='Athlete Input'!BC3 -> East District League (3) | AC2: ='Athlete Input'!BH3 -> Scottish 4k Championship | AE2: ='Athlete Input'!#REF! ->  | AG2: ='Athlete Input'!BM3 -> Scottish Masters | AI2: ='Athlete Input'!#REF! ->  | AK2: ='Athlete Input'!BW3 -> Scottish Champs
B3: Name | C3: ='Athlete Input'!D4 -> 2015-10-11 | D3: ='Athlete Input'!F4 -> 2014-10-12 | E3: ='Athlete Input'!I4 -> 2015-11-17 | F3: ='Athlete Input'!K4 -> 2014-11-18 | G3: ='Athlete Input'!N4 -> 2015-10-24 | H3: ='Athlete Input'!P4 -> 2014-10-25 | I3: ='Athlete Input'!S4 -> 2015-11-01 | J3: ='Athlete Input'!U4 -> 2014-11-02 | K3: ='Athlete Input'!X4 -> 2015-11-14 | L3: ='Athlete Input'!Z4 -> 2014-11-15 | M3: ='Athlete Input'!#REF! ->  | N3: ='Athlete Input'!#REF! ->  | O3: ='Athlete Input'!AC4 -> 2015-11-21 | P3: ='Athlete Input'!AE4 -> 2014-11-22 | Q3: ='Athlete Input'!#REF! ->  | R3: ='Athlete Input'!#REF! ->  | S3: ='Athlete Input'!AH4 -> 2015-12-12 | T3: ='Athlete Input'!AJ4 -> 2014-12-07 | U3: ='Athlete Input'!#REF! ->  | V3: ='Athlete Input'!#REF! ->  | W3: ='Athlete Input'!AR4 -> 2015-01-09 | X3: ='Athlete Input'!AT4 -> 2015-01-10 | Y3: ='Athlete Input'!AX4 -> 2015-01-30 | Z3: ='Athlete Input'!AZ4 -> 2015-01-31 | AA3: ='Athlete Input'!BC4 -> 2016-01-16 | AB3: ='Athlete Input'!BE4 -> 2015-01-17 | AC3: ='Athlete Input'!BH4 -> 2015-11-07 | AD3: ='Athlete Input'!BJ4 -> 2014-11-09 | AE3: ='Athlete Input'!#REF! ->  | AF3: ='Athlete Input'!#REF! ->  | AG3: ='Athlete Input'!BM4 -> 2015-01-30 | AH3: ='Athlete Input'!BO4 -> 2015-01-31 | AI3: ='Athlete Input'!#REF! ->  | AJ3: ='Athlete Input'!#REF! ->  | AK3: ='Athlete Input'!BW4 -> 2016-02-27 | AL3: ='Athlete Input'!BY4 -> 2015-02-21
A4: 1 | B4: =IF('Athlete Input'!B5="","",'Athlete Input'!B5) -> Mairi Blankenstein | C4: =IF($B4="","",IF(VLOOKUP($B4,'Athlete Input'!$B:$AJ,C$1,FALSE)="","",VLOOKUP($B4,'Athlete Input'!$B:$AJ,C$1,FALSE))) ->  | D4: =IF($B4="","",IF(VLOOKUP($B4,'Athlete Input'!$B:$AJ,D$1,FALSE)="","",VLOOKUP($B4,'Athlete Input'!$B:$AJ,D$1,FALSE))) ->  | E4: =IF($B4="","",IF(VLOOKUP($B4,'Athlete Input'!$B:$AJ,E$1,FALSE)="","",VLOOKUP($B4,'Athlete Input'!$B:$AJ,E$1,FALSE))) ->  | F4: =IF($B4="","",IF(VLOOKUP($B4,'Athlete Input'!$B:$AJ,F$1,FALSE)="","",VLOOKUP($B4,'Athlete Input'!$B:$AJ,F$1,FALSE))) ->  | G4: =IF($B4="","",IF(VLOOKUP($B4,'Athlete Input'!$B:$AJ,G$1,FALSE)="","",VLOOKUP($B4,'Athlete Input'!$B:$AJ,G$1,FALSE))) ->  | H4: =IF($B4="","",IF(VLOOKUP($B4,'Athlete Input'!$B:$AJ,H$1,FALSE)="","",VLOOKUP($B4,'Athlete Input'!$B:$AJ,H$1,FALSE))) -> 17.59 | I4: =IF($B4="","",IF(VLOOKUP($B4,'Athlete Input'!$B:$AJ,I$1,FALSE)="","",VLOOKUP($B4,'Athlete Input'!$B:$AJ,I$1,FALSE))) ->  | J4: =IF($B4="","",IF(VLOOKUP($B4,'Athlete Input'!$B:$AJ,J$1,FALSE)="","",VLOOKUP($B4,'Athlete Input'!$B:$AJ,J$1,FALSE))) ->  | K4: =IF($B4="","",IF(VLOOKUP($B4,'Athlete Input'!$B:$AJ,K$1,FALSE)="","",VLOOKUP($B4,'Athlete Input'!$B:$AJ,K$1,FALSE))) ->  | L4: =IF($B4="","",IF(VLOOKUP($B4,'Athlete Input'!$B:$AJ,L$1,FALSE)="","",VLOOKUP($B4,'Athlete Input'!$B:$AJ,L$1,FALSE))) ->  | M4: =IF($B4="","",IF(VLOOKUP($B4,'Athlete Input'!$B:$AJ,M$1,FALSE)="","",VLOOKUP($B4,'Athlete Input'!$B:$AJ,M$1,FALSE))) -> 30.18 | N4: =IF($B4="","",IF(VLOOKUP($B4,'Athlete Input'!$B:$AJ,N$1,FALSE)="","",VLOOKUP($B4,'Athlete Input'!$B:$AJ,N$1,FALSE))) -> 26.37 | O4: =IF($B4="","",IF(VLOOKUP($B4,'Athlete Input'!$B:$AJ,O$1,FALSE)="","",VLOOKUP($B4,'Athlete Input'!$B:$AJ,O$1,FALSE))) ->  | P4: =IF($B4="","",IF(VLOOKUP($B4,'Athlete Input'!$B:$AJ,P$1,FALSE)="","",VLOOKUP($B4,'Athlete Input'!$B:$AJ,P$1,FALSE))) ->  | Q4: =IF($B4="","",IF(VLOOKUP($B4,'Athlete Input'!$B:$AJ,Q$1,FALSE)="","",VLOOKUP($B4,'Athlete Input'!$B:$AJ,Q$1,FALSE))) ->  | R4: =IF($B4="","",IF(VLOOKUP($B4,'Athlete Input'!$B:$AJ,R$1,FALSE)="","",VLOOKUP($B4,'Athlete Input'!$B:$AJ,R$1,FALSE))) ->  | S4: =IF($B4="","",IF(VLOOKUP($B4,'Athlete Input'!$B:$AJ,S$1,FALSE)="","",VLOOKUP($B4,'Athlete Input'!$B:$AJ,S$1,FALSE))) ->  | T4: =IF($B4="","",IF(VLOOKUP($B4,'Athlete Input'!$B:$AJ,T$1,FALSE)="","",VLOOKUP($B4,'Athlete Input'!$B:$AJ,T$1,FALSE))) ->  | U4: =IF($B4="","",IF(VLOOKUP($B4,'Athlete Input'!$B:$BZ,U$1,FALSE)="","",VLOOKUP($B4,'Athlete Input'!$B:$BZ,U$1,FALSE))) ->  | V4: =IF($B4="","",IF(VLOOKUP($B4,'Athlete Input'!$B:$BZ,V$1,FALSE)="","",VLOOKUP($B4,'Athlete Input'!$B:$BZ,V$1,FALSE))) ->  | W4: =IF($B4="","",IF(VLOOKUP($B4,'Athlete Input'!$B:$BZ,W$1,FALSE)="","",VLOOKUP($B4,'Athlete Input'!$B:$BZ,W$1,FALSE))) ->  | X4: =IF($B4="","",IF(VLOOKUP($B4,'Athlete Input'!$B:$BZ,X$1,FALSE)="","",VLOOKUP($B4,'Athlete Input'!$B:$BZ,X$1,FALSE))) ->  | Y4: =IF($B4="","",IF(VLOOKUP($B4,'Athlete Input'!$B:$BZ,Y$1,FALSE)="","",VLOOKUP($B4,'Athlete Input'!$B:$BZ,Y$1,FALSE))) ->  | Z4: =IF($B4="","",IF(VLOOKUP($B4,'Athlete Input'!$B:$BZ,Z$1,FALSE)="","",VLOOKUP($B4,'Athlete Input'!$B:$BZ,Z$1,FALSE))) ->  | AA4: =IF($B4="","",IF(VLOOKUP($B4,'Athlete Input'!$B:$BZ,AA$1,FALSE)="","",VLOOKUP($B4,'Athlete Input'!$B:$BZ,AA$1,FALSE))) ->  | AB4: =IF($B4="","",IF(VLOOKUP($B4,'Athlete Input'!$B:$BZ,AB$1,FALSE)="","",VLOOKUP($B4,'Athlete Input'!$B:$BZ,AB$1,FALSE))) ->  | AC4: =IF($B4="","",IF(VLOOKUP($B4,'Athlete Input'!$B:$BZ,AC$1,FALSE)="","",VLOOKUP($B4,'Athlete Input'!$B:$BZ,AC$1,FALSE))) ->  | AD4: =IF($B4="","",IF(VLOOKUP($B4,'Athlete Input'!$B:$BZ,AD$1,FALSE)="","",VLOOKUP($B4,'Athlete Input'!$B:$BZ,AD$1,FALSE))) ->  | AE4: =IF($B4="","",IF(VLOOKUP($B4,'Athlete Input'!$B:$BZ,AE$1,FALSE)="","",VLOOKUP($B4,'Athlete Input'!$B:$BZ,AE$1,FALSE))) ->  | AF4: =IF($B4="","",IF(VLOOKUP($B4,'Athlete Input'!$B:$BZ,AF$1,FALSE)="","",VLOOKUP($B4,'Athlete Input'!$B:$BZ,AF$1,FALSE))) ->  | AG4: =IF($B4="","",IF(VLOOKUP($B4,'Athlete Input'!$B:$BZ,AG$1,FALSE)="","",VLOOKUP($B4,'Athlete Input'!$B:$BZ,AG$1,FALSE))) ->  | AH4: =IF($B4="","",IF(VLOOKUP($B4,'Athlete Input'!$B:$BZ,AH$1,FALSE)="","",VLOOKUP($B4,'Athlete Input'!$B:$BZ,AH$1,FALSE))) ->  | AI4: =IF($B4="","",IF(VLOOKUP($B4,'Athlete Input'!$B:$BZ,AI$1,FALSE)="","",VLOOKUP($B4,'Athlete Input'!$B:$BZ,AI$1,FALSE))) ->  | AJ4: =IF($B4="","",IF(VLOOKUP($B4,'Athlete Input'!$B:$BZ,AJ$1,FALSE)="","",VLOOKUP($B4,'Athlete Input'!$B:$BZ,AJ$1,FALSE))) ->  | AK4: =IF($B4="","",IF(VLOOKUP($B4,'Athlete Input'!$B:$BZ,AK$1,FALSE)="","",VLOOKUP($B4,'Athlete Input'!$B:$BZ,AK$1,FALSE))) ->  | AL4: =IF($B4="","",IF(VLOOKUP($B4,'Athlete Input'!$B:$BZ,AL$1,FALSE)="","",VLOOKUP($B4,'Athlete Input'!$B:$BZ,AL$1,FALSE))) ->  | AM4: =IF(B4="","zz",'Athlete Input'!C5) -> Blankenstien
A5: =A4+1 -> 2 | B5: =IF('Athlete Input'!B6="","",'Athlete Input'!B6) -> Karla Borland | C5: =IF($B5="","",IF(VLOOKUP($B5,'Athlete Input'!$B:$AJ,C$1,FALSE)="","",VLOOKUP($B5,'Athlete Input'!$B:$AJ,C$1,FALSE))) ->  | D5: =IF($B5="","",IF(VLOOKUP($B5,'Athlete Input'!$B:$AJ,D$1,FALSE)="","",VLOOKUP($B5,'Athlete Input'!$B:$AJ,D$1,FALSE))) ->  | E5: =IF($B5="","",IF(VLOOKUP($B5,'Athlete Input'!$B:$AJ,E$1,FALSE)="","",VLOOKUP($B5,'Athlete Input'!$B:$AJ,E$1,FALSE))) ->  | F5: =IF($B5="","",IF(VLOOKUP($B5,'Athlete Input'!$B:$AJ,F$1,FALSE)="","",VLOOKUP($B5,'Athlete Input'!$B:$AJ,F$1,FALSE))) -> 25.14 | G5: =IF($B5="","",IF(VLOOKUP($B5,'Athlete Input'!$B:$AJ,G$1,FALSE)="","",VLOOKUP($B5,'Athlete Input'!$B:$AJ,G$1,FALSE))) ->  | H5: =IF($B5="","",IF(VLOOKUP($B5,'Athlete Input'!$B:$AJ,H$1,FALSE)="","",VLOOKUP($B5,'Athlete Input'!$B:$AJ,H$1,FALSE))) -> 17.29 | I5: =IF($B5="","",IF(VLOOKUP($B5,'Athlete Input'!$B:$AJ,I$1,FALSE)="","",VLOOKUP($B5,'Athlete Input'!$B:$AJ,I$1,FALSE))) ->  | J5: =IF($B5="","",IF(VLOOKUP($B5,'Athlete Input'!$B:$AJ,J$1,FALSE)="","",VLOOKUP($B5,'Athlete Input'!$B:$AJ,J$1,FALSE))) ->  | K5: =IF($B5="","",IF(VLOOKUP($B5,'Athlete Input'!$B:$AJ,K$1,FALSE)="","",VLOOKUP($B5,'Athlete Input'!$B:$AJ,K$1,FALSE))) ->  | L5: =IF($B5="","",IF(VLOOKUP($B5,'Athlete Input'!$B:$AJ,L$1,FALSE)="","",VLOOKUP($B5,'Athlete Input'!$B:$AJ,L$1,FALSE))) ->  | M5: =IF($B5="","",IF(VLOOKUP($B5,'Athlete Input'!$B:$AJ,M$1,FALSE)="","",VLOOKUP($B5,'Athlete Input'!$B:$AJ,M$1,FALSE))) ->  | N5: =IF($B5="","",IF(VLOOKUP($B5,'Athlete Input'!$B:$AJ,N$1,FALSE)="","",VLOOKUP($B5,'Athlete Input'!$B:$AJ,N$1,FALSE))) -> 26.2 | O5: =IF($B5="","",IF(VLOOKUP($B5,'Athlete Input'!$B:$AJ,O$1,FALSE)="","",VLOOKUP($B5,'Athlete Input'!$B:$AJ,O$1,FALSE))) -> 27.02 | P5: =IF($B5="","",IF(VLOOKUP($B5,'Athlete Input'!$B:$AJ,P$1,FALSE)="","",VLOOKUP($B5,'Athlete Input'!$B:$AJ,P$1,FALSE))) -> 27 | Q5: =IF($B5="","",IF(VLOOKUP($B5,'Athlete Input'!$B:$AJ,Q$1,FALSE)="","",VLOOKUP($B5,'Athlete Input'!$B:$AJ,Q$1,FALSE))) ->  | R5: =IF($B5="","",IF(VLOOKUP($B5,'Athlete Input'!$B:$AJ,R$1,FALSE)="","",VLOOKUP($B5,'Athlete Input'!$B:$AJ,R$1,FALSE))) ->  | S5: =IF($B5="","",IF(VLOOKUP($B5,'Athlete Input'!$B:$AJ,S$1,FALSE)="","",VLOOKUP($B5,'Athlete Input'!$B:$AJ,S$1,FALSE))) ->  | T5: =IF($B5="","",IF(VLOOKUP($B5,'Athlete Input'!$B:$AJ,T$1,FALSE)="","",VLOOKUP($B5,'Athlete Input'!$B:$AJ,T$1,FALSE))) ->  | U5: =IF($B5="","",IF(VLOOKUP($B5,'Athlete Input'!$B:$BZ,U$1,FALSE)="","",VLOOKUP($B5,'Athlete Input'!$B:$BZ,U$1,FALSE))) ->  | V5: =IF($B5="","",IF(VLOOKUP($B5,'Athlete Input'!$B:$BZ,V$1,FALSE)="","",VLOOKUP($B5,'Athlete Input'!$B:$BZ,V$1,FALSE))) ->  | W5: =IF($B5="","",IF(VLOOKUP($B5,'Athlete Input'!$B:$BZ,W$1,FALSE)="","",VLOOKUP($B5,'Athlete Input'!$B:$BZ,W$1,FALSE))) ->  | X5: =IF($B5="","",IF(VLOOKUP($B5,'Athlete Input'!$B:$BZ,X$1,FALSE)="","",VLOOKUP($B5,'Athlete Input'!$B:$BZ,X$1,FALSE))) ->  | Y5: =IF($B5="","",IF(VLOOKUP($B5,'Athlete Input'!$B:$BZ,Y$1,FALSE)="","",VLOOKUP($B5,'Athlete Input'!$B:$BZ,Y$1,FALSE))) ->  | Z5: =IF($B5="","",IF(VLOOKUP($B5,'Athlete Input'!$B:$BZ,Z$1,FALSE)="","",VLOOKUP($B5,'Athlete Input'!$B:$BZ,Z$1,FALSE))) ->  | AA5: =IF($B5="","",IF(VLOOKUP($B5,'Athlete Input'!$B:$BZ,AA$1,FALSE)="","",VLOOKUP($B5,'Athlete Input'!$B:$BZ,AA$1,FALSE))) ->  | AB5: =IF($B5="","",IF(VLOOKUP($B5,'Athlete Input'!$B:$BZ,AB$1,FALSE)="","",VLOOKUP($B5,'Athlete Input'!$B:$BZ,AB$1,FALSE))) ->  | AC5: =IF($B5="","",IF(VLOOKUP($B5,'Athlete Input'!$B:$BZ,AC$1,FALSE)="","",VLOOKUP($B5,'Athlete Input'!$B:$BZ,AC$1,FALSE))) ->  | AD5: =IF($B5="","",IF(VLOOKUP($B5,'Athlete Input'!$B:$BZ,AD$1,FALSE)="","",VLOOKUP($B5,'Athlete Input'!$B:$BZ,AD$1,FALSE))) ->  | AE5: =IF($B5="","",IF(VLOOKUP($B5,'Athlete Input'!$B:$BZ,AE$1,FALSE)="","",VLOOKUP($B5,'Athlete Input'!$B:$BZ,AE$1,FALSE))) ->  | AF5: =IF($B5="","",IF(VLOOKUP($B5,'Athlete Input'!$B:$BZ,AF$1,FALSE)="","",VLOOKUP($B5,'Athlete Input'!$B:$BZ,AF$1,FALSE))) ->  | AG5: =IF($B5="","",IF(VLOOKUP($B5,'Athlete Input'!$B:$BZ,AG$1,FALSE)="","",VLOOKUP($B5,'Athlete Input'!$B:$BZ,AG$1,FALSE))) ->  | AH5: =IF($B5="","",IF(VLOOKUP($B5,'Athlete Input'!$B:$BZ,AH$1,FALSE)="","",VLOOKUP($B5,'Athlete Input'!$B:$BZ,AH$1,FALSE))) ->  | AI5: =IF($B5="","",IF(VLOOKUP($B5,'Athlete Input'!$B:$BZ,AI$1,FALSE)="","",VLOOKUP($B5,'Athlete Input'!$B:$BZ,AI$1,FALSE))) ->  | AJ5: =IF($B5="","",IF(VLOOKUP($B5,'Athlete Input'!$B:$BZ,AJ$1,FALSE)="","",VLOOKUP($B5,'Athlete Input'!$B:$BZ,AJ$1,FALSE))) ->  | AK5: =IF($B5="","",IF(VLOOKUP($B5,'Athlete Input'!$B:$BZ,AK$1,FALSE)="","",VLOOKUP($B5,'Athlete Input'!$B:$BZ,AK$1,FALSE))) ->  | AL5: =IF($B5="","",IF(VLOOKUP($B5,'Athlete Input'!$B:$BZ,AL$1,FALSE)="","",VLOOKUP($B5,'Athlete Input'!$B:$BZ,AL$1,FALSE))) ->  | AM5: =IF(B5="","zz",'Athlete Input'!C6) -> Borland
A6: =A5+1 -> 3 | B6: =IF('Athlete Input'!B7="","",'Athlete Input'!B7) -> Hannah Cameron | C6: =IF($B6="","",IF(VLOOKUP($B6,'Athlete Input'!$B:$AJ,C$1,FALSE)="","",VLOOKUP($B6,'Athlete Input'!$B:$AJ,C$1,FALSE))) ->  | D6: =IF($B6="","",IF(VLOOKUP($B6,'Athlete Input'!$B:$AJ,D$1,FALSE)="","",VLOOKUP($B6,'Athlete Input'!$B:$AJ,D$1,FALSE))) ->  | E6: =IF($B6="","",IF(VLOOKUP($B6,'Athlete Input'!$B:$AJ,E$1,FALSE)="","",VLOOKUP($B6,'Athlete Input'!$B:$AJ,E$1,FALSE))) ->  | F6: =IF($B6="","",IF(VLOOKUP($B6,'Athlete Input'!$B:$AJ,F$1,FALSE)="","",VLOOKUP($B6,'Athlete Input'!$B:$AJ,F$1,FALSE))) ->  | G6: =IF($B6="","",IF(VLOOKUP($B6,'Athlete Input'!$B:$AJ,G$1,FALSE)="","",VLOOKUP($B6,'Athlete Input'!$B:$AJ,G$1,FALSE))) ->  | H6: =IF($B6="","",IF(VLOOKUP($B6,'Athlete Input'!$B:$AJ,H$1,FALSE)="","",VLOOKUP($B6,'Athlete Input'!$B:$AJ,H$1,FALSE))) ->  | I6: =IF($B6="","",IF(VLOOKUP($B6,'Athlete Input'!$B:$AJ,I$1,FALSE)="","",VLOOKUP($B6,'Athlete Input'!$B:$AJ,I$1,FALSE))) ->  | J6: =IF($B6="","",IF(VLOOKUP($B6,'Athlete Input'!$B:$AJ,J$1,FALSE)="","",VLOOKUP($B6,'Athlete Input'!$B:$AJ,J$1,FALSE))) ->  | K6: =IF($B6="","",IF(VLOOKUP($B6,'Athlete Input'!$B:$AJ,K$1,FALSE)="","",VLOOKUP($B6,'Athlete Input'!$B:$AJ,K$1,FALSE))) ->  | L6: =IF($B6="","",IF(VLOOKUP($B6,'Athlete Input'!$B:$AJ,L$1,FALSE)="","",VLOOKUP($B6,'Athlete Input'!$B:$AJ,L$1,FALSE))) ->  | M6: =IF($B6="","",IF(VLOOKUP($B6,'Athlete Input'!$B:$AJ,M$1,FALSE)="","",VLOOKUP($B6,'Athlete Input'!$B:$AJ,M$1,FALSE))) ->  | N6: =IF($B6="","",IF(VLOOKUP($B6,'Athlete Input'!$B:$AJ,N$1,FALSE)="","",VLOOKUP($B6,'Athlete Input'!$B:$AJ,N$1,FALSE))) ->  | O6: =IF($B6="","",IF(VLOOKUP($B6,'Athlete Input'!$B:$AJ,O$1,FALSE)="","",VLOOKUP($B6,'Athlete Input'!$B:$AJ,O$1,FALSE))) ->  | P6: =IF($B6="","",IF(VLOOKUP($B6,'Athlete Input'!$B:$AJ,P$1,FALSE)="","",VLOOKUP($B6,'Athlete Input'!$B:$AJ,P$1,FALSE))) ->  | Q6: =IF($B6="","",IF(VLOOKUP($B6,'Athlete Input'!$B:$AJ,Q$1,FALSE)="","",VLOOKUP($B6,'Athlete Input'!$B:$AJ,Q$1,FALSE))) ->  | R6: =IF($B6="","",IF(VLOOKUP($B6,'Athlete Input'!$B:$AJ,R$1,FALSE)="","",VLOOKUP($B6,'Athlete Input'!$B:$AJ,R$1,FALSE))) ->  | S6: =IF($B6="","",IF(VLOOKUP($B6,'Athlete Input'!$B:$AJ,S$1,FALSE)="","",VLOOKUP($B6,'Athlete Input'!$B:$AJ,S$1,FALSE))) ->  | T6: =IF($B6="","",IF(VLOOKUP($B6,'Athlete Input'!$B:$AJ,T$1,FALSE)="","",VLOOKUP($B6,'Athlete Input'!$B:$AJ,T$1,FALSE))) ->  | U6: =IF($B6="","",IF(VLOOKUP($B6,'Athlete Input'!$B:$BZ,U$1,FALSE)="","",VLOOKUP($B6,'Athlete Input'!$B:$BZ,U$1,FALSE))) ->  | V6: =IF($B6="","",IF(VLOOKUP($B6,'Athlete Input'!$B:$BZ,V$1,FALSE)="","",VLOOKUP($B6,'Athlete Input'!$B:$BZ,V$1,FALSE))) ->  | W6: =IF($B6="","",IF(VLOOKUP($B6,'Athlete Input'!$B:$BZ,W$1,FALSE)="","",VLOOKUP($B6,'Athlete Input'!$B:$BZ,W$1,FALSE))) ->  | X6: =IF($B6="","",IF(VLOOKUP($B6,'Athlete Input'!$B:$BZ,X$1,FALSE)="","",VLOOKUP($B6,'Athlete Input'!$B:$BZ,X$1,FALSE))) ->  | Y6: =IF($B6="","",IF(VLOOKUP($B6,'Athlete Input'!$B:$BZ,Y$1,FALSE)="","",VLOOKUP($B6,'Athlete Input'!$B:$BZ,Y$1,FALSE))) ->  | Z6: =IF($B6="","",IF(VLOOKUP($B6,'Athlete Input'!$B:$BZ,Z$1,FALSE)="","",VLOOKUP($B6,'Athlete Input'!$B:$BZ,Z$1,FALSE))) ->  | AA6: =IF($B6="","",IF(VLOOKUP($B6,'Athlete Input'!$B:$BZ,AA$1,FALSE)="","",VLOOKUP($B6,'Athlete Input'!$B:$BZ,AA$1,FALSE))) ->  | AB6: =IF($B6="","",IF(VLOOKUP($B6,'Athlete Input'!$B:$BZ,AB$1,FALSE)="","",VLOOKUP($B6,'Athlete Input'!$B:$BZ,AB$1,FALSE))) ->  | AC6: =IF($B6="","",IF(VLOOKUP($B6,'Athlete Input'!$B:$BZ,AC$1,FALSE)="","",VLOOKUP($B6,'Athlete Input'!$B:$BZ,AC$1,FALSE))) ->  | AD6: =IF($B6="","",IF(VLOOKUP($B6,'Athlete Input'!$B:$BZ,AD$1,FALSE)="","",VLOOKUP($B6,'Athlete Input'!$B:$BZ,AD$1,FALSE))) ->  | AE6: =IF($B6="","",IF(VLOOKUP($B6,'Athlete Input'!$B:$BZ,AE$1,FALSE)="","",VLOOKUP($B6,'Athlete Input'!$B:$BZ,AE$1,FALSE))) ->  | AF6: =IF($B6="","",IF(VLOOKUP($B6,'Athlete Input'!$B:$BZ,AF$1,FALSE)="","",VLOOKUP($B6,'Athlete Input'!$B:$BZ,AF$1,FALSE))) ->  | AG6: =IF($B6="","",IF(VLOOKUP($B6,'Athlete Input'!$B:$BZ,AG$1,FALSE)="","",VLOOKUP($B6,'Athlete Input'!$B:$BZ,AG$1,FALSE))) ->  | AH6: =IF($B6="","",IF(VLOOKUP($B6,'Athlete Input'!$B:$BZ,AH$1,FALSE)="","",VLOOKUP($B6,'Athlete Input'!$B:$BZ,AH$1,FALSE))) ->  | AI6: =IF($B6="","",IF(VLOOKUP($B6,'Athlete Input'!$B:$BZ,AI$1,FALSE)="","",VLOOKUP($B6,'Athlete Input'!$B:$BZ,AI$1,FALSE))) ->  | AJ6: =IF($B6="","",IF(VLOOKUP($B6,'Athlete Input'!$B:$BZ,AJ$1,FALSE)="","",VLOOKUP($B6,'Athlete Input'!$B:$BZ,AJ$1,FALSE))) ->  | AK6: =IF($B6="","",IF(VLOOKUP($B6,'Athlete Input'!$B:$BZ,AK$1,FALSE)="","",VLOOKUP($B6,'Athlete Input'!$B:$BZ,AK$1,FALSE))) ->  | AL6: =IF($B6="","",IF(VLOOKUP($B6,'Athlete Input'!$B:$BZ,AL$1,FALSE)="","",VLOOKUP($B6,'Athlete Input'!$B:$BZ,AL$1,FALSE))) ->  | AM6: =IF(B6="","zz",'Athlete Input'!C7) -> Cameron
A7: 4 | B7: =IF('Athlete Input'!B8="","",'Athlete Input'!B8) -> Elaine Davies | C7: =IF($B7="","",IF(VLOOKUP($B7,'Athlete Input'!$B:$AJ,C$1,FALSE)="","",VLOOKUP($B7,'Athlete Input'!$B:$AJ,C$1,FALSE))) ->  | D7: =IF($B7="","",IF(VLOOKUP($B7,'Athlete Input'!$B:$AJ,D$1,FALSE)="","",VLOOKUP($B7,'Athlete Input'!$B:$AJ,D$1,FALSE))) ->  | E7: =IF($B7="","",IF(VLOOKUP($B7,'Athlete Input'!$B:$AJ,E$1,FALSE)="","",VLOOKUP($B7,'Athlete Input'!$B:$AJ,E$1,FALSE))) ->  | F7: =IF($B7="","",IF(VLOOKUP($B7,'Athlete Input'!$B:$AJ,F$1,FALSE)="","",VLOOKUP($B7,'Athlete Input'!$B:$AJ,F$1,FALSE))) -> 28.26 | G7: =IF($B7="","",IF(VLOOKUP($B7,'Athlete Input'!$B:$AJ,G$1,FALSE)="","",VLOOKUP($B7,'Athlete Input'!$B:$AJ,G$1,FALSE))) ->  | H7: =IF($B7="","",IF(VLOOKUP($B7,'Athlete Input'!$B:$AJ,H$1,FALSE)="","",VLOOKUP($B7,'Athlete Input'!$B:$AJ,H$1,FALSE))) -> 19.26 | I7: =IF($B7="","",IF(VLOOKUP($B7,'Athlete Input'!$B:$AJ,I$1,FALSE)="","",VLOOKUP($B7,'Athlete Input'!$B:$AJ,I$1,FALSE))) ->  | J7: =IF($B7="","",IF(VLOOKUP($B7,'Athlete Input'!$B:$AJ,J$1,FALSE)="","",VLOOKUP($B7,'Athlete Input'!$B:$AJ,J$1,FALSE))) ->  | K7: =IF($B7="","",IF(VLOOKUP($B7,'Athlete Input'!$B:$AJ,K$1,FALSE)="","",VLOOKUP($B7,'Athlete Input'!$B:$AJ,K$1,FALSE))) ->  | L7: =IF($B7="","",IF(VLOOKUP($B7,'Athlete Input'!$B:$AJ,L$1,FALSE)="","",VLOOKUP($B7,'Athlete Input'!$B:$AJ,L$1,FALSE))) ->  | M7: =IF($B7="","",IF(VLOOKUP($B7,'Athlete Input'!$B:$AJ,M$1,FALSE)="","",VLOOKUP($B7,'Athlete Input'!$B:$AJ,M$1,FALSE))) ->  | N7: =IF($B7="","",IF(VLOOKUP($B7,'Athlete Input'!$B:$AJ,N$1,FALSE)="","",VLOOKUP($B7,'Athlete Input'!$B:$AJ,N$1,FALSE))) ->  | O7: =IF($B7="","",IF(VLOOKUP($B7,'Athlete Input'!$B:$AJ,O$1,FALSE)="","",VLOOKUP($B7,'Athlete Input'!$B:$AJ,O$1,FALSE))) -> 29.43 | P7: =IF($B7="","",IF(VLOOKUP($B7,'Athlete Input'!$B:$AJ,P$1,FALSE)="","",VLOOKUP($B7,'Athlete Input'!$B:$AJ,P$1,FALSE))) ->  | Q7: =IF($B7="","",IF(VLOOKUP($B7,'Athlete Input'!$B:$AJ,Q$1,FALSE)="","",VLOOKUP($B7,'Athlete Input'!$B:$AJ,Q$1,FALSE))) ->  | R7: =IF($B7="","",IF(VLOOKUP($B7,'Athlete Input'!$B:$AJ,R$1,FALSE)="","",VLOOKUP($B7,'Athlete Input'!$B:$AJ,R$1,FALSE))) ->  | S7: =IF($B7="","",IF(VLOOKUP($B7,'Athlete Input'!$B:$AJ,S$1,FALSE)="","",VLOOKUP($B7,'Athlete Input'!$B:$AJ,S$1,FALSE))) ->  | T7: =IF($B7="","",IF(VLOOKUP($B7,'Athlete Input'!$B:$AJ,T$1,FALSE)="","",VLOOKUP($B7,'Athlete Input'!$B:$AJ,T$1,FALSE))) ->  | U7: =IF($B7="","",IF(VLOOKUP($B7,'Athlete Input'!$B:$BZ,U$1,FALSE)="","",VLOOKUP($B7,'Athlete Input'!$B:$BZ,U$1,FALSE))) ->  | V7: =IF($B7="","",IF(VLOOKUP($B7,'Athlete Input'!$B:$BZ,V$1,FALSE)="","",VLOOKUP($B7,'Athlete Input'!$B:$BZ,V$1,FALSE))) ->  | W7: =IF($B7="","",IF(VLOOKUP($B7,'Athlete Input'!$B:$BZ,W$1,FALSE)="","",VLOOKUP($B7,'Athlete Input'!$B:$BZ,W$1,FALSE))) ->  | X7: =IF($B7="","",IF(VLOOKUP($B7,'Athlete Input'!$B:$BZ,X$1,FALSE)="","",VLOOKUP($B7,'Athlete Input'!$B:$BZ,X$1,FALSE))) ->  | Y7: =IF($B7="","",IF(VLOOKUP($B7,'Athlete Input'!$B:$BZ,Y$1,FALSE)="","",VLOOKUP($B7,'Athlete Input'!$B:$BZ,Y$1,FALSE))) ->  | Z7: =IF($B7="","",IF(VLOOKUP($B7,'Athlete Input'!$B:$BZ,Z$1,FALSE)="","",VLOOKUP($B7,'Athlete Input'!$B:$BZ,Z$1,FALSE))) ->  | AA7: =IF($B7="","",IF(VLOOKUP($B7,'Athlete Input'!$B:$BZ,AA$1,FALSE)="","",VLOOKUP($B7,'Athlete Input'!$B:$BZ,AA$1,FALSE))) ->  | AB7: =IF($B7="","",IF(VLOOKUP($B7,'Athlete Input'!$B:$BZ,AB$1,FALSE)="","",VLOOKUP($B7,'Athlete Input'!$B:$BZ,AB$1,FALSE))) ->  | AC7: =IF($B7="","",IF(VLOOKUP($B7,'Athlete Input'!$B:$BZ,AC$1,FALSE)="","",VLOOKUP($B7,'Athlete Input'!$B:$BZ,AC$1,FALSE))) ->  | AD7: =IF($B7="","",IF(VLOOKUP($B7,'Athlete Input'!$B:$BZ,AD$1,FALSE)="","",VLOOKUP($B7,'Athlete Input'!$B:$BZ,AD$1,FALSE))) ->  | AE7: =IF($B7="","",IF(VLOOKUP($B7,'Athlete Input'!$B:$BZ,AE$1,FALSE)="","",VLOOKUP($B7,'Athlete Input'!$B:$BZ,AE$1,FALSE))) ->  | AF7: =IF($B7="","",IF(VLOOKUP($B7,'Athlete Input'!$B:$BZ,AF$1,FALSE)="","",VLOOKUP($B7,'Athlete Input'!$B:$BZ,AF$1,FALSE))) ->  | AG7: =IF($B7="","",IF(VLOOKUP($B7,'Athlete Input'!$B:$BZ,AG$1,FALSE)="","",VLOOKUP($B7,'Athlete Input'!$B:$BZ,AG$1,FALSE))) ->  | AH7: =IF($B7="","",IF(VLOOKUP($B7,'Athlete Input'!$B:$BZ,AH$1,FALSE)="","",VLOOKUP($B7,'Athlete Input'!$B:$BZ,AH$1,FALSE))) ->  | AI7: =IF($B7="","",IF(VLOOKUP($B7,'Athlete Input'!$B:$BZ,AI$1,FALSE)="","",VLOOKUP($B7,'Athlete Input'!$B:$BZ,AI$1,FALSE))) ->  | AJ7: =IF($B7="","",IF(VLOOKUP($B7,'Athlete Input'!$B:$BZ,AJ$1,FALSE)="","",VLOOKUP($B7,'Athlete Input'!$B:$BZ,AJ$1,FALSE))) ->  | AK7: =IF($B7="","",IF(VLOOKUP($B7,'Athlete Input'!$B:$BZ,AK$1,FALSE)="","",VLOOKUP($B7,'Athlete Input'!$B:$BZ,AK$1,FALSE))) ->  | AL7: =IF($B7="","",IF(VLOOKUP($B7,'Athlete Input'!$B:$BZ,AL$1,FALSE)="","",VLOOKUP($B7,'Athlete Input'!$B:$BZ,AL$1,FALSE))) ->  | AM7: =IF(B7="","zz",'Athlete Input'!C8) -> Davies
A8: 5 | B8: =IF('Athlete Input'!B9="","",'Athlete Input'!B9) -> Karen Dobbie | C8: =IF($B8="","",IF(VLOOKUP($B8,'Athlete Input'!$B:$AJ,C$1,FALSE)="","",VLOOKUP($B8,'Athlete Input'!$B:$AJ,C$1,FALSE))) -> 18.07 | D8: =IF($B8="","",IF(VLOOKUP($B8,'Athlete Input'!$B:$AJ,D$1,FALSE)="","",VLOOKUP($B8,'Athlete Input'!$B:$AJ,D$1,FALSE))) -> 18.24 | E8: =IF($B8="","",IF(VLOOKUP($B8,'Athlete Input'!$B:$AJ,E$1,FALSE)="","",VLOOKUP($B8,'Athlete Input'!$B:$AJ,E$1,FALSE))) -> 26.4 | F8: =IF($B8="","",IF(VLOOKUP($B8,'Athlete Input'!$B:$AJ,F$1,FALSE)="","",VLOOKUP($B8,'Athlete Input'!$B:$AJ,F$1,FALSE))) -> 26.25 | G8: =IF($B8="","",IF(VLOOKUP($B8,'Athlete Input'!$B:$AJ,G$1,FALSE)="","",VLOOKUP($B8,'Athlete Input'!$B:$AJ,G$1,FALSE))) -> 17.46 | H8: =IF($B8="","",IF(VLOOKUP($B8,'Athlete Input'!$B:$AJ,H$1,FALSE)="","",VLOOKUP($B8,'Athlete Input'!$B:$AJ,H$1,FALSE))) -> 18.22 | I8: =IF($B8="","",IF(VLOOKUP($B8,'Athlete Input'!$B:$AJ,I$1,FALSE)="","",VLOOKUP($B8,'Athlete Input'!$B:$AJ,I$1,FALSE))) ->  | J8: =IF($B8="","",IF(VLOOKUP($B8,'Athlete Input'!$B:$AJ,J$1,FALSE)="","",VLOOKUP($B8,'Athlete Input'!$B:$AJ,J$1,FALSE))) ->  | K8: =IF($B8="","",IF(VLOOKUP($B8,'Athlete Input'!$B:$AJ,K$1,FALSE)="","",VLOOKUP($B8,'Athlete Input'!$B:$AJ,K$1,FALSE))) ->  | L8: =IF($B8="","",IF(VLOOKUP($B8,'Athlete Input'!$B:$AJ,L$1,FALSE)="","",VLOOKUP($B8,'Athlete Input'!$B:$AJ,L$1,FALSE))) ->  | M8: =IF($B8="","",IF(VLOOKUP($B8,'Athlete Input'!$B:$AJ,M$1,FALSE)="","",VLOOKUP($B8,'Athlete Input'!$B:$AJ,M$1,FALSE))) -> 29.43 | N8: =IF($B8="","",IF(VLOOKUP($B8,'Athlete Input'!$B:$AJ,N$1,FALSE)="","",VLOOKUP($B8,'Athlete Input'!$B:$AJ,N$1,FALSE))) -> 28.15 | O8: =IF($B8="","",IF(VLOOKUP($B8,'Athlete Input'!$B:$AJ,O$1,FALSE)="","",VLOOKUP($B8,'Athlete Input'!$B:$AJ,O$1,FALSE))) -> 28.3 | P8: =IF($B8="","",IF(VLOOKUP($B8,'Athlete Input'!$B:$AJ,P$1,FALSE)="","",VLOOKUP($B8,'Athlete Input'!$B:$AJ,P$1,FALSE))) -> 28.46 | Q8: =IF($B8="","",IF(VLOOKUP($B8,'Athlete Input'!$B:$AJ,Q$1,FALSE)="","",VLOOKUP($B8,'Athlete Input'!$B:$AJ,Q$1,FALSE))) ->  | R8: =IF($B8="","",IF(VLOOKUP($B8,'Athlete Input'!$B:$AJ,R$1,FALSE)="","",VLOOKUP($B8,'Athlete Input'!$B:$AJ,R$1,FALSE))) ->  | S8: =IF($B8="","",IF(VLOOKUP($B8,'Athlete Input'!$B:$AJ,S$1,FALSE)="","",VLOOKUP($B8,'Athlete Input'!$B:$AJ,S$1,FALSE))) ->  | T8: =IF($B8="","",IF(VLOOKUP($B8,'Athlete Input'!$B:$AJ,T$1,FALSE)="","",VLOOKUP($B8,'Athlete Input'!$B:$AJ,T$1,FALSE))) ->  | U8: =IF($B8="","",IF(VLOOKUP($B8,'Athlete Input'!$B:$BZ,U$1,FALSE)="","",VLOOKUP($B8,'Athlete Input'!$B:$BZ,U$1,FALSE))) ->  | V8: =IF($B8="","",IF(VLOOKUP($B8,'Athlete Input'!$B:$BZ,V$1,FALSE)="","",VLOOKUP($B8,'Athlete Input'!$B:$BZ,V$1,FALSE))) ->  | W8: =IF($B8="","",IF(VLOOKUP($B8,'Athlete Input'!$B:$BZ,W$1,FALSE)="","",VLOOKUP($B8,'Athlete Input'!$B:$BZ,W$1,FALSE))) ->  | X8: =IF($B8="","",IF(VLOOKUP($B8,'Athlete Input'!$B:$BZ,X$1,FALSE)="","",VLOOKUP($B8,'Athlete Input'!$B:$BZ,X$1,FALSE))) ->  | Y8: =IF($B8="","",IF(VLOOKUP($B8,'Athlete Input'!$B:$BZ,Y$1,FALSE)="","",VLOOKUP($B8,'Athlete Input'!$B:$BZ,Y$1,FALSE))) ->  | Z8: =IF($B8="","",IF(VLOOKUP($B8,'Athlete Input'!$B:$BZ,Z$1,FALSE)="","",VLOOKUP($B8,'Athlete Input'!$B:$BZ,Z$1,FALSE))) ->  | AA8: =IF($B8="","",IF(VLOOKUP($B8,'Athlete Input'!$B:$BZ,AA$1,FALSE)="","",VLOOKUP($B8,'Athlete Input'!$B:$BZ,AA$1,FALSE))) ->  | AB8: =IF($B8="","",IF(VLOOKUP($B8,'Athlete Input'!$B:$BZ,AB$1,FALSE)="","",VLOOKUP($B8,'Athlete Input'!$B:$BZ,AB$1,FALSE))) ->  | AC8: =IF($B8="","",IF(VLOOKUP($B8,'Athlete Input'!$B:$BZ,AC$1,FALSE)="","",VLOOKUP($B8,'Athlete Input'!$B:$BZ,AC$1,FALSE))) ->  | AD8: =IF($B8="","",IF(VLOOKUP($B8,'Athlete Input'!$B:$BZ,AD$1,FALSE)="","",VLOOKUP($B8,'Athlete Input'!$B:$BZ,AD$1,FALSE))) ->  | AE8: =IF($B8="","",IF(VLOOKUP($B8,'Athlete Input'!$B:$BZ,AE$1,FALSE)="","",VLOOKUP($B8,'Athlete Input'!$B:$BZ,AE$1,FALSE))) ->  | AF8: =IF($B8="","",IF(VLOOKUP($B8,'Athlete Input'!$B:$BZ,AF$1,FALSE)="","",VLOOKUP($B8,'Athlete Input'!$B:$BZ,AF$1,FALSE))) ->  | AG8: =IF($B8="","",IF(VLOOKUP($B8,'Athlete Input'!$B:$BZ,AG$1,FALSE)="","",VLOOKUP($B8,'Athlete Input'!$B:$BZ,AG$1,FALSE))) ->  | AH8: =IF($B8="","",IF(VLOOKUP($B8,'Athlete Input'!$B:$BZ,AH$1,FALSE)="","",VLOOKUP($B8,'Athlete Input'!$B:$BZ,AH$1,FALSE))) ->  | AI8: =IF($B8="","",IF(VLOOKUP($B8,'Athlete Input'!$B:$BZ,AI$1,FALSE)="","",VLOOKUP($B8,'Athlete Input'!$B:$BZ,AI$1,FALSE))) ->  | AJ8: =IF($B8="","",IF(VLOOKUP($B8,'Athlete Input'!$B:$BZ,AJ$1,FALSE)="","",VLOOKUP($B8,'Athlete Input'!$B:$BZ,AJ$1,FALSE))) ->  | AK8: =IF($B8="","",IF(VLOOKUP($B8,'Athlete Input'!$B:$BZ,AK$1,FALSE)="","",VLOOKUP($B8,'Athlete Input'!$B:$BZ,AK$1,FALSE))) ->  | AL8: =IF($B8="","",IF(VLOOKUP($B8,'Athlete Input'!$B:$BZ,AL$1,FALSE)="","",VLOOKUP($B8,'Athlete Input'!$B:$BZ,AL$1,FALSE))) ->  | AM8: =IF(B8="","zz",'Athlete Input'!C9) -> Dobbie
A9: 6 | B9: =IF('Athlete Input'!B10="","",'Athlete Input'!B10) -> Janet Dunbar | C9: =IF($B9="","",IF(VLOOKUP($B9,'Athlete Input'!$B:$AJ,C$1,FALSE)="","",VLOOKUP($B9,'Athlete Input'!$B:$AJ,C$1,FALSE))) -> 16.24 | D9: =IF($B9="","",IF(VLOOKUP($B9,'Athlete Input'!$B:$AJ,D$1,FALSE)="","",VLOOKUP($B9,'Athlete Input'!$B:$AJ,D$1,FALSE))) ->  | E9: =IF($B9="","",IF(VLOOKUP($B9,'Athlete Input'!$B:$AJ,E$1,FALSE)="","",VLOOKUP($B9,'Athlete Input'!$B:$AJ,E$1,FALSE))) ->  | F9: =IF($B9="","",IF(VLOOKUP($B9,'Athlete Input'!$B:$AJ,F$1,FALSE)="","",VLOOKUP($B9,'Athlete Input'!$B:$AJ,F$1,FALSE))) ->  | G9: =IF($B9="","",IF(VLOOKUP($B9,'Athlete Input'!$B:$AJ,G$1,FALSE)="","",VLOOKUP($B9,'Athlete Input'!$B:$AJ,G$1,FALSE))) ->  | H9: =IF($B9="","",IF(VLOOKUP($B9,'Athlete Input'!$B:$AJ,H$1,FALSE)="","",VLOOKUP($B9,'Athlete Input'!$B:$AJ,H$1,FALSE))) ->  | I9: =IF($B9="","",IF(VLOOKUP($B9,'Athlete Input'!$B:$AJ,I$1,FALSE)="","",VLOOKUP($B9,'Athlete Input'!$B:$AJ,I$1,FALSE))) ->  | J9: =IF($B9="","",IF(VLOOKUP($B9,'Athlete Input'!$B:$AJ,J$1,FALSE)="","",VLOOKUP($B9,'Athlete Input'!$B:$AJ,J$1,FALSE))) ->  | K9: =IF($B9="","",IF(VLOOKUP($B9,'Athlete Input'!$B:$AJ,K$1,FALSE)="","",VLOOKUP($B9,'Athlete Input'!$B:$AJ,K$1,FALSE))) ->  | L9: =IF($B9="","",IF(VLOOKUP($B9,'Athlete Input'!$B:$AJ,L$1,FALSE)="","",VLOOKUP($B9,'Athlete Input'!$B:$AJ,L$1,FALSE))) ->  | M9: =IF($B9="","",IF(VLOOKUP($B9,'Athlete Input'!$B:$AJ,M$1,FALSE)="","",VLOOKUP($B9,'Athlete Input'!$B:$AJ,M$1,FALSE))) ->  | N9: =IF($B9="","",IF(VLOOKUP($B9,'Athlete Input'!$B:$AJ,N$1,FALSE)="","",VLOOKUP($B9,'Athlete Input'!$B:$AJ,N$1,FALSE))) ->  | O9: =IF($B9="","",IF(VLOOKUP($B9,'Athlete Input'!$B:$AJ,O$1,FALSE)="","",VLOOKUP($B9,'Athlete Input'!$B:$AJ,O$1,FALSE))) ->  | P9: =IF($B9="","",IF(VLOOKUP($B9,'Athlete Input'!$B:$AJ,P$1,FALSE)="","",VLOOKUP($B9,'Athlete Input'!$B:$AJ,P$1,FALSE))) ->  | Q9: =IF($B9="","",IF(VLOOKUP($B9,'Athlete Input'!$B:$AJ,Q$1,FALSE)="","",VLOOKUP($B9,'Athlete Input'!$B:$AJ,Q$1,FALSE))) ->  | R9: =IF($B9="","",IF(VLOOKUP($B9,'Athlete Input'!$B:$AJ,R$1,FALSE)="","",VLOOKUP($B9,'Athlete Input'!$B:$AJ,R$1,FALSE))) ->  | S9: =IF($B9="","",IF(VLOOKUP($B9,'Athlete Input'!$B:$AJ,S$1,FALSE)="","",VLOOKUP($B9,'Athlete Input'!$B:$AJ,S$1,FALSE))) ->  | T9: =IF($B9="","",IF(VLOOKUP($B9,'Athlete Input'!$B:$AJ,T$1,FALSE)="","",VLOOKUP($B9,'Athlete Input'!$B:$AJ,T$1,FALSE))) ->  | U9: =IF($B9="","",IF(VLOOKUP($B9,'Athlete Input'!$B:$BZ,U$1,FALSE)="","",VLOOKUP($B9,'Athlete Input'!$B:$BZ,U$1,FALSE))) ->  | V9: =IF($B9="","",IF(VLOOKUP($B9,'Athlete Input'!$B:$BZ,V$1,FALSE)="","",VLOOKUP($B9,'Athlete Input'!$B:$BZ,V$1,FALSE))) ->  | W9: =IF($B9="","",IF(VLOOKUP($B9,'Athlete Input'!$B:$BZ,W$1,FALSE)="","",VLOOKUP($B9,'Athlete Input'!$B:$BZ,W$1,FALSE))) ->  | X9: =IF($B9="","",IF(VLOOKUP($B9,'Athlete Input'!$B:$BZ,X$1,FALSE)="","",VLOOKUP($B9,'Athlete Input'!$B:$BZ,X$1,FALSE))) ->  | Y9: =IF($B9="","",IF(VLOOKUP($B9,'Athlete Input'!$B:$BZ,Y$1,FALSE)="","",VLOOKUP($B9,'Athlete Input'!$B:$BZ,Y$1,FALSE))) ->  | Z9: =IF($B9="","",IF(VLOOKUP($B9,'Athlete Input'!$B:$BZ,Z$1,FALSE)="","",VLOOKUP($B9,'Athlete Input'!$B:$BZ,Z$1,FALSE))) ->  | AA9: =IF($B9="","",IF(VLOOKUP($B9,'Athlete Input'!$B:$BZ,AA$1,FALSE)="","",VLOOKUP($B9,'Athlete Input'!$B:$BZ,AA$1,FALSE))) ->  | AB9: =IF($B9="","",IF(VLOOKUP($B9,'Athlete Input'!$B:$BZ,AB$1,FALSE)="","",VLOOKUP($B9,'Athlete Input'!$B:$BZ,AB$1,FALSE))) ->  | AC9: =IF($B9="","",IF(VLOOKUP($B9,'Athlete Input'!$B:$BZ,AC$1,FALSE)="","",VLOOKUP($B9,'Athlete Input'!$B:$BZ,AC$1,FALSE))) ->  | AD9: =IF($B9="","",IF(VLOOKUP($B9,'Athlete Input'!$B:$BZ,AD$1,FALSE)="","",VLOOKUP($B9,'Athlete Input'!$B:$BZ,AD$1,FALSE))) ->  | AE9: =IF($B9="","",IF(VLOOKUP($B9,'Athlete Input'!$B:$BZ,AE$1,FALSE)="","",VLOOKUP($B9,'Athlete Input'!$B:$BZ,AE$1,FALSE))) ->  | AF9: =IF($B9="","",IF(VLOOKUP($B9,'Athlete Input'!$B:$BZ,AF$1,FALSE)="","",VLOOKUP($B9,'Athlete Input'!$B:$BZ,AF$1,FALSE))) ->  | AG9: =IF($B9="","",IF(VLOOKUP($B9,'Athlete Input'!$B:$BZ,AG$1,FALSE)="","",VLOOKUP($B9,'Athlete Input'!$B:$BZ,AG$1,FALSE))) ->  | AH9: =IF($B9="","",IF(VLOOKUP($B9,'Athlete Input'!$B:$BZ,AH$1,FALSE)="","",VLOOKUP($B9,'Athlete Input'!$B:$BZ,AH$1,FALSE))) ->  | AI9: =IF($B9="","",IF(VLOOKUP($B9,'Athlete Input'!$B:$BZ,AI$1,FALSE)="","",VLOOKUP($B9,'Athlete Input'!$B:$BZ,AI$1,FALSE))) ->  | AJ9: =IF($B9="","",IF(VLOOKUP($B9,'Athlete Input'!$B:$BZ,AJ$1,FALSE)="","",VLOOKUP($B9,'Athlete Input'!$B:$BZ,AJ$1,FALSE))) ->  | AK9: =IF($B9="","",IF(VLOOKUP($B9,'Athlete Input'!$B:$BZ,AK$1,FALSE)="","",VLOOKUP($B9,'Athlete Input'!$B:$BZ,AK$1,FALSE))) ->  | AL9: =IF($B9="","",IF(VLOOKUP($B9,'Athlete Input'!$B:$BZ,AL$1,FALSE)="","",VLOOKUP($B9,'Athlete Input'!$B:$BZ,AL$1,FALSE))) ->  | AM9: =IF(B9="","zz",'Athlete Input'!C10) -> Dunbar
A10: 7 | B10: =IF('Athlete Input'!B11="","",'Athlete Input'!B11) -> Laura Dunn | C10: =IF($B10="","",IF(VLOOKUP($B10,'Athlete Input'!$B:$AJ,C$1,FALSE)="","",VLOOKUP($B10,'Athlete Input'!$B:$AJ,C$1,FALSE))) ->  | D10: =IF($B10="","",IF(VLOOKUP($B10,'Athlete Input'!$B:$AJ,D$1,FALSE)="","",VLOOKUP($B10,'Athlete Input'!$B:$AJ,D$1,FALSE))) -> 15.24 | E10: =IF($B10="","",IF(VLOOKUP($B10,'Athlete Input'!$B:$AJ,E$1,FALSE)="","",VLOOKUP($B10,'Athlete Input'!$B:$AJ,E$1,FALSE))) ->  | F10: =IF($B10="","",IF(VLOOKUP($B10,'Athlete Input'!$B:$AJ,F$1,FALSE)="","",VLOOKUP($B10,'Athlete Input'!$B:$AJ,F$1,FALSE))) ->  | G10: =IF($B10="","",IF(VLOOKUP($B10,'Athlete Input'!$B:$AJ,G$1,FALSE)="","",VLOOKUP($B10,'Athlete Input'!$B:$AJ,G$1,FALSE))) ->  | H10: =IF($B10="","",IF(VLOOKUP($B10,'Athlete Input'!$B:$AJ,H$1,FALSE)="","",VLOOKUP($B10,'Athlete Input'!$B:$AJ,H$1,FALSE))) -> 16.08 | I10: =IF($B10="","",IF(VLOOKUP($B10,'Athlete Input'!$B:$AJ,I$1,FALSE)="","",VLOOKUP($B10,'Athlete Input'!$B:$AJ,I$1,FALSE))) ->  | J10: =IF($B10="","",IF(VLOOKUP($B10,'Athlete Input'!$B:$AJ,J$1,FALSE)="","",VLOOKUP($B10,'Athlete Input'!$B:$AJ,J$1,FALSE))) ->  | K10: =IF($B10="","",IF(VLOOKUP($B10,'Athlete Input'!$B:$AJ,K$1,FALSE)="","",VLOOKUP($B10,'Athlete Input'!$B:$AJ,K$1,FALSE))) ->  | L10: =IF($B10="","",IF(VLOOKUP($B10,'Athlete Input'!$B:$AJ,L$1,FALSE)="","",VLOOKUP($B10,'Athlete Input'!$B:$AJ,L$1,FALSE))) ->  | M10: =IF($B10="","",IF(VLOOKUP($B10,'Athlete Input'!$B:$AJ,M$1,FALSE)="","",VLOOKUP($B10,'Athlete Input'!$B:$AJ,M$1,FALSE))) ->  | N10: =IF($B10="","",IF(VLOOKUP($B10,'Athlete Input'!$B:$AJ,N$1,FALSE)="","",VLOOKUP($B10,'Athlete Input'!$B:$AJ,N$1,FALSE))) -> 23.44 | O10: =IF($B10="","",IF(VLOOKUP($B10,'Athlete Input'!$B:$AJ,O$1,FALSE)="","",VLOOKUP($B10,'Athlete Input'!$B:$AJ,O$1,FALSE))) ->  | P10: =IF($B10="","",IF(VLOOKUP($B10,'Athlete Input'!$B:$AJ,P$1,FALSE)="","",VLOOKUP($B10,'Athlete Input'!$B:$AJ,P$1,FALSE))) ->  | Q10: =IF($B10="","",IF(VLOOKUP($B10,'Athlete Input'!$B:$AJ,Q$1,FALSE)="","",VLOOKUP($B10,'Athlete Input'!$B:$AJ,Q$1,FALSE))) ->  | R10: =IF($B10="","",IF(VLOOKUP($B10,'Athlete Input'!$B:$AJ,R$1,FALSE)="","",VLOOKUP($B10,'Athlete Input'!$B:$AJ,R$1,FALSE))) ->  | S10: =IF($B10="","",IF(VLOOKUP($B10,'Athlete Input'!$B:$AJ,S$1,FALSE)="","",VLOOKUP($B10,'Athlete Input'!$B:$AJ,S$1,FALSE))) ->  | T10: =IF($B10="","",IF(VLOOKUP($B10,'Athlete Input'!$B:$AJ,T$1,FALSE)="","",VLOOKUP($B10,'Athlete Input'!$B:$AJ,T$1,FALSE))) ->  | U10: =IF($B10="","",IF(VLOOKUP($B10,'Athlete Input'!$B:$BZ,U$1,FALSE)="","",VLOOKUP($B10,'Athlete Input'!$B:$BZ,U$1,FALSE))) ->  | V10: =IF($B10="","",IF(VLOOKUP($B10,'Athlete Input'!$B:$BZ,V$1,FALSE)="","",VLOOKUP($B10,'Athlete Input'!$B:$BZ,V$1,FALSE))) ->  | W10: =IF($B10="","",IF(VLOOKUP($B10,'Athlete Input'!$B:$BZ,W$1,FALSE)="","",VLOOKUP($B10,'Athlete Input'!$B:$BZ,W$1,FALSE))) ->  | X10: =IF($B10="","",IF(VLOOKUP($B10,'Athlete Input'!$B:$BZ,X$1,FALSE)="","",VLOOKUP($B10,'Athlete Input'!$B:$BZ,X$1,FALSE))) ->  | Y10: =IF($B10="","",IF(VLOOKUP($B10,'Athlete Input'!$B:$BZ,Y$1,FALSE)="","",VLOOKUP($B10,'Athlete Input'!$B:$BZ,Y$1,FALSE))) ->  | Z10: =IF($B10="","",IF(VLOOKUP($B10,'Athlete Input'!$B:$BZ,Z$1,FALSE)="","",VLOOKUP($B10,'Athlete Input'!$B:$BZ,Z$1,FALSE))) ->  | AA10: =IF($B10="","",IF(VLOOKUP($B10,'Athlete Input'!$B:$BZ,AA$1,FALSE)="","",VLOOKUP($B10,'Athlete Input'!$B:$BZ,AA$1,FALSE))) ->  | AB10: =IF($B10="","",IF(VLOOKUP($B10,'Athlete Input'!$B:$BZ,AB$1,FALSE)="","",VLOOKUP($B10,'Athlete Input'!$B:$BZ,AB$1,FALSE))) ->  | AC10: =IF($B10="","",IF(VLOOKUP($B10,'Athlete Input'!$B:$BZ,AC$1,FALSE)="","",VLOOKUP($B10,'Athlete Input'!$B:$BZ,AC$1,FALSE))) ->  | AD10: =IF($B10="","",IF(VLOOKUP($B10,'Athlete Input'!$B:$BZ,AD$1,FALSE)="","",VLOOKUP($B10,'Athlete Input'!$B:$BZ,AD$1,FALSE))) ->  | AE10: =IF($B10="","",IF(VLOOKUP($B10,'Athlete Input'!$B:$BZ,AE$1,FALSE)="","",VLOOKUP($B10,'Athlete Input'!$B:$BZ,AE$1,FALSE))) ->  | AF10: =IF($B10="","",IF(VLOOKUP($B10,'Athlete Input'!$B:$BZ,AF$1,FALSE)="","",VLOOKUP($B10,'Athlete Input'!$B:$BZ,AF$1,FALSE))) ->  | AG10: =IF($B10="","",IF(VLOOKUP($B10,'Athlete Input'!$B:$BZ,AG$1,FALSE)="","",VLOOKUP($B10,'Athlete Input'!$B:$BZ,AG$1,FALSE))) ->  | AH10: =IF($B10="","",IF(VLOOKUP($B10,'Athlete Input'!$B:$BZ,AH$1,FALSE)="","",VLOOKUP($B10,'Athlete Input'!$B:$BZ,AH$1,FALSE))) ->  | AI10: =IF($B10="","",IF(VLOOKUP($B10,'Athlete Input'!$B:$BZ,AI$1,FALSE)="","",VLOOKUP($B10,'Athlete Input'!$B:$BZ,AI$1,FALSE))) ->  | AJ10: =IF($B10="","",IF(VLOOKUP($B10,'Athlete Input'!$B:$BZ,AJ$1,FALSE)="","",VLOOKUP($B10,'Athlete Input'!$B:$BZ,AJ$1,FALSE))) ->  | AK10: =IF($B10="","",IF(VLOOKUP($B10,'Athlete Input'!$B:$BZ,AK$1,FALSE)="","",VLOOKUP($B10,'Athlete Input'!$B:$BZ,AK$1,FALSE))) ->  | AL10: =IF($B10="","",IF(VLOOKUP($B10,'Athlete Input'!$B:$BZ,AL$1,FALSE)="","",VLOOKUP($B10,'Athlete Input'!$B:$BZ,AL$1,FALSE))) ->  | AM10: =IF(B10="","zz",'Athlete Input'!C11) -> Dunn
A11: 8 | B11: =IF('Athlete Input'!B12="","",'Athlete Input'!B12) -> Rachael Dunn | C11: =IF($B11="","",IF(VLOOKUP($B11,'Athlete Input'!$B:$AJ,C$1,FALSE)="","",VLOOKUP($B11,'Athlete Input'!$B:$AJ,C$1,FALSE))) -> 15.07 | D11: =IF($B11="","",IF(VLOOKUP($B11,'Athlete Input'!$B:$AJ,D$1,FALSE)="","",VLOOKUP($B11,'Athlete Input'!$B:$AJ,D$1,FALSE))) -> 15.41 | E11: =IF($B11="","",IF(VLOOKUP($B11,'Athlete Input'!$B:$AJ,E$1,FALSE)="","",VLOOKUP($B11,'Athlete Input'!$B:$AJ,E$1,FALSE))) -> 22.34 | F11: =IF($B11="","",IF(VLOOKUP($B11,'Athlete Input'!$B:$AJ,F$1,FALSE)="","",VLOOKUP($B11,'Athlete Input'!$B:$AJ,F$1,FALSE))) ->  | G11: =IF($B11="","",IF(VLOOKUP($B11,'Athlete Input'!$B:$AJ,G$1,FALSE)="","",VLOOKUP($B11,'Athlete Input'!$B:$AJ,G$1,FALSE))) -> 14.58 | H11: =IF($B11="","",IF(VLOOKUP($B11,'Athlete Input'!$B:$AJ,H$1,FALSE)="","",VLOOKUP($B11,'Athlete Input'!$B:$AJ,H$1,FALSE))) -> 16 | I11: =IF($B11="","",IF(VLOOKUP($B11,'Athlete Input'!$B:$AJ,I$1,FALSE)="","",VLOOKUP($B11,'Athlete Input'!$B:$AJ,I$1,FALSE))) ->  | J11: =IF($B11="","",IF(VLOOKUP($B11,'Athlete Input'!$B:$AJ,J$1,FALSE)="","",VLOOKUP($B11,'Athlete Input'!$B:$AJ,J$1,FALSE))) ->  | K11: =IF($B11="","",IF(VLOOKUP($B11,'Athlete Input'!$B:$AJ,K$1,FALSE)="","",VLOOKUP($B11,'Athlete Input'!$B:$AJ,K$1,FALSE))) ->  | L11: =IF($B11="","",IF(VLOOKUP($B11,'Athlete Input'!$B:$AJ,L$1,FALSE)="","",VLOOKUP($B11,'Athlete Input'!$B:$AJ,L$1,FALSE))) ->  | M11: =IF($B11="","",IF(VLOOKUP($B11,'Athlete Input'!$B:$AJ,M$1,FALSE)="","",VLOOKUP($B11,'Athlete Input'!$B:$AJ,M$1,FALSE))) ->  | N11: =IF($B11="","",IF(VLOOKUP($B11,'Athlete Input'!$B:$AJ,N$1,FALSE)="","",VLOOKUP($B11,'Athlete Input'!$B:$AJ,N$1,FALSE))) ->  | O11: =IF($B11="","",IF(VLOOKUP($B11,'Athlete Input'!$B:$AJ,O$1,FALSE)="","",VLOOKUP($B11,'Athlete Input'!$B:$AJ,O$1,FALSE))) -> 24.1 | P11: =IF($B11="","",IF(VLOOKUP($B11,'Athlete Input'!$B:$AJ,P$1,FALSE)="","",VLOOKUP($B11,'Athlete Input'!$B:$AJ,P$1,FALSE))) ->  | Q11: =IF($B11="","",IF(VLOOKUP($B11,'Athlete Input'!$B:$AJ,Q$1,FALSE)="","",VLOOKUP($B11,'Athlete Input'!$B:$AJ,Q$1,FALSE))) ->  | R11: =IF($B11="","",IF(VLOOKUP($B11,'Athlete Input'!$B:$AJ,R$1,FALSE)="","",VLOOKUP($B11,'Athlete Input'!$B:$AJ,R$1,FALSE))) ->  | S11: =IF($B11="","",IF(VLOOKUP($B11,'Athlete Input'!$B:$AJ,S$1,FALSE)="","",VLOOKUP($B11,'Athlete Input'!$B:$AJ,S$1,FALSE))) ->  | T11: =IF($B11="","",IF(VLOOKUP($B11,'Athlete Input'!$B:$AJ,T$1,FALSE)="","",VLOOKUP($B11,'Athlete Input'!$B:$AJ,T$1,FALSE))) ->  | U11: =IF($B11="","",IF(VLOOKUP($B11,'Athlete Input'!$B:$BZ,U$1,FALSE)="","",VLOOKUP($B11,'Athlete Input'!$B:$BZ,U$1,FALSE))) ->  | V11: =IF($B11="","",IF(VLOOKUP($B11,'Athlete Input'!$B:$BZ,V$1,FALSE)="","",VLOOKUP($B11,'Athlete Input'!$B:$BZ,V$1,FALSE))) ->  | W11: =IF($B11="","",IF(VLOOKUP($B11,'Athlete Input'!$B:$BZ,W$1,FALSE)="","",VLOOKUP($B11,'Athlete Input'!$B:$BZ,W$1,FALSE))) ->  | X11: =IF($B11="","",IF(VLOOKUP($B11,'Athlete Input'!$B:$BZ,X$1,FALSE)="","",VLOOKUP($B11,'Athlete Input'!$B:$BZ,X$1,FALSE))) ->  | Y11: =IF($B11="","",IF(VLOOKUP($B11,'Athlete Input'!$B:$BZ,Y$1,FALSE)="","",VLOOKUP($B11,'Athlete Input'!$B:$BZ,Y$1,FALSE))) ->  | Z11: =IF($B11="","",IF(VLOOKUP($B11,'Athlete Input'!$B:$BZ,Z$1,FALSE)="","",VLOOKUP($B11,'Athlete Input'!$B:$BZ,Z$1,FALSE))) ->  | AA11: =IF($B11="","",IF(VLOOKUP($B11,'Athlete Input'!$B:$BZ,AA$1,FALSE)="","",VLOOKUP($B11,'Athlete Input'!$B:$BZ,AA$1,FALSE))) ->  | AB11: =IF($B11="","",IF(VLOOKUP($B11,'Athlete Input'!$B:$BZ,AB$1,FALSE)="","",VLOOKUP($B11,'Athlete Input'!$B:$BZ,AB$1,FALSE))) ->  | AC11: =IF($B11="","",IF(VLOOKUP($B11,'Athlete Input'!$B:$BZ,AC$1,FALSE)="","",VLOOKUP($B11,'Athlete Input'!$B:$BZ,AC$1,FALSE))) ->  | AD11: =IF($B11="","",IF(VLOOKUP($B11,'Athlete Input'!$B:$BZ,AD$1,FALSE)="","",VLOOKUP($B11,'Athlete Input'!$B:$BZ,AD$1,FALSE))) ->  | AE11: =IF($B11="","",IF(VLOOKUP($B11,'Athlete Input'!$B:$BZ,AE$1,FALSE)="","",VLOOKUP($B11,'Athlete Input'!$B:$BZ,AE$1,FALSE))) ->  | AF11: =IF($B11="","",IF(VLOOKUP($B11,'Athlete Input'!$B:$BZ,AF$1,FALSE)="","",VLOOKUP($B11,'Athlete Input'!$B:$BZ,AF$1,FALSE))) ->  | AG11: =IF($B11="","",IF(VLOOKUP($B11,'Athlete Input'!$B:$BZ,AG$1,FALSE)="","",VLOOKUP($B11,'Athlete Input'!$B:$BZ,AG$1,FALSE))) ->  | AH11: =IF($B11="","",IF(VLOOKUP($B11,'Athlete Input'!$B:$BZ,AH$1,FALSE)="","",VLOOKUP($B11,'Athlete Input'!$B:$BZ,AH$1,FALSE))) ->  | AI11: =IF($B11="","",IF(VLOOKUP($B11,'Athlete Input'!$B:$BZ,AI$1,FALSE)="","",VLOOKUP($B11,'Athlete Input'!$B:$BZ,AI$1,FALSE))) ->  | AJ11: =IF($B11="","",IF(VLOOKUP($B11,'Athlete Input'!$B:$BZ,AJ$1,FALSE)="","",VLOOKUP($B11,'Athlete Input'!$B:$BZ,AJ$1,FALSE))) ->  | AK11: =IF($B11="","",IF(VLOOKUP($B11,'Athlete Input'!$B:$BZ,AK$1,FALSE)="","",VLOOKUP($B11,'Athlete Input'!$B:$BZ,AK$1,FALSE))) ->  | AL11: =IF($B11="","",IF(VLOOKUP($B11,'Athlete Input'!$B:$BZ,AL$1,FALSE)="","",VLOOKUP($B11,'Athlete Input'!$B:$BZ,AL$1,FALSE))) ->  | AM11: =IF(B11="","zz",'Athlete Input'!C12) -> Dunn
A12: 9 | B12: =IF('Athlete Input'!B13="","",'Athlete Input'!B13) -> Emma Dunnet | C12: =IF($B12="","",IF(VLOOKUP($B12,'Athlete Input'!$B:$AJ,C$1,FALSE)="","",VLOOKUP($B12,'Athlete Input'!$B:$AJ,C$1,FALSE))) ->  | D12: =IF($B12="","",IF(VLOOKUP($B12,'Athlete Input'!$B:$AJ,D$1,FALSE)="","",VLOOKUP($B12,'Athlete Input'!$B:$AJ,D$1,FALSE))) ->  | E12: =IF($B12="","",IF(VLOOKUP($B12,'Athlete Input'!$B:$AJ,E$1,FALSE)="","",VLOOKUP($B12,'Athlete Input'!$B:$AJ,E$1,FALSE))) ->  | F12: =IF($B12="","",IF(VLOOKUP($B12,'Athlete Input'!$B:$AJ,F$1,FALSE)="","",VLOOKUP($B12,'Athlete Input'!$B:$AJ,F$1,FALSE))) ->  | G12: =IF($B12="","",IF(VLOOKUP($B12,'Athlete Input'!$B:$AJ,G$1,FALSE)="","",VLOOKUP($B12,'Athlete Input'!$B:$AJ,G$1,FALSE))) ->  | H12: =IF($B12="","",IF(VLOOKUP($B12,'Athlete Input'!$B:$AJ,H$1,FALSE)="","",VLOOKUP($B12,'Athlete Input'!$B:$AJ,H$1,FALSE))) -> 16.29 | I12: =IF($B12="","",IF(VLOOKUP($B12,'Athlete Input'!$B:$AJ,I$1,FALSE)="","",VLOOKUP($B12,'Athlete Input'!$B:$AJ,I$1,FALSE))) ->  | J12: =IF($B12="","",IF(VLOOKUP($B12,'Athlete Input'!$B:$AJ,J$1,FALSE)="","",VLOOKUP($B12,'Athlete Input'!$B:$AJ,J$1,FALSE))) ->  | K12: =IF($B12="","",IF(VLOOKUP($B12,'Athlete Input'!$B:$AJ,K$1,FALSE)="","",VLOOKUP($B12,'Athlete Input'!$B:$AJ,K$1,FALSE))) ->  | L12: =IF($B12="","",IF(VLOOKUP($B12,'Athlete Input'!$B:$AJ,L$1,FALSE)="","",VLOOKUP($B12,'Athlete Input'!$B:$AJ,L$1,FALSE))) ->  | M12: =IF($B12="","",IF(VLOOKUP($B12,'Athlete Input'!$B:$AJ,M$1,FALSE)="","",VLOOKUP($B12,'Athlete Input'!$B:$AJ,M$1,FALSE))) ->  | N12: =IF($B12="","",IF(VLOOKUP($B12,'Athlete Input'!$B:$AJ,N$1,FALSE)="","",VLOOKUP($B12,'Athlete Input'!$B:$AJ,N$1,FALSE))) ->  | O12: =IF($B12="","",IF(VLOOKUP($B12,'Athlete Input'!$B:$AJ,O$1,FALSE)="","",VLOOKUP($B12,'Athlete Input'!$B:$AJ,O$1,FALSE))) ->  | P12: =IF($B12="","",IF(VLOOKUP($B12,'Athlete Input'!$B:$AJ,P$1,FALSE)="","",VLOOKUP($B12,'Athlete Input'!$B:$AJ,P$1,FALSE))) ->  | Q12: =IF($B12="","",IF(VLOOKUP($B12,'Athlete Input'!$B:$AJ,Q$1,FALSE)="","",VLOOKUP($B12,'Athlete Input'!$B:$AJ,Q$1,FALSE))) ->  | R12: =IF($B12="","",IF(VLOOKUP($B12,'Athlete Input'!$B:$AJ,R$1,FALSE)="","",VLOOKUP($B12,'Athlete Input'!$B:$AJ,R$1,FALSE))) ->  | S12: =IF($B12="","",IF(VLOOKUP($B12,'Athlete Input'!$B:$AJ,S$1,FALSE)="","",VLOOKUP($B12,'Athlete Input'!$B:$AJ,S$1,FALSE))) ->  | T12: =IF($B12="","",IF(VLOOKUP($B12,'Athlete Input'!$B:$AJ,T$1,FALSE)="","",VLOOKUP($B12,'Athlete Input'!$B:$AJ,T$1,FALSE))) ->  | U12: =IF($B12="","",IF(VLOOKUP($B12,'Athlete Input'!$B:$BZ,U$1,FALSE)="","",VLOOKUP($B12,'Athlete Input'!$B:$BZ,U$1,FALSE))) ->  | V12: =IF($B12="","",IF(VLOOKUP($B12,'Athlete Input'!$B:$BZ,V$1,FALSE)="","",VLOOKUP($B12,'Athlete Input'!$B:$BZ,V$1,FALSE))) ->  | W12: =IF($B12="","",IF(VLOOKUP($B12,'Athlete Input'!$B:$BZ,W$1,FALSE)="","",VLOOKUP($B12,'Athlete Input'!$B:$BZ,W$1,FALSE))) ->  | X12: =IF($B12="","",IF(VLOOKUP($B12,'Athlete Input'!$B:$BZ,X$1,FALSE)="","",VLOOKUP($B12,'Athlete Input'!$B:$BZ,X$1,FALSE))) ->  | Y12: =IF($B12="","",IF(VLOOKUP($B12,'Athlete Input'!$B:$BZ,Y$1,FALSE)="","",VLOOKUP($B12,'Athlete Input'!$B:$BZ,Y$1,FALSE))) ->  | Z12: =IF($B12="","",IF(VLOOKUP($B12,'Athlete Input'!$B:$BZ,Z$1,FALSE)="","",VLOOKUP($B12,'Athlete Input'!$B:$BZ,Z$1,FALSE))) ->  | AA12: =IF($B12="","",IF(VLOOKUP($B12,'Athlete Input'!$B:$BZ,AA$1,FALSE)="","",VLOOKUP($B12,'Athlete Input'!$B:$BZ,AA$1,FALSE))) ->  | AB12: =IF($B12="","",IF(VLOOKUP($B12,'Athlete Input'!$B:$BZ,AB$1,FALSE)="","",VLOOKUP($B12,'Athlete Input'!$B:$BZ,AB$1,FALSE))) ->  | AC12: =IF($B12="","",IF(VLOOKUP($B12,'Athlete Input'!$B:$BZ,AC$1,FALSE)="","",VLOOKUP($B12,'Athlete Input'!$B:$BZ,AC$1,FALSE))) ->  | AD12: =IF($B12="","",IF(VLOOKUP($B12,'Athlete Input'!$B:$BZ,AD$1,FALSE)="","",VLOOKUP($B12,'Athlete Input'!$B:$BZ,AD$1,FALSE))) ->  | AE12: =IF($B12="","",IF(VLOOKUP($B12,'Athlete Input'!$B:$BZ,AE$1,FALSE)="","",VLOOKUP($B12,'Athlete Input'!$B:$BZ,AE$1,FALSE))) ->  | AF12: =IF($B12="","",IF(VLOOKUP($B12,'Athlete Input'!$B:$BZ,AF$1,FALSE)="","",VLOOKUP($B12,'Athlete Input'!$B:$BZ,AF$1,FALSE))) ->  | AG12: =IF($B12="","",IF(VLOOKUP($B12,'Athlete Input'!$B:$BZ,AG$1,FALSE)="","",VLOOKUP($B12,'Athlete Input'!$B:$BZ,AG$1,FALSE))) ->  | AH12: =IF($B12="","",IF(VLOOKUP($B12,'Athlete Input'!$B:$BZ,AH$1,FALSE)="","",VLOOKUP($B12,'Athlete Input'!$B:$BZ,AH$1,FALSE))) ->  | AI12: =IF($B12="","",IF(VLOOKUP($B12,'Athlete Input'!$B:$BZ,AI$1,FALSE)="","",VLOOKUP($B12,'Athlete Input'!$B:$BZ,AI$1,FALSE))) ->  | AJ12: =IF($B12="","",IF(VLOOKUP($B12,'Athlete Input'!$B:$BZ,AJ$1,FALSE)="","",VLOOKUP($B12,'Athlete Input'!$B:$BZ,AJ$1,FALSE))) ->  | AK12: =IF($B12="","",IF(VLOOKUP($B12,'Athlete Input'!$B:$BZ,AK$1,FALSE)="","",VLOOKUP($B12,'Athlete Input'!$B:$BZ,AK$1,FALSE))) ->  | AL12: =IF($B12="","",IF(VLOOKUP($B12,'Athlete Input'!$B:$BZ,AL$1,FALSE)="","",VLOOKUP($B12,'Athlete Input'!$B:$BZ,AL$1,FALSE))) ->  | AM12: =IF(B12="","zz",'Athlete Input'!C13) -> Dunnett
A13: 10 | B13: =IF('Athlete Input'!B14="","",'Athlete Input'!B14) -> S Findlay | C13: =IF($B13="","",IF(VLOOKUP($B13,'Athlete Input'!$B:$AJ,C$1,FALSE)="","",VLOOKUP($B13,'Athlete Input'!$B:$AJ,C$1,FALSE))) ->  | D13: =IF($B13="","",IF(VLOOKUP($B13,'Athlete Input'!$B:$AJ,D$1,FALSE)="","",VLOOKUP($B13,'Athlete Input'!$B:$AJ,D$1,FALSE))) ->  | E13: =IF($B13="","",IF(VLOOKUP($B13,'Athlete Input'!$B:$AJ,E$1,FALSE)="","",VLOOKUP($B13,'Athlete Input'!$B:$AJ,E$1,FALSE))) ->  | F13: =IF($B13="","",IF(VLOOKUP($B13,'Athlete Input'!$B:$AJ,F$1,FALSE)="","",VLOOKUP($B13,'Athlete Input'!$B:$AJ,F$1,FALSE))) ->  | G13: =IF($B13="","",IF(VLOOKUP($B13,'Athlete Input'!$B:$AJ,G$1,FALSE)="","",VLOOKUP($B13,'Athlete Input'!$B:$AJ,G$1,FALSE))) ->  | H13: =IF($B13="","",IF(VLOOKUP($B13,'Athlete Input'!$B:$AJ,H$1,FALSE)="","",VLOOKUP($B13,'Athlete Input'!$B:$AJ,H$1,FALSE))) ->  | I13: =IF($B13="","",IF(VLOOKUP($B13,'Athlete Input'!$B:$AJ,I$1,FALSE)="","",VLOOKUP($B13,'Athlete Input'!$B:$AJ,I$1,FALSE))) ->  | J13: =IF($B13="","",IF(VLOOKUP($B13,'Athlete Input'!$B:$AJ,J$1,FALSE)="","",VLOOKUP($B13,'Athlete Input'!$B:$AJ,J$1,FALSE))) ->  | K13: =IF($B13="","",IF(VLOOKUP($B13,'Athlete Input'!$B:$AJ,K$1,FALSE)="","",VLOOKUP($B13,'Athlete Input'!$B:$AJ,K$1,FALSE))) ->  | L13: =IF($B13="","",IF(VLOOKUP($B13,'Athlete Input'!$B:$AJ,L$1,FALSE)="","",VLOOKUP($B13,'Athlete Input'!$B:$AJ,L$1,FALSE))) ->  | M13: =IF($B13="","",IF(VLOOKUP($B13,'Athlete Input'!$B:$AJ,M$1,FALSE)="","",VLOOKUP($B13,'Athlete Input'!$B:$AJ,M$1,FALSE))) ->  | N13: =IF($B13="","",IF(VLOOKUP($B13,'Athlete Input'!$B:$AJ,N$1,FALSE)="","",VLOOKUP($B13,'Athlete Input'!$B:$AJ,N$1,FALSE))) ->  | O13: =IF($B13="","",IF(VLOOKUP($B13,'Athlete Input'!$B:$AJ,O$1,FALSE)="","",VLOOKUP($B13,'Athlete Input'!$B:$AJ,O$1,FALSE))) ->  | P13: =IF($B13="","",IF(VLOOKUP($B13,'Athlete Input'!$B:$AJ,P$1,FALSE)="","",VLOOKUP($B13,'Athlete Input'!$B:$AJ,P$1,FALSE))) ->  | Q13: =IF($B13="","",IF(VLOOKUP($B13,'Athlete Input'!$B:$AJ,Q$1,FALSE)="","",VLOOKUP($B13,'Athlete Input'!$B:$AJ,Q$1,FALSE))) ->  | R13: =IF($B13="","",IF(VLOOKUP($B13,'Athlete Input'!$B:$AJ,R$1,FALSE)="","",VLOOKUP($B13,'Athlete Input'!$B:$AJ,R$1,FALSE))) ->  | S13: =IF($B13="","",IF(VLOOKUP($B13,'Athlete Input'!$B:$AJ,S$1,FALSE)="","",VLOOKUP($B13,'Athlete Input'!$B:$AJ,S$1,FALSE))) ->  | T13: =IF($B13="","",IF(VLOOKUP($B13,'Athlete Input'!$B:$AJ,T$1,FALSE)="","",VLOOKUP($B13,'Athlete Input'!$B:$AJ,T$1,FALSE))) ->  | U13: =IF($B13="","",IF(VLOOKUP($B13,'Athlete Input'!$B:$BZ,U$1,FALSE)="","",VLOOKUP($B13,'Athlete Input'!$B:$BZ,U$1,FALSE))) ->  | V13: =IF($B13="","",IF(VLOOKUP($B13,'Athlete Input'!$B:$BZ,V$1,FALSE)="","",VLOOKUP($B13,'Athlete Input'!$B:$BZ,V$1,FALSE))) ->  | W13: =IF($B13="","",IF(VLOOKUP($B13,'Athlete Input'!$B:$BZ,W$1,FALSE)="","",VLOOKUP($B13,'Athlete Input'!$B:$BZ,W$1,FALSE))) ->  | X13: =IF($B13="","",IF(VLOOKUP($B13,'Athlete Input'!$B:$BZ,X$1,FALSE)="","",VLOOKUP($B13,'Athlete Input'!$B:$BZ,X$1,FALSE))) ->  | Y13: =IF($B13="","",IF(VLOOKUP($B13,'Athlete Input'!$B:$BZ,Y$1,FALSE)="","",VLOOKUP($B13,'Athlete Input'!$B:$BZ,Y$1,FALSE))) ->  | Z13: =IF($B13="","",IF(VLOOKUP($B13,'Athlete Input'!$B:$BZ,Z$1,FALSE)="","",VLOOKUP($B13,'Athlete Input'!$B:$BZ,Z$1,FALSE))) ->  | AA13: =IF($B13="","",IF(VLOOKUP($B13,'Athlete Input'!$B:$BZ,AA$1,FALSE)="","",VLOOKUP($B13,'Athlete Input'!$B:$BZ,AA$1,FALSE))) ->  | AB13: =IF($B13="","",IF(VLOOKUP($B13,'Athlete Input'!$B:$BZ,AB$1,FALSE)="","",VLOOKUP($B13,'Athlete Input'!$B:$BZ,AB$1,FALSE))) ->  | AC13: =IF($B13="","",IF(VLOOKUP($B13,'Athlete Input'!$B:$BZ,AC$1,FALSE)="","",VLOOKUP($B13,'Athlete Input'!$B:$BZ,AC$1,FALSE))) ->  | AD13: =IF($B13="","",IF(VLOOKUP($B13,'Athlete Input'!$B:$BZ,AD$1,FALSE)="","",VLOOKUP($B13,'Athlete Input'!$B:$BZ,AD$1,FALSE))) ->  | AE13: =IF($B13="","",IF(VLOOKUP($B13,'Athlete Input'!$B:$BZ,AE$1,FALSE)="","",VLOOKUP($B13,'Athlete Input'!$B:$BZ,AE$1,FALSE))) ->  | AF13: =IF($B13="","",IF(VLOOKUP($B13,'Athlete Input'!$B:$BZ,AF$1,FALSE)="","",VLOOKUP($B13,'Athlete Input'!$B:$BZ,AF$1,FALSE))) ->  | AG13: =IF($B13="","",IF(VLOOKUP($B13,'Athlete Input'!$B:$BZ,AG$1,FALSE)="","",VLOOKUP($B13,'Athlete Input'!$B:$BZ,AG$1,FALSE))) ->  | AH13: =IF($B13="","",IF(VLOOKUP($B13,'Athlete Input'!$B:$BZ,AH$1,FALSE)="","",VLOOKUP($B13,'Athlete Input'!$B:$BZ,AH$1,FALSE))) ->  | AI13: =IF($B13="","",IF(VLOOKUP($B13,'Athlete Input'!$B:$BZ,AI$1,FALSE)="","",VLOOKUP($B13,'Athlete Input'!$B:$BZ,AI$1,FALSE))) ->  | AJ13: =IF($B13="","",IF(VLOOKUP($B13,'Athlete Input'!$B:$BZ,AJ$1,FALSE)="","",VLOOKUP($B13,'Athlete Input'!$B:$BZ,AJ$1,FALSE))) ->  | AK13: =IF($B13="","",IF(VLOOKUP($B13,'Athlete Input'!$B:$BZ,AK$1,FALSE)="","",VLOOKUP($B13,'Athlete Input'!$B:$BZ,AK$1,FALSE))) ->  | AL13: =IF($B13="","",IF(VLOOKUP($B13,'Athlete Input'!$B:$BZ,AL$1,FALSE)="","",VLOOKUP($B13,'Athlete Input'!$B:$BZ,AL$1,FALSE))) ->  | AM13: =IF(B13="","zz",'Athlete Input'!C14) -> Findlay
A14: 11 | B14: =IF('Athlete Input'!B15="","",'Athlete Input'!B15) -> Charlotte Garry | C14: =IF($B14="","",IF(VLOOKUP($B14,'Athlete Input'!$B:$AJ,C$1,FALSE)="","",VLOOKUP($B14,'Athlete Input'!$B:$AJ,C$1,FALSE))) ->  | D14: =IF($B14="","",IF(VLOOKUP($B14,'Athlete Input'!$B:$AJ,D$1,FALSE)="","",VLOOKUP($B14,'Athlete Input'!$B:$AJ,D$1,FALSE))) ->  | E14: =IF($B14="","",IF(VLOOKUP($B14,'Athlete Input'!$B:$AJ,E$1,FALSE)="","",VLOOKUP($B14,'Athlete Input'!$B:$AJ,E$1,FALSE))) ->  | F14: =IF($B14="","",IF(VLOOKUP($B14,'Athlete Input'!$B:$AJ,F$1,FALSE)="","",VLOOKUP($B14,'Athlete Input'!$B:$AJ,F$1,FALSE))) ->  | G14: =IF($B14="","",IF(VLOOKUP($B14,'Athlete Input'!$B:$AJ,G$1,FALSE)="","",VLOOKUP($B14,'Athlete Input'!$B:$AJ,G$1,FALSE))) ->  | H14: =IF($B14="","",IF(VLOOKUP($B14,'Athlete Input'!$B:$AJ,H$1,FALSE)="","",VLOOKUP($B14,'Athlete Input'!$B:$AJ,H$1,FALSE))) ->  | I14: =IF($B14="","",IF(VLOOKUP($B14,'Athlete Input'!$B:$AJ,I$1,FALSE)="","",VLOOKUP($B14,'Athlete Input'!$B:$AJ,I$1,FALSE))) ->  | J14: =IF($B14="","",IF(VLOOKUP($B14,'Athlete Input'!$B:$AJ,J$1,FALSE)="","",VLOOKUP($B14,'Athlete Input'!$B:$AJ,J$1,FALSE))) ->  | K14: =IF($B14="","",IF(VLOOKUP($B14,'Athlete Input'!$B:$AJ,K$1,FALSE)="","",VLOOKUP($B14,'Athlete Input'!$B:$AJ,K$1,FALSE))) ->  | L14: =IF($B14="","",IF(VLOOKUP($B14,'Athlete Input'!$B:$AJ,L$1,FALSE)="","",VLOOKUP($B14,'Athlete Input'!$B:$AJ,L$1,FALSE))) ->  | M14: =IF($B14="","",IF(VLOOKUP($B14,'Athlete Input'!$B:$AJ,M$1,FALSE)="","",VLOOKUP($B14,'Athlete Input'!$B:$AJ,M$1,FALSE))) ->  | N14: =IF($B14="","",IF(VLOOKUP($B14,'Athlete Input'!$B:$AJ,N$1,FALSE)="","",VLOOKUP($B14,'Athlete Input'!$B:$AJ,N$1,FALSE))) ->  | O14: =IF($B14="","",IF(VLOOKUP($B14,'Athlete Input'!$B:$AJ,O$1,FALSE)="","",VLOOKUP($B14,'Athlete Input'!$B:$AJ,O$1,FALSE))) ->  | P14: =IF($B14="","",IF(VLOOKUP($B14,'Athlete Input'!$B:$AJ,P$1,FALSE)="","",VLOOKUP($B14,'Athlete Input'!$B:$AJ,P$1,FALSE))) -> 28.37 | Q14: =IF($B14="","",IF(VLOOKUP($B14,'Athlete Input'!$B:$AJ,Q$1,FALSE)="","",VLOOKUP($B14,'Athlete Input'!$B:$AJ,Q$1,FALSE))) ->  | R14: =IF($B14="","",IF(VLOOKUP($B14,'Athlete Input'!$B:$AJ,R$1,FALSE)="","",VLOOKUP($B14,'Athlete Input'!$B:$AJ,R$1,FALSE))) ->  | S14: =IF($B14="","",IF(VLOOKUP($B14,'Athlete Input'!$B:$AJ,S$1,FALSE)="","",VLOOKUP($B14,'Athlete Input'!$B:$AJ,S$1,FALSE))) ->  | T14: =IF($B14="","",IF(VLOOKUP($B14,'Athlete Input'!$B:$AJ,T$1,FALSE)="","",VLOOKUP($B14,'Athlete Input'!$B:$AJ,T$1,FALSE))) ->  | U14: =IF($B14="","",IF(VLOOKUP($B14,'Athlete Input'!$B:$BZ,U$1,FALSE)="","",VLOOKUP($B14,'Athlete Input'!$B:$BZ,U$1,FALSE))) ->  | V14: =IF($B14="","",IF(VLOOKUP($B14,'Athlete Input'!$B:$BZ,V$1,FALSE)="","",VLOOKUP($B14,'Athlete Input'!$B:$BZ,V$1,FALSE))) ->  | W14: =IF($B14="","",IF(VLOOKUP($B14,'Athlete Input'!$B:$BZ,W$1,FALSE)="","",VLOOKUP($B14,'Athlete Input'!$B:$BZ,W$1,FALSE))) ->  | X14: =IF($B14="","",IF(VLOOKUP($B14,'Athlete Input'!$B:$BZ,X$1,FALSE)="","",VLOOKUP($B14,'Athlete Input'!$B:$BZ,X$1,FALSE))) ->  | Y14: =IF($B14="","",IF(VLOOKUP($B14,'Athlete Input'!$B:$BZ,Y$1,FALSE)="","",VLOOKUP($B14,'Athlete Input'!$B:$BZ,Y$1,FALSE))) ->  | Z14: =IF($B14="","",IF(VLOOKUP($B14,'Athlete Input'!$B:$BZ,Z$1,FALSE)="","",VLOOKUP($B14,'Athlete Input'!$B:$BZ,Z$1,FALSE))) ->  | AA14: =IF($B14="","",IF(VLOOKUP($B14,'Athlete Input'!$B:$BZ,AA$1,FALSE)="","",VLOOKUP($B14,'Athlete Input'!$B:$BZ,AA$1,FALSE))) ->  | AB14: =IF($B14="","",IF(VLOOKUP($B14,'Athlete Input'!$B:$BZ,AB$1,FALSE)="","",VLOOKUP($B14,'Athlete Input'!$B:$BZ,AB$1,FALSE))) ->  | AC14: =IF($B14="","",IF(VLOOKUP($B14,'Athlete Input'!$B:$BZ,AC$1,FALSE)="","",VLOOKUP($B14,'Athlete Input'!$B:$BZ,AC$1,FALSE))) ->  | AD14: =IF($B14="","",IF(VLOOKUP($B14,'Athlete Input'!$B:$BZ,AD$1,FALSE)="","",VLOOKUP($B14,'Athlete Input'!$B:$BZ,AD$1,FALSE))) ->  | AE14: =IF($B14="","",IF(VLOOKUP($B14,'Athlete Input'!$B:$BZ,AE$1,FALSE)="","",VLOOKUP($B14,'Athlete Input'!$B:$BZ,AE$1,FALSE))) ->  | AF14: =IF($B14="","",IF(VLOOKUP($B14,'Athlete Input'!$B:$BZ,AF$1,FALSE)="","",VLOOKUP($B14,'Athlete Input'!$B:$BZ,AF$1,FALSE))) ->  | AG14: =IF($B14="","",IF(VLOOKUP($B14,'Athlete Input'!$B:$BZ,AG$1,FALSE)="","",VLOOKUP($B14,'Athlete Input'!$B:$BZ,AG$1,FALSE))) ->  | AH14: =IF($B14="","",IF(VLOOKUP($B14,'Athlete Input'!$B:$BZ,AH$1,FALSE)="","",VLOOKUP($B14,'Athlete Input'!$B:$BZ,AH$1,FALSE))) ->  | AI14: =IF($B14="","",IF(VLOOKUP($B14,'Athlete Input'!$B:$BZ,AI$1,FALSE)="","",VLOOKUP($B14,'Athlete Input'!$B:$BZ,AI$1,FALSE))) ->  | AJ14: =IF($B14="","",IF(VLOOKUP($B14,'Athlete Input'!$B:$BZ,AJ$1,FALSE)="","",VLOOKUP($B14,'Athlete Input'!$B:$BZ,AJ$1,FALSE))) ->  | AK14: =IF($B14="","",IF(VLOOKUP($B14,'Athlete Input'!$B:$BZ,AK$1,FALSE)="","",VLOOKUP($B14,'Athlete Input'!$B:$BZ,AK$1,FALSE))) ->  | AL14: =IF($B14="","",IF(VLOOKUP($B14,'Athlete Input'!$B:$BZ,AL$1,FALSE)="","",VLOOKUP($B14,'Athlete Input'!$B:$BZ,AL$1,FALSE))) ->  | AM14: =IF(B14="","zz",'Athlete Input'!C15) -> Garry
A15: 12 | B15: =IF('Athlete Input'!B16="","",'Athlete Input'!B16) -> Nikki Gibson | C15: =IF($B15="","",IF(VLOOKUP($B15,'Athlete Input'!$B:$AJ,C$1,FALSE)="","",VLOOKUP($B15,'Athlete Input'!$B:$AJ,C$1,FALSE))) ->  | D15: =IF($B15="","",IF(VLOOKUP($B15,'Athlete Input'!$B:$AJ,D$1,FALSE)="","",VLOOKUP($B15,'Athlete Input'!$B:$AJ,D$1,FALSE))) ->  | E15: =IF($B15="","",IF(VLOOKUP($B15,'Athlete Input'!$B:$AJ,E$1,FALSE)="","",VLOOKUP($B15,'Athlete Input'!$B:$AJ,E$1,FALSE))) ->  | F15: =IF($B15="","",IF(VLOOKUP($B15,'Athlete Input'!$B:$AJ,F$1,FALSE)="","",VLOOKUP($B15,'Athlete Input'!$B:$AJ,F$1,FALSE))) -> 24.42 | G15: =IF($B15="","",IF(VLOOKUP($B15,'Athlete Input'!$B:$AJ,G$1,FALSE)="","",VLOOKUP($B15,'Athlete Input'!$B:$AJ,G$1,FALSE))) ->  | H15: =IF($B15="","",IF(VLOOKUP($B15,'Athlete Input'!$B:$AJ,H$1,FALSE)="","",VLOOKUP($B15,'Athlete Input'!$B:$AJ,H$1,FALSE))) -> 17.3 | I15: =IF($B15="","",IF(VLOOKUP($B15,'Athlete Input'!$B:$AJ,I$1,FALSE)="","",VLOOKUP($B15,'Athlete Input'!$B:$AJ,I$1,FALSE))) ->  | J15: =IF($B15="","",IF(VLOOKUP($B15,'Athlete Input'!$B:$AJ,J$1,FALSE)="","",VLOOKUP($B15,'Athlete Input'!$B:$AJ,J$1,FALSE))) ->  | K15: =IF($B15="","",IF(VLOOKUP($B15,'Athlete Input'!$B:$AJ,K$1,FALSE)="","",VLOOKUP($B15,'Athlete Input'!$B:$AJ,K$1,FALSE))) ->  | L15: =IF($B15="","",IF(VLOOKUP($B15,'Athlete Input'!$B:$AJ,L$1,FALSE)="","",VLOOKUP($B15,'Athlete Input'!$B:$AJ,L$1,FALSE))) ->  | M15: =IF($B15="","",IF(VLOOKUP($B15,'Athlete Input'!$B:$AJ,M$1,FALSE)="","",VLOOKUP($B15,'Athlete Input'!$B:$AJ,M$1,FALSE))) ->  | N15: =IF($B15="","",IF(VLOOKUP($B15,'Athlete Input'!$B:$AJ,N$1,FALSE)="","",VLOOKUP($B15,'Athlete Input'!$B:$AJ,N$1,FALSE))) -> 26.49 | O15: =IF($B15="","",IF(VLOOKUP($B15,'Athlete Input'!$B:$AJ,O$1,FALSE)="","",VLOOKUP($B15,'Athlete Input'!$B:$AJ,O$1,FALSE))) -> 26.17 | P15: =IF($B15="","",IF(VLOOKUP($B15,'Athlete Input'!$B:$AJ,P$1,FALSE)="","",VLOOKUP($B15,'Athlete Input'!$B:$AJ,P$1,FALSE))) -> 27.26 | Q15: =IF($B15="","",IF(VLOOKUP($B15,'Athlete Input'!$B:$AJ,Q$1,FALSE)="","",VLOOKUP($B15,'Athlete Input'!$B:$AJ,Q$1,FALSE))) ->  | R15: =IF($B15="","",IF(VLOOKUP($B15,'Athlete Input'!$B:$AJ,R$1,FALSE)="","",VLOOKUP($B15,'Athlete Input'!$B:$AJ,R$1,FALSE))) ->  | S15: =IF($B15="","",IF(VLOOKUP($B15,'Athlete Input'!$B:$AJ,S$1,FALSE)="","",VLOOKUP($B15,'Athlete Input'!$B:$AJ,S$1,FALSE))) ->  | T15: =IF($B15="","",IF(VLOOKUP($B15,'Athlete Input'!$B:$AJ,T$1,FALSE)="","",VLOOKUP($B15,'Athlete Input'!$B:$AJ,T$1,FALSE))) ->  | U15: =IF($B15="","",IF(VLOOKUP($B15,'Athlete Input'!$B:$BZ,U$1,FALSE)="","",VLOOKUP($B15,'Athlete Input'!$B:$BZ,U$1,FALSE))) ->  | V15: =IF($B15="","",IF(VLOOKUP($B15,'Athlete Input'!$B:$BZ,V$1,FALSE)="","",VLOOKUP($B15,'Athlete Input'!$B:$BZ,V$1,FALSE))) ->  | W15: =IF($B15="","",IF(VLOOKUP($B15,'Athlete Input'!$B:$BZ,W$1,FALSE)="","",VLOOKUP($B15,'Athlete Input'!$B:$BZ,W$1,FALSE))) ->  | X15: =IF($B15="","",IF(VLOOKUP($B15,'Athlete Input'!$B:$BZ,X$1,FALSE)="","",VLOOKUP($B15,'Athlete Input'!$B:$BZ,X$1,FALSE))) ->  | Y15: =IF($B15="","",IF(VLOOKUP($B15,'Athlete Input'!$B:$BZ,Y$1,FALSE)="","",VLOOKUP($B15,'Athlete Input'!$B:$BZ,Y$1,FALSE))) ->  | Z15: =IF($B15="","",IF(VLOOKUP($B15,'Athlete Input'!$B:$BZ,Z$1,FALSE)="","",VLOOKUP($B15,'Athlete Input'!$B:$BZ,Z$1,FALSE))) ->  | AA15: =IF($B15="","",IF(VLOOKUP($B15,'Athlete Input'!$B:$BZ,AA$1,FALSE)="","",VLOOKUP($B15,'Athlete Input'!$B:$BZ,AA$1,FALSE))) ->  | AB15: =IF($B15="","",IF(VLOOKUP($B15,'Athlete Input'!$B:$BZ,AB$1,FALSE)="","",VLOOKUP($B15,'Athlete Input'!$B:$BZ,AB$1,FALSE))) ->  | AC15: =IF($B15="","",IF(VLOOKUP($B15,'Athlete Input'!$B:$BZ,AC$1,FALSE)="","",VLOOKUP($B15,'Athlete Input'!$B:$BZ,AC$1,FALSE))) ->  | AD15: =IF($B15="","",IF(VLOOKUP($B15,'Athlete Input'!$B:$BZ,AD$1,FALSE)="","",VLOOKUP($B15,'Athlete Input'!$B:$BZ,AD$1,FALSE))) ->  | AE15: =IF($B15="","",IF(VLOOKUP($B15,'Athlete Input'!$B:$BZ,AE$1,FALSE)="","",VLOOKUP($B15,'Athlete Input'!$B:$BZ,AE$1,FALSE))) ->  | AF15: =IF($B15="","",IF(VLOOKUP($B15,'Athlete Input'!$B:$BZ,AF$1,FALSE)="","",VLOOKUP($B15,'Athlete Input'!$B:$BZ,AF$1,FALSE))) ->  | AG15: =IF($B15="","",IF(VLOOKUP($B15,'Athlete Input'!$B:$BZ,AG$1,FALSE)="","",VLOOKUP($B15,'Athlete Input'!$B:$BZ,AG$1,FALSE))) ->  | AH15: =IF($B15="","",IF(VLOOKUP($B15,'Athlete Input'!$B:$BZ,AH$1,FALSE)="","",VLOOKUP($B15,'Athlete Input'!$B:$BZ,AH$1,FALSE))) ->  | AI15: =IF($B15="","",IF(VLOOKUP($B15,'Athlete Input'!$B:$BZ,AI$1,FALSE)="","",VLOOKUP($B15,'Athlete Input'!$B:$BZ,AI$1,FALSE))) ->  | AJ15: =IF($B15="","",IF(VLOOKUP($B15,'Athlete Input'!$B:$BZ,AJ$1,FALSE)="","",VLOOKUP($B15,'Athlete Input'!$B:$BZ,AJ$1,FALSE))) ->  | AK15: =IF($B15="","",IF(VLOOKUP($B15,'Athlete Input'!$B:$BZ,AK$1,FALSE)="","",VLOOKUP($B15,'Athlete Input'!$B:$BZ,AK$1,FALSE))) ->  | AL15: =IF($B15="","",IF(VLOOKUP($B15,'Athlete Input'!$B:$BZ,AL$1,FALSE)="","",VLOOKUP($B15,'Athlete Input'!$B:$BZ,AL$1,FALSE))) ->  | AM15: =IF(B15="","zz",'Athlete Input'!C16) -> Gibson
A16: 13 | B16: =IF('Athlete Input'!B17="","",'Athlete Input'!B17) -> Fiona Hegarty | C16: =IF($B16="","",IF(VLOOKUP($B16,'Athlete Input'!$B:$AJ,C$1,FALSE)="","",VLOOKUP($B16,'Athlete Input'!$B:$AJ,C$1,FALSE))) ->  | D16: =IF($B16="","",IF(VLOOKUP($B16,'Athlete Input'!$B:$AJ,D$1,FALSE)="","",VLOOKUP($B16,'Athlete Input'!$B:$AJ,D$1,FALSE))) ->  | E16: =IF($B16="","",IF(VLOOKUP($B16,'Athlete Input'!$B:$AJ,E$1,FALSE)="","",VLOOKUP($B16,'Athlete Input'!$B:$AJ,E$1,FALSE))) -> 26.24 | F16: =IF($B16="","",IF(VLOOKUP($B16,'Athlete Input'!$B:$AJ,F$1,FALSE)="","",VLOOKUP($B16,'Athlete Input'!$B:$AJ,F$1,FALSE))) -> 26.47 | G16: =IF($B16="","",IF(VLOOKUP($B16,'Athlete Input'!$B:$AJ,G$1,FALSE)="","",VLOOKUP($B16,'Athlete Input'!$B:$AJ,G$1,FALSE))) ->  | H16: =IF($B16="","",IF(VLOOKUP($B16,'Athlete Input'!$B:$AJ,H$1,FALSE)="","",VLOOKUP($B16,'Athlete Input'!$B:$AJ,H$1,FALSE))) -> 18.55 | I16: =IF($B16="","",IF(VLOOKUP($B16,'Athlete Input'!$B:$AJ,I$1,FALSE)="","",VLOOKUP($B16,'Athlete Input'!$B:$AJ,I$1,FALSE))) ->  | J16: =IF($B16="","",IF(VLOOKUP($B16,'Athlete Input'!$B:$AJ,J$1,FALSE)="","",VLOOKUP($B16,'Athlete Input'!$B:$AJ,J$1,FALSE))) ->  | K16: =IF($B16="","",IF(VLOOKUP($B16,'Athlete Input'!$B:$AJ,K$1,FALSE)="","",VLOOKUP($B16,'Athlete Input'!$B:$AJ,K$1,FALSE))) ->  | L16: =IF($B16="","",IF(VLOOKUP($B16,'Athlete Input'!$B:$AJ,L$1,FALSE)="","",VLOOKUP($B16,'Athlete Input'!$B:$AJ,L$1,FALSE))) ->  | M16: =IF($B16="","",IF(VLOOKUP($B16,'Athlete Input'!$B:$AJ,M$1,FALSE)="","",VLOOKUP($B16,'Athlete Input'!$B:$AJ,M$1,FALSE))) ->  | N16: =IF($B16="","",IF(VLOOKUP($B16,'Athlete Input'!$B:$AJ,N$1,FALSE)="","",VLOOKUP($B16,'Athlete Input'!$B:$AJ,N$1,FALSE))) -> 28.17 | O16: =IF($B16="","",IF(VLOOKUP($B16,'Athlete Input'!$B:$AJ,O$1,FALSE)="","",VLOOKUP($B16,'Athlete Input'!$B:$AJ,O$1,FALSE))) ->  | P16: =IF($B16="","",IF(VLOOKUP($B16,'Athlete Input'!$B:$AJ,P$1,FALSE)="","",VLOOKUP($B16,'Athlete Input'!$B:$AJ,P$1,FALSE))) -> 28.4 | Q16: =IF($B16="","",IF(VLOOKUP($B16,'Athlete Input'!$B:$AJ,Q$1,FALSE)="","",VLOOKUP($B16,'Athlete Input'!$B:$AJ,Q$1,FALSE))) ->  | R16: =IF($B16="","",IF(VLOOKUP($B16,'Athlete Input'!$B:$AJ,R$1,FALSE)="","",VLOOKUP($B16,'Athlete Input'!$B:$AJ,R$1,FALSE))) ->  | S16: =IF($B16="","",IF(VLOOKUP($B16,'Athlete Input'!$B:$AJ,S$1,FALSE)="","",VLOOKUP($B16,'Athlete Input'!$B:$AJ,S$1,FALSE))) ->  | T16: =IF($B16="","",IF(VLOOKUP($B16,'Athlete Input'!$B:$AJ,T$1,FALSE)="","",VLOOKUP($B16,'Athlete Input'!$B:$AJ,T$1,FALSE))) ->  | U16: =IF($B16="","",IF(VLOOKUP($B16,'Athlete Input'!$B:$BZ,U$1,FALSE)="","",VLOOKUP($B16,'Athlete Input'!$B:$BZ,U$1,FALSE))) ->  | V16: =IF($B16="","",IF(VLOOKUP($B16,'Athlete Input'!$B:$BZ,V$1,FALSE)="","",VLOOKUP($B16,'Athlete Input'!$B:$BZ,V$1,FALSE))) ->  | W16: =IF($B16="","",IF(VLOOKUP($B16,'Athlete Input'!$B:$BZ,W$1,FALSE)="","",VLOOKUP($B16,'Athlete Input'!$B:$BZ,W$1,FALSE))) ->  | X16: =IF($B16="","",IF(VLOOKUP($B16,'Athlete Input'!$B:$BZ,X$1,FALSE)="","",VLOOKUP($B16,'Athlete Input'!$B:$BZ,X$1,FALSE))) ->  | Y16: =IF($B16="","",IF(VLOOKUP($B16,'Athlete Input'!$B:$BZ,Y$1,FALSE)="","",VLOOKUP($B16,'Athlete Input'!$B:$BZ,Y$1,FALSE))) ->  | Z16: =IF($B16="","",IF(VLOOKUP($B16,'Athlete Input'!$B:$BZ,Z$1,FALSE)="","",VLOOKUP($B16,'Athlete Input'!$B:$BZ,Z$1,FALSE))) ->  | AA16: =IF($B16="","",IF(VLOOKUP($B16,'Athlete Input'!$B:$BZ,AA$1,FALSE)="","",VLOOKUP($B16,'Athlete Input'!$B:$BZ,AA$1,FALSE))) ->  | AB16: =IF($B16="","",IF(VLOOKUP($B16,'Athlete Input'!$B:$BZ,AB$1,FALSE)="","",VLOOKUP($B16,'Athlete Input'!$B:$BZ,AB$1,FALSE))) ->  | AC16: =IF($B16="","",IF(VLOOKUP($B16,'Athlete Input'!$B:$BZ,AC$1,FALSE)="","",VLOOKUP($B16,'Athlete Input'!$B:$BZ,AC$1,FALSE))) ->  | AD16: =IF($B16="","",IF(VLOOKUP($B16,'Athlete Input'!$B:$BZ,AD$1,FALSE)="","",VLOOKUP($B16,'Athlete Input'!$B:$BZ,AD$1,FALSE))) ->  | AE16: =IF($B16="","",IF(VLOOKUP($B16,'Athlete Input'!$B:$BZ,AE$1,FALSE)="","",VLOOKUP($B16,'Athlete Input'!$B:$BZ,AE$1,FALSE))) ->  | AF16: =IF($B16="","",IF(VLOOKUP($B16,'Athlete Input'!$B:$BZ,AF$1,FALSE)="","",VLOOKUP($B16,'Athlete Input'!$B:$BZ,AF$1,FALSE))) ->  | AG16: =IF($B16="","",IF(VLOOKUP($B16,'Athlete Input'!$B:$BZ,AG$1,FALSE)="","",VLOOKUP($B16,'Athlete Input'!$B:$BZ,AG$1,FALSE))) ->  | AH16: =IF($B16="","",IF(VLOOKUP($B16,'Athlete Input'!$B:$BZ,AH$1,FALSE)="","",VLOOKUP($B16,'Athlete Input'!$B:$BZ,AH$1,FALSE))) ->  | AI16: =IF($B16="","",IF(VLOOKUP($B16,'Athlete Input'!$B:$BZ,AI$1,FALSE)="","",VLOOKUP($B16,'Athlete Input'!$B:$BZ,AI$1,FALSE))) ->  | AJ16: =IF($B16="","",IF(VLOOKUP($B16,'Athlete Input'!$B:$BZ,AJ$1,FALSE)="","",VLOOKUP($B16,'Athlete Input'!$B:$BZ,AJ$1,FALSE))) ->  | AK16: =IF($B16="","",IF(VLOOKUP($B16,'Athlete Input'!$B:$BZ,AK$1,FALSE)="","",VLOOKUP($B16,'Athlete Input'!$B:$BZ,AK$1,FALSE))) ->  | AL16: =IF($B16="","",IF(VLOOKUP($B16,'Athlete Input'!$B:$BZ,AL$1,FALSE)="","",VLOOKUP($B16,'Athlete Input'!$B:$BZ,AL$1,FALSE))) ->  | AM16: =IF(B16="","zz",'Athlete Input'!C17) -> Hegarty
A17: 14 | B17: =IF('Athlete Input'!B18="","",'Athlete Input'!B18) -> Niamh Jarvis | C17: =IF($B17="","",IF(VLOOKUP($B17,'Athlete Input'!$B:$AJ,C$1,FALSE)="","",VLOOKUP($B17,'Athlete Input'!$B:$AJ,C$1,FALSE))) -> 21.36 | D17: =IF($B17="","",IF(VLOOKUP($B17,'Athlete Input'!$B:$AJ,D$1,FALSE)="","",VLOOKUP($B17,'Athlete Input'!$B:$AJ,D$1,FALSE))) ->  | E17: =IF($B17="","",IF(VLOOKUP($B17,'Athlete Input'!$B:$AJ,E$1,FALSE)="","",VLOOKUP($B17,'Athlete Input'!$B:$AJ,E$1,FALSE))) -> 32 | F17: =IF($B17="","",IF(VLOOKUP($B17,'Athlete Input'!$B:$AJ,F$1,FALSE)="","",VLOOKUP($B17,'Athlete Input'!$B:$AJ,F$1,FALSE))) ->  | G17: =IF($B17="","",IF(VLOOKUP($B17,'Athlete Input'!$B:$AJ,G$1,FALSE)="","",VLOOKUP($B17,'Athlete Input'!$B:$AJ,G$1,FALSE))) -> 21.27 | H17: =IF($B17="","",IF(VLOOKUP($B17,'Athlete Input'!$B:$AJ,H$1,FALSE)="","",VLOOKUP($B17,'Athlete Input'!$B:$AJ,H$1,FALSE))) ->  | I17: =IF($B17="","",IF(VLOOKUP($B17,'Athlete Input'!$B:$AJ,I$1,FALSE)="","",VLOOKUP($B17,'Athlete Input'!$B:$AJ,I$1,FALSE))) ->  | J17: =IF($B17="","",IF(VLOOKUP($B17,'Athlete Input'!$B:$AJ,J$1,FALSE)="","",VLOOKUP($B17,'Athlete Input'!$B:$AJ,J$1,FALSE))) ->  | K17: =IF($B17="","",IF(VLOOKUP($B17,'Athlete Input'!$B:$AJ,K$1,FALSE)="","",VLOOKUP($B17,'Athlete Input'!$B:$AJ,K$1,FALSE))) -> 26.01 | L17: =IF($B17="","",IF(VLOOKUP($B17,'Athlete Input'!$B:$AJ,L$1,FALSE)="","",VLOOKUP($B17,'Athlete Input'!$B:$AJ,L$1,FALSE))) ->  | M17: =IF($B17="","",IF(VLOOKUP($B17,'Athlete Input'!$B:$AJ,M$1,FALSE)="","",VLOOKUP($B17,'Athlete Input'!$B:$AJ,M$1,FALSE))) -> 35.49 | N17: =IF($B17="","",IF(VLOOKUP($B17,'Athlete Input'!$B:$AJ,N$1,FALSE)="","",VLOOKUP($B17,'Athlete Input'!$B:$AJ,N$1,FALSE))) ->  | O17: =IF($B17="","",IF(VLOOKUP($B17,'Athlete Input'!$B:$AJ,O$1,FALSE)="","",VLOOKUP($B17,'Athlete Input'!$B:$AJ,O$1,FALSE))) ->  | P17: =IF($B17="","",IF(VLOOKUP($B17,'Athlete Input'!$B:$AJ,P$1,FALSE)="","",VLOOKUP($B17,'Athlete Input'!$B:$AJ,P$1,FALSE))) ->  | Q17: =IF($B17="","",IF(VLOOKUP($B17,'Athlete Input'!$B:$AJ,Q$1,FALSE)="","",VLOOKUP($B17,'Athlete Input'!$B:$AJ,Q$1,FALSE))) ->  | R17: =IF($B17="","",IF(VLOOKUP($B17,'Athlete Input'!$B:$AJ,R$1,FALSE)="","",VLOOKUP($B17,'Athlete Input'!$B:$AJ,R$1,FALSE))) ->  | S17: =IF($B17="","",IF(VLOOKUP($B17,'Athlete Input'!$B:$AJ,S$1,FALSE)="","",VLOOKUP($B17,'Athlete Input'!$B:$AJ,S$1,FALSE))) ->  | T17: =IF($B17="","",IF(VLOOKUP($B17,'Athlete Input'!$B:$AJ,T$1,FALSE)="","",VLOOKUP($B17,'Athlete Input'!$B:$AJ,T$1,FALSE))) ->  | U17: =IF($B17="","",IF(VLOOKUP($B17,'Athlete Input'!$B:$BZ,U$1,FALSE)="","",VLOOKUP($B17,'Athlete Input'!$B:$BZ,U$1,FALSE))) ->  | V17: =IF($B17="","",IF(VLOOKUP($B17,'Athlete Input'!$B:$BZ,V$1,FALSE)="","",VLOOKUP($B17,'Athlete Input'!$B:$BZ,V$1,FALSE))) ->  | W17: =IF($B17="","",IF(VLOOKUP($B17,'Athlete Input'!$B:$BZ,W$1,FALSE)="","",VLOOKUP($B17,'Athlete Input'!$B:$BZ,W$1,FALSE))) ->  | X17: =IF($B17="","",IF(VLOOKUP($B17,'Athlete Input'!$B:$BZ,X$1,FALSE)="","",VLOOKUP($B17,'Athlete Input'!$B:$BZ,X$1,FALSE))) ->  | Y17: =IF($B17="","",IF(VLOOKUP($B17,'Athlete Input'!$B:$BZ,Y$1,FALSE)="","",VLOOKUP($B17,'Athlete Input'!$B:$BZ,Y$1,FALSE))) ->  | Z17: =IF($B17="","",IF(VLOOKUP($B17,'Athlete Input'!$B:$BZ,Z$1,FALSE)="","",VLOOKUP($B17,'Athlete Input'!$B:$BZ,Z$1,FALSE))) ->  | AA17: =IF($B17="","",IF(VLOOKUP($B17,'Athlete Input'!$B:$BZ,AA$1,FALSE)="","",VLOOKUP($B17,'Athlete Input'!$B:$BZ,AA$1,FALSE))) ->  | AB17: =IF($B17="","",IF(VLOOKUP($B17,'Athlete Input'!$B:$BZ,AB$1,FALSE)="","",VLOOKUP($B17,'Athlete Input'!$B:$BZ,AB$1,FALSE))) ->  | AC17: =IF($B17="","",IF(VLOOKUP($B17,'Athlete Input'!$B:$BZ,AC$1,FALSE)="","",VLOOKUP($B17,'Athlete Input'!$B:$BZ,AC$1,FALSE))) ->  | AD17: =IF($B17="","",IF(VLOOKUP($B17,'Athlete Input'!$B:$BZ,AD$1,FALSE)="","",VLOOKUP($B17,'Athlete Input'!$B:$BZ,AD$1,FALSE))) ->  | AE17: =IF($B17="","",IF(VLOOKUP($B17,'Athlete Input'!$B:$BZ,AE$1,FALSE)="","",VLOOKUP($B17,'Athlete Input'!$B:$BZ,AE$1,FALSE))) ->  | AF17: =IF($B17="","",IF(VLOOKUP($B17,'Athlete Input'!$B:$BZ,AF$1,FALSE)="","",VLOOKUP($B17,'Athlete Input'!$B:$BZ,AF$1,FALSE))) ->  | AG17: =IF($B17="","",IF(VLOOKUP($B17,'Athlete Input'!$B:$BZ,AG$1,FALSE)="","",VLOOKUP($B17,'Athlete Input'!$B:$BZ,AG$1,FALSE))) ->  | AH17: =IF($B17="","",IF(VLOOKUP($B17,'Athlete Input'!$B:$BZ,AH$1,FALSE)="","",VLOOKUP($B17,'Athlete Input'!$B:$BZ,AH$1,FALSE))) ->  | AI17: =IF($B17="","",IF(VLOOKUP($B17,'Athlete Input'!$B:$BZ,AI$1,FALSE)="","",VLOOKUP($B17,'Athlete Input'!$B:$BZ,AI$1,FALSE))) ->  | AJ17: =IF($B17="","",IF(VLOOKUP($B17,'Athlete Input'!$B:$BZ,AJ$1,FALSE)="","",VLOOKUP($B17,'Athlete Input'!$B:$BZ,AJ$1,FALSE))) ->  | AK17: =IF($B17="","",IF(VLOOKUP($B17,'Athlete Input'!$B:$BZ,AK$1,FALSE)="","",VLOOKUP($B17,'Athlete Input'!$B:$BZ,AK$1,FALSE))) ->  | AL17: =IF($B17="","",IF(VLOOKUP($B17,'Athlete Input'!$B:$BZ,AL$1,FALSE)="","",VLOOKUP($B17,'Athlete Input'!$B:$BZ,AL$1,FALSE))) ->  | AM17: =IF(B17="","zz",'Athlete Input'!C18) -> Jarvis
A18: 15 | B18: =IF('Athlete Input'!B19="","",'Athlete Input'!B19) -> Ashleigh Kennedy | C18: =IF($B18="","",IF(VLOOKUP($B18,'Athlete Input'!$B:$AJ,C$1,FALSE)="","",VLOOKUP($B18,'Athlete Input'!$B:$AJ,C$1,FALSE))) ->  | D18: =IF($B18="","",IF(VLOOKUP($B18,'Athlete Input'!$B:$AJ,D$1,FALSE)="","",VLOOKUP($B18,'Athlete Input'!$B:$AJ,D$1,FALSE))) -> 19.22 | E18: =IF($B18="","",IF(VLOOKUP($B18,'Athlete Input'!$B:$AJ,E$1,FALSE)="","",VLOOKUP($B18,'Athlete Input'!$B:$AJ,E$1,FALSE))) ->  | F18: =IF($B18="","",IF(VLOOKUP($B18,'Athlete Input'!$B:$AJ,F$1,FALSE)="","",VLOOKUP($B18,'Athlete Input'!$B:$AJ,F$1,FALSE))) ->  | G18: =IF($B18="","",IF(VLOOKUP($B18,'Athlete Input'!$B:$AJ,G$1,FALSE)="","",VLOOKUP($B18,'Athlete Input'!$B:$AJ,G$1,FALSE))) ->  | H18: =IF($B18="","",IF(VLOOKUP($B18,'Athlete Input'!$B:$AJ,H$1,FALSE)="","",VLOOKUP($B18,'Athlete Input'!$B:$AJ,H$1,FALSE))) ->  | I18: =IF($B18="","",IF(VLOOKUP($B18,'Athlete Input'!$B:$AJ,I$1,FALSE)="","",VLOOKUP($B18,'Athlete Input'!$B:$AJ,I$1,FALSE))) ->  | J18: =IF($B18="","",IF(VLOOKUP($B18,'Athlete Input'!$B:$AJ,J$1,FALSE)="","",VLOOKUP($B18,'Athlete Input'!$B:$AJ,J$1,FALSE))) ->  | K18: =IF($B18="","",IF(VLOOKUP($B18,'Athlete Input'!$B:$AJ,K$1,FALSE)="","",VLOOKUP($B18,'Athlete Input'!$B:$AJ,K$1,FALSE))) ->  | L18: =IF($B18="","",IF(VLOOKUP($B18,'Athlete Input'!$B:$AJ,L$1,FALSE)="","",VLOOKUP($B18,'Athlete Input'!$B:$AJ,L$1,FALSE))) ->  | M18: =IF($B18="","",IF(VLOOKUP($B18,'Athlete Input'!$B:$AJ,M$1,FALSE)="","",VLOOKUP($B18,'Athlete Input'!$B:$AJ,M$1,FALSE))) ->  | N18: =IF($B18="","",IF(VLOOKUP($B18,'Athlete Input'!$B:$AJ,N$1,FALSE)="","",VLOOKUP($B18,'Athlete Input'!$B:$AJ,N$1,FALSE))) -> 27.52 | O18: =IF($B18="","",IF(VLOOKUP($B18,'Athlete Input'!$B:$AJ,O$1,FALSE)="","",VLOOKUP($B18,'Athlete Input'!$B:$AJ,O$1,FALSE))) ->  | P18: =IF($B18="","",IF(VLOOKUP($B18,'Athlete Input'!$B:$AJ,P$1,FALSE)="","",VLOOKUP($B18,'Athlete Input'!$B:$AJ,P$1,FALSE))) ->  | Q18: =IF($B18="","",IF(VLOOKUP($B18,'Athlete Input'!$B:$AJ,Q$1,FALSE)="","",VLOOKUP($B18,'Athlete Input'!$B:$AJ,Q$1,FALSE))) ->  | R18: =IF($B18="","",IF(VLOOKUP($B18,'Athlete Input'!$B:$AJ,R$1,FALSE)="","",VLOOKUP($B18,'Athlete Input'!$B:$AJ,R$1,FALSE))) ->  | S18: =IF($B18="","",IF(VLOOKUP($B18,'Athlete Input'!$B:$AJ,S$1,FALSE)="","",VLOOKUP($B18,'Athlete Input'!$B:$AJ,S$1,FALSE))) ->  | T18: =IF($B18="","",IF(VLOOKUP($B18,'Athlete Input'!$B:$AJ,T$1,FALSE)="","",VLOOKUP($B18,'Athlete Input'!$B:$AJ,T$1,FALSE))) ->  | U18: =IF($B18="","",IF(VLOOKUP($B18,'Athlete Input'!$B:$BZ,U$1,FALSE)="","",VLOOKUP($B18,'Athlete Input'!$B:$BZ,U$1,FALSE))) ->  | V18: =IF($B18="","",IF(VLOOKUP($B18,'Athlete Input'!$B:$BZ,V$1,FALSE)="","",VLOOKUP($B18,'Athlete Input'!$B:$BZ,V$1,FALSE))) ->  | W18: =IF($B18="","",IF(VLOOKUP($B18,'Athlete Input'!$B:$BZ,W$1,FALSE)="","",VLOOKUP($B18,'Athlete Input'!$B:$BZ,W$1,FALSE))) ->  | X18: =IF($B18="","",IF(VLOOKUP($B18,'Athlete Input'!$B:$BZ,X$1,FALSE)="","",VLOOKUP($B18,'Athlete Input'!$B:$BZ,X$1,FALSE))) ->  | Y18: =IF($B18="","",IF(VLOOKUP($B18,'Athlete Input'!$B:$BZ,Y$1,FALSE)="","",VLOOKUP($B18,'Athlete Input'!$B:$BZ,Y$1,FALSE))) ->  | Z18: =IF($B18="","",IF(VLOOKUP($B18,'Athlete Input'!$B:$BZ,Z$1,FALSE)="","",VLOOKUP($B18,'Athlete Input'!$B:$BZ,Z$1,FALSE))) ->  | AA18: =IF($B18="","",IF(VLOOKUP($B18,'Athlete Input'!$B:$BZ,AA$1,FALSE)="","",VLOOKUP($B18,'Athlete Input'!$B:$BZ,AA$1,FALSE))) ->  | AB18: =IF($B18="","",IF(VLOOKUP($B18,'Athlete Input'!$B:$BZ,AB$1,FALSE)="","",VLOOKUP($B18,'Athlete Input'!$B:$BZ,AB$1,FALSE))) ->  | AC18: =IF($B18="","",IF(VLOOKUP($B18,'Athlete Input'!$B:$BZ,AC$1,FALSE)="","",VLOOKUP($B18,'Athlete Input'!$B:$BZ,AC$1,FALSE))) ->  | AD18: =IF($B18="","",IF(VLOOKUP($B18,'Athlete Input'!$B:$BZ,AD$1,FALSE)="","",VLOOKUP($B18,'Athlete Input'!$B:$BZ,AD$1,FALSE))) ->  | AE18: =IF($B18="","",IF(VLOOKUP($B18,'Athlete Input'!$B:$BZ,AE$1,FALSE)="","",VLOOKUP($B18,'Athlete Input'!$B:$BZ,AE$1,FALSE))) ->  | AF18: =IF($B18="","",IF(VLOOKUP($B18,'Athlete Input'!$B:$BZ,AF$1,FALSE)="","",VLOOKUP($B18,'Athlete Input'!$B:$BZ,AF$1,FALSE))) ->  | AG18: =IF($B18="","",IF(VLOOKUP($B18,'Athlete Input'!$B:$BZ,AG$1,FALSE)="","",VLOOKUP($B18,'Athlete Input'!$B:$BZ,AG$1,FALSE))) ->  | AH18: =IF($B18="","",IF(VLOOKUP($B18,'Athlete Input'!$B:$BZ,AH$1,FALSE)="","",VLOOKUP($B18,'Athlete Input'!$B:$BZ,AH$1,FALSE))) ->  | AI18: =IF($B18="","",IF(VLOOKUP($B18,'Athlete Input'!$B:$BZ,AI$1,FALSE)="","",VLOOKUP($B18,'Athlete Input'!$B:$BZ,AI$1,FALSE))) ->  | AJ18: =IF($B18="","",IF(VLOOKUP($B18,'Athlete Input'!$B:$BZ,AJ$1,FALSE)="","",VLOOKUP($B18,'Athlete Input'!$B:$BZ,AJ$1,FALSE))) ->  | AK18: =IF($B18="","",IF(VLOOKUP($B18,'Athlete Input'!$B:$BZ,AK$1,FALSE)="","",VLOOKUP($B18,'Athlete Input'!$B:$BZ,AK$1,FALSE))) ->  | AL18: =IF($B18="","",IF(VLOOKUP($B18,'Athlete Input'!$B:$BZ,AL$1,FALSE)="","",VLOOKUP($B18,'Athlete Input'!$B:$BZ,AL$1,FALSE))) ->  | AM18: =IF(B18="","zz",'Athlete Input'!C19) -> Kennedy
A19: 16 | B19: =IF('Athlete Input'!B20="","",'Athlete Input'!B20) -> Hilary Kernaghan | C19: =IF($B19="","",IF(VLOOKUP($B19,'Athlete Input'!$B:$AJ,C$1,FALSE)="","",VLOOKUP($B19,'Athlete Input'!$B:$AJ,C$1,FALSE))) ->  | D19: =IF($B19="","",IF(VLOOKUP($B19,'Athlete Input'!$B:$AJ,D$1,FALSE)="","",VLOOKUP($B19,'Athlete Input'!$B:$AJ,D$1,FALSE))) ->  | E19: =IF($B19="","",IF(VLOOKUP($B19,'Athlete Input'!$B:$AJ,E$1,FALSE)="","",VLOOKUP($B19,'Athlete Input'!$B:$AJ,E$1,FALSE))) ->  | F19: =IF($B19="","",IF(VLOOKUP($B19,'Athlete Input'!$B:$AJ,F$1,FALSE)="","",VLOOKUP($B19,'Athlete Input'!$B:$AJ,F$1,FALSE))) ->  | G19: =IF($B19="","",IF(VLOOKUP($B19,'Athlete Input'!$B:$AJ,G$1,FALSE)="","",VLOOKUP($B19,'Athlete Input'!$B:$AJ,G$1,FALSE))) ->  | H19: =IF($B19="","",IF(VLOOKUP($B19,'Athlete Input'!$B:$AJ,H$1,FALSE)="","",VLOOKUP($B19,'Athlete Input'!$B:$AJ,H$1,FALSE))) ->  | I19: =IF($B19="","",IF(VLOOKUP($B19,'Athlete Input'!$B:$AJ,I$1,FALSE)="","",VLOOKUP($B19,'Athlete Input'!$B:$AJ,I$1,FALSE))) ->  | J19: =IF($B19="","",IF(VLOOKUP($B19,'Athlete Input'!$B:$AJ,J$1,FALSE)="","",VLOOKUP($B19,'Athlete Input'!$B:$AJ,J$1,FALSE))) ->  | K19: =IF($B19="","",IF(VLOOKUP($B19,'Athlete Input'!$B:$AJ,K$1,FALSE)="","",VLOOKUP($B19,'Athlete Input'!$B:$AJ,K$1,FALSE))) ->  | L19: =IF($B19="","",IF(VLOOKUP($B19,'Athlete Input'!$B:$AJ,L$1,FALSE)="","",VLOOKUP($B19,'Athlete Input'!$B:$AJ,L$1,FALSE))) ->  | M19: =IF($B19="","",IF(VLOOKUP($B19,'Athlete Input'!$B:$AJ,M$1,FALSE)="","",VLOOKUP($B19,'Athlete Input'!$B:$AJ,M$1,FALSE))) ->  | N19: =IF($B19="","",IF(VLOOKUP($B19,'Athlete Input'!$B:$AJ,N$1,FALSE)="","",VLOOKUP($B19,'Athlete Input'!$B:$AJ,N$1,FALSE))) ->  | O19: =IF($B19="","",IF(VLOOKUP($B19,'Athlete Input'!$B:$AJ,O$1,FALSE)="","",VLOOKUP($B19,'Athlete Input'!$B:$AJ,O$1,FALSE))) ->  | P19: =IF($B19="","",IF(VLOOKUP($B19,'Athlete Input'!$B:$AJ,P$1,FALSE)="","",VLOOKUP($B19,'Athlete Input'!$B:$AJ,P$1,FALSE))) ->  | Q19: =IF($B19="","",IF(VLOOKUP($B19,'Athlete Input'!$B:$AJ,Q$1,FALSE)="","",VLOOKUP($B19,'Athlete Input'!$B:$AJ,Q$1,FALSE))) ->  | R19: =IF($B19="","",IF(VLOOKUP($B19,'Athlete Input'!$B:$AJ,R$1,FALSE)="","",VLOOKUP($B19,'Athlete Input'!$B:$AJ,R$1,FALSE))) ->  | S19: =IF($B19="","",IF(VLOOKUP($B19,'Athlete Input'!$B:$AJ,S$1,FALSE)="","",VLOOKUP($B19,'Athlete Input'!$B:$AJ,S$1,FALSE))) ->  | T19: =IF($B19="","",IF(VLOOKUP($B19,'Athlete Input'!$B:$AJ,T$1,FALSE)="","",VLOOKUP($B19,'Athlete Input'!$B:$AJ,T$1,FALSE))) ->  | U19: =IF($B19="","",IF(VLOOKUP($B19,'Athlete Input'!$B:$BZ,U$1,FALSE)="","",VLOOKUP($B19,'Athlete Input'!$B:$BZ,U$1,FALSE))) ->  | V19: =IF($B19="","",IF(VLOOKUP($B19,'Athlete Input'!$B:$BZ,V$1,FALSE)="","",VLOOKUP($B19,'Athlete Input'!$B:$BZ,V$1,FALSE))) ->  | W19: =IF($B19="","",IF(VLOOKUP($B19,'Athlete Input'!$B:$BZ,W$1,FALSE)="","",VLOOKUP($B19,'Athlete Input'!$B:$BZ,W$1,FALSE))) ->  | X19: =IF($B19="","",IF(VLOOKUP($B19,'Athlete Input'!$B:$BZ,X$1,FALSE)="","",VLOOKUP($B19,'Athlete Input'!$B:$BZ,X$1,FALSE))) ->  | Y19: =IF($B19="","",IF(VLOOKUP($B19,'Athlete Input'!$B:$BZ,Y$1,FALSE)="","",VLOOKUP($B19,'Athlete Input'!$B:$BZ,Y$1,FALSE))) ->  | Z19: =IF($B19="","",IF(VLOOKUP($B19,'Athlete Input'!$B:$BZ,Z$1,FALSE)="","",VLOOKUP($B19,'Athlete Input'!$B:$BZ,Z$1,FALSE))) ->  | AA19: =IF($B19="","",IF(VLOOKUP($B19,'Athlete Input'!$B:$BZ,AA$1,FALSE)="","",VLOOKUP($B19,'Athlete Input'!$B:$BZ,AA$1,FALSE))) ->  | AB19: =IF($B19="","",IF(VLOOKUP($B19,'Athlete Input'!$B:$BZ,AB$1,FALSE)="","",VLOOKUP($B19,'Athlete Input'!$B:$BZ,AB$1,FALSE))) ->  | AC19: =IF($B19="","",IF(VLOOKUP($B19,'Athlete Input'!$B:$BZ,AC$1,FALSE)="","",VLOOKUP($B19,'Athlete Input'!$B:$BZ,AC$1,FALSE))) ->  | AD19: =IF($B19="","",IF(VLOOKUP($B19,'Athlete Input'!$B:$BZ,AD$1,FALSE)="","",VLOOKUP($B19,'Athlete Input'!$B:$BZ,AD$1,FALSE))) ->  | AE19: =IF($B19="","",IF(VLOOKUP($B19,'Athlete Input'!$B:$BZ,AE$1,FALSE)="","",VLOOKUP($B19,'Athlete Input'!$B:$BZ,AE$1,FALSE))) ->  | AF19: =IF($B19="","",IF(VLOOKUP($B19,'Athlete Input'!$B:$BZ,AF$1,FALSE)="","",VLOOKUP($B19,'Athlete Input'!$B:$BZ,AF$1,FALSE))) ->  | AG19: =IF($B19="","",IF(VLOOKUP($B19,'Athlete Input'!$B:$BZ,AG$1,FALSE)="","",VLOOKUP($B19,'Athlete Input'!$B:$BZ,AG$1,FALSE))) ->  | AH19: =IF($B19="","",IF(VLOOKUP($B19,'Athlete Input'!$B:$BZ,AH$1,FALSE)="","",VLOOKUP($B19,'Athlete Input'!$B:$BZ,AH$1,FALSE))) ->  | AI19: =IF($B19="","",IF(VLOOKUP($B19,'Athlete Input'!$B:$BZ,AI$1,FALSE)="","",VLOOKUP($B19,'Athlete Input'!$B:$BZ,AI$1,FALSE))) ->  | AJ19: =IF($B19="","",IF(VLOOKUP($B19,'Athlete Input'!$B:$BZ,AJ$1,FALSE)="","",VLOOKUP($B19,'Athlete Input'!$B:$BZ,AJ$1,FALSE))) ->  | AK19: =IF($B19="","",IF(VLOOKUP($B19,'Athlete Input'!$B:$BZ,AK$1,FALSE)="","",VLOOKUP($B19,'Athlete Input'!$B:$BZ,AK$1,FALSE))) ->  | AL19: =IF($B19="","",IF(VLOOKUP($B19,'Athlete Input'!$B:$BZ,AL$1,FALSE)="","",VLOOKUP($B19,'Athlete Input'!$B:$BZ,AL$1,FALSE))) ->  | AM19: =IF(B19="","zz",'Athlete Input'!C20) -> Kernaghan
A20: 17 | B20: =IF('Athlete Input'!B21="","",'Athlete Input'!B21) -> Emma Laverie | C20: =IF($B20="","",IF(VLOOKUP($B20,'Athlete Input'!$B:$AJ,C$1,FALSE)="","",VLOOKUP($B20,'Athlete Input'!$B:$AJ,C$1,FALSE))) ->  | D20: =IF($B20="","",IF(VLOOKUP($B20,'Athlete Input'!$B:$AJ,D$1,FALSE)="","",VLOOKUP($B20,'Athlete Input'!$B:$AJ,D$1,FALSE))) -> 18.07 | E20: =IF($B20="","",IF(VLOOKUP($B20,'Athlete Input'!$B:$AJ,E$1,FALSE)="","",VLOOKUP($B20,'Athlete Input'!$B:$AJ,E$1,FALSE))) ->  | F20: =IF($B20="","",IF(VLOOKUP($B20,'Athlete Input'!$B:$AJ,F$1,FALSE)="","",VLOOKUP($B20,'Athlete Input'!$B:$AJ,F$1,FALSE))) -> 26.29 | G20: =IF($B20="","",IF(VLOOKUP($B20,'Athlete Input'!$B:$AJ,G$1,FALSE)="","",VLOOKUP($B20,'Athlete Input'!$B:$AJ,G$1,FALSE))) ->  | H20: =IF($B20="","",IF(VLOOKUP($B20,'Athlete Input'!$B:$AJ,H$1,FALSE)="","",VLOOKUP($B20,'Athlete Input'!$B:$AJ,H$1,FALSE))) ->  | I20: =IF($B20="","",IF(VLOOKUP($B20,'Athlete Input'!$B:$AJ,I$1,FALSE)="","",VLOOKUP($B20,'Athlete Input'!$B:$AJ,I$1,FALSE))) ->  | J20: =IF($B20="","",IF(VLOOKUP($B20,'Athlete Input'!$B:$AJ,J$1,FALSE)="","",VLOOKUP($B20,'Athlete Input'!$B:$AJ,J$1,FALSE))) ->  | K20: =IF($B20="","",IF(VLOOKUP($B20,'Athlete Input'!$B:$AJ,K$1,FALSE)="","",VLOOKUP($B20,'Athlete Input'!$B:$AJ,K$1,FALSE))) ->  | L20: =IF($B20="","",IF(VLOOKUP($B20,'Athlete Input'!$B:$AJ,L$1,FALSE)="","",VLOOKUP($B20,'Athlete Input'!$B:$AJ,L$1,FALSE))) ->  | M20: =IF($B20="","",IF(VLOOKUP($B20,'Athlete Input'!$B:$AJ,M$1,FALSE)="","",VLOOKUP($B20,'Athlete Input'!$B:$AJ,M$1,FALSE))) ->  | N20: =IF($B20="","",IF(VLOOKUP($B20,'Athlete Input'!$B:$AJ,N$1,FALSE)="","",VLOOKUP($B20,'Athlete Input'!$B:$AJ,N$1,FALSE))) -> 27.38 | O20: =IF($B20="","",IF(VLOOKUP($B20,'Athlete Input'!$B:$AJ,O$1,FALSE)="","",VLOOKUP($B20,'Athlete Input'!$B:$AJ,O$1,FALSE))) ->  | P20: =IF($B20="","",IF(VLOOKUP($B20,'Athlete Input'!$B:$AJ,P$1,FALSE)="","",VLOOKUP($B20,'Athlete Input'!$B:$AJ,P$1,FALSE))) ->  | Q20: =IF($B20="","",IF(VLOOKUP($B20,'Athlete Input'!$B:$AJ,Q$1,FALSE)="","",VLOOKUP($B20,'Athlete Input'!$B:$AJ,Q$1,FALSE))) ->  | R20: =IF($B20="","",IF(VLOOKUP($B20,'Athlete Input'!$B:$AJ,R$1,FALSE)="","",VLOOKUP($B20,'Athlete Input'!$B:$AJ,R$1,FALSE))) ->  | S20: =IF($B20="","",IF(VLOOKUP($B20,'Athlete Input'!$B:$AJ,S$1,FALSE)="","",VLOOKUP($B20,'Athlete Input'!$B:$AJ,S$1,FALSE))) ->  | T20: =IF($B20="","",IF(VLOOKUP($B20,'Athlete Input'!$B:$AJ,T$1,FALSE)="","",VLOOKUP($B20,'Athlete Input'!$B:$AJ,T$1,FALSE))) ->  | U20: =IF($B20="","",IF(VLOOKUP($B20,'Athlete Input'!$B:$BZ,U$1,FALSE)="","",VLOOKUP($B20,'Athlete Input'!$B:$BZ,U$1,FALSE))) ->  | V20: =IF($B20="","",IF(VLOOKUP($B20,'Athlete Input'!$B:$BZ,V$1,FALSE)="","",VLOOKUP($B20,'Athlete Input'!$B:$BZ,V$1,FALSE))) ->  | W20: =IF($B20="","",IF(VLOOKUP($B20,'Athlete Input'!$B:$BZ,W$1,FALSE)="","",VLOOKUP($B20,'Athlete Input'!$B:$BZ,W$1,FALSE))) ->  | X20: =IF($B20="","",IF(VLOOKUP($B20,'Athlete Input'!$B:$BZ,X$1,FALSE)="","",VLOOKUP($B20,'Athlete Input'!$B:$BZ,X$1,FALSE))) ->  | Y20: =IF($B20="","",IF(VLOOKUP($B20,'Athlete Input'!$B:$BZ,Y$1,FALSE)="","",VLOOKUP($B20,'Athlete Input'!$B:$BZ,Y$1,FALSE))) ->  | Z20: =IF($B20="","",IF(VLOOKUP($B20,'Athlete Input'!$B:$BZ,Z$1,FALSE)="","",VLOOKUP($B20,'Athlete Input'!$B:$BZ,Z$1,FALSE))) ->  | AA20: =IF($B20="","",IF(VLOOKUP($B20,'Athlete Input'!$B:$BZ,AA$1,FALSE)="","",VLOOKUP($B20,'Athlete Input'!$B:$BZ,AA$1,FALSE))) ->  | AB20: =IF($B20="","",IF(VLOOKUP($B20,'Athlete Input'!$B:$BZ,AB$1,FALSE)="","",VLOOKUP($B20,'Athlete Input'!$B:$BZ,AB$1,FALSE))) ->  | AC20: =IF($B20="","",IF(VLOOKUP($B20,'Athlete Input'!$B:$BZ,AC$1,FALSE)="","",VLOOKUP($B20,'Athlete Input'!$B:$BZ,AC$1,FALSE))) ->  | AD20: =IF($B20="","",IF(VLOOKUP($B20,'Athlete Input'!$B:$BZ,AD$1,FALSE)="","",VLOOKUP($B20,'Athlete Input'!$B:$BZ,AD$1,FALSE))) ->  | AE20: =IF($B20="","",IF(VLOOKUP($B20,'Athlete Input'!$B:$BZ,AE$1,FALSE)="","",VLOOKUP($B20,'Athlete Input'!$B:$BZ,AE$1,FALSE))) ->  | AF20: =IF($B20="","",IF(VLOOKUP($B20,'Athlete Input'!$B:$BZ,AF$1,FALSE)="","",VLOOKUP($B20,'Athlete Input'!$B:$BZ,AF$1,FALSE))) ->  | AG20: =IF($B20="","",IF(VLOOKUP($B20,'Athlete Input'!$B:$BZ,AG$1,FALSE)="","",VLOOKUP($B20,'Athlete Input'!$B:$BZ,AG$1,FALSE))) ->  | AH20: =IF($B20="","",IF(VLOOKUP($B20,'Athlete Input'!$B:$BZ,AH$1,FALSE)="","",VLOOKUP($B20,'Athlete Input'!$B:$BZ,AH$1,FALSE))) ->  | AI20: =IF($B20="","",IF(VLOOKUP($B20,'Athlete Input'!$B:$BZ,AI$1,FALSE)="","",VLOOKUP($B20,'Athlete Input'!$B:$BZ,AI$1,FALSE))) ->  | AJ20: =IF($B20="","",IF(VLOOKUP($B20,'Athlete Input'!$B:$BZ,AJ$1,FALSE)="","",VLOOKUP($B20,'Athlete Input'!$B:$BZ,AJ$1,FALSE))) ->  | AK20: =IF($B20="","",IF(VLOOKUP($B20,'Athlete Input'!$B:$BZ,AK$1,FALSE)="","",VLOOKUP($B20,'Athlete Input'!$B:$BZ,AK$1,FALSE))) ->  | AL20: =IF($B20="","",IF(VLOOKUP($B20,'Athlete Input'!$B:$BZ,AL$1,FALSE)="","",VLOOKUP($B20,'Athlete Input'!$B:$BZ,AL$1,FALSE))) ->  | AM20: =IF(B20="","zz",'Athlete Input'!C21) -> Laverie
A21: 18 | B21: =IF('Athlete Input'!B22="","",'Athlete Input'!B22) -> Lianne Logan | C21: =IF($B21="","",IF(VLOOKUP($B21,'Athlete Input'!$B:$AJ,C$1,FALSE)="","",VLOOKUP($B21,'Athlete Input'!$B:$AJ,C$1,FALSE))) -> 18.33 | D21: =IF($B21="","",IF(VLOOKUP($B21,'Athlete Input'!$B:$AJ,D$1,FALSE)="","",VLOOKUP($B21,'Athlete Input'!$B:$AJ,D$1,FALSE))) ->  | E21: =IF($B21="","",IF(VLOOKUP($B21,'Athlete Input'!$B:$AJ,E$1,FALSE)="","",VLOOKUP($B21,'Athlete Input'!$B:$AJ,E$1,FALSE))) ->  | F21: =IF($B21="","",IF(VLOOKUP($B21,'Athlete Input'!$B:$AJ,F$1,FALSE)="","",VLOOKUP($B21,'Athlete Input'!$B:$AJ,F$1,FALSE))) ->  | G21: =IF($B21="","",IF(VLOOKUP($B21,'Athlete Input'!$B:$AJ,G$1,FALSE)="","",VLOOKUP($B21,'Athlete Input'!$B:$AJ,G$1,FALSE))) ->  | H21: =IF($B21="","",IF(VLOOKUP($B21,'Athlete Input'!$B:$AJ,H$1,FALSE)="","",VLOOKUP($B21,'Athlete Input'!$B:$AJ,H$1,FALSE))) ->  | I21: =IF($B21="","",IF(VLOOKUP($B21,'Athlete Input'!$B:$AJ,I$1,FALSE)="","",VLOOKUP($B21,'Athlete Input'!$B:$AJ,I$1,FALSE))) ->  | J21: =IF($B21="","",IF(VLOOKUP($B21,'Athlete Input'!$B:$AJ,J$1,FALSE)="","",VLOOKUP($B21,'Athlete Input'!$B:$AJ,J$1,FALSE))) ->  | K21: =IF($B21="","",IF(VLOOKUP($B21,'Athlete Input'!$B:$AJ,K$1,FALSE)="","",VLOOKUP($B21,'Athlete Input'!$B:$AJ,K$1,FALSE))) ->  | L21: =IF($B21="","",IF(VLOOKUP($B21,'Athlete Input'!$B:$AJ,L$1,FALSE)="","",VLOOKUP($B21,'Athlete Input'!$B:$AJ,L$1,FALSE))) ->  | M21: =IF($B21="","",IF(VLOOKUP($B21,'Athlete Input'!$B:$AJ,M$1,FALSE)="","",VLOOKUP($B21,'Athlete Input'!$B:$AJ,M$1,FALSE))) ->  | N21: =IF($B21="","",IF(VLOOKUP($B21,'Athlete Input'!$B:$AJ,N$1,FALSE)="","",VLOOKUP($B21,'Athlete Input'!$B:$AJ,N$1,FALSE))) ->  | O21: =IF($B21="","",IF(VLOOKUP($B21,'Athlete Input'!$B:$AJ,O$1,FALSE)="","",VLOOKUP($B21,'Athlete Input'!$B:$AJ,O$1,FALSE))) ->  | P21: =IF($B21="","",IF(VLOOKUP($B21,'Athlete Input'!$B:$AJ,P$1,FALSE)="","",VLOOKUP($B21,'Athlete Input'!$B:$AJ,P$1,FALSE))) ->  | Q21: =IF($B21="","",IF(VLOOKUP($B21,'Athlete Input'!$B:$AJ,Q$1,FALSE)="","",VLOOKUP($B21,'Athlete Input'!$B:$AJ,Q$1,FALSE))) ->  | R21: =IF($B21="","",IF(VLOOKUP($B21,'Athlete Input'!$B:$AJ,R$1,FALSE)="","",VLOOKUP($B21,'Athlete Input'!$B:$AJ,R$1,FALSE))) ->  | S21: =IF($B21="","",IF(VLOOKUP($B21,'Athlete Input'!$B:$AJ,S$1,FALSE)="","",VLOOKUP($B21,'Athlete Input'!$B:$AJ,S$1,FALSE))) ->  | T21: =IF($B21="","",IF(VLOOKUP($B21,'Athlete Input'!$B:$AJ,T$1,FALSE)="","",VLOOKUP($B21,'Athlete Input'!$B:$AJ,T$1,FALSE))) ->  | U21: =IF($B21="","",IF(VLOOKUP($B21,'Athlete Input'!$B:$BZ,U$1,FALSE)="","",VLOOKUP($B21,'Athlete Input'!$B:$BZ,U$1,FALSE))) ->  | V21: =IF($B21="","",IF(VLOOKUP($B21,'Athlete Input'!$B:$BZ,V$1,FALSE)="","",VLOOKUP($B21,'Athlete Input'!$B:$BZ,V$1,FALSE))) ->  | W21: =IF($B21="","",IF(VLOOKUP($B21,'Athlete Input'!$B:$BZ,W$1,FALSE)="","",VLOOKUP($B21,'Athlete Input'!$B:$BZ,W$1,FALSE))) ->  | X21: =IF($B21="","",IF(VLOOKUP($B21,'Athlete Input'!$B:$BZ,X$1,FALSE)="","",VLOOKUP($B21,'Athlete Input'!$B:$BZ,X$1,FALSE))) ->  | Y21: =IF($B21="","",IF(VLOOKUP($B21,'Athlete Input'!$B:$BZ,Y$1,FALSE)="","",VLOOKUP($B21,'Athlete Input'!$B:$BZ,Y$1,FALSE))) ->  | Z21: =IF($B21="","",IF(VLOOKUP($B21,'Athlete Input'!$B:$BZ,Z$1,FALSE)="","",VLOOKUP($B21,'Athlete Input'!$B:$BZ,Z$1,FALSE))) ->  | AA21: =IF($B21="","",IF(VLOOKUP($B21,'Athlete Input'!$B:$BZ,AA$1,FALSE)="","",VLOOKUP($B21,'Athlete Input'!$B:$BZ,AA$1,FALSE))) ->  | AB21: =IF($B21="","",IF(VLOOKUP($B21,'Athlete Input'!$B:$BZ,AB$1,FALSE)="","",VLOOKUP($B21,'Athlete Input'!$B:$BZ,AB$1,FALSE))) ->  | AC21: =IF($B21="","",IF(VLOOKUP($B21,'Athlete Input'!$B:$BZ,AC$1,FALSE)="","",VLOOKUP($B21,'Athlete Input'!$B:$BZ,AC$1,FALSE))) ->  | AD21: =IF($B21="","",IF(VLOOKUP($B21,'Athlete Input'!$B:$BZ,AD$1,FALSE)="","",VLOOKUP($B21,'Athlete Input'!$B:$BZ,AD$1,FALSE))) ->  | AE21: =IF($B21="","",IF(VLOOKUP($B21,'Athlete Input'!$B:$BZ,AE$1,FALSE)="","",VLOOKUP($B21,'Athlete Input'!$B:$BZ,AE$1,FALSE))) ->  | AF21: =IF($B21="","",IF(VLOOKUP($B21,'Athlete Input'!$B:$BZ,AF$1,FALSE)="","",VLOOKUP($B21,'Athlete Input'!$B:$BZ,AF$1,FALSE))) ->  | AG21: =IF($B21="","",IF(VLOOKUP($B21,'Athlete Input'!$B:$BZ,AG$1,FALSE)="","",VLOOKUP($B21,'Athlete Input'!$B:$BZ,AG$1,FALSE))) ->  | AH21: =IF($B21="","",IF(VLOOKUP($B21,'Athlete Input'!$B:$BZ,AH$1,FALSE)="","",VLOOKUP($B21,'Athlete Input'!$B:$BZ,AH$1,FALSE))) ->  | AI21: =IF($B21="","",IF(VLOOKUP($B21,'Athlete Input'!$B:$BZ,AI$1,FALSE)="","",VLOOKUP($B21,'Athlete Input'!$B:$BZ,AI$1,FALSE))) ->  | AJ21: =IF($B21="","",IF(VLOOKUP($B21,'Athlete Input'!$B:$BZ,AJ$1,FALSE)="","",VLOOKUP($B21,'Athlete Input'!$B:$BZ,AJ$1,FALSE))) ->  | AK21: =IF($B21="","",IF(VLOOKUP($B21,'Athlete Input'!$B:$BZ,AK$1,FALSE)="","",VLOOKUP($B21,'Athlete Input'!$B:$BZ,AK$1,FALSE))) ->  | AL21: =IF($B21="","",IF(VLOOKUP($B21,'Athlete Input'!$B:$BZ,AL$1,FALSE)="","",VLOOKUP($B21,'Athlete Input'!$B:$BZ,AL$1,FALSE))) ->  | AM21: =IF(B21="","zz",'Athlete Input'!C22) -> Logan
A22: 19 | B22: =IF('Athlete Input'!B23="","",'Athlete Input'!B23) -> Sheenagh MacLullich | C22: =IF($B22="","",IF(VLOOKUP($B22,'Athlete Input'!$B:$AJ,C$1,FALSE)="","",VLOOKUP($B22,'Athlete Input'!$B:$AJ,C$1,FALSE))) ->  | D22: =IF($B22="","",IF(VLOOKUP($B22,'Athlete Input'!$B:$AJ,D$1,FALSE)="","",VLOOKUP($B22,'Athlete Input'!$B:$AJ,D$1,FALSE))) -> 17.21 | E22: =IF($B22="","",IF(VLOOKUP($B22,'Athlete Input'!$B:$AJ,E$1,FALSE)="","",VLOOKUP($B22,'Athlete Input'!$B:$AJ,E$1,FALSE))) ->  | F22: =IF($B22="","",IF(VLOOKUP($B22,'Athlete Input'!$B:$AJ,F$1,FALSE)="","",VLOOKUP($B22,'Athlete Input'!$B:$AJ,F$1,FALSE))) ->  | G22: =IF($B22="","",IF(VLOOKUP($B22,'Athlete Input'!$B:$AJ,G$1,FALSE)="","",VLOOKUP($B22,'Athlete Input'!$B:$AJ,G$1,FALSE))) ->  | H22: =IF($B22="","",IF(VLOOKUP($B22,'Athlete Input'!$B:$AJ,H$1,FALSE)="","",VLOOKUP($B22,'Athlete Input'!$B:$AJ,H$1,FALSE))) ->  | I22: =IF($B22="","",IF(VLOOKUP($B22,'Athlete Input'!$B:$AJ,I$1,FALSE)="","",VLOOKUP($B22,'Athlete Input'!$B:$AJ,I$1,FALSE))) ->  | J22: =IF($B22="","",IF(VLOOKUP($B22,'Athlete Input'!$B:$AJ,J$1,FALSE)="","",VLOOKUP($B22,'Athlete Input'!$B:$AJ,J$1,FALSE))) ->  | K22: =IF($B22="","",IF(VLOOKUP($B22,'Athlete Input'!$B:$AJ,K$1,FALSE)="","",VLOOKUP($B22,'Athlete Input'!$B:$AJ,K$1,FALSE))) ->  | L22: =IF($B22="","",IF(VLOOKUP($B22,'Athlete Input'!$B:$AJ,L$1,FALSE)="","",VLOOKUP($B22,'Athlete Input'!$B:$AJ,L$1,FALSE))) -> 20.26 | M22: =IF($B22="","",IF(VLOOKUP($B22,'Athlete Input'!$B:$AJ,M$1,FALSE)="","",VLOOKUP($B22,'Athlete Input'!$B:$AJ,M$1,FALSE))) ->  | N22: =IF($B22="","",IF(VLOOKUP($B22,'Athlete Input'!$B:$AJ,N$1,FALSE)="","",VLOOKUP($B22,'Athlete Input'!$B:$AJ,N$1,FALSE))) ->  | O22: =IF($B22="","",IF(VLOOKUP($B22,'Athlete Input'!$B:$AJ,O$1,FALSE)="","",VLOOKUP($B22,'Athlete Input'!$B:$AJ,O$1,FALSE))) ->  | P22: =IF($B22="","",IF(VLOOKUP($B22,'Athlete Input'!$B:$AJ,P$1,FALSE)="","",VLOOKUP($B22,'Athlete Input'!$B:$AJ,P$1,FALSE))) ->  | Q22: =IF($B22="","",IF(VLOOKUP($B22,'Athlete Input'!$B:$AJ,Q$1,FALSE)="","",VLOOKUP($B22,'Athlete Input'!$B:$AJ,Q$1,FALSE))) ->  | R22: =IF($B22="","",IF(VLOOKUP($B22,'Athlete Input'!$B:$AJ,R$1,FALSE)="","",VLOOKUP($B22,'Athlete Input'!$B:$AJ,R$1,FALSE))) ->  | S22: =IF($B22="","",IF(VLOOKUP($B22,'Athlete Input'!$B:$AJ,S$1,FALSE)="","",VLOOKUP($B22,'Athlete Input'!$B:$AJ,S$1,FALSE))) ->  | T22: =IF($B22="","",IF(VLOOKUP($B22,'Athlete Input'!$B:$AJ,T$1,FALSE)="","",VLOOKUP($B22,'Athlete Input'!$B:$AJ,T$1,FALSE))) ->  | U22: =IF($B22="","",IF(VLOOKUP($B22,'Athlete Input'!$B:$BZ,U$1,FALSE)="","",VLOOKUP($B22,'Athlete Input'!$B:$BZ,U$1,FALSE))) ->  | V22: =IF($B22="","",IF(VLOOKUP($B22,'Athlete Input'!$B:$BZ,V$1,FALSE)="","",VLOOKUP($B22,'Athlete Input'!$B:$BZ,V$1,FALSE))) ->  | W22: =IF($B22="","",IF(VLOOKUP($B22,'Athlete Input'!$B:$BZ,W$1,FALSE)="","",VLOOKUP($B22,'Athlete Input'!$B:$BZ,W$1,FALSE))) ->  | X22: =IF($B22="","",IF(VLOOKUP($B22,'Athlete Input'!$B:$BZ,X$1,FALSE)="","",VLOOKUP($B22,'Athlete Input'!$B:$BZ,X$1,FALSE))) ->  | Y22: =IF($B22="","",IF(VLOOKUP($B22,'Athlete Input'!$B:$BZ,Y$1,FALSE)="","",VLOOKUP($B22,'Athlete Input'!$B:$BZ,Y$1,FALSE))) ->  | Z22: =IF($B22="","",IF(VLOOKUP($B22,'Athlete Input'!$B:$BZ,Z$1,FALSE)="","",VLOOKUP($B22,'Athlete Input'!$B:$BZ,Z$1,FALSE))) ->  | AA22: =IF($B22="","",IF(VLOOKUP($B22,'Athlete Input'!$B:$BZ,AA$1,FALSE)="","",VLOOKUP($B22,'Athlete Input'!$B:$BZ,AA$1,FALSE))) ->  | AB22: =IF($B22="","",IF(VLOOKUP($B22,'Athlete Input'!$B:$BZ,AB$1,FALSE)="","",VLOOKUP($B22,'Athlete Input'!$B:$BZ,AB$1,FALSE))) ->  | AC22: =IF($B22="","",IF(VLOOKUP($B22,'Athlete Input'!$B:$BZ,AC$1,FALSE)="","",VLOOKUP($B22,'Athlete Input'!$B:$BZ,AC$1,FALSE))) ->  | AD22: =IF($B22="","",IF(VLOOKUP($B22,'Athlete Input'!$B:$BZ,AD$1,FALSE)="","",VLOOKUP($B22,'Athlete Input'!$B:$BZ,AD$1,FALSE))) ->  | AE22: =IF($B22="","",IF(VLOOKUP($B22,'Athlete Input'!$B:$BZ,AE$1,FALSE)="","",VLOOKUP($B22,'Athlete Input'!$B:$BZ,AE$1,FALSE))) ->  | AF22: =IF($B22="","",IF(VLOOKUP($B22,'Athlete Input'!$B:$BZ,AF$1,FALSE)="","",VLOOKUP($B22,'Athlete Input'!$B:$BZ,AF$1,FALSE))) ->  | AG22: =IF($B22="","",IF(VLOOKUP($B22,'Athlete Input'!$B:$BZ,AG$1,FALSE)="","",VLOOKUP($B22,'Athlete Input'!$B:$BZ,AG$1,FALSE))) ->  | AH22: =IF($B22="","",IF(VLOOKUP($B22,'Athlete Input'!$B:$BZ,AH$1,FALSE)="","",VLOOKUP($B22,'Athlete Input'!$B:$BZ,AH$1,FALSE))) ->  | AI22: =IF($B22="","",IF(VLOOKUP($B22,'Athlete Input'!$B:$BZ,AI$1,FALSE)="","",VLOOKUP($B22,'Athlete Input'!$B:$BZ,AI$1,FALSE))) ->  | AJ22: =IF($B22="","",IF(VLOOKUP($B22,'Athlete Input'!$B:$BZ,AJ$1,FALSE)="","",VLOOKUP($B22,'Athlete Input'!$B:$BZ,AJ$1,FALSE))) ->  | AK22: =IF($B22="","",IF(VLOOKUP($B22,'Athlete Input'!$B:$BZ,AK$1,FALSE)="","",VLOOKUP($B22,'Athlete Input'!$B:$BZ,AK$1,FALSE))) ->  | AL22: =IF($B22="","",IF(VLOOKUP($B22,'Athlete Input'!$B:$BZ,AL$1,FALSE)="","",VLOOKUP($B22,'Athlete Input'!$B:$BZ,AL$1,FALSE))) ->  | AM22: =IF(B22="","zz",'Athlete Input'!C23) -> MacLullich
A23: 20 | B23: =IF('Athlete Input'!B24="","",'Athlete Input'!B24) -> Catherine McKelvie | C23: =IF($B23="","",IF(VLOOKUP($B23,'Athlete Input'!$B:$AJ,C$1,FALSE)="","",VLOOKUP($B23,'Athlete Input'!$B:$AJ,C$1,FALSE))) ->  | D23: =IF($B23="","",IF(VLOOKUP($B23,'Athlete Input'!$B:$AJ,D$1,FALSE)="","",VLOOKUP($B23,'Athlete Input'!$B:$AJ,D$1,FALSE))) ->  | E23: =IF($B23="","",IF(VLOOKUP($B23,'Athlete Input'!$B:$AJ,E$1,FALSE)="","",VLOOKUP($B23,'Athlete Input'!$B:$AJ,E$1,FALSE))) ->  | F23: =IF($B23="","",IF(VLOOKUP($B23,'Athlete Input'!$B:$AJ,F$1,FALSE)="","",VLOOKUP($B23,'Athlete Input'!$B:$AJ,F$1,FALSE))) ->  | G23: =IF($B23="","",IF(VLOOKUP($B23,'Athlete Input'!$B:$AJ,G$1,FALSE)="","",VLOOKUP($B23,'Athlete Input'!$B:$AJ,G$1,FALSE))) ->  | H23: =IF($B23="","",IF(VLOOKUP($B23,'Athlete Input'!$B:$AJ,H$1,FALSE)="","",VLOOKUP($B23,'Athlete Input'!$B:$AJ,H$1,FALSE))) ->  | I23: =IF($B23="","",IF(VLOOKUP($B23,'Athlete Input'!$B:$AJ,I$1,FALSE)="","",VLOOKUP($B23,'Athlete Input'!$B:$AJ,I$1,FALSE))) ->  | J23: =IF($B23="","",IF(VLOOKUP($B23,'Athlete Input'!$B:$AJ,J$1,FALSE)="","",VLOOKUP($B23,'Athlete Input'!$B:$AJ,J$1,FALSE))) ->  | K23: =IF($B23="","",IF(VLOOKUP($B23,'Athlete Input'!$B:$AJ,K$1,FALSE)="","",VLOOKUP($B23,'Athlete Input'!$B:$AJ,K$1,FALSE))) ->  | L23: =IF($B23="","",IF(VLOOKUP($B23,'Athlete Input'!$B:$AJ,L$1,FALSE)="","",VLOOKUP($B23,'Athlete Input'!$B:$AJ,L$1,FALSE))) ->  | M23: =IF($B23="","",IF(VLOOKUP($B23,'Athlete Input'!$B:$AJ,M$1,FALSE)="","",VLOOKUP($B23,'Athlete Input'!$B:$AJ,M$1,FALSE))) ->  | N23: =IF($B23="","",IF(VLOOKUP($B23,'Athlete Input'!$B:$AJ,N$1,FALSE)="","",VLOOKUP($B23,'Athlete Input'!$B:$AJ,N$1,FALSE))) ->  | O23: =IF($B23="","",IF(VLOOKUP($B23,'Athlete Input'!$B:$AJ,O$1,FALSE)="","",VLOOKUP($B23,'Athlete Input'!$B:$AJ,O$1,FALSE))) ->  | P23: =IF($B23="","",IF(VLOOKUP($B23,'Athlete Input'!$B:$AJ,P$1,FALSE)="","",VLOOKUP($B23,'Athlete Input'!$B:$AJ,P$1,FALSE))) ->  | Q23: =IF($B23="","",IF(VLOOKUP($B23,'Athlete Input'!$B:$AJ,Q$1,FALSE)="","",VLOOKUP($B23,'Athlete Input'!$B:$AJ,Q$1,FALSE))) ->  | R23: =IF($B23="","",IF(VLOOKUP($B23,'Athlete Input'!$B:$AJ,R$1,FALSE)="","",VLOOKUP($B23,'Athlete Input'!$B:$AJ,R$1,FALSE))) ->  | S23: =IF($B23="","",IF(VLOOKUP($B23,'Athlete Input'!$B:$AJ,S$1,FALSE)="","",VLOOKUP($B23,'Athlete Input'!$B:$AJ,S$1,FALSE))) ->  | T23: =IF($B23="","",IF(VLOOKUP($B23,'Athlete Input'!$B:$AJ,T$1,FALSE)="","",VLOOKUP($B23,'Athlete Input'!$B:$AJ,T$1,FALSE))) ->  | U23: =IF($B23="","",IF(VLOOKUP($B23,'Athlete Input'!$B:$BZ,U$1,FALSE)="","",VLOOKUP($B23,'Athlete Input'!$B:$BZ,U$1,FALSE))) ->  | V23: =IF($B23="","",IF(VLOOKUP($B23,'Athlete Input'!$B:$BZ,V$1,FALSE)="","",VLOOKUP($B23,'Athlete Input'!$B:$BZ,V$1,FALSE))) ->  | W23: =IF($B23="","",IF(VLOOKUP($B23,'Athlete Input'!$B:$BZ,W$1,FALSE)="","",VLOOKUP($B23,'Athlete Input'!$B:$BZ,W$1,FALSE))) ->  | X23: =IF($B23="","",IF(VLOOKUP($B23,'Athlete Input'!$B:$BZ,X$1,FALSE)="","",VLOOKUP($B23,'Athlete Input'!$B:$BZ,X$1,FALSE))) ->  | Y23: =IF($B23="","",IF(VLOOKUP($B23,'Athlete Input'!$B:$BZ,Y$1,FALSE)="","",VLOOKUP($B23,'Athlete Input'!$B:$BZ,Y$1,FALSE))) ->  | Z23: =IF($B23="","",IF(VLOOKUP($B23,'Athlete Input'!$B:$BZ,Z$1,FALSE)="","",VLOOKUP($B23,'Athlete Input'!$B:$BZ,Z$1,FALSE))) ->  | AA23: =IF($B23="","",IF(VLOOKUP($B23,'Athlete Input'!$B:$BZ,AA$1,FALSE)="","",VLOOKUP($B23,'Athlete Input'!$B:$BZ,AA$1,FALSE))) ->  | AB23: =IF($B23="","",IF(VLOOKUP($B23,'Athlete Input'!$B:$BZ,AB$1,FALSE)="","",VLOOKUP($B23,'Athlete Input'!$B:$BZ,AB$1,FALSE))) ->  | AC23: =IF($B23="","",IF(VLOOKUP($B23,'Athlete Input'!$B:$BZ,AC$1,FALSE)="","",VLOOKUP($B23,'Athlete Input'!$B:$BZ,AC$1,FALSE))) ->  | AD23: =IF($B23="","",IF(VLOOKUP($B23,'Athlete Input'!$B:$BZ,AD$1,FALSE)="","",VLOOKUP($B23,'Athlete Input'!$B:$BZ,AD$1,FALSE))) ->  | AE23: =IF($B23="","",IF(VLOOKUP($B23,'Athlete Input'!$B:$BZ,AE$1,FALSE)="","",VLOOKUP($B23,'Athlete Input'!$B:$BZ,AE$1,FALSE))) ->  | AF23: =IF($B23="","",IF(VLOOKUP($B23,'Athlete Input'!$B:$BZ,AF$1,FALSE)="","",VLOOKUP($B23,'Athlete Input'!$B:$BZ,AF$1,FALSE))) ->  | AG23: =IF($B23="","",IF(VLOOKUP($B23,'Athlete Input'!$B:$BZ,AG$1,FALSE)="","",VLOOKUP($B23,'Athlete Input'!$B:$BZ,AG$1,FALSE))) ->  | AH23: =IF($B23="","",IF(VLOOKUP($B23,'Athlete Input'!$B:$BZ,AH$1,FALSE)="","",VLOOKUP($B23,'Athlete Input'!$B:$BZ,AH$1,FALSE))) ->  | AI23: =IF($B23="","",IF(VLOOKUP($B23,'Athlete Input'!$B:$BZ,AI$1,FALSE)="","",VLOOKUP($B23,'Athlete Input'!$B:$BZ,AI$1,FALSE))) ->  | AJ23: =IF($B23="","",IF(VLOOKUP($B23,'Athlete Input'!$B:$BZ,AJ$1,FALSE)="","",VLOOKUP($B23,'Athlete Input'!$B:$BZ,AJ$1,FALSE))) ->  | AK23: =IF($B23="","",IF(VLOOKUP($B23,'Athlete Input'!$B:$BZ,AK$1,FALSE)="","",VLOOKUP($B23,'Athlete Input'!$B:$BZ,AK$1,FALSE))) ->  | AL23: =IF($B23="","",IF(VLOOKUP($B23,'Athlete Input'!$B:$BZ,AL$1,FALSE)="","",VLOOKUP($B23,'Athlete Input'!$B:$BZ,AL$1,FALSE))) ->  | AM23: =IF(B23="","zz",'Athlete Input'!C24) -> Mckelvie
A24: 21 | B24: =IF('Athlete Input'!B25="","",'Athlete Input'!B25) -> Jennifer McLean | C24: =IF($B24="","",IF(VLOOKUP($B24,'Athlete Input'!$B:$AJ,C$1,FALSE)="","",VLOOKUP($B24,'Athlete Input'!$B:$AJ,C$1,FALSE))) ->  | D24: =IF($B24="","",IF(VLOOKUP($B24,'Athlete Input'!$B:$AJ,D$1,FALSE)="","",VLOOKUP($B24,'Athlete Input'!$B:$AJ,D$1,FALSE))) ->  | E24: =IF($B24="","",IF(VLOOKUP($B24,'Athlete Input'!$B:$AJ,E$1,FALSE)="","",VLOOKUP($B24,'Athlete Input'!$B:$AJ,E$1,FALSE))) ->  | F24: =IF($B24="","",IF(VLOOKUP($B24,'Athlete Input'!$B:$AJ,F$1,FALSE)="","",VLOOKUP($B24,'Athlete Input'!$B:$AJ,F$1,FALSE))) ->  | G24: =IF($B24="","",IF(VLOOKUP($B24,'Athlete Input'!$B:$AJ,G$1,FALSE)="","",VLOOKUP($B24,'Athlete Input'!$B:$AJ,G$1,FALSE))) -> 16.24 | H24: =IF($B24="","",IF(VLOOKUP($B24,'Athlete Input'!$B:$AJ,H$1,FALSE)="","",VLOOKUP($B24,'Athlete Input'!$B:$AJ,H$1,FALSE))) ->  | I24: =IF($B24="","",IF(VLOOKUP($B24,'Athlete Input'!$B:$AJ,I$1,FALSE)="","",VLOOKUP($B24,'Athlete Input'!$B:$AJ,I$1,FALSE))) ->  | J24: =IF($B24="","",IF(VLOOKUP($B24,'Athlete Input'!$B:$AJ,J$1,FALSE)="","",VLOOKUP($B24,'Athlete Input'!$B:$AJ,J$1,FALSE))) ->  | K24: =IF($B24="","",IF(VLOOKUP($B24,'Athlete Input'!$B:$AJ,K$1,FALSE)="","",VLOOKUP($B24,'Athlete Input'!$B:$AJ,K$1,FALSE))) ->  | L24: =IF($B24="","",IF(VLOOKUP($B24,'Athlete Input'!$B:$AJ,L$1,FALSE)="","",VLOOKUP($B24,'Athlete Input'!$B:$AJ,L$1,FALSE))) ->  | M24: =IF($B24="","",IF(VLOOKUP($B24,'Athlete Input'!$B:$AJ,M$1,FALSE)="","",VLOOKUP($B24,'Athlete Input'!$B:$AJ,M$1,FALSE))) ->  | N24: =IF($B24="","",IF(VLOOKUP($B24,'Athlete Input'!$B:$AJ,N$1,FALSE)="","",VLOOKUP($B24,'Athlete Input'!$B:$AJ,N$1,FALSE))) ->  | O24: =IF($B24="","",IF(VLOOKUP($B24,'Athlete Input'!$B:$AJ,O$1,FALSE)="","",VLOOKUP($B24,'Athlete Input'!$B:$AJ,O$1,FALSE))) -> 26.171 | P24: =IF($B24="","",IF(VLOOKUP($B24,'Athlete Input'!$B:$AJ,P$1,FALSE)="","",VLOOKUP($B24,'Athlete Input'!$B:$AJ,P$1,FALSE))) -> 26.27 | Q24: =IF($B24="","",IF(VLOOKUP($B24,'Athlete Input'!$B:$AJ,Q$1,FALSE)="","",VLOOKUP($B24,'Athlete Input'!$B:$AJ,Q$1,FALSE))) ->  | R24: =IF($B24="","",IF(VLOOKUP($B24,'Athlete Input'!$B:$AJ,R$1,FALSE)="","",VLOOKUP($B24,'Athlete Input'!$B:$AJ,R$1,FALSE))) ->  | S24: =IF($B24="","",IF(VLOOKUP($B24,'Athlete Input'!$B:$AJ,S$1,FALSE)="","",VLOOKUP($B24,'Athlete Input'!$B:$AJ,S$1,FALSE))) ->  | T24: =IF($B24="","",IF(VLOOKUP($B24,'Athlete Input'!$B:$AJ,T$1,FALSE)="","",VLOOKUP($B24,'Athlete Input'!$B:$AJ,T$1,FALSE))) ->  | U24: =IF($B24="","",IF(VLOOKUP($B24,'Athlete Input'!$B:$BZ,U$1,FALSE)="","",VLOOKUP($B24,'Athlete Input'!$B:$BZ,U$1,FALSE))) ->  | V24: =IF($B24="","",IF(VLOOKUP($B24,'Athlete Input'!$B:$BZ,V$1,FALSE)="","",VLOOKUP($B24,'Athlete Input'!$B:$BZ,V$1,FALSE))) ->  | W24: =IF($B24="","",IF(VLOOKUP($B24,'Athlete Input'!$B:$BZ,W$1,FALSE)="","",VLOOKUP($B24,'Athlete Input'!$B:$BZ,W$1,FALSE))) ->  | X24: =IF($B24="","",IF(VLOOKUP($B24,'Athlete Input'!$B:$BZ,X$1,FALSE)="","",VLOOKUP($B24,'Athlete Input'!$B:$BZ,X$1,FALSE))) ->  | Y24: =IF($B24="","",IF(VLOOKUP($B24,'Athlete Input'!$B:$BZ,Y$1,FALSE)="","",VLOOKUP($B24,'Athlete Input'!$B:$BZ,Y$1,FALSE))) ->  | Z24: =IF($B24="","",IF(VLOOKUP($B24,'Athlete Input'!$B:$BZ,Z$1,FALSE)="","",VLOOKUP($B24,'Athlete Input'!$B:$BZ,Z$1,FALSE))) ->  | AA24: =IF($B24="","",IF(VLOOKUP($B24,'Athlete Input'!$B:$BZ,AA$1,FALSE)="","",VLOOKUP($B24,'Athlete Input'!$B:$BZ,AA$1,FALSE))) ->  | AB24: =IF($B24="","",IF(VLOOKUP($B24,'Athlete Input'!$B:$BZ,AB$1,FALSE)="","",VLOOKUP($B24,'Athlete Input'!$B:$BZ,AB$1,FALSE))) ->  | AC24: =IF($B24="","",IF(VLOOKUP($B24,'Athlete Input'!$B:$BZ,AC$1,FALSE)="","",VLOOKUP($B24,'Athlete Input'!$B:$BZ,AC$1,FALSE))) ->  | AD24: =IF($B24="","",IF(VLOOKUP($B24,'Athlete Input'!$B:$BZ,AD$1,FALSE)="","",VLOOKUP($B24,'Athlete Input'!$B:$BZ,AD$1,FALSE))) ->  | AE24: =IF($B24="","",IF(VLOOKUP($B24,'Athlete Input'!$B:$BZ,AE$1,FALSE)="","",VLOOKUP($B24,'Athlete Input'!$B:$BZ,AE$1,FALSE))) ->  | AF24: =IF($B24="","",IF(VLOOKUP($B24,'Athlete Input'!$B:$BZ,AF$1,FALSE)="","",VLOOKUP($B24,'Athlete Input'!$B:$BZ,AF$1,FALSE))) ->  | AG24: =IF($B24="","",IF(VLOOKUP($B24,'Athlete Input'!$B:$BZ,AG$1,FALSE)="","",VLOOKUP($B24,'Athlete Input'!$B:$BZ,AG$1,FALSE))) ->  | AH24: =IF($B24="","",IF(VLOOKUP($B24,'Athlete Input'!$B:$BZ,AH$1,FALSE)="","",VLOOKUP($B24,'Athlete Input'!$B:$BZ,AH$1,FALSE))) ->  | AI24: =IF($B24="","",IF(VLOOKUP($B24,'Athlete Input'!$B:$BZ,AI$1,FALSE)="","",VLOOKUP($B24,'Athlete Input'!$B:$BZ,AI$1,FALSE))) ->  | AJ24: =IF($B24="","",IF(VLOOKUP($B24,'Athlete Input'!$B:$BZ,AJ$1,FALSE)="","",VLOOKUP($B24,'Athlete Input'!$B:$BZ,AJ$1,FALSE))) ->  | AK24: =IF($B24="","",IF(VLOOKUP($B24,'Athlete Input'!$B:$BZ,AK$1,FALSE)="","",VLOOKUP($B24,'Athlete Input'!$B:$BZ,AK$1,FALSE))) ->  | AL24: =IF($B24="","",IF(VLOOKUP($B24,'Athlete Input'!$B:$BZ,AL$1,FALSE)="","",VLOOKUP($B24,'Athlete Input'!$B:$BZ,AL$1,FALSE))) ->  | AM24: =IF(B24="","zz",'Athlete Input'!C25) -> McLean
A25: 22 | B25: =IF('Athlete Input'!B26="","",'Athlete Input'!B26) -> J Morrow | C25: =IF($B25="","",IF(VLOOKUP($B25,'Athlete Input'!$B:$AJ,C$1,FALSE)="","",VLOOKUP($B25,'Athlete Input'!$B:$AJ,C$1,FALSE))) ->  | D25: =IF($B25="","",IF(VLOOKUP($B25,'Athlete Input'!$B:$AJ,D$1,FALSE)="","",VLOOKUP($B25,'Athlete Input'!$B:$AJ,D$1,FALSE))) ->  | E25: =IF($B25="","",IF(VLOOKUP($B25,'Athlete Input'!$B:$AJ,E$1,FALSE)="","",VLOOKUP($B25,'Athlete Input'!$B:$AJ,E$1,FALSE))) -> 25.17 | F25: =IF($B25="","",IF(VLOOKUP($B25,'Athlete Input'!$B:$AJ,F$1,FALSE)="","",VLOOKUP($B25,'Athlete Input'!$B:$AJ,F$1,FALSE))) ->  | G25: =IF($B25="","",IF(VLOOKUP($B25,'Athlete Input'!$B:$AJ,G$1,FALSE)="","",VLOOKUP($B25,'Athlete Input'!$B:$AJ,G$1,FALSE))) ->  | H25: =IF($B25="","",IF(VLOOKUP($B25,'Athlete Input'!$B:$AJ,H$1,FALSE)="","",VLOOKUP($B25,'Athlete Input'!$B:$AJ,H$1,FALSE))) ->  | I25: =IF($B25="","",IF(VLOOKUP($B25,'Athlete Input'!$B:$AJ,I$1,FALSE)="","",VLOOKUP($B25,'Athlete Input'!$B:$AJ,I$1,FALSE))) ->  | J25: =IF($B25="","",IF(VLOOKUP($B25,'Athlete Input'!$B:$AJ,J$1,FALSE)="","",VLOOKUP($B25,'Athlete Input'!$B:$AJ,J$1,FALSE))) ->  | K25: =IF($B25="","",IF(VLOOKUP($B25,'Athlete Input'!$B:$AJ,K$1,FALSE)="","",VLOOKUP($B25,'Athlete Input'!$B:$AJ,K$1,FALSE))) ->  | L25: =IF($B25="","",IF(VLOOKUP($B25,'Athlete Input'!$B:$AJ,L$1,FALSE)="","",VLOOKUP($B25,'Athlete Input'!$B:$AJ,L$1,FALSE))) ->  | M25: =IF($B25="","",IF(VLOOKUP($B25,'Athlete Input'!$B:$AJ,M$1,FALSE)="","",VLOOKUP($B25,'Athlete Input'!$B:$AJ,M$1,FALSE))) -> 28.18 | N25: =IF($B25="","",IF(VLOOKUP($B25,'Athlete Input'!$B:$AJ,N$1,FALSE)="","",VLOOKUP($B25,'Athlete Input'!$B:$AJ,N$1,FALSE))) ->  | O25: =IF($B25="","",IF(VLOOKUP($B25,'Athlete Input'!$B:$AJ,O$1,FALSE)="","",VLOOKUP($B25,'Athlete Input'!$B:$AJ,O$1,FALSE))) -> 27.39 | P25: =IF($B25="","",IF(VLOOKUP($B25,'Athlete Input'!$B:$AJ,P$1,FALSE)="","",VLOOKUP($B25,'Athlete Input'!$B:$AJ,P$1,FALSE))) ->  | Q25: =IF($B25="","",IF(VLOOKUP($B25,'Athlete Input'!$B:$AJ,Q$1,FALSE)="","",VLOOKUP($B25,'Athlete Input'!$B:$AJ,Q$1,FALSE))) ->  | R25: =IF($B25="","",IF(VLOOKUP($B25,'Athlete Input'!$B:$AJ,R$1,FALSE)="","",VLOOKUP($B25,'Athlete Input'!$B:$AJ,R$1,FALSE))) ->  | S25: =IF($B25="","",IF(VLOOKUP($B25,'Athlete Input'!$B:$AJ,S$1,FALSE)="","",VLOOKUP($B25,'Athlete Input'!$B:$AJ,S$1,FALSE))) ->  | T25: =IF($B25="","",IF(VLOOKUP($B25,'Athlete Input'!$B:$AJ,T$1,FALSE)="","",VLOOKUP($B25,'Athlete Input'!$B:$AJ,T$1,FALSE))) ->  | U25: =IF($B25="","",IF(VLOOKUP($B25,'Athlete Input'!$B:$BZ,U$1,FALSE)="","",VLOOKUP($B25,'Athlete Input'!$B:$BZ,U$1,FALSE))) ->  | V25: =IF($B25="","",IF(VLOOKUP($B25,'Athlete Input'!$B:$BZ,V$1,FALSE)="","",VLOOKUP($B25,'Athlete Input'!$B:$BZ,V$1,FALSE))) ->  | W25: =IF($B25="","",IF(VLOOKUP($B25,'Athlete Input'!$B:$BZ,W$1,FALSE)="","",VLOOKUP($B25,'Athlete Input'!$B:$BZ,W$1,FALSE))) ->  | X25: =IF($B25="","",IF(VLOOKUP($B25,'Athlete Input'!$B:$BZ,X$1,FALSE)="","",VLOOKUP($B25,'Athlete Input'!$B:$BZ,X$1,FALSE))) ->  | Y25: =IF($B25="","",IF(VLOOKUP($B25,'Athlete Input'!$B:$BZ,Y$1,FALSE)="","",VLOOKUP($B25,'Athlete Input'!$B:$BZ,Y$1,FALSE))) ->  | Z25: =IF($B25="","",IF(VLOOKUP($B25,'Athlete Input'!$B:$BZ,Z$1,FALSE)="","",VLOOKUP($B25,'Athlete Input'!$B:$BZ,Z$1,FALSE))) ->  | AA25: =IF($B25="","",IF(VLOOKUP($B25,'Athlete Input'!$B:$BZ,AA$1,FALSE)="","",VLOOKUP($B25,'Athlete Input'!$B:$BZ,AA$1,FALSE))) ->  | AB25: =IF($B25="","",IF(VLOOKUP($B25,'Athlete Input'!$B:$BZ,AB$1,FALSE)="","",VLOOKUP($B25,'Athlete Input'!$B:$BZ,AB$1,FALSE))) ->  | AC25: =IF($B25="","",IF(VLOOKUP($B25,'Athlete Input'!$B:$BZ,AC$1,FALSE)="","",VLOOKUP($B25,'Athlete Input'!$B:$BZ,AC$1,FALSE))) ->  | AD25: =IF($B25="","",IF(VLOOKUP($B25,'Athlete Input'!$B:$BZ,AD$1,FALSE)="","",VLOOKUP($B25,'Athlete Input'!$B:$BZ,AD$1,FALSE))) ->  | AE25: =IF($B25="","",IF(VLOOKUP($B25,'Athlete Input'!$B:$BZ,AE$1,FALSE)="","",VLOOKUP($B25,'Athlete Input'!$B:$BZ,AE$1,FALSE))) ->  | AF25: =IF($B25="","",IF(VLOOKUP($B25,'Athlete Input'!$B:$BZ,AF$1,FALSE)="","",VLOOKUP($B25,'Athlete Input'!$B:$BZ,AF$1,FALSE))) ->  | AG25: =IF($B25="","",IF(VLOOKUP($B25,'Athlete Input'!$B:$BZ,AG$1,FALSE)="","",VLOOKUP($B25,'Athlete Input'!$B:$BZ,AG$1,FALSE))) ->  | AH25: =IF($B25="","",IF(VLOOKUP($B25,'Athlete Input'!$B:$BZ,AH$1,FALSE)="","",VLOOKUP($B25,'Athlete Input'!$B:$BZ,AH$1,FALSE))) ->  | AI25: =IF($B25="","",IF(VLOOKUP($B25,'Athlete Input'!$B:$BZ,AI$1,FALSE)="","",VLOOKUP($B25,'Athlete Input'!$B:$BZ,AI$1,FALSE))) ->  | AJ25: =IF($B25="","",IF(VLOOKUP($B25,'Athlete Input'!$B:$BZ,AJ$1,FALSE)="","",VLOOKUP($B25,'Athlete Input'!$B:$BZ,AJ$1,FALSE))) ->  | AK25: =IF($B25="","",IF(VLOOKUP($B25,'Athlete Input'!$B:$BZ,AK$1,FALSE)="","",VLOOKUP($B25,'Athlete Input'!$B:$BZ,AK$1,FALSE))) ->  | AL25: =IF($B25="","",IF(VLOOKUP($B25,'Athlete Input'!$B:$BZ,AL$1,FALSE)="","",VLOOKUP($B25,'Athlete Input'!$B:$BZ,AL$1,FALSE))) ->  | AM25: =IF(B25="","zz",'Athlete Input'!C26) -> Morrow
A26: 23 | B26: =IF('Athlete Input'!B27="","",'Athlete Input'!B27) -> Madeleine Murray | C26: =IF($B26="","",IF(VLOOKUP($B26,'Athlete Input'!$B:$AJ,C$1,FALSE)="","",VLOOKUP($B26,'Athlete Input'!$B:$AJ,C$1,FALSE))) -> 14.09 | D26: =IF($B26="","",IF(VLOOKUP($B26,'Athlete Input'!$B:$AJ,D$1,FALSE)="","",VLOOKUP($B26,'Athlete Input'!$B:$AJ,D$1,FALSE))) -> 14.44 | E26: =IF($B26="","",IF(VLOOKUP($B26,'Athlete Input'!$B:$AJ,E$1,FALSE)="","",VLOOKUP($B26,'Athlete Input'!$B:$AJ,E$1,FALSE))) ->  | F26: =IF($B26="","",IF(VLOOKUP($B26,'Athlete Input'!$B:$AJ,F$1,FALSE)="","",VLOOKUP($B26,'Athlete Input'!$B:$AJ,F$1,FALSE))) ->  | G26: =IF($B26="","",IF(VLOOKUP($B26,'Athlete Input'!$B:$AJ,G$1,FALSE)="","",VLOOKUP($B26,'Athlete Input'!$B:$AJ,G$1,FALSE))) -> 14.06 | H26: =IF($B26="","",IF(VLOOKUP($B26,'Athlete Input'!$B:$AJ,H$1,FALSE)="","",VLOOKUP($B26,'Athlete Input'!$B:$AJ,H$1,FALSE))) -> 14.51 | I26: =IF($B26="","",IF(VLOOKUP($B26,'Athlete Input'!$B:$AJ,I$1,FALSE)="","",VLOOKUP($B26,'Athlete Input'!$B:$AJ,I$1,FALSE))) ->  | J26: =IF($B26="","",IF(VLOOKUP($B26,'Athlete Input'!$B:$AJ,J$1,FALSE)="","",VLOOKUP($B26,'Athlete Input'!$B:$AJ,J$1,FALSE))) ->  | K26: =IF($B26="","",IF(VLOOKUP($B26,'Athlete Input'!$B:$AJ,K$1,FALSE)="","",VLOOKUP($B26,'Athlete Input'!$B:$AJ,K$1,FALSE))) ->  | L26: =IF($B26="","",IF(VLOOKUP($B26,'Athlete Input'!$B:$AJ,L$1,FALSE)="","",VLOOKUP($B26,'Athlete Input'!$B:$AJ,L$1,FALSE))) ->  | M26: =IF($B26="","",IF(VLOOKUP($B26,'Athlete Input'!$B:$AJ,M$1,FALSE)="","",VLOOKUP($B26,'Athlete Input'!$B:$AJ,M$1,FALSE))) ->  | N26: =IF($B26="","",IF(VLOOKUP($B26,'Athlete Input'!$B:$AJ,N$1,FALSE)="","",VLOOKUP($B26,'Athlete Input'!$B:$AJ,N$1,FALSE))) ->  | O26: =IF($B26="","",IF(VLOOKUP($B26,'Athlete Input'!$B:$AJ,O$1,FALSE)="","",VLOOKUP($B26,'Athlete Input'!$B:$AJ,O$1,FALSE))) ->  | P26: =IF($B26="","",IF(VLOOKUP($B26,'Athlete Input'!$B:$AJ,P$1,FALSE)="","",VLOOKUP($B26,'Athlete Input'!$B:$AJ,P$1,FALSE))) ->  | Q26: =IF($B26="","",IF(VLOOKUP($B26,'Athlete Input'!$B:$AJ,Q$1,FALSE)="","",VLOOKUP($B26,'Athlete Input'!$B:$AJ,Q$1,FALSE))) ->  | R26: =IF($B26="","",IF(VLOOKUP($B26,'Athlete Input'!$B:$AJ,R$1,FALSE)="","",VLOOKUP($B26,'Athlete Input'!$B:$AJ,R$1,FALSE))) ->  | S26: =IF($B26="","",IF(VLOOKUP($B26,'Athlete Input'!$B:$AJ,S$1,FALSE)="","",VLOOKUP($B26,'Athlete Input'!$B:$AJ,S$1,FALSE))) ->  | T26: =IF($B26="","",IF(VLOOKUP($B26,'Athlete Input'!$B:$AJ,T$1,FALSE)="","",VLOOKUP($B26,'Athlete Input'!$B:$AJ,T$1,FALSE))) ->  | U26: =IF($B26="","",IF(VLOOKUP($B26,'Athlete Input'!$B:$BZ,U$1,FALSE)="","",VLOOKUP($B26,'Athlete Input'!$B:$BZ,U$1,FALSE))) ->  | V26: =IF($B26="","",IF(VLOOKUP($B26,'Athlete Input'!$B:$BZ,V$1,FALSE)="","",VLOOKUP($B26,'Athlete Input'!$B:$BZ,V$1,FALSE))) ->  | W26: =IF($B26="","",IF(VLOOKUP($B26,'Athlete Input'!$B:$BZ,W$1,FALSE)="","",VLOOKUP($B26,'Athlete Input'!$B:$BZ,W$1,FALSE))) ->  | X26: =IF($B26="","",IF(VLOOKUP($B26,'Athlete Input'!$B:$BZ,X$1,FALSE)="","",VLOOKUP($B26,'Athlete Input'!$B:$BZ,X$1,FALSE))) ->  | Y26: =IF($B26="","",IF(VLOOKUP($B26,'Athlete Input'!$B:$BZ,Y$1,FALSE)="","",VLOOKUP($B26,'Athlete Input'!$B:$BZ,Y$1,FALSE))) ->  | Z26: =IF($B26="","",IF(VLOOKUP($B26,'Athlete Input'!$B:$BZ,Z$1,FALSE)="","",VLOOKUP($B26,'Athlete Input'!$B:$BZ,Z$1,FALSE))) ->  | AA26: =IF($B26="","",IF(VLOOKUP($B26,'Athlete Input'!$B:$BZ,AA$1,FALSE)="","",VLOOKUP($B26,'Athlete Input'!$B:$BZ,AA$1,FALSE))) ->  | AB26: =IF($B26="","",IF(VLOOKUP($B26,'Athlete Input'!$B:$BZ,AB$1,FALSE)="","",VLOOKUP($B26,'Athlete Input'!$B:$BZ,AB$1,FALSE))) ->  | AC26: =IF($B26="","",IF(VLOOKUP($B26,'Athlete Input'!$B:$BZ,AC$1,FALSE)="","",VLOOKUP($B26,'Athlete Input'!$B:$BZ,AC$1,FALSE))) ->  | AD26: =IF($B26="","",IF(VLOOKUP($B26,'Athlete Input'!$B:$BZ,AD$1,FALSE)="","",VLOOKUP($B26,'Athlete Input'!$B:$BZ,AD$1,FALSE))) ->  | AE26: =IF($B26="","",IF(VLOOKUP($B26,'Athlete Input'!$B:$BZ,AE$1,FALSE)="","",VLOOKUP($B26,'Athlete Input'!$B:$BZ,AE$1,FALSE))) ->  | AF26: =IF($B26="","",IF(VLOOKUP($B26,'Athlete Input'!$B:$BZ,AF$1,FALSE)="","",VLOOKUP($B26,'Athlete Input'!$B:$BZ,AF$1,FALSE))) ->  | AG26: =IF($B26="","",IF(VLOOKUP($B26,'Athlete Input'!$B:$BZ,AG$1,FALSE)="","",VLOOKUP($B26,'Athlete Input'!$B:$BZ,AG$1,FALSE))) ->  | AH26: =IF($B26="","",IF(VLOOKUP($B26,'Athlete Input'!$B:$BZ,AH$1,FALSE)="","",VLOOKUP($B26,'Athlete Input'!$B:$BZ,AH$1,FALSE))) ->  | AI26: =IF($B26="","",IF(VLOOKUP($B26,'Athlete Input'!$B:$BZ,AI$1,FALSE)="","",VLOOKUP($B26,'Athlete Input'!$B:$BZ,AI$1,FALSE))) ->  | AJ26: =IF($B26="","",IF(VLOOKUP($B26,'Athlete Input'!$B:$BZ,AJ$1,FALSE)="","",VLOOKUP($B26,'Athlete Input'!$B:$BZ,AJ$1,FALSE))) ->  | AK26: =IF($B26="","",IF(VLOOKUP($B26,'Athlete Input'!$B:$BZ,AK$1,FALSE)="","",VLOOKUP($B26,'Athlete Input'!$B:$BZ,AK$1,FALSE))) ->  | AL26: =IF($B26="","",IF(VLOOKUP($B26,'Athlete Input'!$B:$BZ,AL$1,FALSE)="","",VLOOKUP($B26,'Athlete Input'!$B:$BZ,AL$1,FALSE))) ->  | AM26: =IF(B26="","zz",'Athlete Input'!C27) -> Murray
A27: 24 | B27: =IF('Athlete Input'!B28="","",'Athlete Input'!B28) -> Gillian Palmer | C27: =IF($B27="","",IF(VLOOKUP($B27,'Athlete Input'!$B:$AJ,C$1,FALSE)="","",VLOOKUP($B27,'Athlete Input'!$B:$AJ,C$1,FALSE))) ->  | D27: =IF($B27="","",IF(VLOOKUP($B27,'Athlete Input'!$B:$AJ,D$1,FALSE)="","",VLOOKUP($B27,'Athlete Input'!$B:$AJ,D$1,FALSE))) ->  | E27: =IF($B27="","",IF(VLOOKUP($B27,'Athlete Input'!$B:$AJ,E$1,FALSE)="","",VLOOKUP($B27,'Athlete Input'!$B:$AJ,E$1,FALSE))) ->  | F27: =IF($B27="","",IF(VLOOKUP($B27,'Athlete Input'!$B:$AJ,F$1,FALSE)="","",VLOOKUP($B27,'Athlete Input'!$B:$AJ,F$1,FALSE))) ->  | G27: =IF($B27="","",IF(VLOOKUP($B27,'Athlete Input'!$B:$AJ,G$1,FALSE)="","",VLOOKUP($B27,'Athlete Input'!$B:$AJ,G$1,FALSE))) ->  | H27: =IF($B27="","",IF(VLOOKUP($B27,'Athlete Input'!$B:$AJ,H$1,FALSE)="","",VLOOKUP($B27,'Athlete Input'!$B:$AJ,H$1,FALSE))) -> 15.5 | I27: =IF($B27="","",IF(VLOOKUP($B27,'Athlete Input'!$B:$AJ,I$1,FALSE)="","",VLOOKUP($B27,'Athlete Input'!$B:$AJ,I$1,FALSE))) ->  | J27: =IF($B27="","",IF(VLOOKUP($B27,'Athlete Input'!$B:$AJ,J$1,FALSE)="","",VLOOKUP($B27,'Athlete Input'!$B:$AJ,J$1,FALSE))) ->  | K27: =IF($B27="","",IF(VLOOKUP($B27,'Athlete Input'!$B:$AJ,K$1,FALSE)="","",VLOOKUP($B27,'Athlete Input'!$B:$AJ,K$1,FALSE))) ->  | L27: =IF($B27="","",IF(VLOOKUP($B27,'Athlete Input'!$B:$AJ,L$1,FALSE)="","",VLOOKUP($B27,'Athlete Input'!$B:$AJ,L$1,FALSE))) ->  | M27: =IF($B27="","",IF(VLOOKUP($B27,'Athlete Input'!$B:$AJ,M$1,FALSE)="","",VLOOKUP($B27,'Athlete Input'!$B:$AJ,M$1,FALSE))) ->  | N27: =IF($B27="","",IF(VLOOKUP($B27,'Athlete Input'!$B:$AJ,N$1,FALSE)="","",VLOOKUP($B27,'Athlete Input'!$B:$AJ,N$1,FALSE))) ->  | O27: =IF($B27="","",IF(VLOOKUP($B27,'Athlete Input'!$B:$AJ,O$1,FALSE)="","",VLOOKUP($B27,'Athlete Input'!$B:$AJ,O$1,FALSE))) -> 24.19 | P27: =IF($B27="","",IF(VLOOKUP($B27,'Athlete Input'!$B:$AJ,P$1,FALSE)="","",VLOOKUP($B27,'Athlete Input'!$B:$AJ,P$1,FALSE))) ->  | Q27: =IF($B27="","",IF(VLOOKUP($B27,'Athlete Input'!$B:$AJ,Q$1,FALSE)="","",VLOOKUP($B27,'Athlete Input'!$B:$AJ,Q$1,FALSE))) ->  | R27: =IF($B27="","",IF(VLOOKUP($B27,'Athlete Input'!$B:$AJ,R$1,FALSE)="","",VLOOKUP($B27,'Athlete Input'!$B:$AJ,R$1,FALSE))) ->  | S27: =IF($B27="","",IF(VLOOKUP($B27,'Athlete Input'!$B:$AJ,S$1,FALSE)="","",VLOOKUP($B27,'Athlete Input'!$B:$AJ,S$1,FALSE))) ->  | T27: =IF($B27="","",IF(VLOOKUP($B27,'Athlete Input'!$B:$AJ,T$1,FALSE)="","",VLOOKUP($B27,'Athlete Input'!$B:$AJ,T$1,FALSE))) ->  | U27: =IF($B27="","",IF(VLOOKUP($B27,'Athlete Input'!$B:$BZ,U$1,FALSE)="","",VLOOKUP($B27,'Athlete Input'!$B:$BZ,U$1,FALSE))) ->  | V27: =IF($B27="","",IF(VLOOKUP($B27,'Athlete Input'!$B:$BZ,V$1,FALSE)="","",VLOOKUP($B27,'Athlete Input'!$B:$BZ,V$1,FALSE))) ->  | W27: =IF($B27="","",IF(VLOOKUP($B27,'Athlete Input'!$B:$BZ,W$1,FALSE)="","",VLOOKUP($B27,'Athlete Input'!$B:$BZ,W$1,FALSE))) ->  | X27: =IF($B27="","",IF(VLOOKUP($B27,'Athlete Input'!$B:$BZ,X$1,FALSE)="","",VLOOKUP($B27,'Athlete Input'!$B:$BZ,X$1,FALSE))) ->  | Y27: =IF($B27="","",IF(VLOOKUP($B27,'Athlete Input'!$B:$BZ,Y$1,FALSE)="","",VLOOKUP($B27,'Athlete Input'!$B:$BZ,Y$1,FALSE))) ->  | Z27: =IF($B27="","",IF(VLOOKUP($B27,'Athlete Input'!$B:$BZ,Z$1,FALSE)="","",VLOOKUP($B27,'Athlete Input'!$B:$BZ,Z$1,FALSE))) ->  | AA27: =IF($B27="","",IF(VLOOKUP($B27,'Athlete Input'!$B:$BZ,AA$1,FALSE)="","",VLOOKUP($B27,'Athlete Input'!$B:$BZ,AA$1,FALSE))) ->  | AB27: =IF($B27="","",IF(VLOOKUP($B27,'Athlete Input'!$B:$BZ,AB$1,FALSE)="","",VLOOKUP($B27,'Athlete Input'!$B:$BZ,AB$1,FALSE))) ->  | AC27: =IF($B27="","",IF(VLOOKUP($B27,'Athlete Input'!$B:$BZ,AC$1,FALSE)="","",VLOOKUP($B27,'Athlete Input'!$B:$BZ,AC$1,FALSE))) ->  | AD27: =IF($B27="","",IF(VLOOKUP($B27,'Athlete Input'!$B:$BZ,AD$1,FALSE)="","",VLOOKUP($B27,'Athlete Input'!$B:$BZ,AD$1,FALSE))) ->  | AE27: =IF($B27="","",IF(VLOOKUP($B27,'Athlete Input'!$B:$BZ,AE$1,FALSE)="","",VLOOKUP($B27,'Athlete Input'!$B:$BZ,AE$1,FALSE))) ->  | AF27: =IF($B27="","",IF(VLOOKUP($B27,'Athlete Input'!$B:$BZ,AF$1,FALSE)="","",VLOOKUP($B27,'Athlete Input'!$B:$BZ,AF$1,FALSE))) ->  | AG27: =IF($B27="","",IF(VLOOKUP($B27,'Athlete Input'!$B:$BZ,AG$1,FALSE)="","",VLOOKUP($B27,'Athlete Input'!$B:$BZ,AG$1,FALSE))) ->  | AH27: =IF($B27="","",IF(VLOOKUP($B27,'Athlete Input'!$B:$BZ,AH$1,FALSE)="","",VLOOKUP($B27,'Athlete Input'!$B:$BZ,AH$1,FALSE))) ->  | AI27: =IF($B27="","",IF(VLOOKUP($B27,'Athlete Input'!$B:$BZ,AI$1,FALSE)="","",VLOOKUP($B27,'Athlete Input'!$B:$BZ,AI$1,FALSE))) ->  | AJ27: =IF($B27="","",IF(VLOOKUP($B27,'Athlete Input'!$B:$BZ,AJ$1,FALSE)="","",VLOOKUP($B27,'Athlete Input'!$B:$BZ,AJ$1,FALSE))) ->  | AK27: =IF($B27="","",IF(VLOOKUP($B27,'Athlete Input'!$B:$BZ,AK$1,FALSE)="","",VLOOKUP($B27,'Athlete Input'!$B:$BZ,AK$1,FALSE))) ->  | AL27: =IF($B27="","",IF(VLOOKUP($B27,'Athlete Input'!$B:$BZ,AL$1,FALSE)="","",VLOOKUP($B27,'Athlete Input'!$B:$BZ,AL$1,FALSE))) ->  | AM27: =IF(B27="","zz",'Athlete Input'!C28) -> Palmer
A28: 25 | B28: =IF('Athlete Input'!B29="","",'Athlete Input'!B29) -> Anne Peat | C28: =IF($B28="","",IF(VLOOKUP($B28,'Athlete Input'!$B:$AJ,C$1,FALSE)="","",VLOOKUP($B28,'Athlete Input'!$B:$AJ,C$1,FALSE))) ->  | D28: =IF($B28="","",IF(VLOOKUP($B28,'Athlete Input'!$B:$AJ,D$1,FALSE)="","",VLOOKUP($B28,'Athlete Input'!$B:$AJ,D$1,FALSE))) -> 18.59 | E28: =IF($B28="","",IF(VLOOKUP($B28,'Athlete Input'!$B:$AJ,E$1,FALSE)="","",VLOOKUP($B28,'Athlete Input'!$B:$AJ,E$1,FALSE))) ->  | F28: =IF($B28="","",IF(VLOOKUP($B28,'Athlete Input'!$B:$AJ,F$1,FALSE)="","",VLOOKUP($B28,'Athlete Input'!$B:$AJ,F$1,FALSE))) ->  | G28: =IF($B28="","",IF(VLOOKUP($B28,'Athlete Input'!$B:$AJ,G$1,FALSE)="","",VLOOKUP($B28,'Athlete Input'!$B:$AJ,G$1,FALSE))) ->  | H28: =IF($B28="","",IF(VLOOKUP($B28,'Athlete Input'!$B:$AJ,H$1,FALSE)="","",VLOOKUP($B28,'Athlete Input'!$B:$AJ,H$1,FALSE))) -> 18.51 | I28: =IF($B28="","",IF(VLOOKUP($B28,'Athlete Input'!$B:$AJ,I$1,FALSE)="","",VLOOKUP($B28,'Athlete Input'!$B:$AJ,I$1,FALSE))) ->  | J28: =IF($B28="","",IF(VLOOKUP($B28,'Athlete Input'!$B:$AJ,J$1,FALSE)="","",VLOOKUP($B28,'Athlete Input'!$B:$AJ,J$1,FALSE))) ->  | K28: =IF($B28="","",IF(VLOOKUP($B28,'Athlete Input'!$B:$AJ,K$1,FALSE)="","",VLOOKUP($B28,'Athlete Input'!$B:$AJ,K$1,FALSE))) ->  | L28: =IF($B28="","",IF(VLOOKUP($B28,'Athlete Input'!$B:$AJ,L$1,FALSE)="","",VLOOKUP($B28,'Athlete Input'!$B:$AJ,L$1,FALSE))) ->  | M28: =IF($B28="","",IF(VLOOKUP($B28,'Athlete Input'!$B:$AJ,M$1,FALSE)="","",VLOOKUP($B28,'Athlete Input'!$B:$AJ,M$1,FALSE))) ->  | N28: =IF($B28="","",IF(VLOOKUP($B28,'Athlete Input'!$B:$AJ,N$1,FALSE)="","",VLOOKUP($B28,'Athlete Input'!$B:$AJ,N$1,FALSE))) ->  | O28: =IF($B28="","",IF(VLOOKUP($B28,'Athlete Input'!$B:$AJ,O$1,FALSE)="","",VLOOKUP($B28,'Athlete Input'!$B:$AJ,O$1,FALSE))) ->  | P28: =IF($B28="","",IF(VLOOKUP($B28,'Athlete Input'!$B:$AJ,P$1,FALSE)="","",VLOOKUP($B28,'Athlete Input'!$B:$AJ,P$1,FALSE))) ->  | Q28: =IF($B28="","",IF(VLOOKUP($B28,'Athlete Input'!$B:$AJ,Q$1,FALSE)="","",VLOOKUP($B28,'Athlete Input'!$B:$AJ,Q$1,FALSE))) ->  | R28: =IF($B28="","",IF(VLOOKUP($B28,'Athlete Input'!$B:$AJ,R$1,FALSE)="","",VLOOKUP($B28,'Athlete Input'!$B:$AJ,R$1,FALSE))) ->  | S28: =IF($B28="","",IF(VLOOKUP($B28,'Athlete Input'!$B:$AJ,S$1,FALSE)="","",VLOOKUP($B28,'Athlete Input'!$B:$AJ,S$1,FALSE))) ->  | T28: =IF($B28="","",IF(VLOOKUP($B28,'Athlete Input'!$B:$AJ,T$1,FALSE)="","",VLOOKUP($B28,'Athlete Input'!$B:$AJ,T$1,FALSE))) ->  | U28: =IF($B28="","",IF(VLOOKUP($B28,'Athlete Input'!$B:$BZ,U$1,FALSE)="","",VLOOKUP($B28,'Athlete Input'!$B:$BZ,U$1,FALSE))) ->  | V28: =IF($B28="","",IF(VLOOKUP($B28,'Athlete Input'!$B:$BZ,V$1,FALSE)="","",VLOOKUP($B28,'Athlete Input'!$B:$BZ,V$1,FALSE))) ->  | W28: =IF($B28="","",IF(VLOOKUP($B28,'Athlete Input'!$B:$BZ,W$1,FALSE)="","",VLOOKUP($B28,'Athlete Input'!$B:$BZ,W$1,FALSE))) ->  | X28: =IF($B28="","",IF(VLOOKUP($B28,'Athlete Input'!$B:$BZ,X$1,FALSE)="","",VLOOKUP($B28,'Athlete Input'!$B:$BZ,X$1,FALSE))) ->  | Y28: =IF($B28="","",IF(VLOOKUP($B28,'Athlete Input'!$B:$BZ,Y$1,FALSE)="","",VLOOKUP($B28,'Athlete Input'!$B:$BZ,Y$1,FALSE))) ->  | Z28: =IF($B28="","",IF(VLOOKUP($B28,'Athlete Input'!$B:$BZ,Z$1,FALSE)="","",VLOOKUP($B28,'Athlete Input'!$B:$BZ,Z$1,FALSE))) ->  | AA28: =IF($B28="","",IF(VLOOKUP($B28,'Athlete Input'!$B:$BZ,AA$1,FALSE)="","",VLOOKUP($B28,'Athlete Input'!$B:$BZ,AA$1,FALSE))) ->  | AB28: =IF($B28="","",IF(VLOOKUP($B28,'Athlete Input'!$B:$BZ,AB$1,FALSE)="","",VLOOKUP($B28,'Athlete Input'!$B:$BZ,AB$1,FALSE))) ->  | AC28: =IF($B28="","",IF(VLOOKUP($B28,'Athlete Input'!$B:$BZ,AC$1,FALSE)="","",VLOOKUP($B28,'Athlete Input'!$B:$BZ,AC$1,FALSE))) ->  | AD28: =IF($B28="","",IF(VLOOKUP($B28,'Athlete Input'!$B:$BZ,AD$1,FALSE)="","",VLOOKUP($B28,'Athlete Input'!$B:$BZ,AD$1,FALSE))) ->  | AE28: =IF($B28="","",IF(VLOOKUP($B28,'Athlete Input'!$B:$BZ,AE$1,FALSE)="","",VLOOKUP($B28,'Athlete Input'!$B:$BZ,AE$1,FALSE))) ->  | AF28: =IF($B28="","",IF(VLOOKUP($B28,'Athlete Input'!$B:$BZ,AF$1,FALSE)="","",VLOOKUP($B28,'Athlete Input'!$B:$BZ,AF$1,FALSE))) ->  | AG28: =IF($B28="","",IF(VLOOKUP($B28,'Athlete Input'!$B:$BZ,AG$1,FALSE)="","",VLOOKUP($B28,'Athlete Input'!$B:$BZ,AG$1,FALSE))) ->  | AH28: =IF($B28="","",IF(VLOOKUP($B28,'Athlete Input'!$B:$BZ,AH$1,FALSE)="","",VLOOKUP($B28,'Athlete Input'!$B:$BZ,AH$1,FALSE))) ->  | AI28: =IF($B28="","",IF(VLOOKUP($B28,'Athlete Input'!$B:$BZ,AI$1,FALSE)="","",VLOOKUP($B28,'Athlete Input'!$B:$BZ,AI$1,FALSE))) ->  | AJ28: =IF($B28="","",IF(VLOOKUP($B28,'Athlete Input'!$B:$BZ,AJ$1,FALSE)="","",VLOOKUP($B28,'Athlete Input'!$B:$BZ,AJ$1,FALSE))) ->  | AK28: =IF($B28="","",IF(VLOOKUP($B28,'Athlete Input'!$B:$BZ,AK$1,FALSE)="","",VLOOKUP($B28,'Athlete Input'!$B:$BZ,AK$1,FALSE))) ->  | AL28: =IF($B28="","",IF(VLOOKUP($B28,'Athlete Input'!$B:$BZ,AL$1,FALSE)="","",VLOOKUP($B28,'Athlete Input'!$B:$BZ,AL$1,FALSE))) ->  | AM28: =IF(B28="","zz",'Athlete Input'!C29) -> Peat
A29: 26 | B29: =IF('Athlete Input'!B30="","",'Athlete Input'!B30) -> Jo Phillips | C29: =IF($B29="","",IF(VLOOKUP($B29,'Athlete Input'!$B:$AJ,C$1,FALSE)="","",VLOOKUP($B29,'Athlete Input'!$B:$AJ,C$1,FALSE))) ->  | D29: =IF($B29="","",IF(VLOOKUP($B29,'Athlete Input'!$B:$AJ,D$1,FALSE)="","",VLOOKUP($B29,'Athlete Input'!$B:$AJ,D$1,FALSE))) ->  | E29: =IF($B29="","",IF(VLOOKUP($B29,'Athlete Input'!$B:$AJ,E$1,FALSE)="","",VLOOKUP($B29,'Athlete Input'!$B:$AJ,E$1,FALSE))) ->  | F29: =IF($B29="","",IF(VLOOKUP($B29,'Athlete Input'!$B:$AJ,F$1,FALSE)="","",VLOOKUP($B29,'Athlete Input'!$B:$AJ,F$1,FALSE))) ->  | G29: =IF($B29="","",IF(VLOOKUP($B29,'Athlete Input'!$B:$AJ,G$1,FALSE)="","",VLOOKUP($B29,'Athlete Input'!$B:$AJ,G$1,FALSE))) ->  | H29: =IF($B29="","",IF(VLOOKUP($B29,'Athlete Input'!$B:$AJ,H$1,FALSE)="","",VLOOKUP($B29,'Athlete Input'!$B:$AJ,H$1,FALSE))) -> 17.38 | I29: =IF($B29="","",IF(VLOOKUP($B29,'Athlete Input'!$B:$AJ,I$1,FALSE)="","",VLOOKUP($B29,'Athlete Input'!$B:$AJ,I$1,FALSE))) ->  | J29: =IF($B29="","",IF(VLOOKUP($B29,'Athlete Input'!$B:$AJ,J$1,FALSE)="","",VLOOKUP($B29,'Athlete Input'!$B:$AJ,J$1,FALSE))) ->  | K29: =IF($B29="","",IF(VLOOKUP($B29,'Athlete Input'!$B:$AJ,K$1,FALSE)="","",VLOOKUP($B29,'Athlete Input'!$B:$AJ,K$1,FALSE))) ->  | L29: =IF($B29="","",IF(VLOOKUP($B29,'Athlete Input'!$B:$AJ,L$1,FALSE)="","",VLOOKUP($B29,'Athlete Input'!$B:$AJ,L$1,FALSE))) ->  | M29: =IF($B29="","",IF(VLOOKUP($B29,'Athlete Input'!$B:$AJ,M$1,FALSE)="","",VLOOKUP($B29,'Athlete Input'!$B:$AJ,M$1,FALSE))) -> 28.27 | N29: =IF($B29="","",IF(VLOOKUP($B29,'Athlete Input'!$B:$AJ,N$1,FALSE)="","",VLOOKUP($B29,'Athlete Input'!$B:$AJ,N$1,FALSE))) ->  | O29: =IF($B29="","",IF(VLOOKUP($B29,'Athlete Input'!$B:$AJ,O$1,FALSE)="","",VLOOKUP($B29,'Athlete Input'!$B:$AJ,O$1,FALSE))) -> 27.46 | P29: =IF($B29="","",IF(VLOOKUP($B29,'Athlete Input'!$B:$AJ,P$1,FALSE)="","",VLOOKUP($B29,'Athlete Input'!$B:$AJ,P$1,FALSE))) ->  | Q29: =IF($B29="","",IF(VLOOKUP($B29,'Athlete Input'!$B:$AJ,Q$1,FALSE)="","",VLOOKUP($B29,'Athlete Input'!$B:$AJ,Q$1,FALSE))) ->  | R29: =IF($B29="","",IF(VLOOKUP($B29,'Athlete Input'!$B:$AJ,R$1,FALSE)="","",VLOOKUP($B29,'Athlete Input'!$B:$AJ,R$1,FALSE))) ->  | S29: =IF($B29="","",IF(VLOOKUP($B29,'Athlete Input'!$B:$AJ,S$1,FALSE)="","",VLOOKUP($B29,'Athlete Input'!$B:$AJ,S$1,FALSE))) ->  | T29: =IF($B29="","",IF(VLOOKUP($B29,'Athlete Input'!$B:$AJ,T$1,FALSE)="","",VLOOKUP($B29,'Athlete Input'!$B:$AJ,T$1,FALSE))) ->  | U29: =IF($B29="","",IF(VLOOKUP($B29,'Athlete Input'!$B:$BZ,U$1,FALSE)="","",VLOOKUP($B29,'Athlete Input'!$B:$BZ,U$1,FALSE))) ->  | V29: =IF($B29="","",IF(VLOOKUP($B29,'Athlete Input'!$B:$BZ,V$1,FALSE)="","",VLOOKUP($B29,'Athlete Input'!$B:$BZ,V$1,FALSE))) ->  | W29: =IF($B29="","",IF(VLOOKUP($B29,'Athlete Input'!$B:$BZ,W$1,FALSE)="","",VLOOKUP($B29,'Athlete Input'!$B:$BZ,W$1,FALSE))) ->  | X29: =IF($B29="","",IF(VLOOKUP($B29,'Athlete Input'!$B:$BZ,X$1,FALSE)="","",VLOOKUP($B29,'Athlete Input'!$B:$BZ,X$1,FALSE))) ->  | Y29: =IF($B29="","",IF(VLOOKUP($B29,'Athlete Input'!$B:$BZ,Y$1,FALSE)="","",VLOOKUP($B29,'Athlete Input'!$B:$BZ,Y$1,FALSE))) ->  | Z29: =IF($B29="","",IF(VLOOKUP($B29,'Athlete Input'!$B:$BZ,Z$1,FALSE)="","",VLOOKUP($B29,'Athlete Input'!$B:$BZ,Z$1,FALSE))) ->  | AA29: =IF($B29="","",IF(VLOOKUP($B29,'Athlete Input'!$B:$BZ,AA$1,FALSE)="","",VLOOKUP($B29,'Athlete Input'!$B:$BZ,AA$1,FALSE))) ->  | AB29: =IF($B29="","",IF(VLOOKUP($B29,'Athlete Input'!$B:$BZ,AB$1,FALSE)="","",VLOOKUP($B29,'Athlete Input'!$B:$BZ,AB$1,FALSE))) ->  | AC29: =IF($B29="","",IF(VLOOKUP($B29,'Athlete Input'!$B:$BZ,AC$1,FALSE)="","",VLOOKUP($B29,'Athlete Input'!$B:$BZ,AC$1,FALSE))) ->  | AD29: =IF($B29="","",IF(VLOOKUP($B29,'Athlete Input'!$B:$BZ,AD$1,FALSE)="","",VLOOKUP($B29,'Athlete Input'!$B:$BZ,AD$1,FALSE))) ->  | AE29: =IF($B29="","",IF(VLOOKUP($B29,'Athlete Input'!$B:$BZ,AE$1,FALSE)="","",VLOOKUP($B29,'Athlete Input'!$B:$BZ,AE$1,FALSE))) ->  | AF29: =IF($B29="","",IF(VLOOKUP($B29,'Athlete Input'!$B:$BZ,AF$1,FALSE)="","",VLOOKUP($B29,'Athlete Input'!$B:$BZ,AF$1,FALSE))) ->  | AG29: =IF($B29="","",IF(VLOOKUP($B29,'Athlete Input'!$B:$BZ,AG$1,FALSE)="","",VLOOKUP($B29,'Athlete Input'!$B:$BZ,AG$1,FALSE))) ->  | AH29: =IF($B29="","",IF(VLOOKUP($B29,'Athlete Input'!$B:$BZ,AH$1,FALSE)="","",VLOOKUP($B29,'Athlete Input'!$B:$BZ,AH$1,FALSE))) ->  | AI29: =IF($B29="","",IF(VLOOKUP($B29,'Athlete Input'!$B:$BZ,AI$1,FALSE)="","",VLOOKUP($B29,'Athlete Input'!$B:$BZ,AI$1,FALSE))) ->  | AJ29: =IF($B29="","",IF(VLOOKUP($B29,'Athlete Input'!$B:$BZ,AJ$1,FALSE)="","",VLOOKUP($B29,'Athlete Input'!$B:$BZ,AJ$1,FALSE))) ->  | AK29: =IF($B29="","",IF(VLOOKUP($B29,'Athlete Input'!$B:$BZ,AK$1,FALSE)="","",VLOOKUP($B29,'Athlete Input'!$B:$BZ,AK$1,FALSE))) ->  | AL29: =IF($B29="","",IF(VLOOKUP($B29,'Athlete Input'!$B:$BZ,AL$1,FALSE)="","",VLOOKUP($B29,'Athlete Input'!$B:$BZ,AL$1,FALSE))) ->  | AM29: =IF(B29="","zz",'Athlete Input'!C30) -> Phillips
A30: 27 | B30: =IF('Athlete Input'!B31="","",'Athlete Input'!B31) -> Sharyn Ramage | C30: =IF($B30="","",IF(VLOOKUP($B30,'Athlete Input'!$B:$AJ,C$1,FALSE)="","",VLOOKUP($B30,'Athlete Input'!$B:$AJ,C$1,FALSE))) -> 18.37 | D30: =IF($B30="","",IF(VLOOKUP($B30,'Athlete Input'!$B:$AJ,D$1,FALSE)="","",VLOOKUP($B30,'Athlete Input'!$B:$AJ,D$1,FALSE))) -> 18.4 | E30: =IF($B30="","",IF(VLOOKUP($B30,'Athlete Input'!$B:$AJ,E$1,FALSE)="","",VLOOKUP($B30,'Athlete Input'!$B:$AJ,E$1,FALSE))) -> 27.13 | F30: =IF($B30="","",IF(VLOOKUP($B30,'Athlete Input'!$B:$AJ,F$1,FALSE)="","",VLOOKUP($B30,'Athlete Input'!$B:$AJ,F$1,FALSE))) -> 26.39 | G30: =IF($B30="","",IF(VLOOKUP($B30,'Athlete Input'!$B:$AJ,G$1,FALSE)="","",VLOOKUP($B30,'Athlete Input'!$B:$AJ,G$1,FALSE))) -> 18.22 | H30: =IF($B30="","",IF(VLOOKUP($B30,'Athlete Input'!$B:$AJ,H$1,FALSE)="","",VLOOKUP($B30,'Athlete Input'!$B:$AJ,H$1,FALSE))) -> 18.58 | I30: =IF($B30="","",IF(VLOOKUP($B30,'Athlete Input'!$B:$AJ,I$1,FALSE)="","",VLOOKUP($B30,'Athlete Input'!$B:$AJ,I$1,FALSE))) ->  | J30: =IF($B30="","",IF(VLOOKUP($B30,'Athlete Input'!$B:$AJ,J$1,FALSE)="","",VLOOKUP($B30,'Athlete Input'!$B:$AJ,J$1,FALSE))) ->  | K30: =IF($B30="","",IF(VLOOKUP($B30,'Athlete Input'!$B:$AJ,K$1,FALSE)="","",VLOOKUP($B30,'Athlete Input'!$B:$AJ,K$1,FALSE))) ->  | L30: =IF($B30="","",IF(VLOOKUP($B30,'Athlete Input'!$B:$AJ,L$1,FALSE)="","",VLOOKUP($B30,'Athlete Input'!$B:$AJ,L$1,FALSE))) ->  | M30: =IF($B30="","",IF(VLOOKUP($B30,'Athlete Input'!$B:$AJ,M$1,FALSE)="","",VLOOKUP($B30,'Athlete Input'!$B:$AJ,M$1,FALSE))) ->  | N30: =IF($B30="","",IF(VLOOKUP($B30,'Athlete Input'!$B:$AJ,N$1,FALSE)="","",VLOOKUP($B30,'Athlete Input'!$B:$AJ,N$1,FALSE))) -> 28.31 | O30: =IF($B30="","",IF(VLOOKUP($B30,'Athlete Input'!$B:$AJ,O$1,FALSE)="","",VLOOKUP($B30,'Athlete Input'!$B:$AJ,O$1,FALSE))) -> 30.21 | P30: =IF($B30="","",IF(VLOOKUP($B30,'Athlete Input'!$B:$AJ,P$1,FALSE)="","",VLOOKUP($B30,'Athlete Input'!$B:$AJ,P$1,FALSE))) -> 29.45 | Q30: =IF($B30="","",IF(VLOOKUP($B30,'Athlete Input'!$B:$AJ,Q$1,FALSE)="","",VLOOKUP($B30,'Athlete Input'!$B:$AJ,Q$1,FALSE))) ->  | R30: =IF($B30="","",IF(VLOOKUP($B30,'Athlete Input'!$B:$AJ,R$1,FALSE)="","",VLOOKUP($B30,'Athlete Input'!$B:$AJ,R$1,FALSE))) ->  | S30: =IF($B30="","",IF(VLOOKUP($B30,'Athlete Input'!$B:$AJ,S$1,FALSE)="","",VLOOKUP($B30,'Athlete Input'!$B:$AJ,S$1,FALSE))) ->  | T30: =IF($B30="","",IF(VLOOKUP($B30,'Athlete Input'!$B:$AJ,T$1,FALSE)="","",VLOOKUP($B30,'Athlete Input'!$B:$AJ,T$1,FALSE))) ->  | U30: =IF($B30="","",IF(VLOOKUP($B30,'Athlete Input'!$B:$BZ,U$1,FALSE)="","",VLOOKUP($B30,'Athlete Input'!$B:$BZ,U$1,FALSE))) ->  | V30: =IF($B30="","",IF(VLOOKUP($B30,'Athlete Input'!$B:$BZ,V$1,FALSE)="","",VLOOKUP($B30,'Athlete Input'!$B:$BZ,V$1,FALSE))) ->  | W30: =IF($B30="","",IF(VLOOKUP($B30,'Athlete Input'!$B:$BZ,W$1,FALSE)="","",VLOOKUP($B30,'Athlete Input'!$B:$BZ,W$1,FALSE))) ->  | X30: =IF($B30="","",IF(VLOOKUP($B30,'Athlete Input'!$B:$BZ,X$1,FALSE)="","",VLOOKUP($B30,'Athlete Input'!$B:$BZ,X$1,FALSE))) ->  | Y30: =IF($B30="","",IF(VLOOKUP($B30,'Athlete Input'!$B:$BZ,Y$1,FALSE)="","",VLOOKUP($B30,'Athlete Input'!$B:$BZ,Y$1,FALSE))) ->  | Z30: =IF($B30="","",IF(VLOOKUP($B30,'Athlete Input'!$B:$BZ,Z$1,FALSE)="","",VLOOKUP($B30,'Athlete Input'!$B:$BZ,Z$1,FALSE))) ->  | AA30: =IF($B30="","",IF(VLOOKUP($B30,'Athlete Input'!$B:$BZ,AA$1,FALSE)="","",VLOOKUP($B30,'Athlete Input'!$B:$BZ,AA$1,FALSE))) ->  | AB30: =IF($B30="","",IF(VLOOKUP($B30,'Athlete Input'!$B:$BZ,AB$1,FALSE)="","",VLOOKUP($B30,'Athlete Input'!$B:$BZ,AB$1,FALSE))) ->  | AC30: =IF($B30="","",IF(VLOOKUP($B30,'Athlete Input'!$B:$BZ,AC$1,FALSE)="","",VLOOKUP($B30,'Athlete Input'!$B:$BZ,AC$1,FALSE))) ->  | AD30: =IF($B30="","",IF(VLOOKUP($B30,'Athlete Input'!$B:$BZ,AD$1,FALSE)="","",VLOOKUP($B30,'Athlete Input'!$B:$BZ,AD$1,FALSE))) ->  | AE30: =IF($B30="","",IF(VLOOKUP($B30,'Athlete Input'!$B:$BZ,AE$1,FALSE)="","",VLOOKUP($B30,'Athlete Input'!$B:$BZ,AE$1,FALSE))) ->  | AF30: =IF($B30="","",IF(VLOOKUP($B30,'Athlete Input'!$B:$BZ,AF$1,FALSE)="","",VLOOKUP($B30,'Athlete Input'!$B:$BZ,AF$1,FALSE))) ->  | AG30: =IF($B30="","",IF(VLOOKUP($B30,'Athlete Input'!$B:$BZ,AG$1,FALSE)="","",VLOOKUP($B30,'Athlete Input'!$B:$BZ,AG$1,FALSE))) ->  | AH30: =IF($B30="","",IF(VLOOKUP($B30,'Athlete Input'!$B:$BZ,AH$1,FALSE)="","",VLOOKUP($B30,'Athlete Input'!$B:$BZ,AH$1,FALSE))) ->  | AI30: =IF($B30="","",IF(VLOOKUP($B30,'Athlete Input'!$B:$BZ,AI$1,FALSE)="","",VLOOKUP($B30,'Athlete Input'!$B:$BZ,AI$1,FALSE))) ->  | AJ30: =IF($B30="","",IF(VLOOKUP($B30,'Athlete Input'!$B:$BZ,AJ$1,FALSE)="","",VLOOKUP($B30,'Athlete Input'!$B:$BZ,AJ$1,FALSE))) ->  | AK30: =IF($B30="","",IF(VLOOKUP($B30,'Athlete Input'!$B:$BZ,AK$1,FALSE)="","",VLOOKUP($B30,'Athlete Input'!$B:$BZ,AK$1,FALSE))) ->  | AL30: =IF($B30="","",IF(VLOOKUP($B30,'Athlete Input'!$B:$BZ,AL$1,FALSE)="","",VLOOKUP($B30,'Athlete Input'!$B:$BZ,AL$1,FALSE))) ->  | AM30: =IF(B30="","zz",'Athlete Input'!C31) -> Ramage
A31: 28 | B31: =IF('Athlete Input'!B32="","",'Athlete Input'!B32) -> Susan Ridley | C31: =IF($B31="","",IF(VLOOKUP($B31,'Athlete Input'!$B:$AJ,C$1,FALSE)="","",VLOOKUP($B31,'Athlete Input'!$B:$AJ,C$1,FALSE))) -> 16.38 | D31: =IF($B31="","",IF(VLOOKUP($B31,'Athlete Input'!$B:$AJ,D$1,FALSE)="","",VLOOKUP($B31,'Athlete Input'!$B:$AJ,D$1,FALSE))) -> 16.21 | E31: =IF($B31="","",IF(VLOOKUP($B31,'Athlete Input'!$B:$AJ,E$1,FALSE)="","",VLOOKUP($B31,'Athlete Input'!$B:$AJ,E$1,FALSE))) ->  | F31: =IF($B31="","",IF(VLOOKUP($B31,'Athlete Input'!$B:$AJ,F$1,FALSE)="","",VLOOKUP($B31,'Athlete Input'!$B:$AJ,F$1,FALSE))) ->  | G31: =IF($B31="","",IF(VLOOKUP($B31,'Athlete Input'!$B:$AJ,G$1,FALSE)="","",VLOOKUP($B31,'Athlete Input'!$B:$AJ,G$1,FALSE))) ->  | H31: =IF($B31="","",IF(VLOOKUP($B31,'Athlete Input'!$B:$AJ,H$1,FALSE)="","",VLOOKUP($B31,'Athlete Input'!$B:$AJ,H$1,FALSE))) ->  | I31: =IF($B31="","",IF(VLOOKUP($B31,'Athlete Input'!$B:$AJ,I$1,FALSE)="","",VLOOKUP($B31,'Athlete Input'!$B:$AJ,I$1,FALSE))) -> 26.49 | J31: =IF($B31="","",IF(VLOOKUP($B31,'Athlete Input'!$B:$AJ,J$1,FALSE)="","",VLOOKUP($B31,'Athlete Input'!$B:$AJ,J$1,FALSE))) -> 25.51 | K31: =IF($B31="","",IF(VLOOKUP($B31,'Athlete Input'!$B:$AJ,K$1,FALSE)="","",VLOOKUP($B31,'Athlete Input'!$B:$AJ,K$1,FALSE))) ->  | L31: =IF($B31="","",IF(VLOOKUP($B31,'Athlete Input'!$B:$AJ,L$1,FALSE)="","",VLOOKUP($B31,'Athlete Input'!$B:$AJ,L$1,FALSE))) ->  | M31: =IF($B31="","",IF(VLOOKUP($B31,'Athlete Input'!$B:$AJ,M$1,FALSE)="","",VLOOKUP($B31,'Athlete Input'!$B:$AJ,M$1,FALSE))) ->  | N31: =IF($B31="","",IF(VLOOKUP($B31,'Athlete Input'!$B:$AJ,N$1,FALSE)="","",VLOOKUP($B31,'Athlete Input'!$B:$AJ,N$1,FALSE))) ->  | O31: =IF($B31="","",IF(VLOOKUP($B31,'Athlete Input'!$B:$AJ,O$1,FALSE)="","",VLOOKUP($B31,'Athlete Input'!$B:$AJ,O$1,FALSE))) ->  | P31: =IF($B31="","",IF(VLOOKUP($B31,'Athlete Input'!$B:$AJ,P$1,FALSE)="","",VLOOKUP($B31,'Athlete Input'!$B:$AJ,P$1,FALSE))) ->  | Q31: =IF($B31="","",IF(VLOOKUP($B31,'Athlete Input'!$B:$AJ,Q$1,FALSE)="","",VLOOKUP($B31,'Athlete Input'!$B:$AJ,Q$1,FALSE))) ->  | R31: =IF($B31="","",IF(VLOOKUP($B31,'Athlete Input'!$B:$AJ,R$1,FALSE)="","",VLOOKUP($B31,'Athlete Input'!$B:$AJ,R$1,FALSE))) ->  | S31: =IF($B31="","",IF(VLOOKUP($B31,'Athlete Input'!$B:$AJ,S$1,FALSE)="","",VLOOKUP($B31,'Athlete Input'!$B:$AJ,S$1,FALSE))) ->  | T31: =IF($B31="","",IF(VLOOKUP($B31,'Athlete Input'!$B:$AJ,T$1,FALSE)="","",VLOOKUP($B31,'Athlete Input'!$B:$AJ,T$1,FALSE))) ->  | U31: =IF($B31="","",IF(VLOOKUP($B31,'Athlete Input'!$B:$BZ,U$1,FALSE)="","",VLOOKUP($B31,'Athlete Input'!$B:$BZ,U$1,FALSE))) ->  | V31: =IF($B31="","",IF(VLOOKUP($B31,'Athlete Input'!$B:$BZ,V$1,FALSE)="","",VLOOKUP($B31,'Athlete Input'!$B:$BZ,V$1,FALSE))) ->  | W31: =IF($B31="","",IF(VLOOKUP($B31,'Athlete Input'!$B:$BZ,W$1,FALSE)="","",VLOOKUP($B31,'Athlete Input'!$B:$BZ,W$1,FALSE))) ->  | X31: =IF($B31="","",IF(VLOOKUP($B31,'Athlete Input'!$B:$BZ,X$1,FALSE)="","",VLOOKUP($B31,'Athlete Input'!$B:$BZ,X$1,FALSE))) ->  | Y31: =IF($B31="","",IF(VLOOKUP($B31,'Athlete Input'!$B:$BZ,Y$1,FALSE)="","",VLOOKUP($B31,'Athlete Input'!$B:$BZ,Y$1,FALSE))) ->  | Z31: =IF($B31="","",IF(VLOOKUP($B31,'Athlete Input'!$B:$BZ,Z$1,FALSE)="","",VLOOKUP($B31,'Athlete Input'!$B:$BZ,Z$1,FALSE))) ->  | AA31: =IF($B31="","",IF(VLOOKUP($B31,'Athlete Input'!$B:$BZ,AA$1,FALSE)="","",VLOOKUP($B31,'Athlete Input'!$B:$BZ,AA$1,FALSE))) ->  | AB31: =IF($B31="","",IF(VLOOKUP($B31,'Athlete Input'!$B:$BZ,AB$1,FALSE)="","",VLOOKUP($B31,'Athlete Input'!$B:$BZ,AB$1,FALSE))) ->  | AC31: =IF($B31="","",IF(VLOOKUP($B31,'Athlete Input'!$B:$BZ,AC$1,FALSE)="","",VLOOKUP($B31,'Athlete Input'!$B:$BZ,AC$1,FALSE))) ->  | AD31: =IF($B31="","",IF(VLOOKUP($B31,'Athlete Input'!$B:$BZ,AD$1,FALSE)="","",VLOOKUP($B31,'Athlete Input'!$B:$BZ,AD$1,FALSE))) ->  | AE31: =IF($B31="","",IF(VLOOKUP($B31,'Athlete Input'!$B:$BZ,AE$1,FALSE)="","",VLOOKUP($B31,'Athlete Input'!$B:$BZ,AE$1,FALSE))) ->  | AF31: =IF($B31="","",IF(VLOOKUP($B31,'Athlete Input'!$B:$BZ,AF$1,FALSE)="","",VLOOKUP($B31,'Athlete Input'!$B:$BZ,AF$1,FALSE))) ->  | AG31: =IF($B31="","",IF(VLOOKUP($B31,'Athlete Input'!$B:$BZ,AG$1,FALSE)="","",VLOOKUP($B31,'Athlete Input'!$B:$BZ,AG$1,FALSE))) ->  | AH31: =IF($B31="","",IF(VLOOKUP($B31,'Athlete Input'!$B:$BZ,AH$1,FALSE)="","",VLOOKUP($B31,'Athlete Input'!$B:$BZ,AH$1,FALSE))) ->  | AI31: =IF($B31="","",IF(VLOOKUP($B31,'Athlete Input'!$B:$BZ,AI$1,FALSE)="","",VLOOKUP($B31,'Athlete Input'!$B:$BZ,AI$1,FALSE))) ->  | AJ31: =IF($B31="","",IF(VLOOKUP($B31,'Athlete Input'!$B:$BZ,AJ$1,FALSE)="","",VLOOKUP($B31,'Athlete Input'!$B:$BZ,AJ$1,FALSE))) ->  | AK31: =IF($B31="","",IF(VLOOKUP($B31,'Athlete Input'!$B:$BZ,AK$1,FALSE)="","",VLOOKUP($B31,'Athlete Input'!$B:$BZ,AK$1,FALSE))) ->  | AL31: =IF($B31="","",IF(VLOOKUP($B31,'Athlete Input'!$B:$BZ,AL$1,FALSE)="","",VLOOKUP($B31,'Athlete Input'!$B:$BZ,AL$1,FALSE))) ->  | AM31: =IF(B31="","zz",'Athlete Input'!C32) -> Ridley
A32: 29 | B32: =IF('Athlete Input'!B33="","",'Athlete Input'!B33) -> Lauren Stoddart | C32: =IF($B32="","",IF(VLOOKUP($B32,'Athlete Input'!$B:$AJ,C$1,FALSE)="","",VLOOKUP($B32,'Athlete Input'!$B:$AJ,C$1,FALSE))) -> 15.49 | D32: =IF($B32="","",IF(VLOOKUP($B32,'Athlete Input'!$B:$AJ,D$1,FALSE)="","",VLOOKUP($B32,'Athlete Input'!$B:$AJ,D$1,FALSE))) -> 16.48 | E32: =IF($B32="","",IF(VLOOKUP($B32,'Athlete Input'!$B:$AJ,E$1,FALSE)="","",VLOOKUP($B32,'Athlete Input'!$B:$AJ,E$1,FALSE))) ->  | F32: =IF($B32="","",IF(VLOOKUP($B32,'Athlete Input'!$B:$AJ,F$1,FALSE)="","",VLOOKUP($B32,'Athlete Input'!$B:$AJ,F$1,FALSE))) -> 24.05 | G32: =IF($B32="","",IF(VLOOKUP($B32,'Athlete Input'!$B:$AJ,G$1,FALSE)="","",VLOOKUP($B32,'Athlete Input'!$B:$AJ,G$1,FALSE))) -> 15.42 | H32: =IF($B32="","",IF(VLOOKUP($B32,'Athlete Input'!$B:$AJ,H$1,FALSE)="","",VLOOKUP($B32,'Athlete Input'!$B:$AJ,H$1,FALSE))) -> 16.19 | I32: =IF($B32="","",IF(VLOOKUP($B32,'Athlete Input'!$B:$AJ,I$1,FALSE)="","",VLOOKUP($B32,'Athlete Input'!$B:$AJ,I$1,FALSE))) ->  | J32: =IF($B32="","",IF(VLOOKUP($B32,'Athlete Input'!$B:$AJ,J$1,FALSE)="","",VLOOKUP($B32,'Athlete Input'!$B:$AJ,J$1,FALSE))) ->  | K32: =IF($B32="","",IF(VLOOKUP($B32,'Athlete Input'!$B:$AJ,K$1,FALSE)="","",VLOOKUP($B32,'Athlete Input'!$B:$AJ,K$1,FALSE))) ->  | L32: =IF($B32="","",IF(VLOOKUP($B32,'Athlete Input'!$B:$AJ,L$1,FALSE)="","",VLOOKUP($B32,'Athlete Input'!$B:$AJ,L$1,FALSE))) ->  | M32: =IF($B32="","",IF(VLOOKUP($B32,'Athlete Input'!$B:$AJ,M$1,FALSE)="","",VLOOKUP($B32,'Athlete Input'!$B:$AJ,M$1,FALSE))) ->  | N32: =IF($B32="","",IF(VLOOKUP($B32,'Athlete Input'!$B:$AJ,N$1,FALSE)="","",VLOOKUP($B32,'Athlete Input'!$B:$AJ,N$1,FALSE))) ->  | O32: =IF($B32="","",IF(VLOOKUP($B32,'Athlete Input'!$B:$AJ,O$1,FALSE)="","",VLOOKUP($B32,'Athlete Input'!$B:$AJ,O$1,FALSE))) -> 25.3 | P32: =IF($B32="","",IF(VLOOKUP($B32,'Athlete Input'!$B:$AJ,P$1,FALSE)="","",VLOOKUP($B32,'Athlete Input'!$B:$AJ,P$1,FALSE))) -> 26.35 | Q32: =IF($B32="","",IF(VLOOKUP($B32,'Athlete Input'!$B:$AJ,Q$1,FALSE)="","",VLOOKUP($B32,'Athlete Input'!$B:$AJ,Q$1,FALSE))) ->  | R32: =IF($B32="","",IF(VLOOKUP($B32,'Athlete Input'!$B:$AJ,R$1,FALSE)="","",VLOOKUP($B32,'Athlete Input'!$B:$AJ,R$1,FALSE))) ->  | S32: =IF($B32="","",IF(VLOOKUP($B32,'Athlete Input'!$B:$AJ,S$1,FALSE)="","",VLOOKUP($B32,'Athlete Input'!$B:$AJ,S$1,FALSE))) ->  | T32: =IF($B32="","",IF(VLOOKUP($B32,'Athlete Input'!$B:$AJ,T$1,FALSE)="","",VLOOKUP($B32,'Athlete Input'!$B:$AJ,T$1,FALSE))) ->  | U32: =IF($B32="","",IF(VLOOKUP($B32,'Athlete Input'!$B:$BZ,U$1,FALSE)="","",VLOOKUP($B32,'Athlete Input'!$B:$BZ,U$1,FALSE))) ->  | V32: =IF($B32="","",IF(VLOOKUP($B32,'Athlete Input'!$B:$BZ,V$1,FALSE)="","",VLOOKUP($B32,'Athlete Input'!$B:$BZ,V$1,FALSE))) ->  | W32: =IF($B32="","",IF(VLOOKUP($B32,'Athlete Input'!$B:$BZ,W$1,FALSE)="","",VLOOKUP($B32,'Athlete Input'!$B:$BZ,W$1,FALSE))) ->  | X32: =IF($B32="","",IF(VLOOKUP($B32,'Athlete Input'!$B:$BZ,X$1,FALSE)="","",VLOOKUP($B32,'Athlete Input'!$B:$BZ,X$1,FALSE))) ->  | Y32: =IF($B32="","",IF(VLOOKUP($B32,'Athlete Input'!$B:$BZ,Y$1,FALSE)="","",VLOOKUP($B32,'Athlete Input'!$B:$BZ,Y$1,FALSE))) ->  | Z32: =IF($B32="","",IF(VLOOKUP($B32,'Athlete Input'!$B:$BZ,Z$1,FALSE)="","",VLOOKUP($B32,'Athlete Input'!$B:$BZ,Z$1,FALSE))) ->  | AA32: =IF($B32="","",IF(VLOOKUP($B32,'Athlete Input'!$B:$BZ,AA$1,FALSE)="","",VLOOKUP($B32,'Athlete Input'!$B:$BZ,AA$1,FALSE))) ->  | AB32: =IF($B32="","",IF(VLOOKUP($B32,'Athlete Input'!$B:$BZ,AB$1,FALSE)="","",VLOOKUP($B32,'Athlete Input'!$B:$BZ,AB$1,FALSE))) ->  | AC32: =IF($B32="","",IF(VLOOKUP($B32,'Athlete Input'!$B:$BZ,AC$1,FALSE)="","",VLOOKUP($B32,'Athlete Input'!$B:$BZ,AC$1,FALSE))) ->  | AD32: =IF($B32="","",IF(VLOOKUP($B32,'Athlete Input'!$B:$BZ,AD$1,FALSE)="","",VLOOKUP($B32,'Athlete Input'!$B:$BZ,AD$1,FALSE))) ->  | AE32: =IF($B32="","",IF(VLOOKUP($B32,'Athlete Input'!$B:$BZ,AE$1,FALSE)="","",VLOOKUP($B32,'Athlete Input'!$B:$BZ,AE$1,FALSE))) ->  | AF32: =IF($B32="","",IF(VLOOKUP($B32,'Athlete Input'!$B:$BZ,AF$1,FALSE)="","",VLOOKUP($B32,'Athlete Input'!$B:$BZ,AF$1,FALSE))) ->  | AG32: =IF($B32="","",IF(VLOOKUP($B32,'Athlete Input'!$B:$BZ,AG$1,FALSE)="","",VLOOKUP($B32,'Athlete Input'!$B:$BZ,AG$1,FALSE))) ->  | AH32: =IF($B32="","",IF(VLOOKUP($B32,'Athlete Input'!$B:$BZ,AH$1,FALSE)="","",VLOOKUP($B32,'Athlete Input'!$B:$BZ,AH$1,FALSE))) ->  | AI32: =IF($B32="","",IF(VLOOKUP($B32,'Athlete Input'!$B:$BZ,AI$1,FALSE)="","",VLOOKUP($B32,'Athlete Input'!$B:$BZ,AI$1,FALSE))) ->  | AJ32: =IF($B32="","",IF(VLOOKUP($B32,'Athlete Input'!$B:$BZ,AJ$1,FALSE)="","",VLOOKUP($B32,'Athlete Input'!$B:$BZ,AJ$1,FALSE))) ->  | AK32: =IF($B32="","",IF(VLOOKUP($B32,'Athlete Input'!$B:$BZ,AK$1,FALSE)="","",VLOOKUP($B32,'Athlete Input'!$B:$BZ,AK$1,FALSE))) ->  | AL32: =IF($B32="","",IF(VLOOKUP($B32,'Athlete Input'!$B:$BZ,AL$1,FALSE)="","",VLOOKUP($B32,'Athlete Input'!$B:$BZ,AL$1,FALSE))) ->  | AM32: =IF(B32="","zz",'Athlete Input'!C33) -> Stoddart
A33: 30 | B33: =IF('Athlete Input'!B78="","",'Athlete Input'!B78) ->  | C33: =IF($B33="","",IF(VLOOKUP($B33,'Athlete Input'!$B:$AJ,C$1,FALSE)="","",VLOOKUP($B33,'Athlete Input'!$B:$AJ,C$1,FALSE))) ->  | D33: =IF($B33="","",IF(VLOOKUP($B33,'Athlete Input'!$B:$AJ,D$1,FALSE)="","",VLOOKUP($B33,'Athlete Input'!$B:$AJ,D$1,FALSE))) ->  | E33: =IF($B33="","",IF(VLOOKUP($B33,'Athlete Input'!$B:$AJ,E$1,FALSE)="","",VLOOKUP($B33,'Athlete Input'!$B:$AJ,E$1,FALSE))) ->  | F33: =IF($B33="","",IF(VLOOKUP($B33,'Athlete Input'!$B:$AJ,F$1,FALSE)="","",VLOOKUP($B33,'Athlete Input'!$B:$AJ,F$1,FALSE))) ->  | G33: =IF($B33="","",IF(VLOOKUP($B33,'Athlete Input'!$B:$AJ,G$1,FALSE)="","",VLOOKUP($B33,'Athlete Input'!$B:$AJ,G$1,FALSE))) ->  | H33: =IF($B33="","",IF(VLOOKUP($B33,'Athlete Input'!$B:$AJ,H$1,FALSE)="","",VLOOKUP($B33,'Athlete Input'!$B:$AJ,H$1,FALSE))) ->  | I33: =IF($B33="","",IF(VLOOKUP($B33,'Athlete Input'!$B:$AJ,I$1,FALSE)="","",VLOOKUP($B33,'Athlete Input'!$B:$AJ,I$1,FALSE))) ->  | J33: =IF($B33="","",IF(VLOOKUP($B33,'Athlete Input'!$B:$AJ,J$1,FALSE)="","",VLOOKUP($B33,'Athlete Input'!$B:$AJ,J$1,FALSE))) ->  | K33: =IF($B33="","",IF(VLOOKUP($B33,'Athlete Input'!$B:$AJ,K$1,FALSE)="","",VLOOKUP($B33,'Athlete Input'!$B:$AJ,K$1,FALSE))) ->  | L33: =IF($B33="","",IF(VLOOKUP($B33,'Athlete Input'!$B:$AJ,L$1,FALSE)="","",VLOOKUP($B33,'Athlete Input'!$B:$AJ,L$1,FALSE))) ->  | M33: =IF($B33="","",IF(VLOOKUP($B33,'Athlete Input'!$B:$AJ,M$1,FALSE)="","",VLOOKUP($B33,'Athlete Input'!$B:$AJ,M$1,FALSE))) ->  | N33: =IF($B33="","",IF(VLOOKUP($B33,'Athlete Input'!$B:$AJ,N$1,FALSE)="","",VLOOKUP($B33,'Athlete Input'!$B:$AJ,N$1,FALSE))) ->  | O33: =IF($B33="","",IF(VLOOKUP($B33,'Athlete Input'!$B:$AJ,O$1,FALSE)="","",VLOOKUP($B33,'Athlete Input'!$B:$AJ,O$1,FALSE))) ->  | P33: =IF($B33="","",IF(VLOOKUP($B33,'Athlete Input'!$B:$AJ,P$1,FALSE)="","",VLOOKUP($B33,'Athlete Input'!$B:$AJ,P$1,FALSE))) ->  | Q33: =IF($B33="","",IF(VLOOKUP($B33,'Athlete Input'!$B:$AJ,Q$1,FALSE)="","",VLOOKUP($B33,'Athlete Input'!$B:$AJ,Q$1,FALSE))) ->  | R33: =IF($B33="","",IF(VLOOKUP($B33,'Athlete Input'!$B:$AJ,R$1,FALSE)="","",VLOOKUP($B33,'Athlete Input'!$B:$AJ,R$1,FALSE))) ->  | S33: =IF($B33="","",IF(VLOOKUP($B33,'Athlete Input'!$B:$AJ,S$1,FALSE)="","",VLOOKUP($B33,'Athlete Input'!$B:$AJ,S$1,FALSE))) ->  | T33: =IF($B33="","",IF(VLOOKUP($B33,'Athlete Input'!$B:$AJ,T$1,FALSE)="","",VLOOKUP($B33,'Athlete Input'!$B:$AJ,T$1,FALSE))) ->  | U33: =IF($B33="","",IF(VLOOKUP($B33,'Athlete Input'!$B:$BZ,U$1,FALSE)="","",VLOOKUP($B33,'Athlete Input'!$B:$BZ,U$1,FALSE))) ->  | V33: =IF($B33="","",IF(VLOOKUP($B33,'Athlete Input'!$B:$BZ,V$1,FALSE)="","",VLOOKUP($B33,'Athlete Input'!$B:$BZ,V$1,FALSE))) ->  | W33: =IF($B33="","",IF(VLOOKUP($B33,'Athlete Input'!$B:$BZ,W$1,FALSE)="","",VLOOKUP($B33,'Athlete Input'!$B:$BZ,W$1,FALSE))) ->  | X33: =IF($B33="","",IF(VLOOKUP($B33,'Athlete Input'!$B:$BZ,X$1,FALSE)="","",VLOOKUP($B33,'Athlete Input'!$B:$BZ,X$1,FALSE))) ->  | Y33: =IF($B33="","",IF(VLOOKUP($B33,'Athlete Input'!$B:$BZ,Y$1,FALSE)="","",VLOOKUP($B33,'Athlete Input'!$B:$BZ,Y$1,FALSE))) ->  | Z33: =IF($B33="","",IF(VLOOKUP($B33,'Athlete Input'!$B:$BZ,Z$1,FALSE)="","",VLOOKUP($B33,'Athlete Input'!$B:$BZ,Z$1,FALSE))) ->  | AA33: =IF($B33="","",IF(VLOOKUP($B33,'Athlete Input'!$B:$BZ,AA$1,FALSE)="","",VLOOKUP($B33,'Athlete Input'!$B:$BZ,AA$1,FALSE))) ->  | AB33: =IF($B33="","",IF(VLOOKUP($B33,'Athlete Input'!$B:$BZ,AB$1,FALSE)="","",VLOOKUP($B33,'Athlete Input'!$B:$BZ,AB$1,FALSE))) ->  | AC33: =IF($B33="","",IF(VLOOKUP($B33,'Athlete Input'!$B:$BZ,AC$1,FALSE)="","",VLOOKUP($B33,'Athlete Input'!$B:$BZ,AC$1,FALSE))) ->  | AD33: =IF($B33="","",IF(VLOOKUP($B33,'Athlete Input'!$B:$BZ,AD$1,FALSE)="","",VLOOKUP($B33,'Athlete Input'!$B:$BZ,AD$1,FALSE))) ->  | AE33: =IF($B33="","",IF(VLOOKUP($B33,'Athlete Input'!$B:$BZ,AE$1,FALSE)="","",VLOOKUP($B33,'Athlete Input'!$B:$BZ,AE$1,FALSE))) ->  | AF33: =IF($B33="","",IF(VLOOKUP($B33,'Athlete Input'!$B:$BZ,AF$1,FALSE)="","",VLOOKUP($B33,'Athlete Input'!$B:$BZ,AF$1,FALSE))) ->  | AG33: =IF($B33="","",IF(VLOOKUP($B33,'Athlete Input'!$B:$BZ,AG$1,FALSE)="","",VLOOKUP($B33,'Athlete Input'!$B:$BZ,AG$1,FALSE))) ->  | AH33: =IF($B33="","",IF(VLOOKUP($B33,'Athlete Input'!$B:$BZ,AH$1,FALSE)="","",VLOOKUP($B33,'Athlete Input'!$B:$BZ,AH$1,FALSE))) ->  | AI33: =IF($B33="","",IF(VLOOKUP($B33,'Athlete Input'!$B:$BZ,AI$1,FALSE)="","",VLOOKUP($B33,'Athlete Input'!$B:$BZ,AI$1,FALSE))) ->  | AJ33: =IF($B33="","",IF(VLOOKUP($B33,'Athlete Input'!$B:$BZ,AJ$1,FALSE)="","",VLOOKUP($B33,'Athlete Input'!$B:$BZ,AJ$1,FALSE))) ->  | AK33: =IF($B33="","",IF(VLOOKUP($B33,'Athlete Input'!$B:$BZ,AK$1,FALSE)="","",VLOOKUP($B33,'Athlete Input'!$B:$BZ,AK$1,FALSE))) ->  | AL33: =IF($B33="","",IF(VLOOKUP($B33,'Athlete Input'!$B:$BZ,AL$1,FALSE)="","",VLOOKUP($B33,'Athlete Input'!$B:$BZ,AL$1,FALSE))) ->  | AM33: =IF(B33="","zz",'Athlete Input'!C78) -> zz
A34: 31 | B34: =IF('Athlete Input'!B34="","",'Athlete Input'!B34) -> Emily Strathdee | C34: =IF($B34="","",IF(VLOOKUP($B34,'Athlete Input'!$B:$AJ,C$1,FALSE)="","",VLOOKUP($B34,'Athlete Input'!$B:$AJ,C$1,FALSE))) ->  | D34: =IF($B34="","",IF(VLOOKUP($B34,'Athlete Input'!$B:$AJ,D$1,FALSE)="","",VLOOKUP($B34,'Athlete Input'!$B:$AJ,D$1,FALSE))) ->  | E34: =IF($B34="","",IF(VLOOKUP($B34,'Athlete Input'!$B:$AJ,E$1,FALSE)="","",VLOOKUP($B34,'Athlete Input'!$B:$AJ,E$1,FALSE))) ->  | F34: =IF($B34="","",IF(VLOOKUP($B34,'Athlete Input'!$B:$AJ,F$1,FALSE)="","",VLOOKUP($B34,'Athlete Input'!$B:$AJ,F$1,FALSE))) ->  | G34: =IF($B34="","",IF(VLOOKUP($B34,'Athlete Input'!$B:$AJ,G$1,FALSE)="","",VLOOKUP($B34,'Athlete Input'!$B:$AJ,G$1,FALSE))) ->  | H34: =IF($B34="","",IF(VLOOKUP($B34,'Athlete Input'!$B:$AJ,H$1,FALSE)="","",VLOOKUP($B34,'Athlete Input'!$B:$AJ,H$1,FALSE))) -> 17.59 | I34: =IF($B34="","",IF(VLOOKUP($B34,'Athlete Input'!$B:$AJ,I$1,FALSE)="","",VLOOKUP($B34,'Athlete Input'!$B:$AJ,I$1,FALSE))) ->  | J34: =IF($B34="","",IF(VLOOKUP($B34,'Athlete Input'!$B:$AJ,J$1,FALSE)="","",VLOOKUP($B34,'Athlete Input'!$B:$AJ,J$1,FALSE))) ->  | K34: =IF($B34="","",IF(VLOOKUP($B34,'Athlete Input'!$B:$AJ,K$1,FALSE)="","",VLOOKUP($B34,'Athlete Input'!$B:$AJ,K$1,FALSE))) ->  | L34: =IF($B34="","",IF(VLOOKUP($B34,'Athlete Input'!$B:$AJ,L$1,FALSE)="","",VLOOKUP($B34,'Athlete Input'!$B:$AJ,L$1,FALSE))) ->  | M34: =IF($B34="","",IF(VLOOKUP($B34,'Athlete Input'!$B:$AJ,M$1,FALSE)="","",VLOOKUP($B34,'Athlete Input'!$B:$AJ,M$1,FALSE))) ->  | N34: =IF($B34="","",IF(VLOOKUP($B34,'Athlete Input'!$B:$AJ,N$1,FALSE)="","",VLOOKUP($B34,'Athlete Input'!$B:$AJ,N$1,FALSE))) ->  | O34: =IF($B34="","",IF(VLOOKUP($B34,'Athlete Input'!$B:$AJ,O$1,FALSE)="","",VLOOKUP($B34,'Athlete Input'!$B:$AJ,O$1,FALSE))) ->  | P34: =IF($B34="","",IF(VLOOKUP($B34,'Athlete Input'!$B:$AJ,P$1,FALSE)="","",VLOOKUP($B34,'Athlete Input'!$B:$AJ,P$1,FALSE))) ->  | Q34: =IF($B34="","",IF(VLOOKUP($B34,'Athlete Input'!$B:$AJ,Q$1,FALSE)="","",VLOOKUP($B34,'Athlete Input'!$B:$AJ,Q$1,FALSE))) ->  | R34: =IF($B34="","",IF(VLOOKUP($B34,'Athlete Input'!$B:$AJ,R$1,FALSE)="","",VLOOKUP($B34,'Athlete Input'!$B:$AJ,R$1,FALSE))) ->  | S34: =IF($B34="","",IF(VLOOKUP($B34,'Athlete Input'!$B:$AJ,S$1,FALSE)="","",VLOOKUP($B34,'Athlete Input'!$B:$AJ,S$1,FALSE))) ->  | T34: =IF($B34="","",IF(VLOOKUP($B34,'Athlete Input'!$B:$AJ,T$1,FALSE)="","",VLOOKUP($B34,'Athlete Input'!$B:$AJ,T$1,FALSE))) ->  | U34: =IF($B34="","",IF(VLOOKUP($B34,'Athlete Input'!$B:$BZ,U$1,FALSE)="","",VLOOKUP($B34,'Athlete Input'!$B:$BZ,U$1,FALSE))) ->  | V34: =IF($B34="","",IF(VLOOKUP($B34,'Athlete Input'!$B:$BZ,V$1,FALSE)="","",VLOOKUP($B34,'Athlete Input'!$B:$BZ,V$1,FALSE))) ->  | W34: =IF($B34="","",IF(VLOOKUP($B34,'Athlete Input'!$B:$BZ,W$1,FALSE)="","",VLOOKUP($B34,'Athlete Input'!$B:$BZ,W$1,FALSE))) ->  | X34: =IF($B34="","",IF(VLOOKUP($B34,'Athlete Input'!$B:$BZ,X$1,FALSE)="","",VLOOKUP($B34,'Athlete Input'!$B:$BZ,X$1,FALSE))) ->  | Y34: =IF($B34="","",IF(VLOOKUP($B34,'Athlete Input'!$B:$BZ,Y$1,FALSE)="","",VLOOKUP($B34,'Athlete Input'!$B:$BZ,Y$1,FALSE))) ->  | Z34: =IF($B34="","",IF(VLOOKUP($B34,'Athlete Input'!$B:$BZ,Z$1,FALSE)="","",VLOOKUP($B34,'Athlete Input'!$B:$BZ,Z$1,FALSE))) ->  | AA34: =IF($B34="","",IF(VLOOKUP($B34,'Athlete Input'!$B:$BZ,AA$1,FALSE)="","",VLOOKUP($B34,'Athlete Input'!$B:$BZ,AA$1,FALSE))) ->  | AB34: =IF($B34="","",IF(VLOOKUP($B34,'Athlete Input'!$B:$BZ,AB$1,FALSE)="","",VLOOKUP($B34,'Athlete Input'!$B:$BZ,AB$1,FALSE))) ->  | AC34: =IF($B34="","",IF(VLOOKUP($B34,'Athlete Input'!$B:$BZ,AC$1,FALSE)="","",VLOOKUP($B34,'Athlete Input'!$B:$BZ,AC$1,FALSE))) ->  | AD34: =IF($B34="","",IF(VLOOKUP($B34,'Athlete Input'!$B:$BZ,AD$1,FALSE)="","",VLOOKUP($B34,'Athlete Input'!$B:$BZ,AD$1,FALSE))) ->  | AE34: =IF($B34="","",IF(VLOOKUP($B34,'Athlete Input'!$B:$BZ,AE$1,FALSE)="","",VLOOKUP($B34,'Athlete Input'!$B:$BZ,AE$1,FALSE))) ->  | AF34: =IF($B34="","",IF(VLOOKUP($B34,'Athlete Input'!$B:$BZ,AF$1,FALSE)="","",VLOOKUP($B34,'Athlete Input'!$B:$BZ,AF$1,FALSE))) ->  | AG34: =IF($B34="","",IF(VLOOKUP($B34,'Athlete Input'!$B:$BZ,AG$1,FALSE)="","",VLOOKUP($B34,'Athlete Input'!$B:$BZ,AG$1,FALSE))) ->  | AH34: =IF($B34="","",IF(VLOOKUP($B34,'Athlete Input'!$B:$BZ,AH$1,FALSE)="","",VLOOKUP($B34,'Athlete Input'!$B:$BZ,AH$1,FALSE))) ->  | AI34: =IF($B34="","",IF(VLOOKUP($B34,'Athlete Input'!$B:$BZ,AI$1,FALSE)="","",VLOOKUP($B34,'Athlete Input'!$B:$BZ,AI$1,FALSE))) ->  | AJ34: =IF($B34="","",IF(VLOOKUP($B34,'Athlete Input'!$B:$BZ,AJ$1,FALSE)="","",VLOOKUP($B34,'Athlete Input'!$B:$BZ,AJ$1,FALSE))) ->  | AK34: =IF($B34="","",IF(VLOOKUP($B34,'Athlete Input'!$B:$BZ,AK$1,FALSE)="","",VLOOKUP($B34,'Athlete Input'!$B:$BZ,AK$1,FALSE))) ->  | AL34: =IF($B34="","",IF(VLOOKUP($B34,'Athlete Input'!$B:$BZ,AL$1,FALSE)="","",VLOOKUP($B34,'Athlete Input'!$B:$BZ,AL$1,FALSE))) ->  | AM34: =IF(B34="","zz",'Athlete Input'!C34) -> Strathdee
A35: 32 | B35: =IF('Athlete Input'!B35="","",'Athlete Input'!B35) -> Joanne Thom | C35: =IF($B35="","",IF(VLOOKUP($B35,'Athlete Input'!$B:$AJ,C$1,FALSE)="","",VLOOKUP($B35,'Athlete Input'!$B:$AJ,C$1,FALSE))) ->  | D35: =IF($B35="","",IF(VLOOKUP($B35,'Athlete Input'!$B:$AJ,D$1,FALSE)="","",VLOOKUP($B35,'Athlete Input'!$B:$AJ,D$1,FALSE))) ->  | E35: =IF($B35="","",IF(VLOOKUP($B35,'Athlete Input'!$B:$AJ,E$1,FALSE)="","",VLOOKUP($B35,'Athlete Input'!$B:$AJ,E$1,FALSE))) ->  | F35: =IF($B35="","",IF(VLOOKUP($B35,'Athlete Input'!$B:$AJ,F$1,FALSE)="","",VLOOKUP($B35,'Athlete Input'!$B:$AJ,F$1,FALSE))) ->  | G35: =IF($B35="","",IF(VLOOKUP($B35,'Athlete Input'!$B:$AJ,G$1,FALSE)="","",VLOOKUP($B35,'Athlete Input'!$B:$AJ,G$1,FALSE))) ->  | H35: =IF($B35="","",IF(VLOOKUP($B35,'Athlete Input'!$B:$AJ,H$1,FALSE)="","",VLOOKUP($B35,'Athlete Input'!$B:$AJ,H$1,FALSE))) ->  | I35: =IF($B35="","",IF(VLOOKUP($B35,'Athlete Input'!$B:$AJ,I$1,FALSE)="","",VLOOKUP($B35,'Athlete Input'!$B:$AJ,I$1,FALSE))) ->  | J35: =IF($B35="","",IF(VLOOKUP($B35,'Athlete Input'!$B:$AJ,J$1,FALSE)="","",VLOOKUP($B35,'Athlete Input'!$B:$AJ,J$1,FALSE))) ->  | K35: =IF($B35="","",IF(VLOOKUP($B35,'Athlete Input'!$B:$AJ,K$1,FALSE)="","",VLOOKUP($B35,'Athlete Input'!$B:$AJ,K$1,FALSE))) ->  | L35: =IF($B35="","",IF(VLOOKUP($B35,'Athlete Input'!$B:$AJ,L$1,FALSE)="","",VLOOKUP($B35,'Athlete Input'!$B:$AJ,L$1,FALSE))) -> 18.52 | M35: =IF($B35="","",IF(VLOOKUP($B35,'Athlete Input'!$B:$AJ,M$1,FALSE)="","",VLOOKUP($B35,'Athlete Input'!$B:$AJ,M$1,FALSE))) ->  | N35: =IF($B35="","",IF(VLOOKUP($B35,'Athlete Input'!$B:$AJ,N$1,FALSE)="","",VLOOKUP($B35,'Athlete Input'!$B:$AJ,N$1,FALSE))) ->  | O35: =IF($B35="","",IF(VLOOKUP($B35,'Athlete Input'!$B:$AJ,O$1,FALSE)="","",VLOOKUP($B35,'Athlete Input'!$B:$AJ,O$1,FALSE))) ->  | P35: =IF($B35="","",IF(VLOOKUP($B35,'Athlete Input'!$B:$AJ,P$1,FALSE)="","",VLOOKUP($B35,'Athlete Input'!$B:$AJ,P$1,FALSE))) ->  | Q35: =IF($B35="","",IF(VLOOKUP($B35,'Athlete Input'!$B:$AJ,Q$1,FALSE)="","",VLOOKUP($B35,'Athlete Input'!$B:$AJ,Q$1,FALSE))) ->  | R35: =IF($B35="","",IF(VLOOKUP($B35,'Athlete Input'!$B:$AJ,R$1,FALSE)="","",VLOOKUP($B35,'Athlete Input'!$B:$AJ,R$1,FALSE))) ->  | S35: =IF($B35="","",IF(VLOOKUP($B35,'Athlete Input'!$B:$AJ,S$1,FALSE)="","",VLOOKUP($B35,'Athlete Input'!$B:$AJ,S$1,FALSE))) ->  | T35: =IF($B35="","",IF(VLOOKUP($B35,'Athlete Input'!$B:$AJ,T$1,FALSE)="","",VLOOKUP($B35,'Athlete Input'!$B:$AJ,T$1,FALSE))) ->  | U35: =IF($B35="","",IF(VLOOKUP($B35,'Athlete Input'!$B:$BZ,U$1,FALSE)="","",VLOOKUP($B35,'Athlete Input'!$B:$BZ,U$1,FALSE))) ->  | V35: =IF($B35="","",IF(VLOOKUP($B35,'Athlete Input'!$B:$BZ,V$1,FALSE)="","",VLOOKUP($B35,'Athlete Input'!$B:$BZ,V$1,FALSE))) ->  | W35: =IF($B35="","",IF(VLOOKUP($B35,'Athlete Input'!$B:$BZ,W$1,FALSE)="","",VLOOKUP($B35,'Athlete Input'!$B:$BZ,W$1,FALSE))) ->  | X35: =IF($B35="","",IF(VLOOKUP($B35,'Athlete Input'!$B:$BZ,X$1,FALSE)="","",VLOOKUP($B35,'Athlete Input'!$B:$BZ,X$1,FALSE))) ->  | Y35: =IF($B35="","",IF(VLOOKUP($B35,'Athlete Input'!$B:$BZ,Y$1,FALSE)="","",VLOOKUP($B35,'Athlete Input'!$B:$BZ,Y$1,FALSE))) ->  | Z35: =IF($B35="","",IF(VLOOKUP($B35,'Athlete Input'!$B:$BZ,Z$1,FALSE)="","",VLOOKUP($B35,'Athlete Input'!$B:$BZ,Z$1,FALSE))) ->  | AA35: =IF($B35="","",IF(VLOOKUP($B35,'Athlete Input'!$B:$BZ,AA$1,FALSE)="","",VLOOKUP($B35,'Athlete Input'!$B:$BZ,AA$1,FALSE))) ->  | AB35: =IF($B35="","",IF(VLOOKUP($B35,'Athlete Input'!$B:$BZ,AB$1,FALSE)="","",VLOOKUP($B35,'Athlete Input'!$B:$BZ,AB$1,FALSE))) ->  | AC35: =IF($B35="","",IF(VLOOKUP($B35,'Athlete Input'!$B:$BZ,AC$1,FALSE)="","",VLOOKUP($B35,'Athlete Input'!$B:$BZ,AC$1,FALSE))) ->  | AD35: =IF($B35="","",IF(VLOOKUP($B35,'Athlete Input'!$B:$BZ,AD$1,FALSE)="","",VLOOKUP($B35,'Athlete Input'!$B:$BZ,AD$1,FALSE))) ->  | AE35: =IF($B35="","",IF(VLOOKUP($B35,'Athlete Input'!$B:$BZ,AE$1,FALSE)="","",VLOOKUP($B35,'Athlete Input'!$B:$BZ,AE$1,FALSE))) ->  | AF35: =IF($B35="","",IF(VLOOKUP($B35,'Athlete Input'!$B:$BZ,AF$1,FALSE)="","",VLOOKUP($B35,'Athlete Input'!$B:$BZ,AF$1,FALSE))) ->  | AG35: =IF($B35="","",IF(VLOOKUP($B35,'Athlete Input'!$B:$BZ,AG$1,FALSE)="","",VLOOKUP($B35,'Athlete Input'!$B:$BZ,AG$1,FALSE))) ->  | AH35: =IF($B35="","",IF(VLOOKUP($B35,'Athlete Input'!$B:$BZ,AH$1,FALSE)="","",VLOOKUP($B35,'Athlete Input'!$B:$BZ,AH$1,FALSE))) ->  | AI35: =IF($B35="","",IF(VLOOKUP($B35,'Athlete Input'!$B:$BZ,AI$1,FALSE)="","",VLOOKUP($B35,'Athlete Input'!$B:$BZ,AI$1,FALSE))) ->  | AJ35: =IF($B35="","",IF(VLOOKUP($B35,'Athlete Input'!$B:$BZ,AJ$1,FALSE)="","",VLOOKUP($B35,'Athlete Input'!$B:$BZ,AJ$1,FALSE))) ->  | AK35: =IF($B35="","",IF(VLOOKUP($B35,'Athlete Input'!$B:$BZ,AK$1,FALSE)="","",VLOOKUP($B35,'Athlete Input'!$B:$BZ,AK$1,FALSE))) ->  | AL35: =IF($B35="","",IF(VLOOKUP($B35,'Athlete Input'!$B:$BZ,AL$1,FALSE)="","",VLOOKUP($B35,'Athlete Input'!$B:$BZ,AL$1,FALSE))) ->  | AM35: =IF(B35="","zz",'Athlete Input'!C35) -> Thom
A36: 33 | B36: =IF('Athlete Input'!B36="","",'Athlete Input'!B36) -> Hannah Waugh | C36: =IF($B36="","",IF(VLOOKUP($B36,'Athlete Input'!$B:$AJ,C$1,FALSE)="","",VLOOKUP($B36,'Athlete Input'!$B:$AJ,C$1,FALSE))) -> 17.15 | D36: =IF($B36="","",IF(VLOOKUP($B36,'Athlete Input'!$B:$AJ,D$1,FALSE)="","",VLOOKUP($B36,'Athlete Input'!$B:$AJ,D$1,FALSE))) ->  | E36: =IF($B36="","",IF(VLOOKUP($B36,'Athlete Input'!$B:$AJ,E$1,FALSE)="","",VLOOKUP($B36,'Athlete Input'!$B:$AJ,E$1,FALSE))) -> 25.21 | F36: =IF($B36="","",IF(VLOOKUP($B36,'Athlete Input'!$B:$AJ,F$1,FALSE)="","",VLOOKUP($B36,'Athlete Input'!$B:$AJ,F$1,FALSE))) -> 24.11 | G36: =IF($B36="","",IF(VLOOKUP($B36,'Athlete Input'!$B:$AJ,G$1,FALSE)="","",VLOOKUP($B36,'Athlete Input'!$B:$AJ,G$1,FALSE))) -> 17.02 | H36: =IF($B36="","",IF(VLOOKUP($B36,'Athlete Input'!$B:$AJ,H$1,FALSE)="","",VLOOKUP($B36,'Athlete Input'!$B:$AJ,H$1,FALSE))) -> 17.14 | I36: =IF($B36="","",IF(VLOOKUP($B36,'Athlete Input'!$B:$AJ,I$1,FALSE)="","",VLOOKUP($B36,'Athlete Input'!$B:$AJ,I$1,FALSE))) ->  | J36: =IF($B36="","",IF(VLOOKUP($B36,'Athlete Input'!$B:$AJ,J$1,FALSE)="","",VLOOKUP($B36,'Athlete Input'!$B:$AJ,J$1,FALSE))) ->  | K36: =IF($B36="","",IF(VLOOKUP($B36,'Athlete Input'!$B:$AJ,K$1,FALSE)="","",VLOOKUP($B36,'Athlete Input'!$B:$AJ,K$1,FALSE))) ->  | L36: =IF($B36="","",IF(VLOOKUP($B36,'Athlete Input'!$B:$AJ,L$1,FALSE)="","",VLOOKUP($B36,'Athlete Input'!$B:$AJ,L$1,FALSE))) ->  | M36: =IF($B36="","",IF(VLOOKUP($B36,'Athlete Input'!$B:$AJ,M$1,FALSE)="","",VLOOKUP($B36,'Athlete Input'!$B:$AJ,M$1,FALSE))) -> 28.03 | N36: =IF($B36="","",IF(VLOOKUP($B36,'Athlete Input'!$B:$AJ,N$1,FALSE)="","",VLOOKUP($B36,'Athlete Input'!$B:$AJ,N$1,FALSE))) ->  | O36: =IF($B36="","",IF(VLOOKUP($B36,'Athlete Input'!$B:$AJ,O$1,FALSE)="","",VLOOKUP($B36,'Athlete Input'!$B:$AJ,O$1,FALSE))) -> 27 | P36: =IF($B36="","",IF(VLOOKUP($B36,'Athlete Input'!$B:$AJ,P$1,FALSE)="","",VLOOKUP($B36,'Athlete Input'!$B:$AJ,P$1,FALSE))) ->  | Q36: =IF($B36="","",IF(VLOOKUP($B36,'Athlete Input'!$B:$AJ,Q$1,FALSE)="","",VLOOKUP($B36,'Athlete Input'!$B:$AJ,Q$1,FALSE))) ->  | R36: =IF($B36="","",IF(VLOOKUP($B36,'Athlete Input'!$B:$AJ,R$1,FALSE)="","",VLOOKUP($B36,'Athlete Input'!$B:$AJ,R$1,FALSE))) ->  | S36: =IF($B36="","",IF(VLOOKUP($B36,'Athlete Input'!$B:$AJ,S$1,FALSE)="","",VLOOKUP($B36,'Athlete Input'!$B:$AJ,S$1,FALSE))) ->  | T36: =IF($B36="","",IF(VLOOKUP($B36,'Athlete Input'!$B:$AJ,T$1,FALSE)="","",VLOOKUP($B36,'Athlete Input'!$B:$AJ,T$1,FALSE))) ->  | U36: =IF($B36="","",IF(VLOOKUP($B36,'Athlete Input'!$B:$BZ,U$1,FALSE)="","",VLOOKUP($B36,'Athlete Input'!$B:$BZ,U$1,FALSE))) ->  | V36: =IF($B36="","",IF(VLOOKUP($B36,'Athlete Input'!$B:$BZ,V$1,FALSE)="","",VLOOKUP($B36,'Athlete Input'!$B:$BZ,V$1,FALSE))) ->  | W36: =IF($B36="","",IF(VLOOKUP($B36,'Athlete Input'!$B:$BZ,W$1,FALSE)="","",VLOOKUP($B36,'Athlete Input'!$B:$BZ,W$1,FALSE))) ->  | X36: =IF($B36="","",IF(VLOOKUP($B36,'Athlete Input'!$B:$BZ,X$1,FALSE)="","",VLOOKUP($B36,'Athlete Input'!$B:$BZ,X$1,FALSE))) ->  | Y36: =IF($B36="","",IF(VLOOKUP($B36,'Athlete Input'!$B:$BZ,Y$1,FALSE)="","",VLOOKUP($B36,'Athlete Input'!$B:$BZ,Y$1,FALSE))) ->  | Z36: =IF($B36="","",IF(VLOOKUP($B36,'Athlete Input'!$B:$BZ,Z$1,FALSE)="","",VLOOKUP($B36,'Athlete Input'!$B:$BZ,Z$1,FALSE))) ->  | AA36: =IF($B36="","",IF(VLOOKUP($B36,'Athlete Input'!$B:$BZ,AA$1,FALSE)="","",VLOOKUP($B36,'Athlete Input'!$B:$BZ,AA$1,FALSE))) ->  | AB36: =IF($B36="","",IF(VLOOKUP($B36,'Athlete Input'!$B:$BZ,AB$1,FALSE)="","",VLOOKUP($B36,'Athlete Input'!$B:$BZ,AB$1,FALSE))) ->  | AC36: =IF($B36="","",IF(VLOOKUP($B36,'Athlete Input'!$B:$BZ,AC$1,FALSE)="","",VLOOKUP($B36,'Athlete Input'!$B:$BZ,AC$1,FALSE))) ->  | AD36: =IF($B36="","",IF(VLOOKUP($B36,'Athlete Input'!$B:$BZ,AD$1,FALSE)="","",VLOOKUP($B36,'Athlete Input'!$B:$BZ,AD$1,FALSE))) ->  | AE36: =IF($B36="","",IF(VLOOKUP($B36,'Athlete Input'!$B:$BZ,AE$1,FALSE)="","",VLOOKUP($B36,'Athlete Input'!$B:$BZ,AE$1,FALSE))) ->  | AF36: =IF($B36="","",IF(VLOOKUP($B36,'Athlete Input'!$B:$BZ,AF$1,FALSE)="","",VLOOKUP($B36,'Athlete Input'!$B:$BZ,AF$1,FALSE))) ->  | AG36: =IF($B36="","",IF(VLOOKUP($B36,'Athlete Input'!$B:$BZ,AG$1,FALSE)="","",VLOOKUP($B36,'Athlete Input'!$B:$BZ,AG$1,FALSE))) ->  | AH36: =IF($B36="","",IF(VLOOKUP($B36,'Athlete Input'!$B:$BZ,AH$1,FALSE)="","",VLOOKUP($B36,'Athlete Input'!$B:$BZ,AH$1,FALSE))) ->  | AI36: =IF($B36="","",IF(VLOOKUP($B36,'Athlete Input'!$B:$BZ,AI$1,FALSE)="","",VLOOKUP($B36,'Athlete Input'!$B:$BZ,AI$1,FALSE))) ->  | AJ36: =IF($B36="","",IF(VLOOKUP($B36,'Athlete Input'!$B:$BZ,AJ$1,FALSE)="","",VLOOKUP($B36,'Athlete Input'!$B:$BZ,AJ$1,FALSE))) ->  | AK36: =IF($B36="","",IF(VLOOKUP($B36,'Athlete Input'!$B:$BZ,AK$1,FALSE)="","",VLOOKUP($B36,'Athlete Input'!$B:$BZ,AK$1,FALSE))) ->  | AL36: =IF($B36="","",IF(VLOOKUP($B36,'Athlete Input'!$B:$BZ,AL$1,FALSE)="","",VLOOKUP($B36,'Athlete Input'!$B:$BZ,AL$1,FALSE))) ->  | AM36: =IF(B36="","zz",'Athlete Input'!C36) -> Waugh
A37: 34 | B37: =IF('Athlete Input'!B37="","",'Athlete Input'!B37) -> Rosie Wilson | C37: =IF($B37="","",IF(VLOOKUP($B37,'Athlete Input'!$B:$AJ,C$1,FALSE)="","",VLOOKUP($B37,'Athlete Input'!$B:$AJ,C$1,FALSE))) ->  | D37: =IF($B37="","",IF(VLOOKUP($B37,'Athlete Input'!$B:$AJ,D$1,FALSE)="","",VLOOKUP($B37,'Athlete Input'!$B:$AJ,D$1,FALSE))) ->  | E37: =IF($B37="","",IF(VLOOKUP($B37,'Athlete Input'!$B:$AJ,E$1,FALSE)="","",VLOOKUP($B37,'Athlete Input'!$B:$AJ,E$1,FALSE))) ->  | F37: =IF($B37="","",IF(VLOOKUP($B37,'Athlete Input'!$B:$AJ,F$1,FALSE)="","",VLOOKUP($B37,'Athlete Input'!$B:$AJ,F$1,FALSE))) ->  | G37: =IF($B37="","",IF(VLOOKUP($B37,'Athlete Input'!$B:$AJ,G$1,FALSE)="","",VLOOKUP($B37,'Athlete Input'!$B:$AJ,G$1,FALSE))) ->  | H37: =IF($B37="","",IF(VLOOKUP($B37,'Athlete Input'!$B:$AJ,H$1,FALSE)="","",VLOOKUP($B37,'Athlete Input'!$B:$AJ,H$1,FALSE))) ->  | I37: =IF($B37="","",IF(VLOOKUP($B37,'Athlete Input'!$B:$AJ,I$1,FALSE)="","",VLOOKUP($B37,'Athlete Input'!$B:$AJ,I$1,FALSE))) ->  | J37: =IF($B37="","",IF(VLOOKUP($B37,'Athlete Input'!$B:$AJ,J$1,FALSE)="","",VLOOKUP($B37,'Athlete Input'!$B:$AJ,J$1,FALSE))) ->  | K37: =IF($B37="","",IF(VLOOKUP($B37,'Athlete Input'!$B:$AJ,K$1,FALSE)="","",VLOOKUP($B37,'Athlete Input'!$B:$AJ,K$1,FALSE))) ->  | L37: =IF($B37="","",IF(VLOOKUP($B37,'Athlete Input'!$B:$AJ,L$1,FALSE)="","",VLOOKUP($B37,'Athlete Input'!$B:$AJ,L$1,FALSE))) ->  | M37: =IF($B37="","",IF(VLOOKUP($B37,'Athlete Input'!$B:$AJ,M$1,FALSE)="","",VLOOKUP($B37,'Athlete Input'!$B:$AJ,M$1,FALSE))) ->  | N37: =IF($B37="","",IF(VLOOKUP($B37,'Athlete Input'!$B:$AJ,N$1,FALSE)="","",VLOOKUP($B37,'Athlete Input'!$B:$AJ,N$1,FALSE))) ->  | O37: =IF($B37="","",IF(VLOOKUP($B37,'Athlete Input'!$B:$AJ,O$1,FALSE)="","",VLOOKUP($B37,'Athlete Input'!$B:$AJ,O$1,FALSE))) ->  | P37: =IF($B37="","",IF(VLOOKUP($B37,'Athlete Input'!$B:$AJ,P$1,FALSE)="","",VLOOKUP($B37,'Athlete Input'!$B:$AJ,P$1,FALSE))) ->  | Q37: =IF($B37="","",IF(VLOOKUP($B37,'Athlete Input'!$B:$AJ,Q$1,FALSE)="","",VLOOKUP($B37,'Athlete Input'!$B:$AJ,Q$1,FALSE))) ->  | R37: =IF($B37="","",IF(VLOOKUP($B37,'Athlete Input'!$B:$AJ,R$1,FALSE)="","",VLOOKUP($B37,'Athlete Input'!$B:$AJ,R$1,FALSE))) ->  | S37: =IF($B37="","",IF(VLOOKUP($B37,'Athlete Input'!$B:$AJ,S$1,FALSE)="","",VLOOKUP($B37,'Athlete Input'!$B:$AJ,S$1,FALSE))) ->  | T37: =IF($B37="","",IF(VLOOKUP($B37,'Athlete Input'!$B:$AJ,T$1,FALSE)="","",VLOOKUP($B37,'Athlete Input'!$B:$AJ,T$1,FALSE))) ->  | U37: =IF($B37="","",IF(VLOOKUP($B37,'Athlete Input'!$B:$BZ,U$1,FALSE)="","",VLOOKUP($B37,'Athlete Input'!$B:$BZ,U$1,FALSE))) ->  | V37: =IF($B37="","",IF(VLOOKUP($B37,'Athlete Input'!$B:$BZ,V$1,FALSE)="","",VLOOKUP($B37,'Athlete Input'!$B:$BZ,V$1,FALSE))) ->  | W37: =IF($B37="","",IF(VLOOKUP($B37,'Athlete Input'!$B:$BZ,W$1,FALSE)="","",VLOOKUP($B37,'Athlete Input'!$B:$BZ,W$1,FALSE))) ->  | X37: =IF($B37="","",IF(VLOOKUP($B37,'Athlete Input'!$B:$BZ,X$1,FALSE)="","",VLOOKUP($B37,'Athlete Input'!$B:$BZ,X$1,FALSE))) ->  | Y37: =IF($B37="","",IF(VLOOKUP($B37,'Athlete Input'!$B:$BZ,Y$1,FALSE)="","",VLOOKUP($B37,'Athlete Input'!$B:$BZ,Y$1,FALSE))) ->  | Z37: =IF($B37="","",IF(VLOOKUP($B37,'Athlete Input'!$B:$BZ,Z$1,FALSE)="","",VLOOKUP($B37,'Athlete Input'!$B:$BZ,Z$1,FALSE))) ->  | AA37: =IF($B37="","",IF(VLOOKUP($B37,'Athlete Input'!$B:$BZ,AA$1,FALSE)="","",VLOOKUP($B37,'Athlete Input'!$B:$BZ,AA$1,FALSE))) ->  | AB37: =IF($B37="","",IF(VLOOKUP($B37,'Athlete Input'!$B:$BZ,AB$1,FALSE)="","",VLOOKUP($B37,'Athlete Input'!$B:$BZ,AB$1,FALSE))) ->  | AC37: =IF($B37="","",IF(VLOOKUP($B37,'Athlete Input'!$B:$BZ,AC$1,FALSE)="","",VLOOKUP($B37,'Athlete Input'!$B:$BZ,AC$1,FALSE))) ->  | AD37: =IF($B37="","",IF(VLOOKUP($B37,'Athlete Input'!$B:$BZ,AD$1,FALSE)="","",VLOOKUP($B37,'Athlete Input'!$B:$BZ,AD$1,FALSE))) ->  | AE37: =IF($B37="","",IF(VLOOKUP($B37,'Athlete Input'!$B:$BZ,AE$1,FALSE)="","",VLOOKUP($B37,'Athlete Input'!$B:$BZ,AE$1,FALSE))) ->  | AF37: =IF($B37="","",IF(VLOOKUP($B37,'Athlete Input'!$B:$BZ,AF$1,FALSE)="","",VLOOKUP($B37,'Athlete Input'!$B:$BZ,AF$1,FALSE))) ->  | AG37: =IF($B37="","",IF(VLOOKUP($B37,'Athlete Input'!$B:$BZ,AG$1,FALSE)="","",VLOOKUP($B37,'Athlete Input'!$B:$BZ,AG$1,FALSE))) ->  | AH37: =IF($B37="","",IF(VLOOKUP($B37,'Athlete Input'!$B:$BZ,AH$1,FALSE)="","",VLOOKUP($B37,'Athlete Input'!$B:$BZ,AH$1,FALSE))) ->  | AI37: =IF($B37="","",IF(VLOOKUP($B37,'Athlete Input'!$B:$BZ,AI$1,FALSE)="","",VLOOKUP($B37,'Athlete Input'!$B:$BZ,AI$1,FALSE))) ->  | AJ37: =IF($B37="","",IF(VLOOKUP($B37,'Athlete Input'!$B:$BZ,AJ$1,FALSE)="","",VLOOKUP($B37,'Athlete Input'!$B:$BZ,AJ$1,FALSE))) ->  | AK37: =IF($B37="","",IF(VLOOKUP($B37,'Athlete Input'!$B:$BZ,AK$1,FALSE)="","",VLOOKUP($B37,'Athlete Input'!$B:$BZ,AK$1,FALSE))) ->  | AL37: =IF($B37="","",IF(VLOOKUP($B37,'Athlete Input'!$B:$BZ,AL$1,FALSE)="","",VLOOKUP($B37,'Athlete Input'!$B:$BZ,AL$1,FALSE))) ->  | AM37: =IF(B37="","zz",'Athlete Input'!C37) -> Wilson
A38: 35 | B38: =IF('Athlete Input'!B38="","",'Athlete Input'!B38) -> Amanda Woodrow | C38: =IF($B38="","",IF(VLOOKUP($B38,'Athlete Input'!$B:$AJ,C$1,FALSE)="","",VLOOKUP($B38,'Athlete Input'!$B:$AJ,C$1,FALSE))) -> 15.45 | D38: =IF($B38="","",IF(VLOOKUP($B38,'Athlete Input'!$B:$AJ,D$1,FALSE)="","",VLOOKUP($B38,'Athlete Input'!$B:$AJ,D$1,FALSE))) -> 16.12 | E38: =IF($B38="","",IF(VLOOKUP($B38,'Athlete Input'!$B:$AJ,E$1,FALSE)="","",VLOOKUP($B38,'Athlete Input'!$B:$AJ,E$1,FALSE))) ->  | F38: =IF($B38="","",IF(VLOOKUP($B38,'Athlete Input'!$B:$AJ,F$1,FALSE)="","",VLOOKUP($B38,'Athlete Input'!$B:$AJ,F$1,FALSE))) ->  | G38: =IF($B38="","",IF(VLOOKUP($B38,'Athlete Input'!$B:$AJ,G$1,FALSE)="","",VLOOKUP($B38,'Athlete Input'!$B:$AJ,G$1,FALSE))) -> 15.21 | H38: =IF($B38="","",IF(VLOOKUP($B38,'Athlete Input'!$B:$AJ,H$1,FALSE)="","",VLOOKUP($B38,'Athlete Input'!$B:$AJ,H$1,FALSE))) -> 16.33 | I38: =IF($B38="","",IF(VLOOKUP($B38,'Athlete Input'!$B:$AJ,I$1,FALSE)="","",VLOOKUP($B38,'Athlete Input'!$B:$AJ,I$1,FALSE))) ->  | J38: =IF($B38="","",IF(VLOOKUP($B38,'Athlete Input'!$B:$AJ,J$1,FALSE)="","",VLOOKUP($B38,'Athlete Input'!$B:$AJ,J$1,FALSE))) ->  | K38: =IF($B38="","",IF(VLOOKUP($B38,'Athlete Input'!$B:$AJ,K$1,FALSE)="","",VLOOKUP($B38,'Athlete Input'!$B:$AJ,K$1,FALSE))) ->  | L38: =IF($B38="","",IF(VLOOKUP($B38,'Athlete Input'!$B:$AJ,L$1,FALSE)="","",VLOOKUP($B38,'Athlete Input'!$B:$AJ,L$1,FALSE))) ->  | M38: =IF($B38="","",IF(VLOOKUP($B38,'Athlete Input'!$B:$AJ,M$1,FALSE)="","",VLOOKUP($B38,'Athlete Input'!$B:$AJ,M$1,FALSE))) ->  | N38: =IF($B38="","",IF(VLOOKUP($B38,'Athlete Input'!$B:$AJ,N$1,FALSE)="","",VLOOKUP($B38,'Athlete Input'!$B:$AJ,N$1,FALSE))) ->  | O38: =IF($B38="","",IF(VLOOKUP($B38,'Athlete Input'!$B:$AJ,O$1,FALSE)="","",VLOOKUP($B38,'Athlete Input'!$B:$AJ,O$1,FALSE))) ->  | P38: =IF($B38="","",IF(VLOOKUP($B38,'Athlete Input'!$B:$AJ,P$1,FALSE)="","",VLOOKUP($B38,'Athlete Input'!$B:$AJ,P$1,FALSE))) ->  | Q38: =IF($B38="","",IF(VLOOKUP($B38,'Athlete Input'!$B:$AJ,Q$1,FALSE)="","",VLOOKUP($B38,'Athlete Input'!$B:$AJ,Q$1,FALSE))) ->  | R38: =IF($B38="","",IF(VLOOKUP($B38,'Athlete Input'!$B:$AJ,R$1,FALSE)="","",VLOOKUP($B38,'Athlete Input'!$B:$AJ,R$1,FALSE))) ->  | S38: =IF($B38="","",IF(VLOOKUP($B38,'Athlete Input'!$B:$AJ,S$1,FALSE)="","",VLOOKUP($B38,'Athlete Input'!$B:$AJ,S$1,FALSE))) ->  | T38: =IF($B38="","",IF(VLOOKUP($B38,'Athlete Input'!$B:$AJ,T$1,FALSE)="","",VLOOKUP($B38,'Athlete Input'!$B:$AJ,T$1,FALSE))) ->  | U38: =IF($B38="","",IF(VLOOKUP($B38,'Athlete Input'!$B:$BZ,U$1,FALSE)="","",VLOOKUP($B38,'Athlete Input'!$B:$BZ,U$1,FALSE))) ->  | V38: =IF($B38="","",IF(VLOOKUP($B38,'Athlete Input'!$B:$BZ,V$1,FALSE)="","",VLOOKUP($B38,'Athlete Input'!$B:$BZ,V$1,FALSE))) ->  | W38: =IF($B38="","",IF(VLOOKUP($B38,'Athlete Input'!$B:$BZ,W$1,FALSE)="","",VLOOKUP($B38,'Athlete Input'!$B:$BZ,W$1,FALSE))) ->  | X38: =IF($B38="","",IF(VLOOKUP($B38,'Athlete Input'!$B:$BZ,X$1,FALSE)="","",VLOOKUP($B38,'Athlete Input'!$B:$BZ,X$1,FALSE))) ->  | Y38: =IF($B38="","",IF(VLOOKUP($B38,'Athlete Input'!$B:$BZ,Y$1,FALSE)="","",VLOOKUP($B38,'Athlete Input'!$B:$BZ,Y$1,FALSE))) ->  | Z38: =IF($B38="","",IF(VLOOKUP($B38,'Athlete Input'!$B:$BZ,Z$1,FALSE)="","",VLOOKUP($B38,'Athlete Input'!$B:$BZ,Z$1,FALSE))) ->  | AA38: =IF($B38="","",IF(VLOOKUP($B38,'Athlete Input'!$B:$BZ,AA$1,FALSE)="","",VLOOKUP($B38,'Athlete Input'!$B:$BZ,AA$1,FALSE))) ->  | AB38: =IF($B38="","",IF(VLOOKUP($B38,'Athlete Input'!$B:$BZ,AB$1,FALSE)="","",VLOOKUP($B38,'Athlete Input'!$B:$BZ,AB$1,FALSE))) ->  | AC38: =IF($B38="","",IF(VLOOKUP($B38,'Athlete Input'!$B:$BZ,AC$1,FALSE)="","",VLOOKUP($B38,'Athlete Input'!$B:$BZ,AC$1,FALSE))) ->  | AD38: =IF($B38="","",IF(VLOOKUP($B38,'Athlete Input'!$B:$BZ,AD$1,FALSE)="","",VLOOKUP($B38,'Athlete Input'!$B:$BZ,AD$1,FALSE))) ->  | AE38: =IF($B38="","",IF(VLOOKUP($B38,'Athlete Input'!$B:$BZ,AE$1,FALSE)="","",VLOOKUP($B38,'Athlete Input'!$B:$BZ,AE$1,FALSE))) ->  | AF38: =IF($B38="","",IF(VLOOKUP($B38,'Athlete Input'!$B:$BZ,AF$1,FALSE)="","",VLOOKUP($B38,'Athlete Input'!$B:$BZ,AF$1,FALSE))) ->  | AG38: =IF($B38="","",IF(VLOOKUP($B38,'Athlete Input'!$B:$BZ,AG$1,FALSE)="","",VLOOKUP($B38,'Athlete Input'!$B:$BZ,AG$1,FALSE))) ->  | AH38: =IF($B38="","",IF(VLOOKUP($B38,'Athlete Input'!$B:$BZ,AH$1,FALSE)="","",VLOOKUP($B38,'Athlete Input'!$B:$BZ,AH$1,FALSE))) ->  | AI38: =IF($B38="","",IF(VLOOKUP($B38,'Athlete Input'!$B:$BZ,AI$1,FALSE)="","",VLOOKUP($B38,'Athlete Input'!$B:$BZ,AI$1,FALSE))) ->  | AJ38: =IF($B38="","",IF(VLOOKUP($B38,'Athlete Input'!$B:$BZ,AJ$1,FALSE)="","",VLOOKUP($B38,'Athlete Input'!$B:$BZ,AJ$1,FALSE))) ->  | AK38: =IF($B38="","",IF(VLOOKUP($B38,'Athlete Input'!$B:$BZ,AK$1,FALSE)="","",VLOOKUP($B38,'Athlete Input'!$B:$BZ,AK$1,FALSE))) ->  | AL38: =IF($B38="","",IF(VLOOKUP($B38,'Athlete Input'!$B:$BZ,AL$1,FALSE)="","",VLOOKUP($B38,'Athlete Input'!$B:$BZ,AL$1,FALSE))) ->  | AM38: =IF(B38="","zz",'Athlete Input'!C38) -> Woodrow
A39: 36 | B39: =IF('Athlete Input'!B79="","",'Athlete Input'!B79) ->  | C39: =IF($B39="","",IF(VLOOKUP($B39,'Athlete Input'!$B:$AJ,C$1,FALSE)="","",VLOOKUP($B39,'Athlete Input'!$B:$AJ,C$1,FALSE))) ->  | D39: =IF($B39="","",IF(VLOOKUP($B39,'Athlete Input'!$B:$AJ,D$1,FALSE)="","",VLOOKUP($B39,'Athlete Input'!$B:$AJ,D$1,FALSE))) ->  | E39: =IF($B39="","",IF(VLOOKUP($B39,'Athlete Input'!$B:$AJ,E$1,FALSE)="","",VLOOKUP($B39,'Athlete Input'!$B:$AJ,E$1,FALSE))) ->  | F39: =IF($B39="","",IF(VLOOKUP($B39,'Athlete Input'!$B:$AJ,F$1,FALSE)="","",VLOOKUP($B39,'Athlete Input'!$B:$AJ,F$1,FALSE))) ->  | G39: =IF($B39="","",IF(VLOOKUP($B39,'Athlete Input'!$B:$AJ,G$1,FALSE)="","",VLOOKUP($B39,'Athlete Input'!$B:$AJ,G$1,FALSE))) ->  | H39: =IF($B39="","",IF(VLOOKUP($B39,'Athlete Input'!$B:$AJ,H$1,FALSE)="","",VLOOKUP($B39,'Athlete Input'!$B:$AJ,H$1,FALSE))) ->  | I39: =IF($B39="","",IF(VLOOKUP($B39,'Athlete Input'!$B:$AJ,I$1,FALSE)="","",VLOOKUP($B39,'Athlete Input'!$B:$AJ,I$1,FALSE))) ->  | J39: =IF($B39="","",IF(VLOOKUP($B39,'Athlete Input'!$B:$AJ,J$1,FALSE)="","",VLOOKUP($B39,'Athlete Input'!$B:$AJ,J$1,FALSE))) ->  | K39: =IF($B39="","",IF(VLOOKUP($B39,'Athlete Input'!$B:$AJ,K$1,FALSE)="","",VLOOKUP($B39,'Athlete Input'!$B:$AJ,K$1,FALSE))) ->  | L39: =IF($B39="","",IF(VLOOKUP($B39,'Athlete Input'!$B:$AJ,L$1,FALSE)="","",VLOOKUP($B39,'Athlete Input'!$B:$AJ,L$1,FALSE))) ->  | M39: =IF($B39="","",IF(VLOOKUP($B39,'Athlete Input'!$B:$AJ,M$1,FALSE)="","",VLOOKUP($B39,'Athlete Input'!$B:$AJ,M$1,FALSE))) ->  | N39: =IF($B39="","",IF(VLOOKUP($B39,'Athlete Input'!$B:$AJ,N$1,FALSE)="","",VLOOKUP($B39,'Athlete Input'!$B:$AJ,N$1,FALSE))) ->  | O39: =IF($B39="","",IF(VLOOKUP($B39,'Athlete Input'!$B:$AJ,O$1,FALSE)="","",VLOOKUP($B39,'Athlete Input'!$B:$AJ,O$1,FALSE))) ->  | P39: =IF($B39="","",IF(VLOOKUP($B39,'Athlete Input'!$B:$AJ,P$1,FALSE)="","",VLOOKUP($B39,'Athlete Input'!$B:$AJ,P$1,FALSE))) ->  | Q39: =IF($B39="","",IF(VLOOKUP($B39,'Athlete Input'!$B:$AJ,Q$1,FALSE)="","",VLOOKUP($B39,'Athlete Input'!$B:$AJ,Q$1,FALSE))) ->  | R39: =IF($B39="","",IF(VLOOKUP($B39,'Athlete Input'!$B:$AJ,R$1,FALSE)="","",VLOOKUP($B39,'Athlete Input'!$B:$AJ,R$1,FALSE))) ->  | S39: =IF($B39="","",IF(VLOOKUP($B39,'Athlete Input'!$B:$AJ,S$1,FALSE)="","",VLOOKUP($B39,'Athlete Input'!$B:$AJ,S$1,FALSE))) ->  | T39: =IF($B39="","",IF(VLOOKUP($B39,'Athlete Input'!$B:$AJ,T$1,FALSE)="","",VLOOKUP($B39,'Athlete Input'!$B:$AJ,T$1,FALSE))) ->  | U39: =IF($B39="","",IF(VLOOKUP($B39,'Athlete Input'!$B:$BZ,U$1,FALSE)="","",VLOOKUP($B39,'Athlete Input'!$B:$BZ,U$1,FALSE))) ->  | V39: =IF($B39="","",IF(VLOOKUP($B39,'Athlete Input'!$B:$BZ,V$1,FALSE)="","",VLOOKUP($B39,'Athlete Input'!$B:$BZ,V$1,FALSE))) ->  | W39: =IF($B39="","",IF(VLOOKUP($B39,'Athlete Input'!$B:$BZ,W$1,FALSE)="","",VLOOKUP($B39,'Athlete Input'!$B:$BZ,W$1,FALSE))) ->  | X39: =IF($B39="","",IF(VLOOKUP($B39,'Athlete Input'!$B:$BZ,X$1,FALSE)="","",VLOOKUP($B39,'Athlete Input'!$B:$BZ,X$1,FALSE))) ->  | Y39: =IF($B39="","",IF(VLOOKUP($B39,'Athlete Input'!$B:$BZ,Y$1,FALSE)="","",VLOOKUP($B39,'Athlete Input'!$B:$BZ,Y$1,FALSE))) ->  | Z39: =IF($B39="","",IF(VLOOKUP($B39,'Athlete Input'!$B:$BZ,Z$1,FALSE)="","",VLOOKUP($B39,'Athlete Input'!$B:$BZ,Z$1,FALSE))) ->  | AA39: =IF($B39="","",IF(VLOOKUP($B39,'Athlete Input'!$B:$BZ,AA$1,FALSE)="","",VLOOKUP($B39,'Athlete Input'!$B:$BZ,AA$1,FALSE))) ->  | AB39: =IF($B39="","",IF(VLOOKUP($B39,'Athlete Input'!$B:$BZ,AB$1,FALSE)="","",VLOOKUP($B39,'Athlete Input'!$B:$BZ,AB$1,FALSE))) ->  | AC39: =IF($B39="","",IF(VLOOKUP($B39,'Athlete Input'!$B:$BZ,AC$1,FALSE)="","",VLOOKUP($B39,'Athlete Input'!$B:$BZ,AC$1,FALSE))) ->  | AD39: =IF($B39="","",IF(VLOOKUP($B39,'Athlete Input'!$B:$BZ,AD$1,FALSE)="","",VLOOKUP($B39,'Athlete Input'!$B:$BZ,AD$1,FALSE))) ->  | AE39: =IF($B39="","",IF(VLOOKUP($B39,'Athlete Input'!$B:$BZ,AE$1,FALSE)="","",VLOOKUP($B39,'Athlete Input'!$B:$BZ,AE$1,FALSE))) ->  | AF39: =IF($B39="","",IF(VLOOKUP($B39,'Athlete Input'!$B:$BZ,AF$1,FALSE)="","",VLOOKUP($B39,'Athlete Input'!$B:$BZ,AF$1,FALSE))) ->  | AG39: =IF($B39="","",IF(VLOOKUP($B39,'Athlete Input'!$B:$BZ,AG$1,FALSE)="","",VLOOKUP($B39,'Athlete Input'!$B:$BZ,AG$1,FALSE))) ->  | AH39: =IF($B39="","",IF(VLOOKUP($B39,'Athlete Input'!$B:$BZ,AH$1,FALSE)="","",VLOOKUP($B39,'Athlete Input'!$B:$BZ,AH$1,FALSE))) ->  | AI39: =IF($B39="","",IF(VLOOKUP($B39,'Athlete Input'!$B:$BZ,AI$1,FALSE)="","",VLOOKUP($B39,'Athlete Input'!$B:$BZ,AI$1,FALSE))) ->  | AJ39: =IF($B39="","",IF(VLOOKUP($B39,'Athlete Input'!$B:$BZ,AJ$1,FALSE)="","",VLOOKUP($B39,'Athlete Input'!$B:$BZ,AJ$1,FALSE))) ->  | AK39: =IF($B39="","",IF(VLOOKUP($B39,'Athlete Input'!$B:$BZ,AK$1,FALSE)="","",VLOOKUP($B39,'Athlete Input'!$B:$BZ,AK$1,FALSE))) ->  | AL39: =IF($B39="","",IF(VLOOKUP($B39,'Athlete Input'!$B:$BZ,AL$1,FALSE)="","",VLOOKUP($B39,'Athlete Input'!$B:$BZ,AL$1,FALSE))) ->  | AM39: =IF(B39="","zz",'Athlete Input'!C79) -> zz
A40: 37 | B40: =IF('Athlete Input'!B39="","",'Athlete Input'!B39) -> Freya Ross | C40: =IF($B40="","",IF(VLOOKUP($B40,'Athlete Input'!$B:$AJ,C$1,FALSE)="","",VLOOKUP($B40,'Athlete Input'!$B:$AJ,C$1,FALSE))) ->  | D40: =IF($B40="","",IF(VLOOKUP($B40,'Athlete Input'!$B:$AJ,D$1,FALSE)="","",VLOOKUP($B40,'Athlete Input'!$B:$AJ,D$1,FALSE))) ->  | E40: =IF($B40="","",IF(VLOOKUP($B40,'Athlete Input'!$B:$AJ,E$1,FALSE)="","",VLOOKUP($B40,'Athlete Input'!$B:$AJ,E$1,FALSE))) ->  | F40: =IF($B40="","",IF(VLOOKUP($B40,'Athlete Input'!$B:$AJ,F$1,FALSE)="","",VLOOKUP($B40,'Athlete Input'!$B:$AJ,F$1,FALSE))) ->  | G40: =IF($B40="","",IF(VLOOKUP($B40,'Athlete Input'!$B:$AJ,G$1,FALSE)="","",VLOOKUP($B40,'Athlete Input'!$B:$AJ,G$1,FALSE))) -> 14.4 | H40: =IF($B40="","",IF(VLOOKUP($B40,'Athlete Input'!$B:$AJ,H$1,FALSE)="","",VLOOKUP($B40,'Athlete Input'!$B:$AJ,H$1,FALSE))) ->  | I40: =IF($B40="","",IF(VLOOKUP($B40,'Athlete Input'!$B:$AJ,I$1,FALSE)="","",VLOOKUP($B40,'Athlete Input'!$B:$AJ,I$1,FALSE))) ->  | J40: =IF($B40="","",IF(VLOOKUP($B40,'Athlete Input'!$B:$AJ,J$1,FALSE)="","",VLOOKUP($B40,'Athlete Input'!$B:$AJ,J$1,FALSE))) ->  | K40: =IF($B40="","",IF(VLOOKUP($B40,'Athlete Input'!$B:$AJ,K$1,FALSE)="","",VLOOKUP($B40,'Athlete Input'!$B:$AJ,K$1,FALSE))) ->  | L40: =IF($B40="","",IF(VLOOKUP($B40,'Athlete Input'!$B:$AJ,L$1,FALSE)="","",VLOOKUP($B40,'Athlete Input'!$B:$AJ,L$1,FALSE))) ->  | M40: =IF($B40="","",IF(VLOOKUP($B40,'Athlete Input'!$B:$AJ,M$1,FALSE)="","",VLOOKUP($B40,'Athlete Input'!$B:$AJ,M$1,FALSE))) ->  | N40: =IF($B40="","",IF(VLOOKUP($B40,'Athlete Input'!$B:$AJ,N$1,FALSE)="","",VLOOKUP($B40,'Athlete Input'!$B:$AJ,N$1,FALSE))) ->  | O40: =IF($B40="","",IF(VLOOKUP($B40,'Athlete Input'!$B:$AJ,O$1,FALSE)="","",VLOOKUP($B40,'Athlete Input'!$B:$AJ,O$1,FALSE))) -> 23.5 | P40: =IF($B40="","",IF(VLOOKUP($B40,'Athlete Input'!$B:$AJ,P$1,FALSE)="","",VLOOKUP($B40,'Athlete Input'!$B:$AJ,P$1,FALSE))) ->  | Q40: =IF($B40="","",IF(VLOOKUP($B40,'Athlete Input'!$B:$AJ,Q$1,FALSE)="","",VLOOKUP($B40,'Athlete Input'!$B:$AJ,Q$1,FALSE))) ->  | R40: =IF($B40="","",IF(VLOOKUP($B40,'Athlete Input'!$B:$AJ,R$1,FALSE)="","",VLOOKUP($B40,'Athlete Input'!$B:$AJ,R$1,FALSE))) ->  | S40: =IF($B40="","",IF(VLOOKUP($B40,'Athlete Input'!$B:$AJ,S$1,FALSE)="","",VLOOKUP($B40,'Athlete Input'!$B:$AJ,S$1,FALSE))) ->  | T40: =IF($B40="","",IF(VLOOKUP($B40,'Athlete Input'!$B:$AJ,T$1,FALSE)="","",VLOOKUP($B40,'Athlete Input'!$B:$AJ,T$1,FALSE))) ->  | U40: =IF($B40="","",IF(VLOOKUP($B40,'Athlete Input'!$B:$BZ,U$1,FALSE)="","",VLOOKUP($B40,'Athlete Input'!$B:$BZ,U$1,FALSE))) ->  | V40: =IF($B40="","",IF(VLOOKUP($B40,'Athlete Input'!$B:$BZ,V$1,FALSE)="","",VLOOKUP($B40,'Athlete Input'!$B:$BZ,V$1,FALSE))) ->  | W40: =IF($B40="","",IF(VLOOKUP($B40,'Athlete Input'!$B:$BZ,W$1,FALSE)="","",VLOOKUP($B40,'Athlete Input'!$B:$BZ,W$1,FALSE))) ->  | X40: =IF($B40="","",IF(VLOOKUP($B40,'Athlete Input'!$B:$BZ,X$1,FALSE)="","",VLOOKUP($B40,'Athlete Input'!$B:$BZ,X$1,FALSE))) ->  | Y40: =IF($B40="","",IF(VLOOKUP($B40,'Athlete Input'!$B:$BZ,Y$1,FALSE)="","",VLOOKUP($B40,'Athlete Input'!$B:$BZ,Y$1,FALSE))) ->  | Z40: =IF($B40="","",IF(VLOOKUP($B40,'Athlete Input'!$B:$BZ,Z$1,FALSE)="","",VLOOKUP($B40,'Athlete Input'!$B:$BZ,Z$1,FALSE))) ->  | AA40: =IF($B40="","",IF(VLOOKUP($B40,'Athlete Input'!$B:$BZ,AA$1,FALSE)="","",VLOOKUP($B40,'Athlete Input'!$B:$BZ,AA$1,FALSE))) ->  | AB40: =IF($B40="","",IF(VLOOKUP($B40,'Athlete Input'!$B:$BZ,AB$1,FALSE)="","",VLOOKUP($B40,'Athlete Input'!$B:$BZ,AB$1,FALSE))) ->  | AC40: =IF($B40="","",IF(VLOOKUP($B40,'Athlete Input'!$B:$BZ,AC$1,FALSE)="","",VLOOKUP($B40,'Athlete Input'!$B:$BZ,AC$1,FALSE))) ->  | AD40: =IF($B40="","",IF(VLOOKUP($B40,'Athlete Input'!$B:$BZ,AD$1,FALSE)="","",VLOOKUP($B40,'Athlete Input'!$B:$BZ,AD$1,FALSE))) ->  | AE40: =IF($B40="","",IF(VLOOKUP($B40,'Athlete Input'!$B:$BZ,AE$1,FALSE)="","",VLOOKUP($B40,'Athlete Input'!$B:$BZ,AE$1,FALSE))) ->  | AF40: =IF($B40="","",IF(VLOOKUP($B40,'Athlete Input'!$B:$BZ,AF$1,FALSE)="","",VLOOKUP($B40,'Athlete Input'!$B:$BZ,AF$1,FALSE))) ->  | AG40: =IF($B40="","",IF(VLOOKUP($B40,'Athlete Input'!$B:$BZ,AG$1,FALSE)="","",VLOOKUP($B40,'Athlete Input'!$B:$BZ,AG$1,FALSE))) ->  | AH40: =IF($B40="","",IF(VLOOKUP($B40,'Athlete Input'!$B:$BZ,AH$1,FALSE)="","",VLOOKUP($B40,'Athlete Input'!$B:$BZ,AH$1,FALSE))) ->  | AI40: =IF($B40="","",IF(VLOOKUP($B40,'Athlete Input'!$B:$BZ,AI$1,FALSE)="","",VLOOKUP($B40,'Athlete Input'!$B:$BZ,AI$1,FALSE))) ->  | AJ40: =IF($B40="","",IF(VLOOKUP($B40,'Athlete Input'!$B:$BZ,AJ$1,FALSE)="","",VLOOKUP($B40,'Athlete Input'!$B:$BZ,AJ$1,FALSE))) ->  | AK40: =IF($B40="","",IF(VLOOKUP($B40,'Athlete Input'!$B:$BZ,AK$1,FALSE)="","",VLOOKUP($B40,'Athlete Input'!$B:$BZ,AK$1,FALSE))) ->  | AL40: =IF($B40="","",IF(VLOOKUP($B40,'Athlete Input'!$B:$BZ,AL$1,FALSE)="","",VLOOKUP($B40,'Athlete Input'!$B:$BZ,AL$1,FALSE))) ->  | AM40: =IF(B40="","zz",'Athlete Input'!C39) -> Ross
A41: 38 | B41: =IF('Athlete Input'!B40="","",'Athlete Input'!B40) -> Lauren Wilson | C41: =IF($B41="","",IF(VLOOKUP($B41,'Athlete Input'!$B:$AJ,C$1,FALSE)="","",VLOOKUP($B41,'Athlete Input'!$B:$AJ,C$1,FALSE))) ->  | D41: =IF($B41="","",IF(VLOOKUP($B41,'Athlete Input'!$B:$AJ,D$1,FALSE)="","",VLOOKUP($B41,'Athlete Input'!$B:$AJ,D$1,FALSE))) ->  | E41: =IF($B41="","",IF(VLOOKUP($B41,'Athlete Input'!$B:$AJ,E$1,FALSE)="","",VLOOKUP($B41,'Athlete Input'!$B:$AJ,E$1,FALSE))) ->  | F41: =IF($B41="","",IF(VLOOKUP($B41,'Athlete Input'!$B:$AJ,F$1,FALSE)="","",VLOOKUP($B41,'Athlete Input'!$B:$AJ,F$1,FALSE))) ->  | G41: =IF($B41="","",IF(VLOOKUP($B41,'Athlete Input'!$B:$AJ,G$1,FALSE)="","",VLOOKUP($B41,'Athlete Input'!$B:$AJ,G$1,FALSE))) -> 16 | H41: =IF($B41="","",IF(VLOOKUP($B41,'Athlete Input'!$B:$AJ,H$1,FALSE)="","",VLOOKUP($B41,'Athlete Input'!$B:$AJ,H$1,FALSE))) ->  | I41: =IF($B41="","",IF(VLOOKUP($B41,'Athlete Input'!$B:$AJ,I$1,FALSE)="","",VLOOKUP($B41,'Athlete Input'!$B:$AJ,I$1,FALSE))) ->  | J41: =IF($B41="","",IF(VLOOKUP($B41,'Athlete Input'!$B:$AJ,J$1,FALSE)="","",VLOOKUP($B41,'Athlete Input'!$B:$AJ,J$1,FALSE))) ->  | K41: =IF($B41="","",IF(VLOOKUP($B41,'Athlete Input'!$B:$AJ,K$1,FALSE)="","",VLOOKUP($B41,'Athlete Input'!$B:$AJ,K$1,FALSE))) ->  | L41: =IF($B41="","",IF(VLOOKUP($B41,'Athlete Input'!$B:$AJ,L$1,FALSE)="","",VLOOKUP($B41,'Athlete Input'!$B:$AJ,L$1,FALSE))) ->  | M41: =IF($B41="","",IF(VLOOKUP($B41,'Athlete Input'!$B:$AJ,M$1,FALSE)="","",VLOOKUP($B41,'Athlete Input'!$B:$AJ,M$1,FALSE))) ->  | N41: =IF($B41="","",IF(VLOOKUP($B41,'Athlete Input'!$B:$AJ,N$1,FALSE)="","",VLOOKUP($B41,'Athlete Input'!$B:$AJ,N$1,FALSE))) ->  | O41: =IF($B41="","",IF(VLOOKUP($B41,'Athlete Input'!$B:$AJ,O$1,FALSE)="","",VLOOKUP($B41,'Athlete Input'!$B:$AJ,O$1,FALSE))) ->  | P41: =IF($B41="","",IF(VLOOKUP($B41,'Athlete Input'!$B:$AJ,P$1,FALSE)="","",VLOOKUP($B41,'Athlete Input'!$B:$AJ,P$1,FALSE))) ->  | Q41: =IF($B41="","",IF(VLOOKUP($B41,'Athlete Input'!$B:$AJ,Q$1,FALSE)="","",VLOOKUP($B41,'Athlete Input'!$B:$AJ,Q$1,FALSE))) ->  | R41: =IF($B41="","",IF(VLOOKUP($B41,'Athlete Input'!$B:$AJ,R$1,FALSE)="","",VLOOKUP($B41,'Athlete Input'!$B:$AJ,R$1,FALSE))) ->  | S41: =IF($B41="","",IF(VLOOKUP($B41,'Athlete Input'!$B:$AJ,S$1,FALSE)="","",VLOOKUP($B41,'Athlete Input'!$B:$AJ,S$1,FALSE))) ->  | T41: =IF($B41="","",IF(VLOOKUP($B41,'Athlete Input'!$B:$AJ,T$1,FALSE)="","",VLOOKUP($B41,'Athlete Input'!$B:$AJ,T$1,FALSE))) ->  | U41: =IF($B41="","",IF(VLOOKUP($B41,'Athlete Input'!$B:$BZ,U$1,FALSE)="","",VLOOKUP($B41,'Athlete Input'!$B:$BZ,U$1,FALSE))) ->  | V41: =IF($B41="","",IF(VLOOKUP($B41,'Athlete Input'!$B:$BZ,V$1,FALSE)="","",VLOOKUP($B41,'Athlete Input'!$B:$BZ,V$1,FALSE))) ->  | W41: =IF($B41="","",IF(VLOOKUP($B41,'Athlete Input'!$B:$BZ,W$1,FALSE)="","",VLOOKUP($B41,'Athlete Input'!$B:$BZ,W$1,FALSE))) ->  | X41: =IF($B41="","",IF(VLOOKUP($B41,'Athlete Input'!$B:$BZ,X$1,FALSE)="","",VLOOKUP($B41,'Athlete Input'!$B:$BZ,X$1,FALSE))) ->  | Y41: =IF($B41="","",IF(VLOOKUP($B41,'Athlete Input'!$B:$BZ,Y$1,FALSE)="","",VLOOKUP($B41,'Athlete Input'!$B:$BZ,Y$1,FALSE))) ->  | Z41: =IF($B41="","",IF(VLOOKUP($B41,'Athlete Input'!$B:$BZ,Z$1,FALSE)="","",VLOOKUP($B41,'Athlete Input'!$B:$BZ,Z$1,FALSE))) ->  | AA41: =IF($B41="","",IF(VLOOKUP($B41,'Athlete Input'!$B:$BZ,AA$1,FALSE)="","",VLOOKUP($B41,'Athlete Input'!$B:$BZ,AA$1,FALSE))) ->  | AB41: =IF($B41="","",IF(VLOOKUP($B41,'Athlete Input'!$B:$BZ,AB$1,FALSE)="","",VLOOKUP($B41,'Athlete Input'!$B:$BZ,AB$1,FALSE))) ->  | AC41: =IF($B41="","",IF(VLOOKUP($B41,'Athlete Input'!$B:$BZ,AC$1,FALSE)="","",VLOOKUP($B41,'Athlete Input'!$B:$BZ,AC$1,FALSE))) ->  | AD41: =IF($B41="","",IF(VLOOKUP($B41,'Athlete Input'!$B:$BZ,AD$1,FALSE)="","",VLOOKUP($B41,'Athlete Input'!$B:$BZ,AD$1,FALSE))) ->  | AE41: =IF($B41="","",IF(VLOOKUP($B41,'Athlete Input'!$B:$BZ,AE$1,FALSE)="","",VLOOKUP($B41,'Athlete Input'!$B:$BZ,AE$1,FALSE))) ->  | AF41: =IF($B41="","",IF(VLOOKUP($B41,'Athlete Input'!$B:$BZ,AF$1,FALSE)="","",VLOOKUP($B41,'Athlete Input'!$B:$BZ,AF$1,FALSE))) ->  | AG41: =IF($B41="","",IF(VLOOKUP($B41,'Athlete Input'!$B:$BZ,AG$1,FALSE)="","",VLOOKUP($B41,'Athlete Input'!$B:$BZ,AG$1,FALSE))) ->  | AH41: =IF($B41="","",IF(VLOOKUP($B41,'Athlete Input'!$B:$BZ,AH$1,FALSE)="","",VLOOKUP($B41,'Athlete Input'!$B:$BZ,AH$1,FALSE))) ->  | AI41: =IF($B41="","",IF(VLOOKUP($B41,'Athlete Input'!$B:$BZ,AI$1,FALSE)="","",VLOOKUP($B41,'Athlete Input'!$B:$BZ,AI$1,FALSE))) ->  | AJ41: =IF($B41="","",IF(VLOOKUP($B41,'Athlete Input'!$B:$BZ,AJ$1,FALSE)="","",VLOOKUP($B41,'Athlete Input'!$B:$BZ,AJ$1,FALSE))) ->  | AK41: =IF($B41="","",IF(VLOOKUP($B41,'Athlete Input'!$B:$BZ,AK$1,FALSE)="","",VLOOKUP($B41,'Athlete Input'!$B:$BZ,AK$1,FALSE))) ->  | AL41: =IF($B41="","",IF(VLOOKUP($B41,'Athlete Input'!$B:$BZ,AL$1,FALSE)="","",VLOOKUP($B41,'Athlete Input'!$B:$BZ,AL$1,FALSE))) ->  | AM41: =IF(B41="","zz",'Athlete Input'!C40) -> Wilson
A42: 39 | B42: =IF('Athlete Input'!B41="","",'Athlete Input'!B41) -> Helga Gudny Ellsasdottir | C42: =IF($B42="","",IF(VLOOKUP($B42,'Athlete Input'!$B:$AJ,C$1,FALSE)="","",VLOOKUP($B42,'Athlete Input'!$B:$AJ,C$1,FALSE))) ->  | D42: =IF($B42="","",IF(VLOOKUP($B42,'Athlete Input'!$B:$AJ,D$1,FALSE)="","",VLOOKUP($B42,'Athlete Input'!$B:$AJ,D$1,FALSE))) ->  | E42: =IF($B42="","",IF(VLOOKUP($B42,'Athlete Input'!$B:$AJ,E$1,FALSE)="","",VLOOKUP($B42,'Athlete Input'!$B:$AJ,E$1,FALSE))) ->  | F42: =IF($B42="","",IF(VLOOKUP($B42,'Athlete Input'!$B:$AJ,F$1,FALSE)="","",VLOOKUP($B42,'Athlete Input'!$B:$AJ,F$1,FALSE))) ->  | G42: =IF($B42="","",IF(VLOOKUP($B42,'Athlete Input'!$B:$AJ,G$1,FALSE)="","",VLOOKUP($B42,'Athlete Input'!$B:$AJ,G$1,FALSE))) -> 16.24 | H42: =IF($B42="","",IF(VLOOKUP($B42,'Athlete Input'!$B:$AJ,H$1,FALSE)="","",VLOOKUP($B42,'Athlete Input'!$B:$AJ,H$1,FALSE))) ->  | I42: =IF($B42="","",IF(VLOOKUP($B42,'Athlete Input'!$B:$AJ,I$1,FALSE)="","",VLOOKUP($B42,'Athlete Input'!$B:$AJ,I$1,FALSE))) ->  | J42: =IF($B42="","",IF(VLOOKUP($B42,'Athlete Input'!$B:$AJ,J$1,FALSE)="","",VLOOKUP($B42,'Athlete Input'!$B:$AJ,J$1,FALSE))) ->  | K42: =IF($B42="","",IF(VLOOKUP($B42,'Athlete Input'!$B:$AJ,K$1,FALSE)="","",VLOOKUP($B42,'Athlete Input'!$B:$AJ,K$1,FALSE))) ->  | L42: =IF($B42="","",IF(VLOOKUP($B42,'Athlete Input'!$B:$AJ,L$1,FALSE)="","",VLOOKUP($B42,'Athlete Input'!$B:$AJ,L$1,FALSE))) ->  | M42: =IF($B42="","",IF(VLOOKUP($B42,'Athlete Input'!$B:$AJ,M$1,FALSE)="","",VLOOKUP($B42,'Athlete Input'!$B:$AJ,M$1,FALSE))) ->  | N42: =IF($B42="","",IF(VLOOKUP($B42,'Athlete Input'!$B:$AJ,N$1,FALSE)="","",VLOOKUP($B42,'Athlete Input'!$B:$AJ,N$1,FALSE))) ->  | O42: =IF($B42="","",IF(VLOOKUP($B42,'Athlete Input'!$B:$AJ,O$1,FALSE)="","",VLOOKUP($B42,'Athlete Input'!$B:$AJ,O$1,FALSE))) ->  | P42: =IF($B42="","",IF(VLOOKUP($B42,'Athlete Input'!$B:$AJ,P$1,FALSE)="","",VLOOKUP($B42,'Athlete Input'!$B:$AJ,P$1,FALSE))) ->  | Q42: =IF($B42="","",IF(VLOOKUP($B42,'Athlete Input'!$B:$AJ,Q$1,FALSE)="","",VLOOKUP($B42,'Athlete Input'!$B:$AJ,Q$1,FALSE))) ->  | R42: =IF($B42="","",IF(VLOOKUP($B42,'Athlete Input'!$B:$AJ,R$1,FALSE)="","",VLOOKUP($B42,'Athlete Input'!$B:$AJ,R$1,FALSE))) ->  | S42: =IF($B42="","",IF(VLOOKUP($B42,'Athlete Input'!$B:$AJ,S$1,FALSE)="","",VLOOKUP($B42,'Athlete Input'!$B:$AJ,S$1,FALSE))) ->  | T42: =IF($B42="","",IF(VLOOKUP($B42,'Athlete Input'!$B:$AJ,T$1,FALSE)="","",VLOOKUP($B42,'Athlete Input'!$B:$AJ,T$1,FALSE))) ->  | U42: =IF($B42="","",IF(VLOOKUP($B42,'Athlete Input'!$B:$BZ,U$1,FALSE)="","",VLOOKUP($B42,'Athlete Input'!$B:$BZ,U$1,FALSE))) ->  | V42: =IF($B42="","",IF(VLOOKUP($B42,'Athlete Input'!$B:$BZ,V$1,FALSE)="","",VLOOKUP($B42,'Athlete Input'!$B:$BZ,V$1,FALSE))) ->  | W42: =IF($B42="","",IF(VLOOKUP($B42,'Athlete Input'!$B:$BZ,W$1,FALSE)="","",VLOOKUP($B42,'Athlete Input'!$B:$BZ,W$1,FALSE))) ->  | X42: =IF($B42="","",IF(VLOOKUP($B42,'Athlete Input'!$B:$BZ,X$1,FALSE)="","",VLOOKUP($B42,'Athlete Input'!$B:$BZ,X$1,FALSE))) ->  | Y42: =IF($B42="","",IF(VLOOKUP($B42,'Athlete Input'!$B:$BZ,Y$1,FALSE)="","",VLOOKUP($B42,'Athlete Input'!$B:$BZ,Y$1,FALSE))) ->  | Z42: =IF($B42="","",IF(VLOOKUP($B42,'Athlete Input'!$B:$BZ,Z$1,FALSE)="","",VLOOKUP($B42,'Athlete Input'!$B:$BZ,Z$1,FALSE))) ->  | AA42: =IF($B42="","",IF(VLOOKUP($B42,'Athlete Input'!$B:$BZ,AA$1,FALSE)="","",VLOOKUP($B42,'Athlete Input'!$B:$BZ,AA$1,FALSE))) ->  | AB42: =IF($B42="","",IF(VLOOKUP($B42,'Athlete Input'!$B:$BZ,AB$1,FALSE)="","",VLOOKUP($B42,'Athlete Input'!$B:$BZ,AB$1,FALSE))) ->  | AC42: =IF($B42="","",IF(VLOOKUP($B42,'Athlete Input'!$B:$BZ,AC$1,FALSE)="","",VLOOKUP($B42,'Athlete Input'!$B:$BZ,AC$1,FALSE))) ->  | AD42: =IF($B42="","",IF(VLOOKUP($B42,'Athlete Input'!$B:$BZ,AD$1,FALSE)="","",VLOOKUP($B42,'Athlete Input'!$B:$BZ,AD$1,FALSE))) ->  | AE42: =IF($B42="","",IF(VLOOKUP($B42,'Athlete Input'!$B:$BZ,AE$1,FALSE)="","",VLOOKUP($B42,'Athlete Input'!$B:$BZ,AE$1,FALSE))) ->  | AF42: =IF($B42="","",IF(VLOOKUP($B42,'Athlete Input'!$B:$BZ,AF$1,FALSE)="","",VLOOKUP($B42,'Athlete Input'!$B:$BZ,AF$1,FALSE))) ->  | AG42: =IF($B42="","",IF(VLOOKUP($B42,'Athlete Input'!$B:$BZ,AG$1,FALSE)="","",VLOOKUP($B42,'Athlete Input'!$B:$BZ,AG$1,FALSE))) ->  | AH42: =IF($B42="","",IF(VLOOKUP($B42,'Athlete Input'!$B:$BZ,AH$1,FALSE)="","",VLOOKUP($B42,'Athlete Input'!$B:$BZ,AH$1,FALSE))) ->  | AI42: =IF($B42="","",IF(VLOOKUP($B42,'Athlete Input'!$B:$BZ,AI$1,FALSE)="","",VLOOKUP($B42,'Athlete Input'!$B:$BZ,AI$1,FALSE))) ->  | AJ42: =IF($B42="","",IF(VLOOKUP($B42,'Athlete Input'!$B:$BZ,AJ$1,FALSE)="","",VLOOKUP($B42,'Athlete Input'!$B:$BZ,AJ$1,FALSE))) ->  | AK42: =IF($B42="","",IF(VLOOKUP($B42,'Athlete Input'!$B:$BZ,AK$1,FALSE)="","",VLOOKUP($B42,'Athlete Input'!$B:$BZ,AK$1,FALSE))) ->  | AL42: =IF($B42="","",IF(VLOOKUP($B42,'Athlete Input'!$B:$BZ,AL$1,FALSE)="","",VLOOKUP($B42,'Athlete Input'!$B:$BZ,AL$1,FALSE))) ->  | AM42: =IF(B42="","zz",'Athlete Input'!C41) -> Ellsasdottir
A43: 40 | B43: =IF('Athlete Input'!B42="","",'Athlete Input'!B42) -> K Hiersemenzel | C43: =IF($B43="","",IF(VLOOKUP($B43,'Athlete Input'!$B:$AJ,C$1,FALSE)="","",VLOOKUP($B43,'Athlete Input'!$B:$AJ,C$1,FALSE))) ->  | D43: =IF($B43="","",IF(VLOOKUP($B43,'Athlete Input'!$B:$AJ,D$1,FALSE)="","",VLOOKUP($B43,'Athlete Input'!$B:$AJ,D$1,FALSE))) ->  | E43: =IF($B43="","",IF(VLOOKUP($B43,'Athlete Input'!$B:$AJ,E$1,FALSE)="","",VLOOKUP($B43,'Athlete Input'!$B:$AJ,E$1,FALSE))) ->  | F43: =IF($B43="","",IF(VLOOKUP($B43,'Athlete Input'!$B:$AJ,F$1,FALSE)="","",VLOOKUP($B43,'Athlete Input'!$B:$AJ,F$1,FALSE))) ->  | G43: =IF($B43="","",IF(VLOOKUP($B43,'Athlete Input'!$B:$AJ,G$1,FALSE)="","",VLOOKUP($B43,'Athlete Input'!$B:$AJ,G$1,FALSE))) ->  | H43: =IF($B43="","",IF(VLOOKUP($B43,'Athlete Input'!$B:$AJ,H$1,FALSE)="","",VLOOKUP($B43,'Athlete Input'!$B:$AJ,H$1,FALSE))) ->  | I43: =IF($B43="","",IF(VLOOKUP($B43,'Athlete Input'!$B:$AJ,I$1,FALSE)="","",VLOOKUP($B43,'Athlete Input'!$B:$AJ,I$1,FALSE))) -> 27.36 | J43: =IF($B43="","",IF(VLOOKUP($B43,'Athlete Input'!$B:$AJ,J$1,FALSE)="","",VLOOKUP($B43,'Athlete Input'!$B:$AJ,J$1,FALSE))) ->  | K43: =IF($B43="","",IF(VLOOKUP($B43,'Athlete Input'!$B:$AJ,K$1,FALSE)="","",VLOOKUP($B43,'Athlete Input'!$B:$AJ,K$1,FALSE))) ->  | L43: =IF($B43="","",IF(VLOOKUP($B43,'Athlete Input'!$B:$AJ,L$1,FALSE)="","",VLOOKUP($B43,'Athlete Input'!$B:$AJ,L$1,FALSE))) ->  | M43: =IF($B43="","",IF(VLOOKUP($B43,'Athlete Input'!$B:$AJ,M$1,FALSE)="","",VLOOKUP($B43,'Athlete Input'!$B:$AJ,M$1,FALSE))) ->  | N43: =IF($B43="","",IF(VLOOKUP($B43,'Athlete Input'!$B:$AJ,N$1,FALSE)="","",VLOOKUP($B43,'Athlete Input'!$B:$AJ,N$1,FALSE))) ->  | O43: =IF($B43="","",IF(VLOOKUP($B43,'Athlete Input'!$B:$AJ,O$1,FALSE)="","",VLOOKUP($B43,'Athlete Input'!$B:$AJ,O$1,FALSE))) ->  | P43: =IF($B43="","",IF(VLOOKUP($B43,'Athlete Input'!$B:$AJ,P$1,FALSE)="","",VLOOKUP($B43,'Athlete Input'!$B:$AJ,P$1,FALSE))) ->  | Q43: =IF($B43="","",IF(VLOOKUP($B43,'Athlete Input'!$B:$AJ,Q$1,FALSE)="","",VLOOKUP($B43,'Athlete Input'!$B:$AJ,Q$1,FALSE))) ->  | R43: =IF($B43="","",IF(VLOOKUP($B43,'Athlete Input'!$B:$AJ,R$1,FALSE)="","",VLOOKUP($B43,'Athlete Input'!$B:$AJ,R$1,FALSE))) ->  | S43: =IF($B43="","",IF(VLOOKUP($B43,'Athlete Input'!$B:$AJ,S$1,FALSE)="","",VLOOKUP($B43,'Athlete Input'!$B:$AJ,S$1,FALSE))) ->  | T43: =IF($B43="","",IF(VLOOKUP($B43,'Athlete Input'!$B:$AJ,T$1,FALSE)="","",VLOOKUP($B43,'Athlete Input'!$B:$AJ,T$1,FALSE))) ->  | U43: =IF($B43="","",IF(VLOOKUP($B43,'Athlete Input'!$B:$BZ,U$1,FALSE)="","",VLOOKUP($B43,'Athlete Input'!$B:$BZ,U$1,FALSE))) ->  | V43: =IF($B43="","",IF(VLOOKUP($B43,'Athlete Input'!$B:$BZ,V$1,FALSE)="","",VLOOKUP($B43,'Athlete Input'!$B:$BZ,V$1,FALSE))) ->  | W43: =IF($B43="","",IF(VLOOKUP($B43,'Athlete Input'!$B:$BZ,W$1,FALSE)="","",VLOOKUP($B43,'Athlete Input'!$B:$BZ,W$1,FALSE))) ->  | X43: =IF($B43="","",IF(VLOOKUP($B43,'Athlete Input'!$B:$BZ,X$1,FALSE)="","",VLOOKUP($B43,'Athlete Input'!$B:$BZ,X$1,FALSE))) ->  | Y43: =IF($B43="","",IF(VLOOKUP($B43,'Athlete Input'!$B:$BZ,Y$1,FALSE)="","",VLOOKUP($B43,'Athlete Input'!$B:$BZ,Y$1,FALSE))) ->  | Z43: =IF($B43="","",IF(VLOOKUP($B43,'Athlete Input'!$B:$BZ,Z$1,FALSE)="","",VLOOKUP($B43,'Athlete Input'!$B:$BZ,Z$1,FALSE))) ->  | AA43: =IF($B43="","",IF(VLOOKUP($B43,'Athlete Input'!$B:$BZ,AA$1,FALSE)="","",VLOOKUP($B43,'Athlete Input'!$B:$BZ,AA$1,FALSE))) ->  | AB43: =IF($B43="","",IF(VLOOKUP($B43,'Athlete Input'!$B:$BZ,AB$1,FALSE)="","",VLOOKUP($B43,'Athlete Input'!$B:$BZ,AB$1,FALSE))) ->  | AC43: =IF($B43="","",IF(VLOOKUP($B43,'Athlete Input'!$B:$BZ,AC$1,FALSE)="","",VLOOKUP($B43,'Athlete Input'!$B:$BZ,AC$1,FALSE))) ->  | AD43: =IF($B43="","",IF(VLOOKUP($B43,'Athlete Input'!$B:$BZ,AD$1,FALSE)="","",VLOOKUP($B43,'Athlete Input'!$B:$BZ,AD$1,FALSE))) ->  | AE43: =IF($B43="","",IF(VLOOKUP($B43,'Athlete Input'!$B:$BZ,AE$1,FALSE)="","",VLOOKUP($B43,'Athlete Input'!$B:$BZ,AE$1,FALSE))) ->  | AF43: =IF($B43="","",IF(VLOOKUP($B43,'Athlete Input'!$B:$BZ,AF$1,FALSE)="","",VLOOKUP($B43,'Athlete Input'!$B:$BZ,AF$1,FALSE))) ->  | AG43: =IF($B43="","",IF(VLOOKUP($B43,'Athlete Input'!$B:$BZ,AG$1,FALSE)="","",VLOOKUP($B43,'Athlete Input'!$B:$BZ,AG$1,FALSE))) ->  | AH43: =IF($B43="","",IF(VLOOKUP($B43,'Athlete Input'!$B:$BZ,AH$1,FALSE)="","",VLOOKUP($B43,'Athlete Input'!$B:$BZ,AH$1,FALSE))) ->  | AI43: =IF($B43="","",IF(VLOOKUP($B43,'Athlete Input'!$B:$BZ,AI$1,FALSE)="","",VLOOKUP($B43,'Athlete Input'!$B:$BZ,AI$1,FALSE))) ->  | AJ43: =IF($B43="","",IF(VLOOKUP($B43,'Athlete Input'!$B:$BZ,AJ$1,FALSE)="","",VLOOKUP($B43,'Athlete Input'!$B:$BZ,AJ$1,FALSE))) ->  | AK43: =IF($B43="","",IF(VLOOKUP($B43,'Athlete Input'!$B:$BZ,AK$1,FALSE)="","",VLOOKUP($B43,'Athlete Input'!$B:$BZ,AK$1,FALSE))) ->  | AL43: =IF($B43="","",IF(VLOOKUP($B43,'Athlete Input'!$B:$BZ,AL$1,FALSE)="","",VLOOKUP($B43,'Athlete Input'!$B:$BZ,AL$1,FALSE))) ->  | AM43: =IF(B43="","zz",'Athlete Input'!C42) -> Hiersemenzel
A44: 41 | B44: =IF('Athlete Input'!B77="","",'Athlete Input'!B77) ->  | C44: =IF($B44="","",IF(VLOOKUP($B44,'Athlete Input'!$B:$AJ,C$1,FALSE)="","",VLOOKUP($B44,'Athlete Input'!$B:$AJ,C$1,FALSE))) ->  | D44: =IF($B44="","",IF(VLOOKUP($B44,'Athlete Input'!$B:$AJ,D$1,FALSE)="","",VLOOKUP($B44,'Athlete Input'!$B:$AJ,D$1,FALSE))) ->  | E44: =IF($B44="","",IF(VLOOKUP($B44,'Athlete Input'!$B:$AJ,E$1,FALSE)="","",VLOOKUP($B44,'Athlete Input'!$B:$AJ,E$1,FALSE))) ->  | F44: =IF($B44="","",IF(VLOOKUP($B44,'Athlete Input'!$B:$AJ,F$1,FALSE)="","",VLOOKUP($B44,'Athlete Input'!$B:$AJ,F$1,FALSE))) ->  | G44: =IF($B44="","",IF(VLOOKUP($B44,'Athlete Input'!$B:$AJ,G$1,FALSE)="","",VLOOKUP($B44,'Athlete Input'!$B:$AJ,G$1,FALSE))) ->  | H44: =IF($B44="","",IF(VLOOKUP($B44,'Athlete Input'!$B:$AJ,H$1,FALSE)="","",VLOOKUP($B44,'Athlete Input'!$B:$AJ,H$1,FALSE))) ->  | I44: =IF($B44="","",IF(VLOOKUP($B44,'Athlete Input'!$B:$AJ,I$1,FALSE)="","",VLOOKUP($B44,'Athlete Input'!$B:$AJ,I$1,FALSE))) ->  | J44: =IF($B44="","",IF(VLOOKUP($B44,'Athlete Input'!$B:$AJ,J$1,FALSE)="","",VLOOKUP($B44,'Athlete Input'!$B:$AJ,J$1,FALSE))) ->  | K44: =IF($B44="","",IF(VLOOKUP($B44,'Athlete Input'!$B:$AJ,K$1,FALSE)="","",VLOOKUP($B44,'Athlete Input'!$B:$AJ,K$1,FALSE))) ->  | L44: =IF($B44="","",IF(VLOOKUP($B44,'Athlete Input'!$B:$AJ,L$1,FALSE)="","",VLOOKUP($B44,'Athlete Input'!$B:$AJ,L$1,FALSE))) ->  | M44: =IF($B44="","",IF(VLOOKUP($B44,'Athlete Input'!$B:$AJ,M$1,FALSE)="","",VLOOKUP($B44,'Athlete Input'!$B:$AJ,M$1,FALSE))) ->  | N44: =IF($B44="","",IF(VLOOKUP($B44,'Athlete Input'!$B:$AJ,N$1,FALSE)="","",VLOOKUP($B44,'Athlete Input'!$B:$AJ,N$1,FALSE))) ->  | O44: =IF($B44="","",IF(VLOOKUP($B44,'Athlete Input'!$B:$AJ,O$1,FALSE)="","",VLOOKUP($B44,'Athlete Input'!$B:$AJ,O$1,FALSE))) ->  | P44: =IF($B44="","",IF(VLOOKUP($B44,'Athlete Input'!$B:$AJ,P$1,FALSE)="","",VLOOKUP($B44,'Athlete Input'!$B:$AJ,P$1,FALSE))) ->  | Q44: =IF($B44="","",IF(VLOOKUP($B44,'Athlete Input'!$B:$AJ,Q$1,FALSE)="","",VLOOKUP($B44,'Athlete Input'!$B:$AJ,Q$1,FALSE))) ->  | R44: =IF($B44="","",IF(VLOOKUP($B44,'Athlete Input'!$B:$AJ,R$1,FALSE)="","",VLOOKUP($B44,'Athlete Input'!$B:$AJ,R$1,FALSE))) ->  | S44: =IF($B44="","",IF(VLOOKUP($B44,'Athlete Input'!$B:$AJ,S$1,FALSE)="","",VLOOKUP($B44,'Athlete Input'!$B:$AJ,S$1,FALSE))) ->  | T44: =IF($B44="","",IF(VLOOKUP($B44,'Athlete Input'!$B:$AJ,T$1,FALSE)="","",VLOOKUP($B44,'Athlete Input'!$B:$AJ,T$1,FALSE))) ->  | U44: =IF($B44="","",IF(VLOOKUP($B44,'Athlete Input'!$B:$BZ,U$1,FALSE)="","",VLOOKUP($B44,'Athlete Input'!$B:$BZ,U$1,FALSE))) ->  | V44: =IF($B44="","",IF(VLOOKUP($B44,'Athlete Input'!$B:$BZ,V$1,FALSE)="","",VLOOKUP($B44,'Athlete Input'!$B:$BZ,V$1,FALSE))) ->  | W44: =IF($B44="","",IF(VLOOKUP($B44,'Athlete Input'!$B:$BZ,W$1,FALSE)="","",VLOOKUP($B44,'Athlete Input'!$B:$BZ,W$1,FALSE))) ->  | X44: =IF($B44="","",IF(VLOOKUP($B44,'Athlete Input'!$B:$BZ,X$1,FALSE)="","",VLOOKUP($B44,'Athlete Input'!$B:$BZ,X$1,FALSE))) ->  | Y44: =IF($B44="","",IF(VLOOKUP($B44,'Athlete Input'!$B:$BZ,Y$1,FALSE)="","",VLOOKUP($B44,'Athlete Input'!$B:$BZ,Y$1,FALSE))) ->  | Z44: =IF($B44="","",IF(VLOOKUP($B44,'Athlete Input'!$B:$BZ,Z$1,FALSE)="","",VLOOKUP($B44,'Athlete Input'!$B:$BZ,Z$1,FALSE))) ->  | AA44: =IF($B44="","",IF(VLOOKUP($B44,'Athlete Input'!$B:$BZ,AA$1,FALSE)="","",VLOOKUP($B44,'Athlete Input'!$B:$BZ,AA$1,FALSE))) ->  | AB44: =IF($B44="","",IF(VLOOKUP($B44,'Athlete Input'!$B:$BZ,AB$1,FALSE)="","",VLOOKUP($B44,'Athlete Input'!$B:$BZ,AB$1,FALSE))) ->  | AC44: =IF($B44="","",IF(VLOOKUP($B44,'Athlete Input'!$B:$BZ,AC$1,FALSE)="","",VLOOKUP($B44,'Athlete Input'!$B:$BZ,AC$1,FALSE))) ->  | AD44: =IF($B44="","",IF(VLOOKUP($B44,'Athlete Input'!$B:$BZ,AD$1,FALSE)="","",VLOOKUP($B44,'Athlete Input'!$B:$BZ,AD$1,FALSE))) ->  | AE44: =IF($B44="","",IF(VLOOKUP($B44,'Athlete Input'!$B:$BZ,AE$1,FALSE)="","",VLOOKUP($B44,'Athlete Input'!$B:$BZ,AE$1,FALSE))) ->  | AF44: =IF($B44="","",IF(VLOOKUP($B44,'Athlete Input'!$B:$BZ,AF$1,FALSE)="","",VLOOKUP($B44,'Athlete Input'!$B:$BZ,AF$1,FALSE))) ->  | AG44: =IF($B44="","",IF(VLOOKUP($B44,'Athlete Input'!$B:$BZ,AG$1,FALSE)="","",VLOOKUP($B44,'Athlete Input'!$B:$BZ,AG$1,FALSE))) ->  | AH44: =IF($B44="","",IF(VLOOKUP($B44,'Athlete Input'!$B:$BZ,AH$1,FALSE)="","",VLOOKUP($B44,'Athlete Input'!$B:$BZ,AH$1,FALSE))) ->  | AI44: =IF($B44="","",IF(VLOOKUP($B44,'Athlete Input'!$B:$BZ,AI$1,FALSE)="","",VLOOKUP($B44,'Athlete Input'!$B:$BZ,AI$1,FALSE))) ->  | AJ44: =IF($B44="","",IF(VLOOKUP($B44,'Athlete Input'!$B:$BZ,AJ$1,FALSE)="","",VLOOKUP($B44,'Athlete Input'!$B:$BZ,AJ$1,FALSE))) ->  | AK44: =IF($B44="","",IF(VLOOKUP($B44,'Athlete Input'!$B:$BZ,AK$1,FALSE)="","",VLOOKUP($B44,'Athlete Input'!$B:$BZ,AK$1,FALSE))) ->  | AL44: =IF($B44="","",IF(VLOOKUP($B44,'Athlete Input'!$B:$BZ,AL$1,FALSE)="","",VLOOKUP($B44,'Athlete Input'!$B:$BZ,AL$1,FALSE))) ->  | AM44: =IF(B44="","zz",'Athlete Input'!C77) -> zz
A45: 42 | B45: =IF('Athlete Input'!B43="","",'Athlete Input'!B43) -> Jayne Nisbit | C45: =IF($B45="","",IF(VLOOKUP($B45,'Athlete Input'!$B:$AJ,C$1,FALSE)="","",VLOOKUP($B45,'Athlete Input'!$B:$AJ,C$1,FALSE))) ->  | D45: =IF($B45="","",IF(VLOOKUP($B45,'Athlete Input'!$B:$AJ,D$1,FALSE)="","",VLOOKUP($B45,'Athlete Input'!$B:$AJ,D$1,FALSE))) ->  | E45: =IF($B45="","",IF(VLOOKUP($B45,'Athlete Input'!$B:$AJ,E$1,FALSE)="","",VLOOKUP($B45,'Athlete Input'!$B:$AJ,E$1,FALSE))) ->  | F45: =IF($B45="","",IF(VLOOKUP($B45,'Athlete Input'!$B:$AJ,F$1,FALSE)="","",VLOOKUP($B45,'Athlete Input'!$B:$AJ,F$1,FALSE))) ->  | G45: =IF($B45="","",IF(VLOOKUP($B45,'Athlete Input'!$B:$AJ,G$1,FALSE)="","",VLOOKUP($B45,'Athlete Input'!$B:$AJ,G$1,FALSE))) ->  | H45: =IF($B45="","",IF(VLOOKUP($B45,'Athlete Input'!$B:$AJ,H$1,FALSE)="","",VLOOKUP($B45,'Athlete Input'!$B:$AJ,H$1,FALSE))) ->  | I45: =IF($B45="","",IF(VLOOKUP($B45,'Athlete Input'!$B:$AJ,I$1,FALSE)="","",VLOOKUP($B45,'Athlete Input'!$B:$AJ,I$1,FALSE))) ->  | J45: =IF($B45="","",IF(VLOOKUP($B45,'Athlete Input'!$B:$AJ,J$1,FALSE)="","",VLOOKUP($B45,'Athlete Input'!$B:$AJ,J$1,FALSE))) ->  | K45: =IF($B45="","",IF(VLOOKUP($B45,'Athlete Input'!$B:$AJ,K$1,FALSE)="","",VLOOKUP($B45,'Athlete Input'!$B:$AJ,K$1,FALSE))) ->  | L45: =IF($B45="","",IF(VLOOKUP($B45,'Athlete Input'!$B:$AJ,L$1,FALSE)="","",VLOOKUP($B45,'Athlete Input'!$B:$AJ,L$1,FALSE))) ->  | M45: =IF($B45="","",IF(VLOOKUP($B45,'Athlete Input'!$B:$AJ,M$1,FALSE)="","",VLOOKUP($B45,'Athlete Input'!$B:$AJ,M$1,FALSE))) ->  | N45: =IF($B45="","",IF(VLOOKUP($B45,'Athlete Input'!$B:$AJ,N$1,FALSE)="","",VLOOKUP($B45,'Athlete Input'!$B:$AJ,N$1,FALSE))) ->  | O45: =IF($B45="","",IF(VLOOKUP($B45,'Athlete Input'!$B:$AJ,O$1,FALSE)="","",VLOOKUP($B45,'Athlete Input'!$B:$AJ,O$1,FALSE))) ->  | P45: =IF($B45="","",IF(VLOOKUP($B45,'Athlete Input'!$B:$AJ,P$1,FALSE)="","",VLOOKUP($B45,'Athlete Input'!$B:$AJ,P$1,FALSE))) ->  | Q45: =IF($B45="","",IF(VLOOKUP($B45,'Athlete Input'!$B:$AJ,Q$1,FALSE)="","",VLOOKUP($B45,'Athlete Input'!$B:$AJ,Q$1,FALSE))) ->  | R45: =IF($B45="","",IF(VLOOKUP($B45,'Athlete Input'!$B:$AJ,R$1,FALSE)="","",VLOOKUP($B45,'Athlete Input'!$B:$AJ,R$1,FALSE))) ->  | S45: =IF($B45="","",IF(VLOOKUP($B45,'Athlete Input'!$B:$AJ,S$1,FALSE)="","",VLOOKUP($B45,'Athlete Input'!$B:$AJ,S$1,FALSE))) ->  | T45: =IF($B45="","",IF(VLOOKUP($B45,'Athlete Input'!$B:$AJ,T$1,FALSE)="","",VLOOKUP($B45,'Athlete Input'!$B:$AJ,T$1,FALSE))) ->  | U45: =IF($B45="","",IF(VLOOKUP($B45,'Athlete Input'!$B:$BZ,U$1,FALSE)="","",VLOOKUP($B45,'Athlete Input'!$B:$BZ,U$1,FALSE))) ->  | V45: =IF($B45="","",IF(VLOOKUP($B45,'Athlete Input'!$B:$BZ,V$1,FALSE)="","",VLOOKUP($B45,'Athlete Input'!$B:$BZ,V$1,FALSE))) ->  | W45: =IF($B45="","",IF(VLOOKUP($B45,'Athlete Input'!$B:$BZ,W$1,FALSE)="","",VLOOKUP($B45,'Athlete Input'!$B:$BZ,W$1,FALSE))) ->  | X45: =IF($B45="","",IF(VLOOKUP($B45,'Athlete Input'!$B:$BZ,X$1,FALSE)="","",VLOOKUP($B45,'Athlete Input'!$B:$BZ,X$1,FALSE))) ->  | Y45: =IF($B45="","",IF(VLOOKUP($B45,'Athlete Input'!$B:$BZ,Y$1,FALSE)="","",VLOOKUP($B45,'Athlete Input'!$B:$BZ,Y$1,FALSE))) ->  | Z45: =IF($B45="","",IF(VLOOKUP($B45,'Athlete Input'!$B:$BZ,Z$1,FALSE)="","",VLOOKUP($B45,'Athlete Input'!$B:$BZ,Z$1,FALSE))) ->  | AA45: =IF($B45="","",IF(VLOOKUP($B45,'Athlete Input'!$B:$BZ,AA$1,FALSE)="","",VLOOKUP($B45,'Athlete Input'!$B:$BZ,AA$1,FALSE))) ->  | AB45: =IF($B45="","",IF(VLOOKUP($B45,'Athlete Input'!$B:$BZ,AB$1,FALSE)="","",VLOOKUP($B45,'Athlete Input'!$B:$BZ,AB$1,FALSE))) ->  | AC45: =IF($B45="","",IF(VLOOKUP($B45,'Athlete Input'!$B:$BZ,AC$1,FALSE)="","",VLOOKUP($B45,'Athlete Input'!$B:$BZ,AC$1,FALSE))) ->  | AD45: =IF($B45="","",IF(VLOOKUP($B45,'Athlete Input'!$B:$BZ,AD$1,FALSE)="","",VLOOKUP($B45,'Athlete Input'!$B:$BZ,AD$1,FALSE))) ->  | AE45: =IF($B45="","",IF(VLOOKUP($B45,'Athlete Input'!$B:$BZ,AE$1,FALSE)="","",VLOOKUP($B45,'Athlete Input'!$B:$BZ,AE$1,FALSE))) ->  | AF45: =IF($B45="","",IF(VLOOKUP($B45,'Athlete Input'!$B:$BZ,AF$1,FALSE)="","",VLOOKUP($B45,'Athlete Input'!$B:$BZ,AF$1,FALSE))) ->  | AG45: =IF($B45="","",IF(VLOOKUP($B45,'Athlete Input'!$B:$BZ,AG$1,FALSE)="","",VLOOKUP($B45,'Athlete Input'!$B:$BZ,AG$1,FALSE))) ->  | AH45: =IF($B45="","",IF(VLOOKUP($B45,'Athlete Input'!$B:$BZ,AH$1,FALSE)="","",VLOOKUP($B45,'Athlete Input'!$B:$BZ,AH$1,FALSE))) ->  | AI45: =IF($B45="","",IF(VLOOKUP($B45,'Athlete Input'!$B:$BZ,AI$1,FALSE)="","",VLOOKUP($B45,'Athlete Input'!$B:$BZ,AI$1,FALSE))) ->  | AJ45: =IF($B45="","",IF(VLOOKUP($B45,'Athlete Input'!$B:$BZ,AJ$1,FALSE)="","",VLOOKUP($B45,'Athlete Input'!$B:$BZ,AJ$1,FALSE))) ->  | AK45: =IF($B45="","",IF(VLOOKUP($B45,'Athlete Input'!$B:$BZ,AK$1,FALSE)="","",VLOOKUP($B45,'Athlete Input'!$B:$BZ,AK$1,FALSE))) ->  | AL45: =IF($B45="","",IF(VLOOKUP($B45,'Athlete Input'!$B:$BZ,AL$1,FALSE)="","",VLOOKUP($B45,'Athlete Input'!$B:$BZ,AL$1,FALSE))) ->  | AM45: =IF(B45="","zz",'Athlete Input'!C43) -> Nisbit
A46: 43 | B46: =IF('Athlete Input'!B44="","",'Athlete Input'!B44) -> C Jellema | C46: =IF($B46="","",IF(VLOOKUP($B46,'Athlete Input'!$B:$AJ,C$1,FALSE)="","",VLOOKUP($B46,'Athlete Input'!$B:$AJ,C$1,FALSE))) ->  | D46: =IF($B46="","",IF(VLOOKUP($B46,'Athlete Input'!$B:$AJ,D$1,FALSE)="","",VLOOKUP($B46,'Athlete Input'!$B:$AJ,D$1,FALSE))) ->  | E46: =IF($B46="","",IF(VLOOKUP($B46,'Athlete Input'!$B:$AJ,E$1,FALSE)="","",VLOOKUP($B46,'Athlete Input'!$B:$AJ,E$1,FALSE))) ->  | F46: =IF($B46="","",IF(VLOOKUP($B46,'Athlete Input'!$B:$AJ,F$1,FALSE)="","",VLOOKUP($B46,'Athlete Input'!$B:$AJ,F$1,FALSE))) ->  | G46: =IF($B46="","",IF(VLOOKUP($B46,'Athlete Input'!$B:$AJ,G$1,FALSE)="","",VLOOKUP($B46,'Athlete Input'!$B:$AJ,G$1,FALSE))) ->  | H46: =IF($B46="","",IF(VLOOKUP($B46,'Athlete Input'!$B:$AJ,H$1,FALSE)="","",VLOOKUP($B46,'Athlete Input'!$B:$AJ,H$1,FALSE))) ->  | I46: =IF($B46="","",IF(VLOOKUP($B46,'Athlete Input'!$B:$AJ,I$1,FALSE)="","",VLOOKUP($B46,'Athlete Input'!$B:$AJ,I$1,FALSE))) ->  | J46: =IF($B46="","",IF(VLOOKUP($B46,'Athlete Input'!$B:$AJ,J$1,FALSE)="","",VLOOKUP($B46,'Athlete Input'!$B:$AJ,J$1,FALSE))) ->  | K46: =IF($B46="","",IF(VLOOKUP($B46,'Athlete Input'!$B:$AJ,K$1,FALSE)="","",VLOOKUP($B46,'Athlete Input'!$B:$AJ,K$1,FALSE))) ->  | L46: =IF($B46="","",IF(VLOOKUP($B46,'Athlete Input'!$B:$AJ,L$1,FALSE)="","",VLOOKUP($B46,'Athlete Input'!$B:$AJ,L$1,FALSE))) ->  | M46: =IF($B46="","",IF(VLOOKUP($B46,'Athlete Input'!$B:$AJ,M$1,FALSE)="","",VLOOKUP($B46,'Athlete Input'!$B:$AJ,M$1,FALSE))) -> 28 | N46: =IF($B46="","",IF(VLOOKUP($B46,'Athlete Input'!$B:$AJ,N$1,FALSE)="","",VLOOKUP($B46,'Athlete Input'!$B:$AJ,N$1,FALSE))) ->  | O46: =IF($B46="","",IF(VLOOKUP($B46,'Athlete Input'!$B:$AJ,O$1,FALSE)="","",VLOOKUP($B46,'Athlete Input'!$B:$AJ,O$1,FALSE))) ->  | P46: =IF($B46="","",IF(VLOOKUP($B46,'Athlete Input'!$B:$AJ,P$1,FALSE)="","",VLOOKUP($B46,'Athlete Input'!$B:$AJ,P$1,FALSE))) ->  | Q46: =IF($B46="","",IF(VLOOKUP($B46,'Athlete Input'!$B:$AJ,Q$1,FALSE)="","",VLOOKUP($B46,'Athlete Input'!$B:$AJ,Q$1,FALSE))) ->  | R46: =IF($B46="","",IF(VLOOKUP($B46,'Athlete Input'!$B:$AJ,R$1,FALSE)="","",VLOOKUP($B46,'Athlete Input'!$B:$AJ,R$1,FALSE))) ->  | S46: =IF($B46="","",IF(VLOOKUP($B46,'Athlete Input'!$B:$AJ,S$1,FALSE)="","",VLOOKUP($B46,'Athlete Input'!$B:$AJ,S$1,FALSE))) ->  | T46: =IF($B46="","",IF(VLOOKUP($B46,'Athlete Input'!$B:$AJ,T$1,FALSE)="","",VLOOKUP($B46,'Athlete Input'!$B:$AJ,T$1,FALSE))) ->  | U46: =IF($B46="","",IF(VLOOKUP($B46,'Athlete Input'!$B:$BZ,U$1,FALSE)="","",VLOOKUP($B46,'Athlete Input'!$B:$BZ,U$1,FALSE))) ->  | V46: =IF($B46="","",IF(VLOOKUP($B46,'Athlete Input'!$B:$BZ,V$1,FALSE)="","",VLOOKUP($B46,'Athlete Input'!$B:$BZ,V$1,FALSE))) ->  | W46: =IF($B46="","",IF(VLOOKUP($B46,'Athlete Input'!$B:$BZ,W$1,FALSE)="","",VLOOKUP($B46,'Athlete Input'!$B:$BZ,W$1,FALSE))) ->  | X46: =IF($B46="","",IF(VLOOKUP($B46,'Athlete Input'!$B:$BZ,X$1,FALSE)="","",VLOOKUP($B46,'Athlete Input'!$B:$BZ,X$1,FALSE))) ->  | Y46: =IF($B46="","",IF(VLOOKUP($B46,'Athlete Input'!$B:$BZ,Y$1,FALSE)="","",VLOOKUP($B46,'Athlete Input'!$B:$BZ,Y$1,FALSE))) ->  | Z46: =IF($B46="","",IF(VLOOKUP($B46,'Athlete Input'!$B:$BZ,Z$1,FALSE)="","",VLOOKUP($B46,'Athlete Input'!$B:$BZ,Z$1,FALSE))) ->  | AA46: =IF($B46="","",IF(VLOOKUP($B46,'Athlete Input'!$B:$BZ,AA$1,FALSE)="","",VLOOKUP($B46,'Athlete Input'!$B:$BZ,AA$1,FALSE))) ->  | AB46: =IF($B46="","",IF(VLOOKUP($B46,'Athlete Input'!$B:$BZ,AB$1,FALSE)="","",VLOOKUP($B46,'Athlete Input'!$B:$BZ,AB$1,FALSE))) ->  | AC46: =IF($B46="","",IF(VLOOKUP($B46,'Athlete Input'!$B:$BZ,AC$1,FALSE)="","",VLOOKUP($B46,'Athlete Input'!$B:$BZ,AC$1,FALSE))) ->  | AD46: =IF($B46="","",IF(VLOOKUP($B46,'Athlete Input'!$B:$BZ,AD$1,FALSE)="","",VLOOKUP($B46,'Athlete Input'!$B:$BZ,AD$1,FALSE))) ->  | AE46: =IF($B46="","",IF(VLOOKUP($B46,'Athlete Input'!$B:$BZ,AE$1,FALSE)="","",VLOOKUP($B46,'Athlete Input'!$B:$BZ,AE$1,FALSE))) ->  | AF46: =IF($B46="","",IF(VLOOKUP($B46,'Athlete Input'!$B:$BZ,AF$1,FALSE)="","",VLOOKUP($B46,'Athlete Input'!$B:$BZ,AF$1,FALSE))) ->  | AG46: =IF($B46="","",IF(VLOOKUP($B46,'Athlete Input'!$B:$BZ,AG$1,FALSE)="","",VLOOKUP($B46,'Athlete Input'!$B:$BZ,AG$1,FALSE))) ->  | AH46: =IF($B46="","",IF(VLOOKUP($B46,'Athlete Input'!$B:$BZ,AH$1,FALSE)="","",VLOOKUP($B46,'Athlete Input'!$B:$BZ,AH$1,FALSE))) ->  | AI46: =IF($B46="","",IF(VLOOKUP($B46,'Athlete Input'!$B:$BZ,AI$1,FALSE)="","",VLOOKUP($B46,'Athlete Input'!$B:$BZ,AI$1,FALSE))) ->  | AJ46: =IF($B46="","",IF(VLOOKUP($B46,'Athlete Input'!$B:$BZ,AJ$1,FALSE)="","",VLOOKUP($B46,'Athlete Input'!$B:$BZ,AJ$1,FALSE))) ->  | AK46: =IF($B46="","",IF(VLOOKUP($B46,'Athlete Input'!$B:$BZ,AK$1,FALSE)="","",VLOOKUP($B46,'Athlete Input'!$B:$BZ,AK$1,FALSE))) ->  | AL46: =IF($B46="","",IF(VLOOKUP($B46,'Athlete Input'!$B:$BZ,AL$1,FALSE)="","",VLOOKUP($B46,'Athlete Input'!$B:$BZ,AL$1,FALSE))) ->  | AM46: =IF(B46="","zz",'Athlete Input'!C44) -> Jellema
A47: 44 | B47: =IF('Athlete Input'!B45="","",'Athlete Input'!B45) -> Niamh Devlin | C47: =IF($B47="","",IF(VLOOKUP($B47,'Athlete Input'!$B:$AJ,C$1,FALSE)="","",VLOOKUP($B47,'Athlete Input'!$B:$AJ,C$1,FALSE))) ->  | D47: =IF($B47="","",IF(VLOOKUP($B47,'Athlete Input'!$B:$AJ,D$1,FALSE)="","",VLOOKUP($B47,'Athlete Input'!$B:$AJ,D$1,FALSE))) ->  | E47: =IF($B47="","",IF(VLOOKUP($B47,'Athlete Input'!$B:$AJ,E$1,FALSE)="","",VLOOKUP($B47,'Athlete Input'!$B:$AJ,E$1,FALSE))) ->  | F47: =IF($B47="","",IF(VLOOKUP($B47,'Athlete Input'!$B:$AJ,F$1,FALSE)="","",VLOOKUP($B47,'Athlete Input'!$B:$AJ,F$1,FALSE))) ->  | G47: =IF($B47="","",IF(VLOOKUP($B47,'Athlete Input'!$B:$AJ,G$1,FALSE)="","",VLOOKUP($B47,'Athlete Input'!$B:$AJ,G$1,FALSE))) ->  | H47: =IF($B47="","",IF(VLOOKUP($B47,'Athlete Input'!$B:$AJ,H$1,FALSE)="","",VLOOKUP($B47,'Athlete Input'!$B:$AJ,H$1,FALSE))) ->  | I47: =IF($B47="","",IF(VLOOKUP($B47,'Athlete Input'!$B:$AJ,I$1,FALSE)="","",VLOOKUP($B47,'Athlete Input'!$B:$AJ,I$1,FALSE))) ->  | J47: =IF($B47="","",IF(VLOOKUP($B47,'Athlete Input'!$B:$AJ,J$1,FALSE)="","",VLOOKUP($B47,'Athlete Input'!$B:$AJ,J$1,FALSE))) ->  | K47: =IF($B47="","",IF(VLOOKUP($B47,'Athlete Input'!$B:$AJ,K$1,FALSE)="","",VLOOKUP($B47,'Athlete Input'!$B:$AJ,K$1,FALSE))) ->  | L47: =IF($B47="","",IF(VLOOKUP($B47,'Athlete Input'!$B:$AJ,L$1,FALSE)="","",VLOOKUP($B47,'Athlete Input'!$B:$AJ,L$1,FALSE))) ->  | M47: =IF($B47="","",IF(VLOOKUP($B47,'Athlete Input'!$B:$AJ,M$1,FALSE)="","",VLOOKUP($B47,'Athlete Input'!$B:$AJ,M$1,FALSE))) ->  | N47: =IF($B47="","",IF(VLOOKUP($B47,'Athlete Input'!$B:$AJ,N$1,FALSE)="","",VLOOKUP($B47,'Athlete Input'!$B:$AJ,N$1,FALSE))) ->  | O47: =IF($B47="","",IF(VLOOKUP($B47,'Athlete Input'!$B:$AJ,O$1,FALSE)="","",VLOOKUP($B47,'Athlete Input'!$B:$AJ,O$1,FALSE))) -> 25.04 | P47: =IF($B47="","",IF(VLOOKUP($B47,'Athlete Input'!$B:$AJ,P$1,FALSE)="","",VLOOKUP($B47,'Athlete Input'!$B:$AJ,P$1,FALSE))) ->  | Q47: =IF($B47="","",IF(VLOOKUP($B47,'Athlete Input'!$B:$AJ,Q$1,FALSE)="","",VLOOKUP($B47,'Athlete Input'!$B:$AJ,Q$1,FALSE))) ->  | R47: =IF($B47="","",IF(VLOOKUP($B47,'Athlete Input'!$B:$AJ,R$1,FALSE)="","",VLOOKUP($B47,'Athlete Input'!$B:$AJ,R$1,FALSE))) ->  | S47: =IF($B47="","",IF(VLOOKUP($B47,'Athlete Input'!$B:$AJ,S$1,FALSE)="","",VLOOKUP($B47,'Athlete Input'!$B:$AJ,S$1,FALSE))) ->  | T47: =IF($B47="","",IF(VLOOKUP($B47,'Athlete Input'!$B:$AJ,T$1,FALSE)="","",VLOOKUP($B47,'Athlete Input'!$B:$AJ,T$1,FALSE))) ->  | U47: =IF($B47="","",IF(VLOOKUP($B47,'Athlete Input'!$B:$BZ,U$1,FALSE)="","",VLOOKUP($B47,'Athlete Input'!$B:$BZ,U$1,FALSE))) ->  | V47: =IF($B47="","",IF(VLOOKUP($B47,'Athlete Input'!$B:$BZ,V$1,FALSE)="","",VLOOKUP($B47,'Athlete Input'!$B:$BZ,V$1,FALSE))) ->  | W47: =IF($B47="","",IF(VLOOKUP($B47,'Athlete Input'!$B:$BZ,W$1,FALSE)="","",VLOOKUP($B47,'Athlete Input'!$B:$BZ,W$1,FALSE))) ->  | X47: =IF($B47="","",IF(VLOOKUP($B47,'Athlete Input'!$B:$BZ,X$1,FALSE)="","",VLOOKUP($B47,'Athlete Input'!$B:$BZ,X$1,FALSE))) ->  | Y47: =IF($B47="","",IF(VLOOKUP($B47,'Athlete Input'!$B:$BZ,Y$1,FALSE)="","",VLOOKUP($B47,'Athlete Input'!$B:$BZ,Y$1,FALSE))) ->  | Z47: =IF($B47="","",IF(VLOOKUP($B47,'Athlete Input'!$B:$BZ,Z$1,FALSE)="","",VLOOKUP($B47,'Athlete Input'!$B:$BZ,Z$1,FALSE))) ->  | AA47: =IF($B47="","",IF(VLOOKUP($B47,'Athlete Input'!$B:$BZ,AA$1,FALSE)="","",VLOOKUP($B47,'Athlete Input'!$B:$BZ,AA$1,FALSE))) ->  | AB47: =IF($B47="","",IF(VLOOKUP($B47,'Athlete Input'!$B:$BZ,AB$1,FALSE)="","",VLOOKUP($B47,'Athlete Input'!$B:$BZ,AB$1,FALSE))) ->  | AC47: =IF($B47="","",IF(VLOOKUP($B47,'Athlete Input'!$B:$BZ,AC$1,FALSE)="","",VLOOKUP($B47,'Athlete Input'!$B:$BZ,AC$1,FALSE))) ->  | AD47: =IF($B47="","",IF(VLOOKUP($B47,'Athlete Input'!$B:$BZ,AD$1,FALSE)="","",VLOOKUP($B47,'Athlete Input'!$B:$BZ,AD$1,FALSE))) ->  | AE47: =IF($B47="","",IF(VLOOKUP($B47,'Athlete Input'!$B:$BZ,AE$1,FALSE)="","",VLOOKUP($B47,'Athlete Input'!$B:$BZ,AE$1,FALSE))) ->  | AF47: =IF($B47="","",IF(VLOOKUP($B47,'Athlete Input'!$B:$BZ,AF$1,FALSE)="","",VLOOKUP($B47,'Athlete Input'!$B:$BZ,AF$1,FALSE))) ->  | AG47: =IF($B47="","",IF(VLOOKUP($B47,'Athlete Input'!$B:$BZ,AG$1,FALSE)="","",VLOOKUP($B47,'Athlete Input'!$B:$BZ,AG$1,FALSE))) ->  | AH47: =IF($B47="","",IF(VLOOKUP($B47,'Athlete Input'!$B:$BZ,AH$1,FALSE)="","",VLOOKUP($B47,'Athlete Input'!$B:$BZ,AH$1,FALSE))) ->  | AI47: =IF($B47="","",IF(VLOOKUP($B47,'Athlete Input'!$B:$BZ,AI$1,FALSE)="","",VLOOKUP($B47,'Athlete Input'!$B:$BZ,AI$1,FALSE))) ->  | AJ47: =IF($B47="","",IF(VLOOKUP($B47,'Athlete Input'!$B:$BZ,AJ$1,FALSE)="","",VLOOKUP($B47,'Athlete Input'!$B:$BZ,AJ$1,FALSE))) ->  | AK47: =IF($B47="","",IF(VLOOKUP($B47,'Athlete Input'!$B:$BZ,AK$1,FALSE)="","",VLOOKUP($B47,'Athlete Input'!$B:$BZ,AK$1,FALSE))) ->  | AL47: =IF($B47="","",IF(VLOOKUP($B47,'Athlete Input'!$B:$BZ,AL$1,FALSE)="","",VLOOKUP($B47,'Athlete Input'!$B:$BZ,AL$1,FALSE))) ->  | AM47: =IF(B47="","zz",'Athlete Input'!C45) -> Devlin
A48: 45 | B48: =IF('Athlete Input'!B46="","",'Athlete Input'!B46) ->  | C48: =IF($B48="","",IF(VLOOKUP($B48,'Athlete Input'!$B:$AJ,C$1,FALSE)="","",VLOOKUP($B48,'Athlete Input'!$B:$AJ,C$1,FALSE))) ->  | D48: =IF($B48="","",IF(VLOOKUP($B48,'Athlete Input'!$B:$AJ,D$1,FALSE)="","",VLOOKUP($B48,'Athlete Input'!$B:$AJ,D$1,FALSE))) ->  | E48: =IF($B48="","",IF(VLOOKUP($B48,'Athlete Input'!$B:$AJ,E$1,FALSE)="","",VLOOKUP($B48,'Athlete Input'!$B:$AJ,E$1,FALSE))) ->  | F48: =IF($B48="","",IF(VLOOKUP($B48,'Athlete Input'!$B:$AJ,F$1,FALSE)="","",VLOOKUP($B48,'Athlete Input'!$B:$AJ,F$1,FALSE))) ->  | G48: =IF($B48="","",IF(VLOOKUP($B48,'Athlete Input'!$B:$AJ,G$1,FALSE)="","",VLOOKUP($B48,'Athlete Input'!$B:$AJ,G$1,FALSE))) ->  | H48: =IF($B48="","",IF(VLOOKUP($B48,'Athlete Input'!$B:$AJ,H$1,FALSE)="","",VLOOKUP($B48,'Athlete Input'!$B:$AJ,H$1,FALSE))) ->  | I48: =IF($B48="","",IF(VLOOKUP($B48,'Athlete Input'!$B:$AJ,I$1,FALSE)="","",VLOOKUP($B48,'Athlete Input'!$B:$AJ,I$1,FALSE))) ->  | J48: =IF($B48="","",IF(VLOOKUP($B48,'Athlete Input'!$B:$AJ,J$1,FALSE)="","",VLOOKUP($B48,'Athlete Input'!$B:$AJ,J$1,FALSE))) ->  | K48: =IF($B48="","",IF(VLOOKUP($B48,'Athlete Input'!$B:$AJ,K$1,FALSE)="","",VLOOKUP($B48,'Athlete Input'!$B:$AJ,K$1,FALSE))) ->  | L48: =IF($B48="","",IF(VLOOKUP($B48,'Athlete Input'!$B:$AJ,L$1,FALSE)="","",VLOOKUP($B48,'Athlete Input'!$B:$AJ,L$1,FALSE))) ->  | M48: =IF($B48="","",IF(VLOOKUP($B48,'Athlete Input'!$B:$AJ,M$1,FALSE)="","",VLOOKUP($B48,'Athlete Input'!$B:$AJ,M$1,FALSE))) ->  | N48: =IF($B48="","",IF(VLOOKUP($B48,'Athlete Input'!$B:$AJ,N$1,FALSE)="","",VLOOKUP($B48,'Athlete Input'!$B:$AJ,N$1,FALSE))) ->  | O48: =IF($B48="","",IF(VLOOKUP($B48,'Athlete Input'!$B:$AJ,O$1,FALSE)="","",VLOOKUP($B48,'Athlete Input'!$B:$AJ,O$1,FALSE))) ->  | P48: =IF($B48="","",IF(VLOOKUP($B48,'Athlete Input'!$B:$AJ,P$1,FALSE)="","",VLOOKUP($B48,'Athlete Input'!$B:$AJ,P$1,FALSE))) ->  | Q48: =IF($B48="","",IF(VLOOKUP($B48,'Athlete Input'!$B:$AJ,Q$1,FALSE)="","",VLOOKUP($B48,'Athlete Input'!$B:$AJ,Q$1,FALSE))) ->  | R48: =IF($B48="","",IF(VLOOKUP($B48,'Athlete Input'!$B:$AJ,R$1,FALSE)="","",VLOOKUP($B48,'Athlete Input'!$B:$AJ,R$1,FALSE))) ->  | S48: =IF($B48="","",IF(VLOOKUP($B48,'Athlete Input'!$B:$AJ,S$1,FALSE)="","",VLOOKUP($B48,'Athlete Input'!$B:$AJ,S$1,FALSE))) ->  | T48: =IF($B48="","",IF(VLOOKUP($B48,'Athlete Input'!$B:$AJ,T$1,FALSE)="","",VLOOKUP($B48,'Athlete Input'!$B:$AJ,T$1,FALSE))) ->  | U48: =IF($B48="","",IF(VLOOKUP($B48,'Athlete Input'!$B:$BZ,U$1,FALSE)="","",VLOOKUP($B48,'Athlete Input'!$B:$BZ,U$1,FALSE))) ->  | V48: =IF($B48="","",IF(VLOOKUP($B48,'Athlete Input'!$B:$BZ,V$1,FALSE)="","",VLOOKUP($B48,'Athlete Input'!$B:$BZ,V$1,FALSE))) ->  | W48: =IF($B48="","",IF(VLOOKUP($B48,'Athlete Input'!$B:$BZ,W$1,FALSE)="","",VLOOKUP($B48,'Athlete Input'!$B:$BZ,W$1,FALSE))) ->  | X48: =IF($B48="","",IF(VLOOKUP($B48,'Athlete Input'!$B:$BZ,X$1,FALSE)="","",VLOOKUP($B48,'Athlete Input'!$B:$BZ,X$1,FALSE))) ->  | Y48: =IF($B48="","",IF(VLOOKUP($B48,'Athlete Input'!$B:$BZ,Y$1,FALSE)="","",VLOOKUP($B48,'Athlete Input'!$B:$BZ,Y$1,FALSE))) ->  | Z48: =IF($B48="","",IF(VLOOKUP($B48,'Athlete Input'!$B:$BZ,Z$1,FALSE)="","",VLOOKUP($B48,'Athlete Input'!$B:$BZ,Z$1,FALSE))) ->  | AA48: =IF($B48="","",IF(VLOOKUP($B48,'Athlete Input'!$B:$BZ,AA$1,FALSE)="","",VLOOKUP($B48,'Athlete Input'!$B:$BZ,AA$1,FALSE))) ->  | AB48: =IF($B48="","",IF(VLOOKUP($B48,'Athlete Input'!$B:$BZ,AB$1,FALSE)="","",VLOOKUP($B48,'Athlete Input'!$B:$BZ,AB$1,FALSE))) ->  | AC48: =IF($B48="","",IF(VLOOKUP($B48,'Athlete Input'!$B:$BZ,AC$1,FALSE)="","",VLOOKUP($B48,'Athlete Input'!$B:$BZ,AC$1,FALSE))) ->  | AD48: =IF($B48="","",IF(VLOOKUP($B48,'Athlete Input'!$B:$BZ,AD$1,FALSE)="","",VLOOKUP($B48,'Athlete Input'!$B:$BZ,AD$1,FALSE))) ->  | AE48: =IF($B48="","",IF(VLOOKUP($B48,'Athlete Input'!$B:$BZ,AE$1,FALSE)="","",VLOOKUP($B48,'Athlete Input'!$B:$BZ,AE$1,FALSE))) ->  | AF48: =IF($B48="","",IF(VLOOKUP($B48,'Athlete Input'!$B:$BZ,AF$1,FALSE)="","",VLOOKUP($B48,'Athlete Input'!$B:$BZ,AF$1,FALSE))) ->  | AG48: =IF($B48="","",IF(VLOOKUP($B48,'Athlete Input'!$B:$BZ,AG$1,FALSE)="","",VLOOKUP($B48,'Athlete Input'!$B:$BZ,AG$1,FALSE))) ->  | AH48: =IF($B48="","",IF(VLOOKUP($B48,'Athlete Input'!$B:$BZ,AH$1,FALSE)="","",VLOOKUP($B48,'Athlete Input'!$B:$BZ,AH$1,FALSE))) ->  | AI48: =IF($B48="","",IF(VLOOKUP($B48,'Athlete Input'!$B:$BZ,AI$1,FALSE)="","",VLOOKUP($B48,'Athlete Input'!$B:$BZ,AI$1,FALSE))) ->  | AJ48: =IF($B48="","",IF(VLOOKUP($B48,'Athlete Input'!$B:$BZ,AJ$1,FALSE)="","",VLOOKUP($B48,'Athlete Input'!$B:$BZ,AJ$1,FALSE))) ->  | AK48: =IF($B48="","",IF(VLOOKUP($B48,'Athlete Input'!$B:$BZ,AK$1,FALSE)="","",VLOOKUP($B48,'Athlete Input'!$B:$BZ,AK$1,FALSE))) ->  | AL48: =IF($B48="","",IF(VLOOKUP($B48,'Athlete Input'!$B:$BZ,AL$1,FALSE)="","",VLOOKUP($B48,'Athlete Input'!$B:$BZ,AL$1,FALSE))) ->  | AM48: =IF(B48="","zz",'Athlete Input'!C46) -> zz
A49: 46 | B49: =IF('Athlete Input'!B47="","",'Athlete Input'!B47) ->  | C49: =IF($B49="","",IF(VLOOKUP($B49,'Athlete Input'!$B:$AJ,C$1,FALSE)="","",VLOOKUP($B49,'Athlete Input'!$B:$AJ,C$1,FALSE))) ->  | D49: =IF($B49="","",IF(VLOOKUP($B49,'Athlete Input'!$B:$AJ,D$1,FALSE)="","",VLOOKUP($B49,'Athlete Input'!$B:$AJ,D$1,FALSE))) ->  | E49: =IF($B49="","",IF(VLOOKUP($B49,'Athlete Input'!$B:$AJ,E$1,FALSE)="","",VLOOKUP($B49,'Athlete Input'!$B:$AJ,E$1,FALSE))) ->  | F49: =IF($B49="","",IF(VLOOKUP($B49,'Athlete Input'!$B:$AJ,F$1,FALSE)="","",VLOOKUP($B49,'Athlete Input'!$B:$AJ,F$1,FALSE))) ->  | G49: =IF($B49="","",IF(VLOOKUP($B49,'Athlete Input'!$B:$AJ,G$1,FALSE)="","",VLOOKUP($B49,'Athlete Input'!$B:$AJ,G$1,FALSE))) ->  | H49: =IF($B49="","",IF(VLOOKUP($B49,'Athlete Input'!$B:$AJ,H$1,FALSE)="","",VLOOKUP($B49,'Athlete Input'!$B:$AJ,H$1,FALSE))) ->  | I49: =IF($B49="","",IF(VLOOKUP($B49,'Athlete Input'!$B:$AJ,I$1,FALSE)="","",VLOOKUP($B49,'Athlete Input'!$B:$AJ,I$1,FALSE))) ->  | J49: =IF($B49="","",IF(VLOOKUP($B49,'Athlete Input'!$B:$AJ,J$1,FALSE)="","",VLOOKUP($B49,'Athlete Input'!$B:$AJ,J$1,FALSE))) ->  | K49: =IF($B49="","",IF(VLOOKUP($B49,'Athlete Input'!$B:$AJ,K$1,FALSE)="","",VLOOKUP($B49,'Athlete Input'!$B:$AJ,K$1,FALSE))) ->  | L49: =IF($B49="","",IF(VLOOKUP($B49,'Athlete Input'!$B:$AJ,L$1,FALSE)="","",VLOOKUP($B49,'Athlete Input'!$B:$AJ,L$1,FALSE))) ->  | M49: =IF($B49="","",IF(VLOOKUP($B49,'Athlete Input'!$B:$AJ,M$1,FALSE)="","",VLOOKUP($B49,'Athlete Input'!$B:$AJ,M$1,FALSE))) ->  | N49: =IF($B49="","",IF(VLOOKUP($B49,'Athlete Input'!$B:$AJ,N$1,FALSE)="","",VLOOKUP($B49,'Athlete Input'!$B:$AJ,N$1,FALSE))) ->  | O49: =IF($B49="","",IF(VLOOKUP($B49,'Athlete Input'!$B:$AJ,O$1,FALSE)="","",VLOOKUP($B49,'Athlete Input'!$B:$AJ,O$1,FALSE))) ->  | P49: =IF($B49="","",IF(VLOOKUP($B49,'Athlete Input'!$B:$AJ,P$1,FALSE)="","",VLOOKUP($B49,'Athlete Input'!$B:$AJ,P$1,FALSE))) ->  | Q49: =IF($B49="","",IF(VLOOKUP($B49,'Athlete Input'!$B:$AJ,Q$1,FALSE)="","",VLOOKUP($B49,'Athlete Input'!$B:$AJ,Q$1,FALSE))) ->  | R49: =IF($B49="","",IF(VLOOKUP($B49,'Athlete Input'!$B:$AJ,R$1,FALSE)="","",VLOOKUP($B49,'Athlete Input'!$B:$AJ,R$1,FALSE))) ->  | S49: =IF($B49="","",IF(VLOOKUP($B49,'Athlete Input'!$B:$AJ,S$1,FALSE)="","",VLOOKUP($B49,'Athlete Input'!$B:$AJ,S$1,FALSE))) ->  | T49: =IF($B49="","",IF(VLOOKUP($B49,'Athlete Input'!$B:$AJ,T$1,FALSE)="","",VLOOKUP($B49,'Athlete Input'!$B:$AJ,T$1,FALSE))) ->  | U49: =IF($B49="","",IF(VLOOKUP($B49,'Athlete Input'!$B:$BZ,U$1,FALSE)="","",VLOOKUP($B49,'Athlete Input'!$B:$BZ,U$1,FALSE))) ->  | V49: =IF($B49="","",IF(VLOOKUP($B49,'Athlete Input'!$B:$BZ,V$1,FALSE)="","",VLOOKUP($B49,'Athlete Input'!$B:$BZ,V$1,FALSE))) ->  | W49: =IF($B49="","",IF(VLOOKUP($B49,'Athlete Input'!$B:$BZ,W$1,FALSE)="","",VLOOKUP($B49,'Athlete Input'!$B:$BZ,W$1,FALSE))) ->  | X49: =IF($B49="","",IF(VLOOKUP($B49,'Athlete Input'!$B:$BZ,X$1,FALSE)="","",VLOOKUP($B49,'Athlete Input'!$B:$BZ,X$1,FALSE))) ->  | Y49: =IF($B49="","",IF(VLOOKUP($B49,'Athlete Input'!$B:$BZ,Y$1,FALSE)="","",VLOOKUP($B49,'Athlete Input'!$B:$BZ,Y$1,FALSE))) ->  | Z49: =IF($B49="","",IF(VLOOKUP($B49,'Athlete Input'!$B:$BZ,Z$1,FALSE)="","",VLOOKUP($B49,'Athlete Input'!$B:$BZ,Z$1,FALSE))) ->  | AA49: =IF($B49="","",IF(VLOOKUP($B49,'Athlete Input'!$B:$BZ,AA$1,FALSE)="","",VLOOKUP($B49,'Athlete Input'!$B:$BZ,AA$1,FALSE))) ->  | AB49: =IF($B49="","",IF(VLOOKUP($B49,'Athlete Input'!$B:$BZ,AB$1,FALSE)="","",VLOOKUP($B49,'Athlete Input'!$B:$BZ,AB$1,FALSE))) ->  | AC49: =IF($B49="","",IF(VLOOKUP($B49,'Athlete Input'!$B:$BZ,AC$1,FALSE)="","",VLOOKUP($B49,'Athlete Input'!$B:$BZ,AC$1,FALSE))) ->  | AD49: =IF($B49="","",IF(VLOOKUP($B49,'Athlete Input'!$B:$BZ,AD$1,FALSE)="","",VLOOKUP($B49,'Athlete Input'!$B:$BZ,AD$1,FALSE))) ->  | AE49: =IF($B49="","",IF(VLOOKUP($B49,'Athlete Input'!$B:$BZ,AE$1,FALSE)="","",VLOOKUP($B49,'Athlete Input'!$B:$BZ,AE$1,FALSE))) ->  | AF49: =IF($B49="","",IF(VLOOKUP($B49,'Athlete Input'!$B:$BZ,AF$1,FALSE)="","",VLOOKUP($B49,'Athlete Input'!$B:$BZ,AF$1,FALSE))) ->  | AG49: =IF($B49="","",IF(VLOOKUP($B49,'Athlete Input'!$B:$BZ,AG$1,FALSE)="","",VLOOKUP($B49,'Athlete Input'!$B:$BZ,AG$1,FALSE))) ->  | AH49: =IF($B49="","",IF(VLOOKUP($B49,'Athlete Input'!$B:$BZ,AH$1,FALSE)="","",VLOOKUP($B49,'Athlete Input'!$B:$BZ,AH$1,FALSE))) ->  | AI49: =IF($B49="","",IF(VLOOKUP($B49,'Athlete Input'!$B:$BZ,AI$1,FALSE)="","",VLOOKUP($B49,'Athlete Input'!$B:$BZ,AI$1,FALSE))) ->  | AJ49: =IF($B49="","",IF(VLOOKUP($B49,'Athlete Input'!$B:$BZ,AJ$1,FALSE)="","",VLOOKUP($B49,'Athlete Input'!$B:$BZ,AJ$1,FALSE))) ->  | AK49: =IF($B49="","",IF(VLOOKUP($B49,'Athlete Input'!$B:$BZ,AK$1,FALSE)="","",VLOOKUP($B49,'Athlete Input'!$B:$BZ,AK$1,FALSE))) ->  | AL49: =IF($B49="","",IF(VLOOKUP($B49,'Athlete Input'!$B:$BZ,AL$1,FALSE)="","",VLOOKUP($B49,'Athlete Input'!$B:$BZ,AL$1,FALSE))) ->  | AM49: =IF(B49="","zz",'Athlete Input'!C47) -> zz
A50: 47 | B50: =IF('Athlete Input'!B48="","",'Athlete Input'!B48) ->  | C50: =IF($B50="","",IF(VLOOKUP($B50,'Athlete Input'!$B:$AJ,C$1,FALSE)="","",VLOOKUP($B50,'Athlete Input'!$B:$AJ,C$1,FALSE))) ->  | D50: =IF($B50="","",IF(VLOOKUP($B50,'Athlete Input'!$B:$AJ,D$1,FALSE)="","",VLOOKUP($B50,'Athlete Input'!$B:$AJ,D$1,FALSE))) ->  | E50: =IF($B50="","",IF(VLOOKUP($B50,'Athlete Input'!$B:$AJ,E$1,FALSE)="","",VLOOKUP($B50,'Athlete Input'!$B:$AJ,E$1,FALSE))) ->  | F50: =IF($B50="","",IF(VLOOKUP($B50,'Athlete Input'!$B:$AJ,F$1,FALSE)="","",VLOOKUP($B50,'Athlete Input'!$B:$AJ,F$1,FALSE))) ->  | G50: =IF($B50="","",IF(VLOOKUP($B50,'Athlete Input'!$B:$AJ,G$1,FALSE)="","",VLOOKUP($B50,'Athlete Input'!$B:$AJ,G$1,FALSE))) ->  | H50: =IF($B50="","",IF(VLOOKUP($B50,'Athlete Input'!$B:$AJ,H$1,FALSE)="","",VLOOKUP($B50,'Athlete Input'!$B:$AJ,H$1,FALSE))) ->  | I50: =IF($B50="","",IF(VLOOKUP($B50,'Athlete Input'!$B:$AJ,I$1,FALSE)="","",VLOOKUP($B50,'Athlete Input'!$B:$AJ,I$1,FALSE))) ->  | J50: =IF($B50="","",IF(VLOOKUP($B50,'Athlete Input'!$B:$AJ,J$1,FALSE)="","",VLOOKUP($B50,'Athlete Input'!$B:$AJ,J$1,FALSE))) ->  | K50: =IF($B50="","",IF(VLOOKUP($B50,'Athlete Input'!$B:$AJ,K$1,FALSE)="","",VLOOKUP($B50,'Athlete Input'!$B:$AJ,K$1,FALSE))) ->  | L50: =IF($B50="","",IF(VLOOKUP($B50,'Athlete Input'!$B:$AJ,L$1,FALSE)="","",VLOOKUP($B50,'Athlete Input'!$B:$AJ,L$1,FALSE))) ->  | M50: =IF($B50="","",IF(VLOOKUP($B50,'Athlete Input'!$B:$AJ,M$1,FALSE)="","",VLOOKUP($B50,'Athlete Input'!$B:$AJ,M$1,FALSE))) ->  | N50: =IF($B50="","",IF(VLOOKUP($B50,'Athlete Input'!$B:$AJ,N$1,FALSE)="","",VLOOKUP($B50,'Athlete Input'!$B:$AJ,N$1,FALSE))) ->  | O50: =IF($B50="","",IF(VLOOKUP($B50,'Athlete Input'!$B:$AJ,O$1,FALSE)="","",VLOOKUP($B50,'Athlete Input'!$B:$AJ,O$1,FALSE))) ->  | P50: =IF($B50="","",IF(VLOOKUP($B50,'Athlete Input'!$B:$AJ,P$1,FALSE)="","",VLOOKUP($B50,'Athlete Input'!$B:$AJ,P$1,FALSE))) ->  | Q50: =IF($B50="","",IF(VLOOKUP($B50,'Athlete Input'!$B:$AJ,Q$1,FALSE)="","",VLOOKUP($B50,'Athlete Input'!$B:$AJ,Q$1,FALSE))) ->  | R50: =IF($B50="","",IF(VLOOKUP($B50,'Athlete Input'!$B:$AJ,R$1,FALSE)="","",VLOOKUP($B50,'Athlete Input'!$B:$AJ,R$1,FALSE))) ->  | S50: =IF($B50="","",IF(VLOOKUP($B50,'Athlete Input'!$B:$AJ,S$1,FALSE)="","",VLOOKUP($B50,'Athlete Input'!$B:$AJ,S$1,FALSE))) ->  | T50: =IF($B50="","",IF(VLOOKUP($B50,'Athlete Input'!$B:$AJ,T$1,FALSE)="","",VLOOKUP($B50,'Athlete Input'!$B:$AJ,T$1,FALSE))) ->  | U50: =IF($B50="","",IF(VLOOKUP($B50,'Athlete Input'!$B:$BZ,U$1,FALSE)="","",VLOOKUP($B50,'Athlete Input'!$B:$BZ,U$1,FALSE))) ->  | V50: =IF($B50="","",IF(VLOOKUP($B50,'Athlete Input'!$B:$BZ,V$1,FALSE)="","",VLOOKUP($B50,'Athlete Input'!$B:$BZ,V$1,FALSE))) ->  | W50: =IF($B50="","",IF(VLOOKUP($B50,'Athlete Input'!$B:$BZ,W$1,FALSE)="","",VLOOKUP($B50,'Athlete Input'!$B:$BZ,W$1,FALSE))) ->  | X50: =IF($B50="","",IF(VLOOKUP($B50,'Athlete Input'!$B:$BZ,X$1,FALSE)="","",VLOOKUP($B50,'Athlete Input'!$B:$BZ,X$1,FALSE))) ->  | Y50: =IF($B50="","",IF(VLOOKUP($B50,'Athlete Input'!$B:$BZ,Y$1,FALSE)="","",VLOOKUP($B50,'Athlete Input'!$B:$BZ,Y$1,FALSE))) ->  | Z50: =IF($B50="","",IF(VLOOKUP($B50,'Athlete Input'!$B:$BZ,Z$1,FALSE)="","",VLOOKUP($B50,'Athlete Input'!$B:$BZ,Z$1,FALSE))) ->  | AA50: =IF($B50="","",IF(VLOOKUP($B50,'Athlete Input'!$B:$BZ,AA$1,FALSE)="","",VLOOKUP($B50,'Athlete Input'!$B:$BZ,AA$1,FALSE))) ->  | AB50: =IF($B50="","",IF(VLOOKUP($B50,'Athlete Input'!$B:$BZ,AB$1,FALSE)="","",VLOOKUP($B50,'Athlete Input'!$B:$BZ,AB$1,FALSE))) ->  | AC50: =IF($B50="","",IF(VLOOKUP($B50,'Athlete Input'!$B:$BZ,AC$1,FALSE)="","",VLOOKUP($B50,'Athlete Input'!$B:$BZ,AC$1,FALSE))) ->  | AD50: =IF($B50="","",IF(VLOOKUP($B50,'Athlete Input'!$B:$BZ,AD$1,FALSE)="","",VLOOKUP($B50,'Athlete Input'!$B:$BZ,AD$1,FALSE))) ->  | AE50: =IF($B50="","",IF(VLOOKUP($B50,'Athlete Input'!$B:$BZ,AE$1,FALSE)="","",VLOOKUP($B50,'Athlete Input'!$B:$BZ,AE$1,FALSE))) ->  | AF50: =IF($B50="","",IF(VLOOKUP($B50,'Athlete Input'!$B:$BZ,AF$1,FALSE)="","",VLOOKUP($B50,'Athlete Input'!$B:$BZ,AF$1,FALSE))) ->  | AG50: =IF($B50="","",IF(VLOOKUP($B50,'Athlete Input'!$B:$BZ,AG$1,FALSE)="","",VLOOKUP($B50,'Athlete Input'!$B:$BZ,AG$1,FALSE))) ->  | AH50: =IF($B50="","",IF(VLOOKUP($B50,'Athlete Input'!$B:$BZ,AH$1,FALSE)="","",VLOOKUP($B50,'Athlete Input'!$B:$BZ,AH$1,FALSE))) ->  | AI50: =IF($B50="","",IF(VLOOKUP($B50,'Athlete Input'!$B:$BZ,AI$1,FALSE)="","",VLOOKUP($B50,'Athlete Input'!$B:$BZ,AI$1,FALSE))) ->  | AJ50: =IF($B50="","",IF(VLOOKUP($B50,'Athlete Input'!$B:$BZ,AJ$1,FALSE)="","",VLOOKUP($B50,'Athlete Input'!$B:$BZ,AJ$1,FALSE))) ->  | AK50: =IF($B50="","",IF(VLOOKUP($B50,'Athlete Input'!$B:$BZ,AK$1,FALSE)="","",VLOOKUP($B50,'Athlete Input'!$B:$BZ,AK$1,FALSE))) ->  | AL50: =IF($B50="","",IF(VLOOKUP($B50,'Athlete Input'!$B:$BZ,AL$1,FALSE)="","",VLOOKUP($B50,'Athlete Input'!$B:$BZ,AL$1,FALSE))) ->  | AM50: =IF(B50="","zz",'Athlete Input'!C48) -> zz
A51: 48 | B51: =IF('Athlete Input'!B49="","",'Athlete Input'!B49) ->  | C51: =IF($B51="","",IF(VLOOKUP($B51,'Athlete Input'!$B:$AJ,C$1,FALSE)="","",VLOOKUP($B51,'Athlete Input'!$B:$AJ,C$1,FALSE))) ->  | D51: =IF($B51="","",IF(VLOOKUP($B51,'Athlete Input'!$B:$AJ,D$1,FALSE)="","",VLOOKUP($B51,'Athlete Input'!$B:$AJ,D$1,FALSE))) ->  | E51: =IF($B51="","",IF(VLOOKUP($B51,'Athlete Input'!$B:$AJ,E$1,FALSE)="","",VLOOKUP($B51,'Athlete Input'!$B:$AJ,E$1,FALSE))) ->  | F51: =IF($B51="","",IF(VLOOKUP($B51,'Athlete Input'!$B:$AJ,F$1,FALSE)="","",VLOOKUP($B51,'Athlete Input'!$B:$AJ,F$1,FALSE))) ->  | G51: =IF($B51="","",IF(VLOOKUP($B51,'Athlete Input'!$B:$AJ,G$1,FALSE)="","",VLOOKUP($B51,'Athlete Input'!$B:$AJ,G$1,FALSE))) ->  | H51: =IF($B51="","",IF(VLOOKUP($B51,'Athlete Input'!$B:$AJ,H$1,FALSE)="","",VLOOKUP($B51,'Athlete Input'!$B:$AJ,H$1,FALSE))) ->  | I51: =IF($B51="","",IF(VLOOKUP($B51,'Athlete Input'!$B:$AJ,I$1,FALSE)="","",VLOOKUP($B51,'Athlete Input'!$B:$AJ,I$1,FALSE))) ->  | J51: =IF($B51="","",IF(VLOOKUP($B51,'Athlete Input'!$B:$AJ,J$1,FALSE)="","",VLOOKUP($B51,'Athlete Input'!$B:$AJ,J$1,FALSE))) ->  | K51: =IF($B51="","",IF(VLOOKUP($B51,'Athlete Input'!$B:$AJ,K$1,FALSE)="","",VLOOKUP($B51,'Athlete Input'!$B:$AJ,K$1,FALSE))) ->  | L51: =IF($B51="","",IF(VLOOKUP($B51,'Athlete Input'!$B:$AJ,L$1,FALSE)="","",VLOOKUP($B51,'Athlete Input'!$B:$AJ,L$1,FALSE))) ->  | M51: =IF($B51="","",IF(VLOOKUP($B51,'Athlete Input'!$B:$AJ,M$1,FALSE)="","",VLOOKUP($B51,'Athlete Input'!$B:$AJ,M$1,FALSE))) ->  | N51: =IF($B51="","",IF(VLOOKUP($B51,'Athlete Input'!$B:$AJ,N$1,FALSE)="","",VLOOKUP($B51,'Athlete Input'!$B:$AJ,N$1,FALSE))) ->  | O51: =IF($B51="","",IF(VLOOKUP($B51,'Athlete Input'!$B:$AJ,O$1,FALSE)="","",VLOOKUP($B51,'Athlete Input'!$B:$AJ,O$1,FALSE))) ->  | P51: =IF($B51="","",IF(VLOOKUP($B51,'Athlete Input'!$B:$AJ,P$1,FALSE)="","",VLOOKUP($B51,'Athlete Input'!$B:$AJ,P$1,FALSE))) ->  | Q51: =IF($B51="","",IF(VLOOKUP($B51,'Athlete Input'!$B:$AJ,Q$1,FALSE)="","",VLOOKUP($B51,'Athlete Input'!$B:$AJ,Q$1,FALSE))) ->  | R51: =IF($B51="","",IF(VLOOKUP($B51,'Athlete Input'!$B:$AJ,R$1,FALSE)="","",VLOOKUP($B51,'Athlete Input'!$B:$AJ,R$1,FALSE))) ->  | S51: =IF($B51="","",IF(VLOOKUP($B51,'Athlete Input'!$B:$AJ,S$1,FALSE)="","",VLOOKUP($B51,'Athlete Input'!$B:$AJ,S$1,FALSE))) ->  | T51: =IF($B51="","",IF(VLOOKUP($B51,'Athlete Input'!$B:$AJ,T$1,FALSE)="","",VLOOKUP($B51,'Athlete Input'!$B:$AJ,T$1,FALSE))) ->  | U51: =IF($B51="","",IF(VLOOKUP($B51,'Athlete Input'!$B:$BZ,U$1,FALSE)="","",VLOOKUP($B51,'Athlete Input'!$B:$BZ,U$1,FALSE))) ->  | V51: =IF($B51="","",IF(VLOOKUP($B51,'Athlete Input'!$B:$BZ,V$1,FALSE)="","",VLOOKUP($B51,'Athlete Input'!$B:$BZ,V$1,FALSE))) ->  | W51: =IF($B51="","",IF(VLOOKUP($B51,'Athlete Input'!$B:$BZ,W$1,FALSE)="","",VLOOKUP($B51,'Athlete Input'!$B:$BZ,W$1,FALSE))) ->  | X51: =IF($B51="","",IF(VLOOKUP($B51,'Athlete Input'!$B:$BZ,X$1,FALSE)="","",VLOOKUP($B51,'Athlete Input'!$B:$BZ,X$1,FALSE))) ->  | Y51: =IF($B51="","",IF(VLOOKUP($B51,'Athlete Input'!$B:$BZ,Y$1,FALSE)="","",VLOOKUP($B51,'Athlete Input'!$B:$BZ,Y$1,FALSE))) ->  | Z51: =IF($B51="","",IF(VLOOKUP($B51,'Athlete Input'!$B:$BZ,Z$1,FALSE)="","",VLOOKUP($B51,'Athlete Input'!$B:$BZ,Z$1,FALSE))) ->  | AA51: =IF($B51="","",IF(VLOOKUP($B51,'Athlete Input'!$B:$BZ,AA$1,FALSE)="","",VLOOKUP($B51,'Athlete Input'!$B:$BZ,AA$1,FALSE))) ->  | AB51: =IF($B51="","",IF(VLOOKUP($B51,'Athlete Input'!$B:$BZ,AB$1,FALSE)="","",VLOOKUP($B51,'Athlete Input'!$B:$BZ,AB$1,FALSE))) ->  | AC51: =IF($B51="","",IF(VLOOKUP($B51,'Athlete Input'!$B:$BZ,AC$1,FALSE)="","",VLOOKUP($B51,'Athlete Input'!$B:$BZ,AC$1,FALSE))) ->  | AD51: =IF($B51="","",IF(VLOOKUP($B51,'Athlete Input'!$B:$BZ,AD$1,FALSE)="","",VLOOKUP($B51,'Athlete Input'!$B:$BZ,AD$1,FALSE))) ->  | AE51: =IF($B51="","",IF(VLOOKUP($B51,'Athlete Input'!$B:$BZ,AE$1,FALSE)="","",VLOOKUP($B51,'Athlete Input'!$B:$BZ,AE$1,FALSE))) ->  | AF51: =IF($B51="","",IF(VLOOKUP($B51,'Athlete Input'!$B:$BZ,AF$1,FALSE)="","",VLOOKUP($B51,'Athlete Input'!$B:$BZ,AF$1,FALSE))) ->  | AG51: =IF($B51="","",IF(VLOOKUP($B51,'Athlete Input'!$B:$BZ,AG$1,FALSE)="","",VLOOKUP($B51,'Athlete Input'!$B:$BZ,AG$1,FALSE))) ->  | AH51: =IF($B51="","",IF(VLOOKUP($B51,'Athlete Input'!$B:$BZ,AH$1,FALSE)="","",VLOOKUP($B51,'Athlete Input'!$B:$BZ,AH$1,FALSE))) ->  | AI51: =IF($B51="","",IF(VLOOKUP($B51,'Athlete Input'!$B:$BZ,AI$1,FALSE)="","",VLOOKUP($B51,'Athlete Input'!$B:$BZ,AI$1,FALSE))) ->  | AJ51: =IF($B51="","",IF(VLOOKUP($B51,'Athlete Input'!$B:$BZ,AJ$1,FALSE)="","",VLOOKUP($B51,'Athlete Input'!$B:$BZ,AJ$1,FALSE))) ->  | AK51: =IF($B51="","",IF(VLOOKUP($B51,'Athlete Input'!$B:$BZ,AK$1,FALSE)="","",VLOOKUP($B51,'Athlete Input'!$B:$BZ,AK$1,FALSE))) ->  | AL51: =IF($B51="","",IF(VLOOKUP($B51,'Athlete Input'!$B:$BZ,AL$1,FALSE)="","",VLOOKUP($B51,'Athlete Input'!$B:$BZ,AL$1,FALSE))) ->  | AM51: =IF(B51="","zz",'Athlete Input'!C49) -> zz
A52: 49 | B52: =IF('Athlete Input'!B50="","",'Athlete Input'!B50) ->  | C52: =IF($B52="","",IF(VLOOKUP($B52,'Athlete Input'!$B:$AJ,C$1,FALSE)="","",VLOOKUP($B52,'Athlete Input'!$B:$AJ,C$1,FALSE))) ->  | D52: =IF($B52="","",IF(VLOOKUP($B52,'Athlete Input'!$B:$AJ,D$1,FALSE)="","",VLOOKUP($B52,'Athlete Input'!$B:$AJ,D$1,FALSE))) ->  | E52: =IF($B52="","",IF(VLOOKUP($B52,'Athlete Input'!$B:$AJ,E$1,FALSE)="","",VLOOKUP($B52,'Athlete Input'!$B:$AJ,E$1,FALSE))) ->  | F52: =IF($B52="","",IF(VLOOKUP($B52,'Athlete Input'!$B:$AJ,F$1,FALSE)="","",VLOOKUP($B52,'Athlete Input'!$B:$AJ,F$1,FALSE))) ->  | G52: =IF($B52="","",IF(VLOOKUP($B52,'Athlete Input'!$B:$AJ,G$1,FALSE)="","",VLOOKUP($B52,'Athlete Input'!$B:$AJ,G$1,FALSE))) ->  | H52: =IF($B52="","",IF(VLOOKUP($B52,'Athlete Input'!$B:$AJ,H$1,FALSE)="","",VLOOKUP($B52,'Athlete Input'!$B:$AJ,H$1,FALSE))) ->  | I52: =IF($B52="","",IF(VLOOKUP($B52,'Athlete Input'!$B:$AJ,I$1,FALSE)="","",VLOOKUP($B52,'Athlete Input'!$B:$AJ,I$1,FALSE))) ->  | J52: =IF($B52="","",IF(VLOOKUP($B52,'Athlete Input'!$B:$AJ,J$1,FALSE)="","",VLOOKUP($B52,'Athlete Input'!$B:$AJ,J$1,FALSE))) ->  | K52: =IF($B52="","",IF(VLOOKUP($B52,'Athlete Input'!$B:$AJ,K$1,FALSE)="","",VLOOKUP($B52,'Athlete Input'!$B:$AJ,K$1,FALSE))) ->  | L52: =IF($B52="","",IF(VLOOKUP($B52,'Athlete Input'!$B:$AJ,L$1,FALSE)="","",VLOOKUP($B52,'Athlete Input'!$B:$AJ,L$1,FALSE))) ->  | M52: =IF($B52="","",IF(VLOOKUP($B52,'Athlete Input'!$B:$AJ,M$1,FALSE)="","",VLOOKUP($B52,'Athlete Input'!$B:$AJ,M$1,FALSE))) ->  | N52: =IF($B52="","",IF(VLOOKUP($B52,'Athlete Input'!$B:$AJ,N$1,FALSE)="","",VLOOKUP($B52,'Athlete Input'!$B:$AJ,N$1,FALSE))) ->  | O52: =IF($B52="","",IF(VLOOKUP($B52,'Athlete Input'!$B:$AJ,O$1,FALSE)="","",VLOOKUP($B52,'Athlete Input'!$B:$AJ,O$1,FALSE))) ->  | P52: =IF($B52="","",IF(VLOOKUP($B52,'Athlete Input'!$B:$AJ,P$1,FALSE)="","",VLOOKUP($B52,'Athlete Input'!$B:$AJ,P$1,FALSE))) ->  | Q52: =IF($B52="","",IF(VLOOKUP($B52,'Athlete Input'!$B:$AJ,Q$1,FALSE)="","",VLOOKUP($B52,'Athlete Input'!$B:$AJ,Q$1,FALSE))) ->  | R52: =IF($B52="","",IF(VLOOKUP($B52,'Athlete Input'!$B:$AJ,R$1,FALSE)="","",VLOOKUP($B52,'Athlete Input'!$B:$AJ,R$1,FALSE))) ->  | S52: =IF($B52="","",IF(VLOOKUP($B52,'Athlete Input'!$B:$AJ,S$1,FALSE)="","",VLOOKUP($B52,'Athlete Input'!$B:$AJ,S$1,FALSE))) ->  | T52: =IF($B52="","",IF(VLOOKUP($B52,'Athlete Input'!$B:$AJ,T$1,FALSE)="","",VLOOKUP($B52,'Athlete Input'!$B:$AJ,T$1,FALSE))) ->  | U52: =IF($B52="","",IF(VLOOKUP($B52,'Athlete Input'!$B:$BZ,U$1,FALSE)="","",VLOOKUP($B52,'Athlete Input'!$B:$BZ,U$1,FALSE))) ->  | V52: =IF($B52="","",IF(VLOOKUP($B52,'Athlete Input'!$B:$BZ,V$1,FALSE)="","",VLOOKUP($B52,'Athlete Input'!$B:$BZ,V$1,FALSE))) ->  | W52: =IF($B52="","",IF(VLOOKUP($B52,'Athlete Input'!$B:$BZ,W$1,FALSE)="","",VLOOKUP($B52,'Athlete Input'!$B:$BZ,W$1,FALSE))) ->  | X52: =IF($B52="","",IF(VLOOKUP($B52,'Athlete Input'!$B:$BZ,X$1,FALSE)="","",VLOOKUP($B52,'Athlete Input'!$B:$BZ,X$1,FALSE))) ->  | Y52: =IF($B52="","",IF(VLOOKUP($B52,'Athlete Input'!$B:$BZ,Y$1,FALSE)="","",VLOOKUP($B52,'Athlete Input'!$B:$BZ,Y$1,FALSE))) ->  | Z52: =IF($B52="","",IF(VLOOKUP($B52,'Athlete Input'!$B:$BZ,Z$1,FALSE)="","",VLOOKUP($B52,'Athlete Input'!$B:$BZ,Z$1,FALSE))) ->  | AA52: =IF($B52="","",IF(VLOOKUP($B52,'Athlete Input'!$B:$BZ,AA$1,FALSE)="","",VLOOKUP($B52,'Athlete Input'!$B:$BZ,AA$1,FALSE))) ->  | AB52: =IF($B52="","",IF(VLOOKUP($B52,'Athlete Input'!$B:$BZ,AB$1,FALSE)="","",VLOOKUP($B52,'Athlete Input'!$B:$BZ,AB$1,FALSE))) ->  | AC52: =IF($B52="","",IF(VLOOKUP($B52,'Athlete Input'!$B:$BZ,AC$1,FALSE)="","",VLOOKUP($B52,'Athlete Input'!$B:$BZ,AC$1,FALSE))) ->  | AD52: =IF($B52="","",IF(VLOOKUP($B52,'Athlete Input'!$B:$BZ,AD$1,FALSE)="","",VLOOKUP($B52,'Athlete Input'!$B:$BZ,AD$1,FALSE))) ->  | AE52: =IF($B52="","",IF(VLOOKUP($B52,'Athlete Input'!$B:$BZ,AE$1,FALSE)="","",VLOOKUP($B52,'Athlete Input'!$B:$BZ,AE$1,FALSE))) ->  | AF52: =IF($B52="","",IF(VLOOKUP($B52,'Athlete Input'!$B:$BZ,AF$1,FALSE)="","",VLOOKUP($B52,'Athlete Input'!$B:$BZ,AF$1,FALSE))) ->  | AG52: =IF($B52="","",IF(VLOOKUP($B52,'Athlete Input'!$B:$BZ,AG$1,FALSE)="","",VLOOKUP($B52,'Athlete Input'!$B:$BZ,AG$1,FALSE))) ->  | AH52: =IF($B52="","",IF(VLOOKUP($B52,'Athlete Input'!$B:$BZ,AH$1,FALSE)="","",VLOOKUP($B52,'Athlete Input'!$B:$BZ,AH$1,FALSE))) ->  | AI52: =IF($B52="","",IF(VLOOKUP($B52,'Athlete Input'!$B:$BZ,AI$1,FALSE)="","",VLOOKUP($B52,'Athlete Input'!$B:$BZ,AI$1,FALSE))) ->  | AJ52: =IF($B52="","",IF(VLOOKUP($B52,'Athlete Input'!$B:$BZ,AJ$1,FALSE)="","",VLOOKUP($B52,'Athlete Input'!$B:$BZ,AJ$1,FALSE))) ->  | AK52: =IF($B52="","",IF(VLOOKUP($B52,'Athlete Input'!$B:$BZ,AK$1,FALSE)="","",VLOOKUP($B52,'Athlete Input'!$B:$BZ,AK$1,FALSE))) ->  | AL52: =IF($B52="","",IF(VLOOKUP($B52,'Athlete Input'!$B:$BZ,AL$1,FALSE)="","",VLOOKUP($B52,'Athlete Input'!$B:$BZ,AL$1,FALSE))) ->  | AM52: =IF(B52="","zz",'Athlete Input'!C50) -> zz
A53: 50 | B53: =IF('Athlete Input'!B51="","",'Athlete Input'!B51) ->  | C53: =IF($B53="","",IF(VLOOKUP($B53,'Athlete Input'!$B:$AJ,C$1,FALSE)="","",VLOOKUP($B53,'Athlete Input'!$B:$AJ,C$1,FALSE))) ->  | D53: =IF($B53="","",IF(VLOOKUP($B53,'Athlete Input'!$B:$AJ,D$1,FALSE)="","",VLOOKUP($B53,'Athlete Input'!$B:$AJ,D$1,FALSE))) ->  | E53: =IF($B53="","",IF(VLOOKUP($B53,'Athlete Input'!$B:$AJ,E$1,FALSE)="","",VLOOKUP($B53,'Athlete Input'!$B:$AJ,E$1,FALSE))) ->  | F53: =IF($B53="","",IF(VLOOKUP($B53,'Athlete Input'!$B:$AJ,F$1,FALSE)="","",VLOOKUP($B53,'Athlete Input'!$B:$AJ,F$1,FALSE))) ->  | G53: =IF($B53="","",IF(VLOOKUP($B53,'Athlete Input'!$B:$AJ,G$1,FALSE)="","",VLOOKUP($B53,'Athlete Input'!$B:$AJ,G$1,FALSE))) ->  | H53: =IF($B53="","",IF(VLOOKUP($B53,'Athlete Input'!$B:$AJ,H$1,FALSE)="","",VLOOKUP($B53,'Athlete Input'!$B:$AJ,H$1,FALSE))) ->  | I53: =IF($B53="","",IF(VLOOKUP($B53,'Athlete Input'!$B:$AJ,I$1,FALSE)="","",VLOOKUP($B53,'Athlete Input'!$B:$AJ,I$1,FALSE))) ->  | J53: =IF($B53="","",IF(VLOOKUP($B53,'Athlete Input'!$B:$AJ,J$1,FALSE)="","",VLOOKUP($B53,'Athlete Input'!$B:$AJ,J$1,FALSE))) ->  | K53: =IF($B53="","",IF(VLOOKUP($B53,'Athlete Input'!$B:$AJ,K$1,FALSE)="","",VLOOKUP($B53,'Athlete Input'!$B:$AJ,K$1,FALSE))) ->  | L53: =IF($B53="","",IF(VLOOKUP($B53,'Athlete Input'!$B:$AJ,L$1,FALSE)="","",VLOOKUP($B53,'Athlete Input'!$B:$AJ,L$1,FALSE))) ->  | M53: =IF($B53="","",IF(VLOOKUP($B53,'Athlete Input'!$B:$AJ,M$1,FALSE)="","",VLOOKUP($B53,'Athlete Input'!$B:$AJ,M$1,FALSE))) ->  | N53: =IF($B53="","",IF(VLOOKUP($B53,'Athlete Input'!$B:$AJ,N$1,FALSE)="","",VLOOKUP($B53,'Athlete Input'!$B:$AJ,N$1,FALSE))) ->  | O53: =IF($B53="","",IF(VLOOKUP($B53,'Athlete Input'!$B:$AJ,O$1,FALSE)="","",VLOOKUP($B53,'Athlete Input'!$B:$AJ,O$1,FALSE))) ->  | P53: =IF($B53="","",IF(VLOOKUP($B53,'Athlete Input'!$B:$AJ,P$1,FALSE)="","",VLOOKUP($B53,'Athlete Input'!$B:$AJ,P$1,FALSE))) ->  | Q53: =IF($B53="","",IF(VLOOKUP($B53,'Athlete Input'!$B:$AJ,Q$1,FALSE)="","",VLOOKUP($B53,'Athlete Input'!$B:$AJ,Q$1,FALSE))) ->  | R53: =IF($B53="","",IF(VLOOKUP($B53,'Athlete Input'!$B:$AJ,R$1,FALSE)="","",VLOOKUP($B53,'Athlete Input'!$B:$AJ,R$1,FALSE))) ->  | S53: =IF($B53="","",IF(VLOOKUP($B53,'Athlete Input'!$B:$AJ,S$1,FALSE)="","",VLOOKUP($B53,'Athlete Input'!$B:$AJ,S$1,FALSE))) ->  | T53: =IF($B53="","",IF(VLOOKUP($B53,'Athlete Input'!$B:$AJ,T$1,FALSE)="","",VLOOKUP($B53,'Athlete Input'!$B:$AJ,T$1,FALSE))) ->  | U53: =IF($B53="","",IF(VLOOKUP($B53,'Athlete Input'!$B:$BZ,U$1,FALSE)="","",VLOOKUP($B53,'Athlete Input'!$B:$BZ,U$1,FALSE))) ->  | V53: =IF($B53="","",IF(VLOOKUP($B53,'Athlete Input'!$B:$BZ,V$1,FALSE)="","",VLOOKUP($B53,'Athlete Input'!$B:$BZ,V$1,FALSE))) ->  | W53: =IF($B53="","",IF(VLOOKUP($B53,'Athlete Input'!$B:$BZ,W$1,FALSE)="","",VLOOKUP($B53,'Athlete Input'!$B:$BZ,W$1,FALSE))) ->  | X53: =IF($B53="","",IF(VLOOKUP($B53,'Athlete Input'!$B:$BZ,X$1,FALSE)="","",VLOOKUP($B53,'Athlete Input'!$B:$BZ,X$1,FALSE))) ->  | Y53: =IF($B53="","",IF(VLOOKUP($B53,'Athlete Input'!$B:$BZ,Y$1,FALSE)="","",VLOOKUP($B53,'Athlete Input'!$B:$BZ,Y$1,FALSE))) ->  | Z53: =IF($B53="","",IF(VLOOKUP($B53,'Athlete Input'!$B:$BZ,Z$1,FALSE)="","",VLOOKUP($B53,'Athlete Input'!$B:$BZ,Z$1,FALSE))) ->  | AA53: =IF($B53="","",IF(VLOOKUP($B53,'Athlete Input'!$B:$BZ,AA$1,FALSE)="","",VLOOKUP($B53,'Athlete Input'!$B:$BZ,AA$1,FALSE))) ->  | AB53: =IF($B53="","",IF(VLOOKUP($B53,'Athlete Input'!$B:$BZ,AB$1,FALSE)="","",VLOOKUP($B53,'Athlete Input'!$B:$BZ,AB$1,FALSE))) ->  | AC53: =IF($B53="","",IF(VLOOKUP($B53,'Athlete Input'!$B:$BZ,AC$1,FALSE)="","",VLOOKUP($B53,'Athlete Input'!$B:$BZ,AC$1,FALSE))) ->  | AD53: =IF($B53="","",IF(VLOOKUP($B53,'Athlete Input'!$B:$BZ,AD$1,FALSE)="","",VLOOKUP($B53,'Athlete Input'!$B:$BZ,AD$1,FALSE))) ->  | AE53: =IF($B53="","",IF(VLOOKUP($B53,'Athlete Input'!$B:$BZ,AE$1,FALSE)="","",VLOOKUP($B53,'Athlete Input'!$B:$BZ,AE$1,FALSE))) ->  | AF53: =IF($B53="","",IF(VLOOKUP($B53,'Athlete Input'!$B:$BZ,AF$1,FALSE)="","",VLOOKUP($B53,'Athlete Input'!$B:$BZ,AF$1,FALSE))) ->  | AG53: =IF($B53="","",IF(VLOOKUP($B53,'Athlete Input'!$B:$BZ,AG$1,FALSE)="","",VLOOKUP($B53,'Athlete Input'!$B:$BZ,AG$1,FALSE))) ->  | AH53: =IF($B53="","",IF(VLOOKUP($B53,'Athlete Input'!$B:$BZ,AH$1,FALSE)="","",VLOOKUP($B53,'Athlete Input'!$B:$BZ,AH$1,FALSE))) ->  | AI53: =IF($B53="","",IF(VLOOKUP($B53,'Athlete Input'!$B:$BZ,AI$1,FALSE)="","",VLOOKUP($B53,'Athlete Input'!$B:$BZ,AI$1,FALSE))) ->  | AJ53: =IF($B53="","",IF(VLOOKUP($B53,'Athlete Input'!$B:$BZ,AJ$1,FALSE)="","",VLOOKUP($B53,'Athlete Input'!$B:$BZ,AJ$1,FALSE))) ->  | AK53: =IF($B53="","",IF(VLOOKUP($B53,'Athlete Input'!$B:$BZ,AK$1,FALSE)="","",VLOOKUP($B53,'Athlete Input'!$B:$BZ,AK$1,FALSE))) ->  | AL53: =IF($B53="","",IF(VLOOKUP($B53,'Athlete Input'!$B:$BZ,AL$1,FALSE)="","",VLOOKUP($B53,'Athlete Input'!$B:$BZ,AL$1,FALSE))) ->  | AM53: =IF(B53="","zz",'Athlete Input'!C51) -> zz
A54: 51 | B54: =IF('Athlete Input'!B52="","",'Athlete Input'!B52) ->  | C54: =IF($B54="","",IF(VLOOKUP($B54,'Athlete Input'!$B:$AJ,C$1,FALSE)="","",VLOOKUP($B54,'Athlete Input'!$B:$AJ,C$1,FALSE))) ->  | D54: =IF($B54="","",IF(VLOOKUP($B54,'Athlete Input'!$B:$AJ,D$1,FALSE)="","",VLOOKUP($B54,'Athlete Input'!$B:$AJ,D$1,FALSE))) ->  | E54: =IF($B54="","",IF(VLOOKUP($B54,'Athlete Input'!$B:$AJ,E$1,FALSE)="","",VLOOKUP($B54,'Athlete Input'!$B:$AJ,E$1,FALSE))) ->  | F54: =IF($B54="","",IF(VLOOKUP($B54,'Athlete Input'!$B:$AJ,F$1,FALSE)="","",VLOOKUP($B54,'Athlete Input'!$B:$AJ,F$1,FALSE))) ->  | G54: =IF($B54="","",IF(VLOOKUP($B54,'Athlete Input'!$B:$AJ,G$1,FALSE)="","",VLOOKUP($B54,'Athlete Input'!$B:$AJ,G$1,FALSE))) ->  | H54: =IF($B54="","",IF(VLOOKUP($B54,'Athlete Input'!$B:$AJ,H$1,FALSE)="","",VLOOKUP($B54,'Athlete Input'!$B:$AJ,H$1,FALSE))) ->  | I54: =IF($B54="","",IF(VLOOKUP($B54,'Athlete Input'!$B:$AJ,I$1,FALSE)="","",VLOOKUP($B54,'Athlete Input'!$B:$AJ,I$1,FALSE))) ->  | J54: =IF($B54="","",IF(VLOOKUP($B54,'Athlete Input'!$B:$AJ,J$1,FALSE)="","",VLOOKUP($B54,'Athlete Input'!$B:$AJ,J$1,FALSE))) ->  | K54: =IF($B54="","",IF(VLOOKUP($B54,'Athlete Input'!$B:$AJ,K$1,FALSE)="","",VLOOKUP($B54,'Athlete Input'!$B:$AJ,K$1,FALSE))) ->  | L54: =IF($B54="","",IF(VLOOKUP($B54,'Athlete Input'!$B:$AJ,L$1,FALSE)="","",VLOOKUP($B54,'Athlete Input'!$B:$AJ,L$1,FALSE))) ->  | M54: =IF($B54="","",IF(VLOOKUP($B54,'Athlete Input'!$B:$AJ,M$1,FALSE)="","",VLOOKUP($B54,'Athlete Input'!$B:$AJ,M$1,FALSE))) ->  | N54: =IF($B54="","",IF(VLOOKUP($B54,'Athlete Input'!$B:$AJ,N$1,FALSE)="","",VLOOKUP($B54,'Athlete Input'!$B:$AJ,N$1,FALSE))) ->  | O54: =IF($B54="","",IF(VLOOKUP($B54,'Athlete Input'!$B:$AJ,O$1,FALSE)="","",VLOOKUP($B54,'Athlete Input'!$B:$AJ,O$1,FALSE))) ->  | P54: =IF($B54="","",IF(VLOOKUP($B54,'Athlete Input'!$B:$AJ,P$1,FALSE)="","",VLOOKUP($B54,'Athlete Input'!$B:$AJ,P$1,FALSE))) ->  | Q54: =IF($B54="","",IF(VLOOKUP($B54,'Athlete Input'!$B:$AJ,Q$1,FALSE)="","",VLOOKUP($B54,'Athlete Input'!$B:$AJ,Q$1,FALSE))) ->  | R54: =IF($B54="","",IF(VLOOKUP($B54,'Athlete Input'!$B:$AJ,R$1,FALSE)="","",VLOOKUP($B54,'Athlete Input'!$B:$AJ,R$1,FALSE))) ->  | S54: =IF($B54="","",IF(VLOOKUP($B54,'Athlete Input'!$B:$AJ,S$1,FALSE)="","",VLOOKUP($B54,'Athlete Input'!$B:$AJ,S$1,FALSE))) ->  | T54: =IF($B54="","",IF(VLOOKUP($B54,'Athlete Input'!$B:$AJ,T$1,FALSE)="","",VLOOKUP($B54,'Athlete Input'!$B:$AJ,T$1,FALSE))) ->  | U54: =IF($B54="","",IF(VLOOKUP($B54,'Athlete Input'!$B:$BZ,U$1,FALSE)="","",VLOOKUP($B54,'Athlete Input'!$B:$BZ,U$1,FALSE))) ->  | V54: =IF($B54="","",IF(VLOOKUP($B54,'Athlete Input'!$B:$BZ,V$1,FALSE)="","",VLOOKUP($B54,'Athlete Input'!$B:$BZ,V$1,FALSE))) ->  | W54: =IF($B54="","",IF(VLOOKUP($B54,'Athlete Input'!$B:$BZ,W$1,FALSE)="","",VLOOKUP($B54,'Athlete Input'!$B:$BZ,W$1,FALSE))) ->  | X54: =IF($B54="","",IF(VLOOKUP($B54,'Athlete Input'!$B:$BZ,X$1,FALSE)="","",VLOOKUP($B54,'Athlete Input'!$B:$BZ,X$1,FALSE))) ->  | Y54: =IF($B54="","",IF(VLOOKUP($B54,'Athlete Input'!$B:$BZ,Y$1,FALSE)="","",VLOOKUP($B54,'Athlete Input'!$B:$BZ,Y$1,FALSE))) ->  | Z54: =IF($B54="","",IF(VLOOKUP($B54,'Athlete Input'!$B:$BZ,Z$1,FALSE)="","",VLOOKUP($B54,'Athlete Input'!$B:$BZ,Z$1,FALSE))) ->  | AA54: =IF($B54="","",IF(VLOOKUP($B54,'Athlete Input'!$B:$BZ,AA$1,FALSE)="","",VLOOKUP($B54,'Athlete Input'!$B:$BZ,AA$1,FALSE))) ->  | AB54: =IF($B54="","",IF(VLOOKUP($B54,'Athlete Input'!$B:$BZ,AB$1,FALSE)="","",VLOOKUP($B54,'Athlete Input'!$B:$BZ,AB$1,FALSE))) ->  | AC54: =IF($B54="","",IF(VLOOKUP($B54,'Athlete Input'!$B:$BZ,AC$1,FALSE)="","",VLOOKUP($B54,'Athlete Input'!$B:$BZ,AC$1,FALSE))) ->  | AD54: =IF($B54="","",IF(VLOOKUP($B54,'Athlete Input'!$B:$BZ,AD$1,FALSE)="","",VLOOKUP($B54,'Athlete Input'!$B:$BZ,AD$1,FALSE))) ->  | AE54: =IF($B54="","",IF(VLOOKUP($B54,'Athlete Input'!$B:$BZ,AE$1,FALSE)="","",VLOOKUP($B54,'Athlete Input'!$B:$BZ,AE$1,FALSE))) ->  | AF54: =IF($B54="","",IF(VLOOKUP($B54,'Athlete Input'!$B:$BZ,AF$1,FALSE)="","",VLOOKUP($B54,'Athlete Input'!$B:$BZ,AF$1,FALSE))) ->  | AG54: =IF($B54="","",IF(VLOOKUP($B54,'Athlete Input'!$B:$BZ,AG$1,FALSE)="","",VLOOKUP($B54,'Athlete Input'!$B:$BZ,AG$1,FALSE))) ->  | AH54: =IF($B54="","",IF(VLOOKUP($B54,'Athlete Input'!$B:$BZ,AH$1,FALSE)="","",VLOOKUP($B54,'Athlete Input'!$B:$BZ,AH$1,FALSE))) ->  | AI54: =IF($B54="","",IF(VLOOKUP($B54,'Athlete Input'!$B:$BZ,AI$1,FALSE)="","",VLOOKUP($B54,'Athlete Input'!$B:$BZ,AI$1,FALSE))) ->  | AJ54: =IF($B54="","",IF(VLOOKUP($B54,'Athlete Input'!$B:$BZ,AJ$1,FALSE)="","",VLOOKUP($B54,'Athlete Input'!$B:$BZ,AJ$1,FALSE))) ->  | AK54: =IF($B54="","",IF(VLOOKUP($B54,'Athlete Input'!$B:$BZ,AK$1,FALSE)="","",VLOOKUP($B54,'Athlete Input'!$B:$BZ,AK$1,FALSE))) ->  | AL54: =IF($B54="","",IF(VLOOKUP($B54,'Athlete Input'!$B:$BZ,AL$1,FALSE)="","",VLOOKUP($B54,'Athlete Input'!$B:$BZ,AL$1,FALSE))) ->  | AM54: =IF(B54="","zz",'Athlete Input'!C52) -> zz
A55: 52 | B55: =IF('Athlete Input'!B53="","",'Athlete Input'!B53) ->  | C55: =IF($B55="","",IF(VLOOKUP($B55,'Athlete Input'!$B:$AJ,C$1,FALSE)="","",VLOOKUP($B55,'Athlete Input'!$B:$AJ,C$1,FALSE))) ->  | D55: =IF($B55="","",IF(VLOOKUP($B55,'Athlete Input'!$B:$AJ,D$1,FALSE)="","",VLOOKUP($B55,'Athlete Input'!$B:$AJ,D$1,FALSE))) ->  | E55: =IF($B55="","",IF(VLOOKUP($B55,'Athlete Input'!$B:$AJ,E$1,FALSE)="","",VLOOKUP($B55,'Athlete Input'!$B:$AJ,E$1,FALSE))) ->  | F55: =IF($B55="","",IF(VLOOKUP($B55,'Athlete Input'!$B:$AJ,F$1,FALSE)="","",VLOOKUP($B55,'Athlete Input'!$B:$AJ,F$1,FALSE))) ->  | G55: =IF($B55="","",IF(VLOOKUP($B55,'Athlete Input'!$B:$AJ,G$1,FALSE)="","",VLOOKUP($B55,'Athlete Input'!$B:$AJ,G$1,FALSE))) ->  | H55: =IF($B55="","",IF(VLOOKUP($B55,'Athlete Input'!$B:$AJ,H$1,FALSE)="","",VLOOKUP($B55,'Athlete Input'!$B:$AJ,H$1,FALSE))) ->  | I55: =IF($B55="","",IF(VLOOKUP($B55,'Athlete Input'!$B:$AJ,I$1,FALSE)="","",VLOOKUP($B55,'Athlete Input'!$B:$AJ,I$1,FALSE))) ->  | J55: =IF($B55="","",IF(VLOOKUP($B55,'Athlete Input'!$B:$AJ,J$1,FALSE)="","",VLOOKUP($B55,'Athlete Input'!$B:$AJ,J$1,FALSE))) ->  | K55: =IF($B55="","",IF(VLOOKUP($B55,'Athlete Input'!$B:$AJ,K$1,FALSE)="","",VLOOKUP($B55,'Athlete Input'!$B:$AJ,K$1,FALSE))) ->  | L55: =IF($B55="","",IF(VLOOKUP($B55,'Athlete Input'!$B:$AJ,L$1,FALSE)="","",VLOOKUP($B55,'Athlete Input'!$B:$AJ,L$1,FALSE))) ->  | M55: =IF($B55="","",IF(VLOOKUP($B55,'Athlete Input'!$B:$AJ,M$1,FALSE)="","",VLOOKUP($B55,'Athlete Input'!$B:$AJ,M$1,FALSE))) ->  | N55: =IF($B55="","",IF(VLOOKUP($B55,'Athlete Input'!$B:$AJ,N$1,FALSE)="","",VLOOKUP($B55,'Athlete Input'!$B:$AJ,N$1,FALSE))) ->  | O55: =IF($B55="","",IF(VLOOKUP($B55,'Athlete Input'!$B:$AJ,O$1,FALSE)="","",VLOOKUP($B55,'Athlete Input'!$B:$AJ,O$1,FALSE))) ->  | P55: =IF($B55="","",IF(VLOOKUP($B55,'Athlete Input'!$B:$AJ,P$1,FALSE)="","",VLOOKUP($B55,'Athlete Input'!$B:$AJ,P$1,FALSE))) ->  | Q55: =IF($B55="","",IF(VLOOKUP($B55,'Athlete Input'!$B:$AJ,Q$1,FALSE)="","",VLOOKUP($B55,'Athlete Input'!$B:$AJ,Q$1,FALSE))) ->  | R55: =IF($B55="","",IF(VLOOKUP($B55,'Athlete Input'!$B:$AJ,R$1,FALSE)="","",VLOOKUP($B55,'Athlete Input'!$B:$AJ,R$1,FALSE))) ->  | S55: =IF($B55="","",IF(VLOOKUP($B55,'Athlete Input'!$B:$AJ,S$1,FALSE)="","",VLOOKUP($B55,'Athlete Input'!$B:$AJ,S$1,FALSE))) ->  | T55: =IF($B55="","",IF(VLOOKUP($B55,'Athlete Input'!$B:$AJ,T$1,FALSE)="","",VLOOKUP($B55,'Athlete Input'!$B:$AJ,T$1,FALSE))) ->  | U55: =IF($B55="","",IF(VLOOKUP($B55,'Athlete Input'!$B:$BZ,U$1,FALSE)="","",VLOOKUP($B55,'Athlete Input'!$B:$BZ,U$1,FALSE))) ->  | V55: =IF($B55="","",IF(VLOOKUP($B55,'Athlete Input'!$B:$BZ,V$1,FALSE)="","",VLOOKUP($B55,'Athlete Input'!$B:$BZ,V$1,FALSE))) ->  | W55: =IF($B55="","",IF(VLOOKUP($B55,'Athlete Input'!$B:$BZ,W$1,FALSE)="","",VLOOKUP($B55,'Athlete Input'!$B:$BZ,W$1,FALSE))) ->  | X55: =IF($B55="","",IF(VLOOKUP($B55,'Athlete Input'!$B:$BZ,X$1,FALSE)="","",VLOOKUP($B55,'Athlete Input'!$B:$BZ,X$1,FALSE))) ->  | Y55: =IF($B55="","",IF(VLOOKUP($B55,'Athlete Input'!$B:$BZ,Y$1,FALSE)="","",VLOOKUP($B55,'Athlete Input'!$B:$BZ,Y$1,FALSE))) ->  | Z55: =IF($B55="","",IF(VLOOKUP($B55,'Athlete Input'!$B:$BZ,Z$1,FALSE)="","",VLOOKUP($B55,'Athlete Input'!$B:$BZ,Z$1,FALSE))) ->  | AA55: =IF($B55="","",IF(VLOOKUP($B55,'Athlete Input'!$B:$BZ,AA$1,FALSE)="","",VLOOKUP($B55,'Athlete Input'!$B:$BZ,AA$1,FALSE))) ->  | AB55: =IF($B55="","",IF(VLOOKUP($B55,'Athlete Input'!$B:$BZ,AB$1,FALSE)="","",VLOOKUP($B55,'Athlete Input'!$B:$BZ,AB$1,FALSE))) ->  | AC55: =IF($B55="","",IF(VLOOKUP($B55,'Athlete Input'!$B:$BZ,AC$1,FALSE)="","",VLOOKUP($B55,'Athlete Input'!$B:$BZ,AC$1,FALSE))) ->  | AD55: =IF($B55="","",IF(VLOOKUP($B55,'Athlete Input'!$B:$BZ,AD$1,FALSE)="","",VLOOKUP($B55,'Athlete Input'!$B:$BZ,AD$1,FALSE))) ->  | AE55: =IF($B55="","",IF(VLOOKUP($B55,'Athlete Input'!$B:$BZ,AE$1,FALSE)="","",VLOOKUP($B55,'Athlete Input'!$B:$BZ,AE$1,FALSE))) ->  | AF55: =IF($B55="","",IF(VLOOKUP($B55,'Athlete Input'!$B:$BZ,AF$1,FALSE)="","",VLOOKUP($B55,'Athlete Input'!$B:$BZ,AF$1,FALSE))) ->  | AG55: =IF($B55="","",IF(VLOOKUP($B55,'Athlete Input'!$B:$BZ,AG$1,FALSE)="","",VLOOKUP($B55,'Athlete Input'!$B:$BZ,AG$1,FALSE))) ->  | AH55: =IF($B55="","",IF(VLOOKUP($B55,'Athlete Input'!$B:$BZ,AH$1,FALSE)="","",VLOOKUP($B55,'Athlete Input'!$B:$BZ,AH$1,FALSE))) ->  | AI55: =IF($B55="","",IF(VLOOKUP($B55,'Athlete Input'!$B:$BZ,AI$1,FALSE)="","",VLOOKUP($B55,'Athlete Input'!$B:$BZ,AI$1,FALSE))) ->  | AJ55: =IF($B55="","",IF(VLOOKUP($B55,'Athlete Input'!$B:$BZ,AJ$1,FALSE)="","",VLOOKUP($B55,'Athlete Input'!$B:$BZ,AJ$1,FALSE))) ->  | AK55: =IF($B55="","",IF(VLOOKUP($B55,'Athlete Input'!$B:$BZ,AK$1,FALSE)="","",VLOOKUP($B55,'Athlete Input'!$B:$BZ,AK$1,FALSE))) ->  | AL55: =IF($B55="","",IF(VLOOKUP($B55,'Athlete Input'!$B:$BZ,AL$1,FALSE)="","",VLOOKUP($B55,'Athlete Input'!$B:$BZ,AL$1,FALSE))) ->  | AM55: =IF(B55="","zz",'Athlete Input'!C53) -> zz
A56: 53 | B56: =IF('Athlete Input'!B54="","",'Athlete Input'!B54) ->  | C56: =IF($B56="","",IF(VLOOKUP($B56,'Athlete Input'!$B:$AJ,C$1,FALSE)="","",VLOOKUP($B56,'Athlete Input'!$B:$AJ,C$1,FALSE))) ->  | D56: =IF($B56="","",IF(VLOOKUP($B56,'Athlete Input'!$B:$AJ,D$1,FALSE)="","",VLOOKUP($B56,'Athlete Input'!$B:$AJ,D$1,FALSE))) ->  | E56: =IF($B56="","",IF(VLOOKUP($B56,'Athlete Input'!$B:$AJ,E$1,FALSE)="","",VLOOKUP($B56,'Athlete Input'!$B:$AJ,E$1,FALSE))) ->  | F56: =IF($B56="","",IF(VLOOKUP($B56,'Athlete Input'!$B:$AJ,F$1,FALSE)="","",VLOOKUP($B56,'Athlete Input'!$B:$AJ,F$1,FALSE))) ->  | G56: =IF($B56="","",IF(VLOOKUP($B56,'Athlete Input'!$B:$AJ,G$1,FALSE)="","",VLOOKUP($B56,'Athlete Input'!$B:$AJ,G$1,FALSE))) ->  | H56: =IF($B56="","",IF(VLOOKUP($B56,'Athlete Input'!$B:$AJ,H$1,FALSE)="","",VLOOKUP($B56,'Athlete Input'!$B:$AJ,H$1,FALSE))) ->  | I56: =IF($B56="","",IF(VLOOKUP($B56,'Athlete Input'!$B:$AJ,I$1,FALSE)="","",VLOOKUP($B56,'Athlete Input'!$B:$AJ,I$1,FALSE))) ->  | J56: =IF($B56="","",IF(VLOOKUP($B56,'Athlete Input'!$B:$AJ,J$1,FALSE)="","",VLOOKUP($B56,'Athlete Input'!$B:$AJ,J$1,FALSE))) ->  | K56: =IF($B56="","",IF(VLOOKUP($B56,'Athlete Input'!$B:$AJ,K$1,FALSE)="","",VLOOKUP($B56,'Athlete Input'!$B:$AJ,K$1,FALSE))) ->  | L56: =IF($B56="","",IF(VLOOKUP($B56,'Athlete Input'!$B:$AJ,L$1,FALSE)="","",VLOOKUP($B56,'Athlete Input'!$B:$AJ,L$1,FALSE))) ->  | M56: =IF($B56="","",IF(VLOOKUP($B56,'Athlete Input'!$B:$AJ,M$1,FALSE)="","",VLOOKUP($B56,'Athlete Input'!$B:$AJ,M$1,FALSE))) ->  | N56: =IF($B56="","",IF(VLOOKUP($B56,'Athlete Input'!$B:$AJ,N$1,FALSE)="","",VLOOKUP($B56,'Athlete Input'!$B:$AJ,N$1,FALSE))) ->  | O56: =IF($B56="","",IF(VLOOKUP($B56,'Athlete Input'!$B:$AJ,O$1,FALSE)="","",VLOOKUP($B56,'Athlete Input'!$B:$AJ,O$1,FALSE))) ->  | P56: =IF($B56="","",IF(VLOOKUP($B56,'Athlete Input'!$B:$AJ,P$1,FALSE)="","",VLOOKUP($B56,'Athlete Input'!$B:$AJ,P$1,FALSE))) ->  | Q56: =IF($B56="","",IF(VLOOKUP($B56,'Athlete Input'!$B:$AJ,Q$1,FALSE)="","",VLOOKUP($B56,'Athlete Input'!$B:$AJ,Q$1,FALSE))) ->  | R56: =IF($B56="","",IF(VLOOKUP($B56,'Athlete Input'!$B:$AJ,R$1,FALSE)="","",VLOOKUP($B56,'Athlete Input'!$B:$AJ,R$1,FALSE))) ->  | S56: =IF($B56="","",IF(VLOOKUP($B56,'Athlete Input'!$B:$AJ,S$1,FALSE)="","",VLOOKUP($B56,'Athlete Input'!$B:$AJ,S$1,FALSE))) ->  | T56: =IF($B56="","",IF(VLOOKUP($B56,'Athlete Input'!$B:$AJ,T$1,FALSE)="","",VLOOKUP($B56,'Athlete Input'!$B:$AJ,T$1,FALSE))) ->  | U56: =IF($B56="","",IF(VLOOKUP($B56,'Athlete Input'!$B:$BZ,U$1,FALSE)="","",VLOOKUP($B56,'Athlete Input'!$B:$BZ,U$1,FALSE))) ->  | V56: =IF($B56="","",IF(VLOOKUP($B56,'Athlete Input'!$B:$BZ,V$1,FALSE)="","",VLOOKUP($B56,'Athlete Input'!$B:$BZ,V$1,FALSE))) ->  | W56: =IF($B56="","",IF(VLOOKUP($B56,'Athlete Input'!$B:$BZ,W$1,FALSE)="","",VLOOKUP($B56,'Athlete Input'!$B:$BZ,W$1,FALSE))) ->  | X56: =IF($B56="","",IF(VLOOKUP($B56,'Athlete Input'!$B:$BZ,X$1,FALSE)="","",VLOOKUP($B56,'Athlete Input'!$B:$BZ,X$1,FALSE))) ->  | Y56: =IF($B56="","",IF(VLOOKUP($B56,'Athlete Input'!$B:$BZ,Y$1,FALSE)="","",VLOOKUP($B56,'Athlete Input'!$B:$BZ,Y$1,FALSE))) ->  | Z56: =IF($B56="","",IF(VLOOKUP($B56,'Athlete Input'!$B:$BZ,Z$1,FALSE)="","",VLOOKUP($B56,'Athlete Input'!$B:$BZ,Z$1,FALSE))) ->  | AA56: =IF($B56="","",IF(VLOOKUP($B56,'Athlete Input'!$B:$BZ,AA$1,FALSE)="","",VLOOKUP($B56,'Athlete Input'!$B:$BZ,AA$1,FALSE))) ->  | AB56: =IF($B56="","",IF(VLOOKUP($B56,'Athlete Input'!$B:$BZ,AB$1,FALSE)="","",VLOOKUP($B56,'Athlete Input'!$B:$BZ,AB$1,FALSE))) ->  | AC56: =IF($B56="","",IF(VLOOKUP($B56,'Athlete Input'!$B:$BZ,AC$1,FALSE)="","",VLOOKUP($B56,'Athlete Input'!$B:$BZ,AC$1,FALSE))) ->  | AD56: =IF($B56="","",IF(VLOOKUP($B56,'Athlete Input'!$B:$BZ,AD$1,FALSE)="","",VLOOKUP($B56,'Athlete Input'!$B:$BZ,AD$1,FALSE))) ->  | AE56: =IF($B56="","",IF(VLOOKUP($B56,'Athlete Input'!$B:$BZ,AE$1,FALSE)="","",VLOOKUP($B56,'Athlete Input'!$B:$BZ,AE$1,FALSE))) ->  | AF56: =IF($B56="","",IF(VLOOKUP($B56,'Athlete Input'!$B:$BZ,AF$1,FALSE)="","",VLOOKUP($B56,'Athlete Input'!$B:$BZ,AF$1,FALSE))) ->  | AG56: =IF($B56="","",IF(VLOOKUP($B56,'Athlete Input'!$B:$BZ,AG$1,FALSE)="","",VLOOKUP($B56,'Athlete Input'!$B:$BZ,AG$1,FALSE))) ->  | AH56: =IF($B56="","",IF(VLOOKUP($B56,'Athlete Input'!$B:$BZ,AH$1,FALSE)="","",VLOOKUP($B56,'Athlete Input'!$B:$BZ,AH$1,FALSE))) ->  | AI56: =IF($B56="","",IF(VLOOKUP($B56,'Athlete Input'!$B:$BZ,AI$1,FALSE)="","",VLOOKUP($B56,'Athlete Input'!$B:$BZ,AI$1,FALSE))) ->  | AJ56: =IF($B56="","",IF(VLOOKUP($B56,'Athlete Input'!$B:$BZ,AJ$1,FALSE)="","",VLOOKUP($B56,'Athlete Input'!$B:$BZ,AJ$1,FALSE))) ->  | AK56: =IF($B56="","",IF(VLOOKUP($B56,'Athlete Input'!$B:$BZ,AK$1,FALSE)="","",VLOOKUP($B56,'Athlete Input'!$B:$BZ,AK$1,FALSE))) ->  | AL56: =IF($B56="","",IF(VLOOKUP($B56,'Athlete Input'!$B:$BZ,AL$1,FALSE)="","",VLOOKUP($B56,'Athlete Input'!$B:$BZ,AL$1,FALSE))) ->  | AM56: =IF(B56="","zz",'Athlete Input'!C54) -> zz
A57: 54 | B57: =IF('Athlete Input'!B55="","",'Athlete Input'!B55) ->  | C57: =IF($B57="","",IF(VLOOKUP($B57,'Athlete Input'!$B:$AJ,C$1,FALSE)="","",VLOOKUP($B57,'Athlete Input'!$B:$AJ,C$1,FALSE))) ->  | D57: =IF($B57="","",IF(VLOOKUP($B57,'Athlete Input'!$B:$AJ,D$1,FALSE)="","",VLOOKUP($B57,'Athlete Input'!$B:$AJ,D$1,FALSE))) ->  | E57: =IF($B57="","",IF(VLOOKUP($B57,'Athlete Input'!$B:$AJ,E$1,FALSE)="","",VLOOKUP($B57,'Athlete Input'!$B:$AJ,E$1,FALSE))) ->  | F57: =IF($B57="","",IF(VLOOKUP($B57,'Athlete Input'!$B:$AJ,F$1,FALSE)="","",VLOOKUP($B57,'Athlete Input'!$B:$AJ,F$1,FALSE))) ->  | G57: =IF($B57="","",IF(VLOOKUP($B57,'Athlete Input'!$B:$AJ,G$1,FALSE)="","",VLOOKUP($B57,'Athlete Input'!$B:$AJ,G$1,FALSE))) ->  | H57: =IF($B57="","",IF(VLOOKUP($B57,'Athlete Input'!$B:$AJ,H$1,FALSE)="","",VLOOKUP($B57,'Athlete Input'!$B:$AJ,H$1,FALSE))) ->  | I57: =IF($B57="","",IF(VLOOKUP($B57,'Athlete Input'!$B:$AJ,I$1,FALSE)="","",VLOOKUP($B57,'Athlete Input'!$B:$AJ,I$1,FALSE))) ->  | J57: =IF($B57="","",IF(VLOOKUP($B57,'Athlete Input'!$B:$AJ,J$1,FALSE)="","",VLOOKUP($B57,'Athlete Input'!$B:$AJ,J$1,FALSE))) ->  | K57: =IF($B57="","",IF(VLOOKUP($B57,'Athlete Input'!$B:$AJ,K$1,FALSE)="","",VLOOKUP($B57,'Athlete Input'!$B:$AJ,K$1,FALSE))) ->  | L57: =IF($B57="","",IF(VLOOKUP($B57,'Athlete Input'!$B:$AJ,L$1,FALSE)="","",VLOOKUP($B57,'Athlete Input'!$B:$AJ,L$1,FALSE))) ->  | M57: =IF($B57="","",IF(VLOOKUP($B57,'Athlete Input'!$B:$AJ,M$1,FALSE)="","",VLOOKUP($B57,'Athlete Input'!$B:$AJ,M$1,FALSE))) ->  | N57: =IF($B57="","",IF(VLOOKUP($B57,'Athlete Input'!$B:$AJ,N$1,FALSE)="","",VLOOKUP($B57,'Athlete Input'!$B:$AJ,N$1,FALSE))) ->  | O57: =IF($B57="","",IF(VLOOKUP($B57,'Athlete Input'!$B:$AJ,O$1,FALSE)="","",VLOOKUP($B57,'Athlete Input'!$B:$AJ,O$1,FALSE))) ->  | P57: =IF($B57="","",IF(VLOOKUP($B57,'Athlete Input'!$B:$AJ,P$1,FALSE)="","",VLOOKUP($B57,'Athlete Input'!$B:$AJ,P$1,FALSE))) ->  | Q57: =IF($B57="","",IF(VLOOKUP($B57,'Athlete Input'!$B:$AJ,Q$1,FALSE)="","",VLOOKUP($B57,'Athlete Input'!$B:$AJ,Q$1,FALSE))) ->  | R57: =IF($B57="","",IF(VLOOKUP($B57,'Athlete Input'!$B:$AJ,R$1,FALSE)="","",VLOOKUP($B57,'Athlete Input'!$B:$AJ,R$1,FALSE))) ->  | S57: =IF($B57="","",IF(VLOOKUP($B57,'Athlete Input'!$B:$AJ,S$1,FALSE)="","",VLOOKUP($B57,'Athlete Input'!$B:$AJ,S$1,FALSE))) ->  | T57: =IF($B57="","",IF(VLOOKUP($B57,'Athlete Input'!$B:$AJ,T$1,FALSE)="","",VLOOKUP($B57,'Athlete Input'!$B:$AJ,T$1,FALSE))) ->  | U57: =IF($B57="","",IF(VLOOKUP($B57,'Athlete Input'!$B:$BZ,U$1,FALSE)="","",VLOOKUP($B57,'Athlete Input'!$B:$BZ,U$1,FALSE))) ->  | V57: =IF($B57="","",IF(VLOOKUP($B57,'Athlete Input'!$B:$BZ,V$1,FALSE)="","",VLOOKUP($B57,'Athlete Input'!$B:$BZ,V$1,FALSE))) ->  | W57: =IF($B57="","",IF(VLOOKUP($B57,'Athlete Input'!$B:$BZ,W$1,FALSE)="","",VLOOKUP($B57,'Athlete Input'!$B:$BZ,W$1,FALSE))) ->  | X57: =IF($B57="","",IF(VLOOKUP($B57,'Athlete Input'!$B:$BZ,X$1,FALSE)="","",VLOOKUP($B57,'Athlete Input'!$B:$BZ,X$1,FALSE))) ->  | Y57: =IF($B57="","",IF(VLOOKUP($B57,'Athlete Input'!$B:$BZ,Y$1,FALSE)="","",VLOOKUP($B57,'Athlete Input'!$B:$BZ,Y$1,FALSE))) ->  | Z57: =IF($B57="","",IF(VLOOKUP($B57,'Athlete Input'!$B:$BZ,Z$1,FALSE)="","",VLOOKUP($B57,'Athlete Input'!$B:$BZ,Z$1,FALSE))) ->  | AA57: =IF($B57="","",IF(VLOOKUP($B57,'Athlete Input'!$B:$BZ,AA$1,FALSE)="","",VLOOKUP($B57,'Athlete Input'!$B:$BZ,AA$1,FALSE))) ->  | AB57: =IF($B57="","",IF(VLOOKUP($B57,'Athlete Input'!$B:$BZ,AB$1,FALSE)="","",VLOOKUP($B57,'Athlete Input'!$B:$BZ,AB$1,FALSE))) ->  | AC57: =IF($B57="","",IF(VLOOKUP($B57,'Athlete Input'!$B:$BZ,AC$1,FALSE)="","",VLOOKUP($B57,'Athlete Input'!$B:$BZ,AC$1,FALSE))) ->  | AD57: =IF($B57="","",IF(VLOOKUP($B57,'Athlete Input'!$B:$BZ,AD$1,FALSE)="","",VLOOKUP($B57,'Athlete Input'!$B:$BZ,AD$1,FALSE))) ->  | AE57: =IF($B57="","",IF(VLOOKUP($B57,'Athlete Input'!$B:$BZ,AE$1,FALSE)="","",VLOOKUP($B57,'Athlete Input'!$B:$BZ,AE$1,FALSE))) ->  | AF57: =IF($B57="","",IF(VLOOKUP($B57,'Athlete Input'!$B:$BZ,AF$1,FALSE)="","",VLOOKUP($B57,'Athlete Input'!$B:$BZ,AF$1,FALSE))) ->  | AG57: =IF($B57="","",IF(VLOOKUP($B57,'Athlete Input'!$B:$BZ,AG$1,FALSE)="","",VLOOKUP($B57,'Athlete Input'!$B:$BZ,AG$1,FALSE))) ->  | AH57: =IF($B57="","",IF(VLOOKUP($B57,'Athlete Input'!$B:$BZ,AH$1,FALSE)="","",VLOOKUP($B57,'Athlete Input'!$B:$BZ,AH$1,FALSE))) ->  | AI57: =IF($B57="","",IF(VLOOKUP($B57,'Athlete Input'!$B:$BZ,AI$1,FALSE)="","",VLOOKUP($B57,'Athlete Input'!$B:$BZ,AI$1,FALSE))) ->  | AJ57: =IF($B57="","",IF(VLOOKUP($B57,'Athlete Input'!$B:$BZ,AJ$1,FALSE)="","",VLOOKUP($B57,'Athlete Input'!$B:$BZ,AJ$1,FALSE))) ->  | AK57: =IF($B57="","",IF(VLOOKUP($B57,'Athlete Input'!$B:$BZ,AK$1,FALSE)="","",VLOOKUP($B57,'Athlete Input'!$B:$BZ,AK$1,FALSE))) ->  | AL57: =IF($B57="","",IF(VLOOKUP($B57,'Athlete Input'!$B:$BZ,AL$1,FALSE)="","",VLOOKUP($B57,'Athlete Input'!$B:$BZ,AL$1,FALSE))) ->  | AM57: =IF(B57="","zz",'Athlete Input'!C55) -> zz
A58: 55 | B58: =IF('Athlete Input'!B56="","",'Athlete Input'!B56) ->  | C58: =IF($B58="","",IF(VLOOKUP($B58,'Athlete Input'!$B:$AJ,C$1,FALSE)="","",VLOOKUP($B58,'Athlete Input'!$B:$AJ,C$1,FALSE))) ->  | D58: =IF($B58="","",IF(VLOOKUP($B58,'Athlete Input'!$B:$AJ,D$1,FALSE)="","",VLOOKUP($B58,'Athlete Input'!$B:$AJ,D$1,FALSE))) ->  | E58: =IF($B58="","",IF(VLOOKUP($B58,'Athlete Input'!$B:$AJ,E$1,FALSE)="","",VLOOKUP($B58,'Athlete Input'!$B:$AJ,E$1,FALSE))) ->  | F58: =IF($B58="","",IF(VLOOKUP($B58,'Athlete Input'!$B:$AJ,F$1,FALSE)="","",VLOOKUP($B58,'Athlete Input'!$B:$AJ,F$1,FALSE))) ->  | G58: =IF($B58="","",IF(VLOOKUP($B58,'Athlete Input'!$B:$AJ,G$1,FALSE)="","",VLOOKUP($B58,'Athlete Input'!$B:$AJ,G$1,FALSE))) ->  | H58: =IF($B58="","",IF(VLOOKUP($B58,'Athlete Input'!$B:$AJ,H$1,FALSE)="","",VLOOKUP($B58,'Athlete Input'!$B:$AJ,H$1,FALSE))) ->  | I58: =IF($B58="","",IF(VLOOKUP($B58,'Athlete Input'!$B:$AJ,I$1,FALSE)="","",VLOOKUP($B58,'Athlete Input'!$B:$AJ,I$1,FALSE))) ->  | J58: =IF($B58="","",IF(VLOOKUP($B58,'Athlete Input'!$B:$AJ,J$1,FALSE)="","",VLOOKUP($B58,'Athlete Input'!$B:$AJ,J$1,FALSE))) ->  | K58: =IF($B58="","",IF(VLOOKUP($B58,'Athlete Input'!$B:$AJ,K$1,FALSE)="","",VLOOKUP($B58,'Athlete Input'!$B:$AJ,K$1,FALSE))) ->  | L58: =IF($B58="","",IF(VLOOKUP($B58,'Athlete Input'!$B:$AJ,L$1,FALSE)="","",VLOOKUP($B58,'Athlete Input'!$B:$AJ,L$1,FALSE))) ->  | M58: =IF($B58="","",IF(VLOOKUP($B58,'Athlete Input'!$B:$AJ,M$1,FALSE)="","",VLOOKUP($B58,'Athlete Input'!$B:$AJ,M$1,FALSE))) ->  | N58: =IF($B58="","",IF(VLOOKUP($B58,'Athlete Input'!$B:$AJ,N$1,FALSE)="","",VLOOKUP($B58,'Athlete Input'!$B:$AJ,N$1,FALSE))) ->  | O58: =IF($B58="","",IF(VLOOKUP($B58,'Athlete Input'!$B:$AJ,O$1,FALSE)="","",VLOOKUP($B58,'Athlete Input'!$B:$AJ,O$1,FALSE))) ->  | P58: =IF($B58="","",IF(VLOOKUP($B58,'Athlete Input'!$B:$AJ,P$1,FALSE)="","",VLOOKUP($B58,'Athlete Input'!$B:$AJ,P$1,FALSE))) ->  | Q58: =IF($B58="","",IF(VLOOKUP($B58,'Athlete Input'!$B:$AJ,Q$1,FALSE)="","",VLOOKUP($B58,'Athlete Input'!$B:$AJ,Q$1,FALSE))) ->  | R58: =IF($B58="","",IF(VLOOKUP($B58,'Athlete Input'!$B:$AJ,R$1,FALSE)="","",VLOOKUP($B58,'Athlete Input'!$B:$AJ,R$1,FALSE))) ->  | S58: =IF($B58="","",IF(VLOOKUP($B58,'Athlete Input'!$B:$AJ,S$1,FALSE)="","",VLOOKUP($B58,'Athlete Input'!$B:$AJ,S$1,FALSE))) ->  | T58: =IF($B58="","",IF(VLOOKUP($B58,'Athlete Input'!$B:$AJ,T$1,FALSE)="","",VLOOKUP($B58,'Athlete Input'!$B:$AJ,T$1,FALSE))) ->  | U58: =IF($B58="","",IF(VLOOKUP($B58,'Athlete Input'!$B:$BZ,U$1,FALSE)="","",VLOOKUP($B58,'Athlete Input'!$B:$BZ,U$1,FALSE))) ->  | V58: =IF($B58="","",IF(VLOOKUP($B58,'Athlete Input'!$B:$BZ,V$1,FALSE)="","",VLOOKUP($B58,'Athlete Input'!$B:$BZ,V$1,FALSE))) ->  | W58: =IF($B58="","",IF(VLOOKUP($B58,'Athlete Input'!$B:$BZ,W$1,FALSE)="","",VLOOKUP($B58,'Athlete Input'!$B:$BZ,W$1,FALSE))) ->  | X58: =IF($B58="","",IF(VLOOKUP($B58,'Athlete Input'!$B:$BZ,X$1,FALSE)="","",VLOOKUP($B58,'Athlete Input'!$B:$BZ,X$1,FALSE))) ->  | Y58: =IF($B58="","",IF(VLOOKUP($B58,'Athlete Input'!$B:$BZ,Y$1,FALSE)="","",VLOOKUP($B58,'Athlete Input'!$B:$BZ,Y$1,FALSE))) ->  | Z58: =IF($B58="","",IF(VLOOKUP($B58,'Athlete Input'!$B:$BZ,Z$1,FALSE)="","",VLOOKUP($B58,'Athlete Input'!$B:$BZ,Z$1,FALSE))) ->  | AA58: =IF($B58="","",IF(VLOOKUP($B58,'Athlete Input'!$B:$BZ,AA$1,FALSE)="","",VLOOKUP($B58,'Athlete Input'!$B:$BZ,AA$1,FALSE))) ->  | AB58: =IF($B58="","",IF(VLOOKUP($B58,'Athlete Input'!$B:$BZ,AB$1,FALSE)="","",VLOOKUP($B58,'Athlete Input'!$B:$BZ,AB$1,FALSE))) ->  | AC58: =IF($B58="","",IF(VLOOKUP($B58,'Athlete Input'!$B:$BZ,AC$1,FALSE)="","",VLOOKUP($B58,'Athlete Input'!$B:$BZ,AC$1,FALSE))) ->  | AD58: =IF($B58="","",IF(VLOOKUP($B58,'Athlete Input'!$B:$BZ,AD$1,FALSE)="","",VLOOKUP($B58,'Athlete Input'!$B:$BZ,AD$1,FALSE))) ->  | AE58: =IF($B58="","",IF(VLOOKUP($B58,'Athlete Input'!$B:$BZ,AE$1,FALSE)="","",VLOOKUP($B58,'Athlete Input'!$B:$BZ,AE$1,FALSE))) ->  | AF58: =IF($B58="","",IF(VLOOKUP($B58,'Athlete Input'!$B:$BZ,AF$1,FALSE)="","",VLOOKUP($B58,'Athlete Input'!$B:$BZ,AF$1,FALSE))) ->  | AG58: =IF($B58="","",IF(VLOOKUP($B58,'Athlete Input'!$B:$BZ,AG$1,FALSE)="","",VLOOKUP($B58,'Athlete Input'!$B:$BZ,AG$1,FALSE))) ->  | AH58: =IF($B58="","",IF(VLOOKUP($B58,'Athlete Input'!$B:$BZ,AH$1,FALSE)="","",VLOOKUP($B58,'Athlete Input'!$B:$BZ,AH$1,FALSE))) ->  | AI58: =IF($B58="","",IF(VLOOKUP($B58,'Athlete Input'!$B:$BZ,AI$1,FALSE)="","",VLOOKUP($B58,'Athlete Input'!$B:$BZ,AI$1,FALSE))) ->  | AJ58: =IF($B58="","",IF(VLOOKUP($B58,'Athlete Input'!$B:$BZ,AJ$1,FALSE)="","",VLOOKUP($B58,'Athlete Input'!$B:$BZ,AJ$1,FALSE))) ->  | AK58: =IF($B58="","",IF(VLOOKUP($B58,'Athlete Input'!$B:$BZ,AK$1,FALSE)="","",VLOOKUP($B58,'Athlete Input'!$B:$BZ,AK$1,FALSE))) ->  | AL58: =IF($B58="","",IF(VLOOKUP($B58,'Athlete Input'!$B:$BZ,AL$1,FALSE)="","",VLOOKUP($B58,'Athlete Input'!$B:$BZ,AL$1,FALSE))) ->  | AM58: =IF(B58="","zz",'Athlete Input'!C56) -> zz
A59: 56 | B59: =IF('Athlete Input'!B57="","",'Athlete Input'!B57) ->  | C59: =IF($B59="","",IF(VLOOKUP($B59,'Athlete Input'!$B:$AJ,C$1,FALSE)="","",VLOOKUP($B59,'Athlete Input'!$B:$AJ,C$1,FALSE))) ->  | D59: =IF($B59="","",IF(VLOOKUP($B59,'Athlete Input'!$B:$AJ,D$1,FALSE)="","",VLOOKUP($B59,'Athlete Input'!$B:$AJ,D$1,FALSE))) ->  | E59: =IF($B59="","",IF(VLOOKUP($B59,'Athlete Input'!$B:$AJ,E$1,FALSE)="","",VLOOKUP($B59,'Athlete Input'!$B:$AJ,E$1,FALSE))) ->  | F59: =IF($B59="","",IF(VLOOKUP($B59,'Athlete Input'!$B:$AJ,F$1,FALSE)="","",VLOOKUP($B59,'Athlete Input'!$B:$AJ,F$1,FALSE))) ->  | G59: =IF($B59="","",IF(VLOOKUP($B59,'Athlete Input'!$B:$AJ,G$1,FALSE)="","",VLOOKUP($B59,'Athlete Input'!$B:$AJ,G$1,FALSE))) ->  | H59: =IF($B59="","",IF(VLOOKUP($B59,'Athlete Input'!$B:$AJ,H$1,FALSE)="","",VLOOKUP($B59,'Athlete Input'!$B:$AJ,H$1,FALSE))) ->  | I59: =IF($B59="","",IF(VLOOKUP($B59,'Athlete Input'!$B:$AJ,I$1,FALSE)="","",VLOOKUP($B59,'Athlete Input'!$B:$AJ,I$1,FALSE))) ->  | J59: =IF($B59="","",IF(VLOOKUP($B59,'Athlete Input'!$B:$AJ,J$1,FALSE)="","",VLOOKUP($B59,'Athlete Input'!$B:$AJ,J$1,FALSE))) ->  | K59: =IF($B59="","",IF(VLOOKUP($B59,'Athlete Input'!$B:$AJ,K$1,FALSE)="","",VLOOKUP($B59,'Athlete Input'!$B:$AJ,K$1,FALSE))) ->  | L59: =IF($B59="","",IF(VLOOKUP($B59,'Athlete Input'!$B:$AJ,L$1,FALSE)="","",VLOOKUP($B59,'Athlete Input'!$B:$AJ,L$1,FALSE))) ->  | M59: =IF($B59="","",IF(VLOOKUP($B59,'Athlete Input'!$B:$AJ,M$1,FALSE)="","",VLOOKUP($B59,'Athlete Input'!$B:$AJ,M$1,FALSE))) ->  | N59: =IF($B59="","",IF(VLOOKUP($B59,'Athlete Input'!$B:$AJ,N$1,FALSE)="","",VLOOKUP($B59,'Athlete Input'!$B:$AJ,N$1,FALSE))) ->  | O59: =IF($B59="","",IF(VLOOKUP($B59,'Athlete Input'!$B:$AJ,O$1,FALSE)="","",VLOOKUP($B59,'Athlete Input'!$B:$AJ,O$1,FALSE))) ->  | P59: =IF($B59="","",IF(VLOOKUP($B59,'Athlete Input'!$B:$AJ,P$1,FALSE)="","",VLOOKUP($B59,'Athlete Input'!$B:$AJ,P$1,FALSE))) ->  | Q59: =IF($B59="","",IF(VLOOKUP($B59,'Athlete Input'!$B:$AJ,Q$1,FALSE)="","",VLOOKUP($B59,'Athlete Input'!$B:$AJ,Q$1,FALSE))) ->  | R59: =IF($B59="","",IF(VLOOKUP($B59,'Athlete Input'!$B:$AJ,R$1,FALSE)="","",VLOOKUP($B59,'Athlete Input'!$B:$AJ,R$1,FALSE))) ->  | S59: =IF($B59="","",IF(VLOOKUP($B59,'Athlete Input'!$B:$AJ,S$1,FALSE)="","",VLOOKUP($B59,'Athlete Input'!$B:$AJ,S$1,FALSE))) ->  | T59: =IF($B59="","",IF(VLOOKUP($B59,'Athlete Input'!$B:$AJ,T$1,FALSE)="","",VLOOKUP($B59,'Athlete Input'!$B:$AJ,T$1,FALSE))) ->  | U59: =IF($B59="","",IF(VLOOKUP($B59,'Athlete Input'!$B:$BZ,U$1,FALSE)="","",VLOOKUP($B59,'Athlete Input'!$B:$BZ,U$1,FALSE))) ->  | V59: =IF($B59="","",IF(VLOOKUP($B59,'Athlete Input'!$B:$BZ,V$1,FALSE)="","",VLOOKUP($B59,'Athlete Input'!$B:$BZ,V$1,FALSE))) ->  | W59: =IF($B59="","",IF(VLOOKUP($B59,'Athlete Input'!$B:$BZ,W$1,FALSE)="","",VLOOKUP($B59,'Athlete Input'!$B:$BZ,W$1,FALSE))) ->  | X59: =IF($B59="","",IF(VLOOKUP($B59,'Athlete Input'!$B:$BZ,X$1,FALSE)="","",VLOOKUP($B59,'Athlete Input'!$B:$BZ,X$1,FALSE))) ->  | Y59: =IF($B59="","",IF(VLOOKUP($B59,'Athlete Input'!$B:$BZ,Y$1,FALSE)="","",VLOOKUP($B59,'Athlete Input'!$B:$BZ,Y$1,FALSE))) ->  | Z59: =IF($B59="","",IF(VLOOKUP($B59,'Athlete Input'!$B:$BZ,Z$1,FALSE)="","",VLOOKUP($B59,'Athlete Input'!$B:$BZ,Z$1,FALSE))) ->  | AA59: =IF($B59="","",IF(VLOOKUP($B59,'Athlete Input'!$B:$BZ,AA$1,FALSE)="","",VLOOKUP($B59,'Athlete Input'!$B:$BZ,AA$1,FALSE))) ->  | AB59: =IF($B59="","",IF(VLOOKUP($B59,'Athlete Input'!$B:$BZ,AB$1,FALSE)="","",VLOOKUP($B59,'Athlete Input'!$B:$BZ,AB$1,FALSE))) ->  | AC59: =IF($B59="","",IF(VLOOKUP($B59,'Athlete Input'!$B:$BZ,AC$1,FALSE)="","",VLOOKUP($B59,'Athlete Input'!$B:$BZ,AC$1,FALSE))) ->  | AD59: =IF($B59="","",IF(VLOOKUP($B59,'Athlete Input'!$B:$BZ,AD$1,FALSE)="","",VLOOKUP($B59,'Athlete Input'!$B:$BZ,AD$1,FALSE))) ->  | AE59: =IF($B59="","",IF(VLOOKUP($B59,'Athlete Input'!$B:$BZ,AE$1,FALSE)="","",VLOOKUP($B59,'Athlete Input'!$B:$BZ,AE$1,FALSE))) ->  | AF59: =IF($B59="","",IF(VLOOKUP($B59,'Athlete Input'!$B:$BZ,AF$1,FALSE)="","",VLOOKUP($B59,'Athlete Input'!$B:$BZ,AF$1,FALSE))) ->  | AG59: =IF($B59="","",IF(VLOOKUP($B59,'Athlete Input'!$B:$BZ,AG$1,FALSE)="","",VLOOKUP($B59,'Athlete Input'!$B:$BZ,AG$1,FALSE))) ->  | AH59: =IF($B59="","",IF(VLOOKUP($B59,'Athlete Input'!$B:$BZ,AH$1,FALSE)="","",VLOOKUP($B59,'Athlete Input'!$B:$BZ,AH$1,FALSE))) ->  | AI59: =IF($B59="","",IF(VLOOKUP($B59,'Athlete Input'!$B:$BZ,AI$1,FALSE)="","",VLOOKUP($B59,'Athlete Input'!$B:$BZ,AI$1,FALSE))) ->  | AJ59: =IF($B59="","",IF(VLOOKUP($B59,'Athlete Input'!$B:$BZ,AJ$1,FALSE)="","",VLOOKUP($B59,'Athlete Input'!$B:$BZ,AJ$1,FALSE))) ->  | AK59: =IF($B59="","",IF(VLOOKUP($B59,'Athlete Input'!$B:$BZ,AK$1,FALSE)="","",VLOOKUP($B59,'Athlete Input'!$B:$BZ,AK$1,FALSE))) ->  | AL59: =IF($B59="","",IF(VLOOKUP($B59,'Athlete Input'!$B:$BZ,AL$1,FALSE)="","",VLOOKUP($B59,'Athlete Input'!$B:$BZ,AL$1,FALSE))) ->  | AM59: =IF(B59="","zz",'Athlete Input'!C57) -> zz
A60: 57 | B60: =IF('Athlete Input'!B58="","",'Athlete Input'!B58) ->  | C60: =IF($B60="","",IF(VLOOKUP($B60,'Athlete Input'!$B:$AJ,C$1,FALSE)="","",VLOOKUP($B60,'Athlete Input'!$B:$AJ,C$1,FALSE))) ->  | D60: =IF($B60="","",IF(VLOOKUP($B60,'Athlete Input'!$B:$AJ,D$1,FALSE)="","",VLOOKUP($B60,'Athlete Input'!$B:$AJ,D$1,FALSE))) ->  | E60: =IF($B60="","",IF(VLOOKUP($B60,'Athlete Input'!$B:$AJ,E$1,FALSE)="","",VLOOKUP($B60,'Athlete Input'!$B:$AJ,E$1,FALSE))) ->  | F60: =IF($B60="","",IF(VLOOKUP($B60,'Athlete Input'!$B:$AJ,F$1,FALSE)="","",VLOOKUP($B60,'Athlete Input'!$B:$AJ,F$1,FALSE))) ->  | G60: =IF($B60="","",IF(VLOOKUP($B60,'Athlete Input'!$B:$AJ,G$1,FALSE)="","",VLOOKUP($B60,'Athlete Input'!$B:$AJ,G$1,FALSE))) ->  | H60: =IF($B60="","",IF(VLOOKUP($B60,'Athlete Input'!$B:$AJ,H$1,FALSE)="","",VLOOKUP($B60,'Athlete Input'!$B:$AJ,H$1,FALSE))) ->  | I60: =IF($B60="","",IF(VLOOKUP($B60,'Athlete Input'!$B:$AJ,I$1,FALSE)="","",VLOOKUP($B60,'Athlete Input'!$B:$AJ,I$1,FALSE))) ->  | J60: =IF($B60="","",IF(VLOOKUP($B60,'Athlete Input'!$B:$AJ,J$1,FALSE)="","",VLOOKUP($B60,'Athlete Input'!$B:$AJ,J$1,FALSE))) ->  | K60: =IF($B60="","",IF(VLOOKUP($B60,'Athlete Input'!$B:$AJ,K$1,FALSE)="","",VLOOKUP($B60,'Athlete Input'!$B:$AJ,K$1,FALSE))) ->  | L60: =IF($B60="","",IF(VLOOKUP($B60,'Athlete Input'!$B:$AJ,L$1,FALSE)="","",VLOOKUP($B60,'Athlete Input'!$B:$AJ,L$1,FALSE))) ->  | M60: =IF($B60="","",IF(VLOOKUP($B60,'Athlete Input'!$B:$AJ,M$1,FALSE)="","",VLOOKUP($B60,'Athlete Input'!$B:$AJ,M$1,FALSE))) ->  | N60: =IF($B60="","",IF(VLOOKUP($B60,'Athlete Input'!$B:$AJ,N$1,FALSE)="","",VLOOKUP($B60,'Athlete Input'!$B:$AJ,N$1,FALSE))) ->  | O60: =IF($B60="","",IF(VLOOKUP($B60,'Athlete Input'!$B:$AJ,O$1,FALSE)="","",VLOOKUP($B60,'Athlete Input'!$B:$AJ,O$1,FALSE))) ->  | P60: =IF($B60="","",IF(VLOOKUP($B60,'Athlete Input'!$B:$AJ,P$1,FALSE)="","",VLOOKUP($B60,'Athlete Input'!$B:$AJ,P$1,FALSE))) ->  | Q60: =IF($B60="","",IF(VLOOKUP($B60,'Athlete Input'!$B:$AJ,Q$1,FALSE)="","",VLOOKUP($B60,'Athlete Input'!$B:$AJ,Q$1,FALSE))) ->  | R60: =IF($B60="","",IF(VLOOKUP($B60,'Athlete Input'!$B:$AJ,R$1,FALSE)="","",VLOOKUP($B60,'Athlete Input'!$B:$AJ,R$1,FALSE))) ->  | S60: =IF($B60="","",IF(VLOOKUP($B60,'Athlete Input'!$B:$AJ,S$1,FALSE)="","",VLOOKUP($B60,'Athlete Input'!$B:$AJ,S$1,FALSE))) ->  | T60: =IF($B60="","",IF(VLOOKUP($B60,'Athlete Input'!$B:$AJ,T$1,FALSE)="","",VLOOKUP($B60,'Athlete Input'!$B:$AJ,T$1,FALSE))) ->  | U60: =IF($B60="","",IF(VLOOKUP($B60,'Athlete Input'!$B:$BZ,U$1,FALSE)="","",VLOOKUP($B60,'Athlete Input'!$B:$BZ,U$1,FALSE))) ->  | V60: =IF($B60="","",IF(VLOOKUP($B60,'Athlete Input'!$B:$BZ,V$1,FALSE)="","",VLOOKUP($B60,'Athlete Input'!$B:$BZ,V$1,FALSE))) ->  | W60: =IF($B60="","",IF(VLOOKUP($B60,'Athlete Input'!$B:$BZ,W$1,FALSE)="","",VLOOKUP($B60,'Athlete Input'!$B:$BZ,W$1,FALSE))) ->  | X60: =IF($B60="","",IF(VLOOKUP($B60,'Athlete Input'!$B:$BZ,X$1,FALSE)="","",VLOOKUP($B60,'Athlete Input'!$B:$BZ,X$1,FALSE))) ->  | Y60: =IF($B60="","",IF(VLOOKUP($B60,'Athlete Input'!$B:$BZ,Y$1,FALSE)="","",VLOOKUP($B60,'Athlete Input'!$B:$BZ,Y$1,FALSE))) ->  | Z60: =IF($B60="","",IF(VLOOKUP($B60,'Athlete Input'!$B:$BZ,Z$1,FALSE)="","",VLOOKUP($B60,'Athlete Input'!$B:$BZ,Z$1,FALSE))) ->  | AA60: =IF($B60="","",IF(VLOOKUP($B60,'Athlete Input'!$B:$BZ,AA$1,FALSE)="","",VLOOKUP($B60,'Athlete Input'!$B:$BZ,AA$1,FALSE))) ->  | AB60: =IF($B60="","",IF(VLOOKUP($B60,'Athlete Input'!$B:$BZ,AB$1,FALSE)="","",VLOOKUP($B60,'Athlete Input'!$B:$BZ,AB$1,FALSE))) ->  | AC60: =IF($B60="","",IF(VLOOKUP($B60,'Athlete Input'!$B:$BZ,AC$1,FALSE)="","",VLOOKUP($B60,'Athlete Input'!$B:$BZ,AC$1,FALSE))) ->  | AD60: =IF($B60="","",IF(VLOOKUP($B60,'Athlete Input'!$B:$BZ,AD$1,FALSE)="","",VLOOKUP($B60,'Athlete Input'!$B:$BZ,AD$1,FALSE))) ->  | AE60: =IF($B60="","",IF(VLOOKUP($B60,'Athlete Input'!$B:$BZ,AE$1,FALSE)="","",VLOOKUP($B60,'Athlete Input'!$B:$BZ,AE$1,FALSE))) ->  | AF60: =IF($B60="","",IF(VLOOKUP($B60,'Athlete Input'!$B:$BZ,AF$1,FALSE)="","",VLOOKUP($B60,'Athlete Input'!$B:$BZ,AF$1,FALSE))) ->  | AG60: =IF($B60="","",IF(VLOOKUP($B60,'Athlete Input'!$B:$BZ,AG$1,FALSE)="","",VLOOKUP($B60,'Athlete Input'!$B:$BZ,AG$1,FALSE))) ->  | AH60: =IF($B60="","",IF(VLOOKUP($B60,'Athlete Input'!$B:$BZ,AH$1,FALSE)="","",VLOOKUP($B60,'Athlete Input'!$B:$BZ,AH$1,FALSE))) ->  | AI60: =IF($B60="","",IF(VLOOKUP($B60,'Athlete Input'!$B:$BZ,AI$1,FALSE)="","",VLOOKUP($B60,'Athlete Input'!$B:$BZ,AI$1,FALSE))) ->  | AJ60: =IF($B60="","",IF(VLOOKUP($B60,'Athlete Input'!$B:$BZ,AJ$1,FALSE)="","",VLOOKUP($B60,'Athlete Input'!$B:$BZ,AJ$1,FALSE))) ->  | AK60: =IF($B60="","",IF(VLOOKUP($B60,'Athlete Input'!$B:$BZ,AK$1,FALSE)="","",VLOOKUP($B60,'Athlete Input'!$B:$BZ,AK$1,FALSE))) ->  | AL60: =IF($B60="","",IF(VLOOKUP($B60,'Athlete Input'!$B:$BZ,AL$1,FALSE)="","",VLOOKUP($B60,'Athlete Input'!$B:$BZ,AL$1,FALSE))) ->  | AM60: =IF(B60="","zz",'Athlete Input'!C58) -> zz
A61: 58 | B61: =IF('Athlete Input'!B59="","",'Athlete Input'!B59) ->  | C61: =IF($B61="","",IF(VLOOKUP($B61,'Athlete Input'!$B:$AJ,C$1,FALSE)="","",VLOOKUP($B61,'Athlete Input'!$B:$AJ,C$1,FALSE))) ->  | D61: =IF($B61="","",IF(VLOOKUP($B61,'Athlete Input'!$B:$AJ,D$1,FALSE)="","",VLOOKUP($B61,'Athlete Input'!$B:$AJ,D$1,FALSE))) ->  | E61: =IF($B61="","",IF(VLOOKUP($B61,'Athlete Input'!$B:$AJ,E$1,FALSE)="","",VLOOKUP($B61,'Athlete Input'!$B:$AJ,E$1,FALSE))) ->  | F61: =IF($B61="","",IF(VLOOKUP($B61,'Athlete Input'!$B:$AJ,F$1,FALSE)="","",VLOOKUP($B61,'Athlete Input'!$B:$AJ,F$1,FALSE))) ->  | G61: =IF($B61="","",IF(VLOOKUP($B61,'Athlete Input'!$B:$AJ,G$1,FALSE)="","",VLOOKUP($B61,'Athlete Input'!$B:$AJ,G$1,FALSE))) ->  | H61: =IF($B61="","",IF(VLOOKUP($B61,'Athlete Input'!$B:$AJ,H$1,FALSE)="","",VLOOKUP($B61,'Athlete Input'!$B:$AJ,H$1,FALSE))) ->  | I61: =IF($B61="","",IF(VLOOKUP($B61,'Athlete Input'!$B:$AJ,I$1,FALSE)="","",VLOOKUP($B61,'Athlete Input'!$B:$AJ,I$1,FALSE))) ->  | J61: =IF($B61="","",IF(VLOOKUP($B61,'Athlete Input'!$B:$AJ,J$1,FALSE)="","",VLOOKUP($B61,'Athlete Input'!$B:$AJ,J$1,FALSE))) ->  | K61: =IF($B61="","",IF(VLOOKUP($B61,'Athlete Input'!$B:$AJ,K$1,FALSE)="","",VLOOKUP($B61,'Athlete Input'!$B:$AJ,K$1,FALSE))) ->  | L61: =IF($B61="","",IF(VLOOKUP($B61,'Athlete Input'!$B:$AJ,L$1,FALSE)="","",VLOOKUP($B61,'Athlete Input'!$B:$AJ,L$1,FALSE))) ->  | M61: =IF($B61="","",IF(VLOOKUP($B61,'Athlete Input'!$B:$AJ,M$1,FALSE)="","",VLOOKUP($B61,'Athlete Input'!$B:$AJ,M$1,FALSE))) ->  | N61: =IF($B61="","",IF(VLOOKUP($B61,'Athlete Input'!$B:$AJ,N$1,FALSE)="","",VLOOKUP($B61,'Athlete Input'!$B:$AJ,N$1,FALSE))) ->  | O61: =IF($B61="","",IF(VLOOKUP($B61,'Athlete Input'!$B:$AJ,O$1,FALSE)="","",VLOOKUP($B61,'Athlete Input'!$B:$AJ,O$1,FALSE))) ->  | P61: =IF($B61="","",IF(VLOOKUP($B61,'Athlete Input'!$B:$AJ,P$1,FALSE)="","",VLOOKUP($B61,'Athlete Input'!$B:$AJ,P$1,FALSE))) ->  | Q61: =IF($B61="","",IF(VLOOKUP($B61,'Athlete Input'!$B:$AJ,Q$1,FALSE)="","",VLOOKUP($B61,'Athlete Input'!$B:$AJ,Q$1,FALSE))) ->  | R61: =IF($B61="","",IF(VLOOKUP($B61,'Athlete Input'!$B:$AJ,R$1,FALSE)="","",VLOOKUP($B61,'Athlete Input'!$B:$AJ,R$1,FALSE))) ->  | S61: =IF($B61="","",IF(VLOOKUP($B61,'Athlete Input'!$B:$AJ,S$1,FALSE)="","",VLOOKUP($B61,'Athlete Input'!$B:$AJ,S$1,FALSE))) ->  | T61: =IF($B61="","",IF(VLOOKUP($B61,'Athlete Input'!$B:$AJ,T$1,FALSE)="","",VLOOKUP($B61,'Athlete Input'!$B:$AJ,T$1,FALSE))) ->  | U61: =IF($B61="","",IF(VLOOKUP($B61,'Athlete Input'!$B:$BZ,U$1,FALSE)="","",VLOOKUP($B61,'Athlete Input'!$B:$BZ,U$1,FALSE))) ->  | V61: =IF($B61="","",IF(VLOOKUP($B61,'Athlete Input'!$B:$BZ,V$1,FALSE)="","",VLOOKUP($B61,'Athlete Input'!$B:$BZ,V$1,FALSE))) ->  | W61: =IF($B61="","",IF(VLOOKUP($B61,'Athlete Input'!$B:$BZ,W$1,FALSE)="","",VLOOKUP($B61,'Athlete Input'!$B:$BZ,W$1,FALSE))) ->  | X61: =IF($B61="","",IF(VLOOKUP($B61,'Athlete Input'!$B:$BZ,X$1,FALSE)="","",VLOOKUP($B61,'Athlete Input'!$B:$BZ,X$1,FALSE))) ->  | Y61: =IF($B61="","",IF(VLOOKUP($B61,'Athlete Input'!$B:$BZ,Y$1,FALSE)="","",VLOOKUP($B61,'Athlete Input'!$B:$BZ,Y$1,FALSE))) ->  | Z61: =IF($B61="","",IF(VLOOKUP($B61,'Athlete Input'!$B:$BZ,Z$1,FALSE)="","",VLOOKUP($B61,'Athlete Input'!$B:$BZ,Z$1,FALSE))) ->  | AA61: =IF($B61="","",IF(VLOOKUP($B61,'Athlete Input'!$B:$BZ,AA$1,FALSE)="","",VLOOKUP($B61,'Athlete Input'!$B:$BZ,AA$1,FALSE))) ->  | AB61: =IF($B61="","",IF(VLOOKUP($B61,'Athlete Input'!$B:$BZ,AB$1,FALSE)="","",VLOOKUP($B61,'Athlete Input'!$B:$BZ,AB$1,FALSE))) ->  | AC61: =IF($B61="","",IF(VLOOKUP($B61,'Athlete Input'!$B:$BZ,AC$1,FALSE)="","",VLOOKUP($B61,'Athlete Input'!$B:$BZ,AC$1,FALSE))) ->  | AD61: =IF($B61="","",IF(VLOOKUP($B61,'Athlete Input'!$B:$BZ,AD$1,FALSE)="","",VLOOKUP($B61,'Athlete Input'!$B:$BZ,AD$1,FALSE))) ->  | AE61: =IF($B61="","",IF(VLOOKUP($B61,'Athlete Input'!$B:$BZ,AE$1,FALSE)="","",VLOOKUP($B61,'Athlete Input'!$B:$BZ,AE$1,FALSE))) ->  | AF61: =IF($B61="","",IF(VLOOKUP($B61,'Athlete Input'!$B:$BZ,AF$1,FALSE)="","",VLOOKUP($B61,'Athlete Input'!$B:$BZ,AF$1,FALSE))) ->  | AG61: =IF($B61="","",IF(VLOOKUP($B61,'Athlete Input'!$B:$BZ,AG$1,FALSE)="","",VLOOKUP($B61,'Athlete Input'!$B:$BZ,AG$1,FALSE))) ->  | AH61: =IF($B61="","",IF(VLOOKUP($B61,'Athlete Input'!$B:$BZ,AH$1,FALSE)="","",VLOOKUP($B61,'Athlete Input'!$B:$BZ,AH$1,FALSE))) ->  | AI61: =IF($B61="","",IF(VLOOKUP($B61,'Athlete Input'!$B:$BZ,AI$1,FALSE)="","",VLOOKUP($B61,'Athlete Input'!$B:$BZ,AI$1,FALSE))) ->  | AJ61: =IF($B61="","",IF(VLOOKUP($B61,'Athlete Input'!$B:$BZ,AJ$1,FALSE)="","",VLOOKUP($B61,'Athlete Input'!$B:$BZ,AJ$1,FALSE))) ->  | AK61: =IF($B61="","",IF(VLOOKUP($B61,'Athlete Input'!$B:$BZ,AK$1,FALSE)="","",VLOOKUP($B61,'Athlete Input'!$B:$BZ,AK$1,FALSE))) ->  | AL61: =IF($B61="","",IF(VLOOKUP($B61,'Athlete Input'!$B:$BZ,AL$1,FALSE)="","",VLOOKUP($B61,'Athlete Input'!$B:$BZ,AL$1,FALSE))) ->  | AM61: =IF(B61="","zz",'Athlete Input'!C59) -> zz
